Workbook

Sheet PI vs x
A1: Measurement | B1: Hall
A2: Type | B2: Off-axis
A4: Project | B4: ='10 x=-2'!B5 -> 504314
A5: PS serial no | B5: ='10 x=-2'!B7 -> 2410106
A7: Measurement date | B7: =LEFT('10 x=-2'!B4,10) -> 30-09-2024
C11: Nominal gap [mm] | D11: Encoder [counts] | E11: Encoder [mm] | F11: PI [T^2mm^3] | G11: x [mm] | H11: Encoder value at 10 mm gap:
B12: ='PI vs x'!$C$12 & "mm gap" -> 10mm gap | C12: ='10 x=-2'!B48 -> 10 | D12: ='10 x=-2'!$B$50 -> 19.6328 | E12: =D12-$H$12+10 -> 10.0012 | F12: ='10 x=-2'!$K$3 -> 10696.9807 | G12: -2 | H12: 19.6316
C13: =C12 -> 10 | D13: ='10 x=-1'!$B$50 -> 19.6328 | E13: =D13-$H$12+10 -> 10.0012 | F13: ='10 x=-1'!$K$3 -> 10707.20643 | G13: -1
C14: =C13 -> 10 | D14: ='10 x=0'!$B$50 -> 19.6328 | E14: 10.0012 | F14: ='10 x=0'!$K$3 -> 10709.62764 | G14: 0
C15: 10 | D15: ='10 x=1'!$B$50 -> 19.6328 | E15: 10.0012 | F15: ='10 x=1'!$K$3 -> 10710.0869 | G15: 1
C16: 10 | D16: ='10 x=2'!$B$50 -> 19.6328 | E16: 10.0012 | F16: ='10 x=2'!$K$3 -> 10699.30066 | G16: 2
B17: ='PI vs x'!$C$17 & "mm gap" -> 30mm gap | C17: ='30 x=-2'!B48 -> 30 | D17: ='30 x=-2'!$B$50 -> 39.6317 | E17: 30.0001 | F17: ='30 x=-2'!$K$3 -> 2494.756023 | G17: =G12 -> -2
C18: 30 | D18: ='30 x=-1'!$B$50 -> 39.6317 | E18: 30.0001 | F18: ='30 x=-1'!$K$3 -> 2500.3086 | G18: =G13 -> -1
C19: 30 | D19: ='30 x=0'!$B$50 -> 39.6317 | E19: 30.0001 | F19: ='30 x=0'!$K$3 -> 2503.900978 | G19: 0
C20: 30 | D20: ='30 x=1'!$B$50 -> 39.6317 | E20: 30.0001 | F20: ='30 x=1'!$K$3 -> 2501.941739 | G20: 1
C21: 30 | D21: ='30 x=2'!$B$50 -> 39.6317 | E21: 30.0001 | F21: ='30 x=2'!$K$3 -> 2494.474559 | G21: 2

Sheet 10 x=-2
A1: =IF('DF raw data'!A1="","",'DF raw data'!A1) -> Number of header lines | B1: =IF('DF raw data'!B1="","",'DF raw data'!B1) -> 54 | C1: =IF('DF raw data'!C1="","",'DF raw data'!C1) ->  | D1: =IF('DF raw data'!D1="","",'DF raw data'!D1) ->  | F1: T_coeff | G1: -0.001 | H1: /degC | J1: IBy total | K1: =J1262*1000 -> 14.89241739 | L1: muTm | M1: =L1262*1000 -> 17.25859411 | R1: DF ref | S1: 1
A2: =IF('DF raw data'!A2="","",'DF raw data'!A2) -> Measured by | B2: =IF('DF raw data'!B2="","",'DF raw data'!B2) -> Danfysik | C2: =IF('DF raw data'!C2="","",'DF raw data'!C2) ->  | D2: =IF('DF raw data'!D2="","",'DF raw data'!D2) ->  | F2: Tcorr | G2: 20 | H2: degC | J2: JBy total | K2: =K1262 -> 6.160351616 | L2: muTm^2 | M2: =M1262 -> 10.33333556
A3: =IF('DF raw data'!A3="","",'DF raw data'!A3) -> Operator | B3: =IF('DF raw data'!B3="","",'DF raw data'!B3) -> PMHA | C3: =IF('DF raw data'!C3="","",'DF raw data'!C3) ->  | D3: =IF('DF raw data'!D3="","",'DF raw data'!D3) ->  | F3: Step | G3: =A63-A62 -> 0.5 | H3: mm | J3: PI total | K3: =N1262 -> 10696.9807 | L3: T^2mm^3
A4: =IF('DF raw data'!A4="","",'DF raw data'!A4) -> Data-time | B4: =IF('DF raw data'!B4="","",'DF raw data'!B4) -> 30-09-2024, 21:57:37 | C4: =IF('DF raw data'!C4="","",'DF raw data'!C4) ->  | D4: =IF('DF raw data'!D4="","",'DF raw data'!D4) -> 
A5: =IF('DF raw data'!A5="","",'DF raw data'!A5) -> Project | B5: =IF('DF raw data'!B5="","",'DF raw data'!B5) -> 504314 | C5: =IF('DF raw data'!C5="","",'DF raw data'!C5) ->  | D5: =IF('DF raw data'!D5="","",'DF raw data'!D5) -> 
A6: =IF('DF raw data'!A6="","",'DF raw data'!A6) -> Magnet type | B6: =IF('DF raw data'!B6="","",'DF raw data'!B6) -> Dipole | C6: =IF('DF raw data'!C6="","",'DF raw data'!C6) ->  | D6: =IF('DF raw data'!D6="","",'DF raw data'!D6) -> 
A7: =IF('DF raw data'!A7="","",'DF raw data'!A7) -> Magnet nr. | B7: =IF('DF raw data'!B7="","",'DF raw data'!B7) -> 2410106 | C7: =IF('DF raw data'!C7="","",'DF raw data'!C7) ->  | D7: =IF('DF raw data'!D7="","",'DF raw data'!D7) -> 
A8: =IF('DF raw data'!A8="","",'DF raw data'!A8) -> Meas. number | B8: =IF('DF raw data'!B8="","",'DF raw data'!B8) -> 855 | C8: =IF('DF raw data'!C8="","",'DF raw data'!C8) ->  | D8: =IF('DF raw data'!D8="","",'DF raw data'!D8) -> 
A9: =IF('DF raw data'!A9="","",'DF raw data'!A9) -> Add. info | B9: =IF('DF raw data'!B9="","",'DF raw data'!B9) -> X-alignment scan 1) | C9: =IF('DF raw data'!C9="","",'DF raw data'!C9) ->  | D9: =IF('DF raw data'!D9="","",'DF raw data'!D9) -> 
A10: =IF('DF raw data'!A10="","",'DF raw data'!A10) -> Device | B10: =IF('DF raw data'!B10="","",'DF raw data'!B10) -> (HAL) HALL-PROBE | C10: =IF('DF raw data'!C10="","",'DF raw data'!C10) ->  | D10: =IF('DF raw data'!D10="","",'DF raw data'!D10) -> 
A11: =IF('DF raw data'!A11="","",'DF raw data'!A11) -> Goal | B11: =IF('DF raw data'!B11="","",'DF raw data'!B11) -> (AXI) AXis Integral (Line, EFB) | C11: =IF('DF raw data'!C11="","",'DF raw data'!C11) ->  | D11: =IF('DF raw data'!D11="","",'DF raw data'!D11) -> 
A12: =IF('DF raw data'!A12="","",'DF raw data'!A12) -> Power supply mode | B12: =IF('DF raw data'!B12="","",'DF raw data'!B12) -> (PM) Permanent Magnet (no MPS in use) | C12: =IF('DF raw data'!C12="","",'DF raw data'!C12) ->  | D12: =IF('DF raw data'!D12="","",'DF raw data'!D12) -> 
A13: =IF('DF raw data'!A13="","",'DF raw data'!A13) -> Data format | B13: =IF('DF raw data'!B13="","",'DF raw data'!B13) -> Raw data text file | C13: =IF('DF raw data'!C13="","",'DF raw data'!C13) ->  | D13: =IF('DF raw data'!D13="","",'DF raw data'!D13) -> 
A14: =IF('DF raw data'!A14="","",'DF raw data'!A14) -> Direction of the pos. x-axis | B14: =IF('DF raw data'!B14="","",'DF raw data'!B14) -> See test program | C14: =IF('DF raw data'!C14="","",'DF raw data'!C14) ->  | D14: =IF('DF raw data'!D14="","",'DF raw data'!D14) -> 
A15: =IF('DF raw data'!A15="","",'DF raw data'!A15) -> Direction of the pos. y-axis | B15: =IF('DF raw data'!B15="","",'DF raw data'!B15) -> Vertical up | C15: =IF('DF raw data'!C15="","",'DF raw data'!C15) ->  | D15: =IF('DF raw data'!D15="","",'DF raw data'!D15) -> 
A16: =IF('DF raw data'!A16="","",'DF raw data'!A16) -> Direction of the pos. z-axis | B16: =IF('DF raw data'!B16="","",'DF raw data'!B16) -> See test program | C16: =IF('DF raw data'!C16="","",'DF raw data'!C16) ->  | D16: =IF('DF raw data'!D16="","",'DF raw data'!D16) -> 
A17: =IF('DF raw data'!A17="","",'DF raw data'!A17) -> Mapper type | B17: =IF('DF raw data'!B17="","",'DF raw data'!B17) -> Precision Hall Mapper | C17: =IF('DF raw data'!C17="","",'DF raw data'!C17) ->  | D17: =IF('DF raw data'!D17="","",'DF raw data'!D17) -> 
A18: =IF('DF raw data'!A18="","",'DF raw data'!A18) -> Mapper Danfysik Reg. Number | B18: =IF('DF raw data'!B18="","",'DF raw data'!B18) -> 2033-D (mapper 1) | C18: =IF('DF raw data'!C18="","",'DF raw data'!C18) ->  | D18: =IF('DF raw data'!D18="","",'DF raw data'!D18) -> 
A19: =IF('DF raw data'!A19="","",'DF raw data'!A19) -> Measurement consept | B19: =IF('DF raw data'!B19="","",'DF raw data'!B19) -> Square line grid | C19: =IF('DF raw data'!C19="","",'DF raw data'!C19) ->  | D19: =IF('DF raw data'!D19="","",'DF raw data'!D19) -> 
A20: =IF('DF raw data'!A20="","",'DF raw data'!A20) -> Mode | B20: =IF('DF raw data'!B20="","",'DF raw data'!B20) -> On-the-fly measurement | C20: =IF('DF raw data'!C20="","",'DF raw data'!C20) ->  | D20: =IF('DF raw data'!D20="","",'DF raw data'!D20) -> 
A21: =IF('DF raw data'!A21="","",'DF raw data'!A21) ->  | B21: =IF('DF raw data'!B21="","",'DF raw data'!B21) ->  | C21: =IF('DF raw data'!C21="","",'DF raw data'!C21) ->  | D21: =IF('DF raw data'!D21="","",'DF raw data'!D21) -> 
A22: =IF('DF raw data'!A22="","",'DF raw data'!A22) -> Probe Name | B22: =IF('DF raw data'!B22="","",'DF raw data'!B22) -> ID12_By | C22: =IF('DF raw data'!C22="","",'DF raw data'!C22) ->  | D22: =IF('DF raw data'!D22="","",'DF raw data'!D22) -> 
A23: =IF('DF raw data'!A23="","",'DF raw data'!A23) -> Probe Type | B23: =IF('DF raw data'!B23="","",'DF raw data'!B23) -> DF_ID_3D_Bxyz | C23: =IF('DF raw data'!C23="","",'DF raw data'!C23) ->  | D23: =IF('DF raw data'!D23="","",'DF raw data'!D23) -> 
A24: =IF('DF raw data'!A24="","",'DF raw data'!A24) -> Probe Danfysik Reg. Number | B24: =IF('DF raw data'!B24="","",'DF raw data'!B24) -> 2277 | C24: =IF('DF raw data'!C24="","",'DF raw data'!C24) ->  | D24: =IF('DF raw data'!D24="","",'DF raw data'!D24) -> 
A25: =IF('DF raw data'!A25="","",'DF raw data'!A25) -> Probe Axis | B25: =IF('DF raw data'!B25="","",'DF raw data'!B25) -> By | C25: =IF('DF raw data'!C25="","",'DF raw data'!C25) ->  | D25: =IF('DF raw data'!D25="","",'DF raw data'!D25) -> 
A26: =IF('DF raw data'!A26="","",'DF raw data'!A26) -> Probe Current Supply | B26: =IF('DF raw data'!B26="","",'DF raw data'!B26) -> 1825-D | C26: =IF('DF raw data'!C26="","",'DF raw data'!C26) ->  | D26: =IF('DF raw data'!D26="","",'DF raw data'!D26) -> 
A27: =IF('DF raw data'!A27="","",'DF raw data'!A27) -> Probe Gain Correction | B27: =IF('DF raw data'!B27="","",'DF raw data'!B27) -> 0.99613 | C27: =IF('DF raw data'!C27="","",'DF raw data'!C27) ->  | D27: =IF('DF raw data'!D27="","",'DF raw data'!D27) -> 
A28: =IF('DF raw data'!A28="","",'DF raw data'!A28) -> Probe Offset Correction | B28: =IF('DF raw data'!B28="","",'DF raw data'!B28) -> 0.002746 | C28: =IF('DF raw data'!C28="","",'DF raw data'!C28) ->  | D28: =IF('DF raw data'!D28="","",'DF raw data'!D28) -> 
A29: =IF('DF raw data'!A29="","",'DF raw data'!A29) -> DVM Number | B29: =IF('DF raw data'!B29="","",'DF raw data'!B29) -> 2 | C29: =IF('DF raw data'!C29="","",'DF raw data'!C29) ->  | D29: =IF('DF raw data'!D29="","",'DF raw data'!D29) -> 
A30: =IF('DF raw data'!A30="","",'DF raw data'!A30) -> DVM Type | B30: =IF('DF raw data'!B30="","",'DF raw data'!B30) -> K2701 | C30: =IF('DF raw data'!C30="","",'DF raw data'!C30) ->  | D30: =IF('DF raw data'!D30="","",'DF raw data'!D30) -> 
A31: =IF('DF raw data'!A31="","",'DF raw data'!A31) -> DVM Danfysik Reg. Number | B31: =IF('DF raw data'!B31="","",'DF raw data'!B31) -> 1743-D | C31: =IF('DF raw data'!C31="","",'DF raw data'!C31) ->  | D31: =IF('DF raw data'!D31="","",'DF raw data'!D31) -> 
A32: =IF('DF raw data'!A32="","",'DF raw data'!A32) -> Probe Name | B32: =IF('DF raw data'!B32="","",'DF raw data'!B32) -> ID12_Bx | C32: =IF('DF raw data'!C32="","",'DF raw data'!C32) ->  | D32: =IF('DF raw data'!D32="","",'DF raw data'!D32) -> 
A33: =IF('DF raw data'!A33="","",'DF raw data'!A33) -> Probe Type | B33: =IF('DF raw data'!B33="","",'DF raw data'!B33) -> DF_ID_3D_Bxyz | C33: =IF('DF raw data'!C33="","",'DF raw data'!C33) ->  | D33: =IF('DF raw data'!D33="","",'DF raw data'!D33) -> 
A34: =IF('DF raw data'!A34="","",'DF raw data'!A34) -> Probe Danfysik Reg. Number | B34: =IF('DF raw data'!B34="","",'DF raw data'!B34) -> 2277 | C34: =IF('DF raw data'!C34="","",'DF raw data'!C34) ->  | D34: =IF('DF raw data'!D34="","",'DF raw data'!D34) -> 
A35: =IF('DF raw data'!A35="","",'DF raw data'!A35) -> Probe Axis | B35: =IF('DF raw data'!B35="","",'DF raw data'!B35) -> Bx | C35: =IF('DF raw data'!C35="","",'DF raw data'!C35) ->  | D35: =IF('DF raw data'!D35="","",'DF raw data'!D35) -> 
A36: =IF('DF raw data'!A36="","",'DF raw data'!A36) -> Probe Current Supply | B36: =IF('DF raw data'!B36="","",'DF raw data'!B36) -> 1825-D | C36: =IF('DF raw data'!C36="","",'DF raw data'!C36) ->  | D36: =IF('DF raw data'!D36="","",'DF raw data'!D36) -> 
A37: =IF('DF raw data'!A37="","",'DF raw data'!A37) -> Probe Gain Correction | B37: =IF('DF raw data'!B37="","",'DF raw data'!B37) -> 1 | C37: =IF('DF raw data'!C37="","",'DF raw data'!C37) ->  | D37: =IF('DF raw data'!D37="","",'DF raw data'!D37) -> 
A38: =IF('DF raw data'!A38="","",'DF raw data'!A38) -> Probe Offset Correction | B38: =IF('DF raw data'!B38="","",'DF raw data'!B38) -> -0.17546 | C38: =IF('DF raw data'!C38="","",'DF raw data'!C38) ->  | D38: =IF('DF raw data'!D38="","",'DF raw data'!D38) -> 
A39: =IF('DF raw data'!A39="","",'DF raw data'!A39) -> DVM Number | B39: =IF('DF raw data'!B39="","",'DF raw data'!B39) -> 3 | C39: =IF('DF raw data'!C39="","",'DF raw data'!C39) ->  | D39: =IF('DF raw data'!D39="","",'DF raw data'!D39) -> 
A40: =IF('DF raw data'!A40="","",'DF raw data'!A40) -> DVM Type | B40: =IF('DF raw data'!B40="","",'DF raw data'!B40) -> K2701 | C40: =IF('DF raw data'!C40="","",'DF raw data'!C40) ->  | D40: =IF('DF raw data'!D40="","",'DF raw data'!D40) -> 
A41: =IF('DF raw data'!A41="","",'DF raw data'!A41) -> DVM Danfysik Reg. Number | B41: =IF('DF raw data'!B41="","",'DF raw data'!B41) -> 1744-D | C41: =IF('DF raw data'!C41="","",'DF raw data'!C41) ->  | D41: =IF('DF raw data'!D41="","",'DF raw data'!D41) -> 
A42: =IF('DF raw data'!A42="","",'DF raw data'!A42) -> Probe Name | B42: =IF('DF raw data'!B42="","",'DF raw data'!B42) -> ID12_Bz | C42: =IF('DF raw data'!C42="","",'DF raw data'!C42) ->  | D42: =IF('DF raw data'!D42="","",'DF raw data'!D42) -> 
A43: =IF('DF raw data'!A43="","",'DF raw data'!A43) -> Probe Type | B43: =IF('DF raw data'!B43="","",'DF raw data'!B43) -> DF_ID_3D_Bxyz | C43: =IF('DF raw data'!C43="","",'DF raw data'!C43) ->  | D43: =IF('DF raw data'!D43="","",'DF raw data'!D43) -> 
A44: =IF('DF raw data'!A44="","",'DF raw data'!A44) -> Probe Danfysik Reg. Number | B44: =IF('DF raw data'!B44="","",'DF raw data'!B44) -> 2277 | C44: =IF('DF raw data'!C44="","",'DF raw data'!C44) ->  | D44: =IF('DF raw data'!D44="","",'DF raw data'!D44) -> 
A45: =IF('DF raw data'!A45="","",'DF raw data'!A45) -> Probe Axis | B45: =IF('DF raw data'!B45="","",'DF raw data'!B45) -> Bz | C45: =IF('DF raw data'!C45="","",'DF raw data'!C45) ->  | D45: =IF('DF raw data'!D45="","",'DF raw data'!D45) -> 
A46: =IF('DF raw data'!A46="","",'DF raw data'!A46) -> Probe Current Supply | B46: =IF('DF raw data'!B46="","",'DF raw data'!B46) -> 1825-D | C46: =IF('DF raw data'!C46="","",'DF raw data'!C46) ->  | D46: =IF('DF raw data'!D46="","",'DF raw data'!D46) -> 
A47: =IF('DF raw data'!A47="","",'DF raw data'!A47) -> Probe Gain Correction | B47: =IF('DF raw data'!B47="","",'DF raw data'!B47) -> 1 | C47: =IF('DF raw data'!C47="","",'DF raw data'!C47) ->  | D47: =IF('DF raw data'!D47="","",'DF raw data'!D47) -> 
A48: =IF('DF raw data'!A53="","",'DF raw data'!A53) -> PS-Gap: | B48: =IF('DF raw data'!B53="","",'DF raw data'!B53) -> 10 | C48: =IF('DF raw data'!C53="","",'DF raw data'!C53) ->  | D48: =IF('DF raw data'!D53="","",'DF raw data'!D53) -> 
A49: =IF('DF raw data'!A54="","",'DF raw data'!A54) -> PS-Temperature: | B49: =IF('DF raw data'!B54="","",'DF raw data'!B54) -> 24.2 | C49: =IF('DF raw data'!C54="","",'DF raw data'!C54) ->  | D49: =IF('DF raw data'!D54="","",'DF raw data'!D54) -> 
A50: =IF('DF raw data'!A55="","",'DF raw data'!A55) -> PS-Encoder: | B50: =IF('DF raw data'!B55="","",'DF raw data'!B55) -> 19.6328 | C50: =IF('DF raw data'!C55="","",'DF raw data'!C55) ->  | D50: =IF('DF raw data'!D55="","",'DF raw data'!D55) -> 
A51: =IF('DF raw data'!A56="","",'DF raw data'!A56) ->  | B51: =IF('DF raw data'!B56="","",'DF raw data'!B56) ->  | C51: =IF('DF raw data'!C56="","",'DF raw data'!C56) ->  | D51: =IF('DF raw data'!D56="","",'DF raw data'!D56) -> 
A52: =IF('DF raw data'!A57="","",'DF raw data'!A57) -> Monitor-Index | B52: =IF('DF raw data'!B57="","",'DF raw data'!B57) -> [1,1,4] | C52: =IF('DF raw data'!C57="","",'DF raw data'!C57) ->  | D52: =IF('DF raw data'!D57="","",'DF raw data'!D57) -> 
A53: =IF('DF raw data'!A58="","",'DF raw data'!A58) ->  | B53: =IF('DF raw data'!B58="","",'DF raw data'!B58) ->  | C53: =IF('DF raw data'!C58="","",'DF raw data'!C58) ->  | D53: =IF('DF raw data'!D58="","",'DF raw data'!D58) -> 
A54: =IF('DF raw data'!A59="","",'DF raw data'!A59) -> Time [s] | B54: =IF('DF raw data'!B59="","",'DF raw data'!B59) -> Y [mm] | C54: =IF('DF raw data'!C59="","",'DF raw data'!C59) -> X [mm] | D54: =IF('DF raw data'!D59="","",'DF raw data'!D59) -> Nominal current [A]
A55: =IF('DF raw data'!A60="","",'DF raw data'!A60) ->  | B55: =IF('DF raw data'!B60="","",'DF raw data'!B60) ->  | C55: =IF('DF raw data'!C60="","",'DF raw data'!C60) ->  | D55: =IF('DF raw data'!D60="","",'DF raw data'!D60) -> 
A56: =IF('DF raw data'!A61="","",'DF raw data'!A61) -> 208 | B56: =IF('DF raw data'!B61="","",'DF raw data'!B61) -> 31.48 | C56: =IF('DF raw data'!C61="","",'DF raw data'!C61) -> 299.8 | D56: =IF('DF raw data'!D61="","",'DF raw data'!D61) -> 0
A57: =IF('DF raw data'!A62="","",'DF raw data'!A62) ->  | B57: =IF('DF raw data'!B62="","",'DF raw data'!B62) ->  | C57: =IF('DF raw data'!C62="","",'DF raw data'!C62) ->  | D57: =IF('DF raw data'!D62="","",'DF raw data'!D62) -> 
A58: =IF('DF raw data'!A63="","",'DF raw data'!A63) -> Measurement-Index | B58: =IF('DF raw data'!B63="","",'DF raw data'!B63) -> [1,1,1201,2] | C58: =IF('DF raw data'!C63="","",'DF raw data'!C63) ->  | D58: =IF('DF raw data'!D63="","",'DF raw data'!D63) -> 
A59: =IF('DF raw data'!A64="","",'DF raw data'!A64) ->  | B59: =IF('DF raw data'!B64="","",'DF raw data'!B64) ->  | C59: =IF('DF raw data'!C64="","",'DF raw data'!C64) ->  | D59: =IF('DF raw data'!D64="","",'DF raw data'!D64) -> 
A60: =IF('DF raw data'!A65="","",'DF raw data'!A65) -> Z [mm] | B60: =IF('DF raw data'!B65="","",'DF raw data'!B65) -> By [T] | C60: =IF('DF raw data'!C65="","",'DF raw data'!C65) -> Bx [T] | D60: =IF('DF raw data'!D65="","",'DF raw data'!D65) -> Bz [T] | F60: By_corr | G60: Bx_corr | H60: Bz_corr | J60: Iy | K60: Jy | L60: Ix | M60: Jx | N60: PI
A62: =IF('DF raw data'!A67="","",'DF raw data'!A67) -> -300 | B62: =IF('DF raw data'!B67="","",'DF raw data'!B67) -> -9.7364e-06 | C62: =IF('DF raw data'!C67="","",'DF raw data'!C67) -> 0.000130612 | D62: =IF('DF raw data'!D67="","",'DF raw data'!D67) -> -2.46476e-05 | F62: =(1-$G$1*($B$49))*B62 -> -9.97202088e-06 | G62: =(1-$G$1*($B$49-$G$2))*C62 -> 0.0001311605704 | H62: =(1-$G$1*($B$49-$G$2))*D62 -> -2.475111992e-05 | J62: =F62*$G$3 -> -4.98601044e-06 | K62: =J62*$G$3 -> -2.49300522e-06 | L62: =G62*$G$3 -> 6.55802852e-05 | M62: =L62*$G$3 -> 3.27901426e-05 | N62: =(J62^2+L62^2)*$G$3 -> 2.162817054e-09
A63: =IF('DF raw data'!A68="","",'DF raw data'!A68) -> -299.5 | B63: =IF('DF raw data'!B68="","",'DF raw data'!B68) -> -5.75172e-07 | C63: =IF('DF raw data'!C68="","",'DF raw data'!C68) -> 0.000132476 | D63: =IF('DF raw data'!D68="","",'DF raw data'!D68) -> -2.51055e-05 | F63: =(1-$G$1*($B$49-$G$2))*B63 -> -5.775877224e-07 | G63: =(1-$G$1*($B$49-$G$2))*C63 -> 0.0001330323992 | H63: -2.52109431e-05 | J63: =F63*$G$3+J62 -> -5.274804301e-06 | K63: =J63*$G$3+K62 -> -5.130407371e-06 | L63: =G63*$G$3+L62 -> 0.0001320964848 | M63: =L63*$G$3+M62 -> 9.8838385e-05 | N63: =(J63^2+L63^2)*$G$3+N62 -> 1.090146948e-08
A64: =IF('DF raw data'!A69="","",'DF raw data'!A69) -> -299 | B64: =IF('DF raw data'!B69="","",'DF raw data'!B69) -> -5.44331e-06 | C64: =IF('DF raw data'!C69="","",'DF raw data'!C69) -> 0.000133615 | D64: =IF('DF raw data'!D69="","",'DF raw data'!D69) -> -2.57509e-05 | F64: =(1-$G$1*($B$49-$G$2))*B64 -> -5.466171902e-06 | G64: 0.000134176183 | H64: -2.585905378e-05 | J64: =F64*$G$3+J63 -> -8.007890252e-06 | K64: =J64*$G$3+K63 -> -9.134352497e-06 | L64: =G64*$G$3+L63 -> 0.0001991845763 | M64: =L64*$G$3+M63 -> 0.0001984306731 | N64: =(J64^2+L64^2)*$G$3+N63 -> 3.077078035e-08
A65: =IF('DF raw data'!A70="","",'DF raw data'!A70) -> -298.5 | B65: =IF('DF raw data'!B70="","",'DF raw data'!B70) -> -1.90461e-07 | C65: =IF('DF raw data'!C70="","",'DF raw data'!C70) -> 0.000134239 | D65: =IF('DF raw data'!D70="","",'DF raw data'!D70) -> -2.56455e-05 | F65: -1.912609362e-07 | G65: 0.0001348028038 | H65: -2.57532111e-05 | J65: -8.10352072e-06 | K65: -1.318611286e-05 | L65: 0.0002665859782 | M65: 0.0003317236622 | N65: 6.633765576e-08
A66: =IF('DF raw data'!A71="","",'DF raw data'!A71) -> -298 | B66: =IF('DF raw data'!B71="","",'DF raw data'!B71) -> -7.94238e-06 | C66: =IF('DF raw data'!C71="","",'DF raw data'!C71) -> 0.00013192 | D66: =IF('DF raw data'!D71="","",'DF raw data'!D71) -> -2.48356e-05 | F66: -7.975737996e-06 | G66: 0.000132474064 | H66: -2.493990952e-05 | J66: -1.209138972e-05 | K66: -1.923180772e-05 | L66: 0.0003328230102 | M66: 0.0004981351673 | N66: 1.217963347e-07
A67: =IF('DF raw data'!A72="","",'DF raw data'!A72) -> -297.5 | B67: =IF('DF raw data'!B72="","",'DF raw data'!B72) -> 8.7138e-06 | C67: =IF('DF raw data'!C72="","",'DF raw data'!C72) -> 0.000143404 | D67: =IF('DF raw data'!D72="","",'DF raw data'!D72) -> -2.49146e-05 | F67: 8.75039796e-06 | G67: 0.0001440062968 | H67: -2.501924132e-05 | J67: -7.716190738e-06 | K67: -2.308990309e-05 | L67: 0.0004048261586 | M67: 0.0007005482466 | N67: 2.037682138e-07
A68: =IF('DF raw data'!A73="","",'DF raw data'!A73) -> -297 | B68: =IF('DF raw data'!B73="","",'DF raw data'!B73) -> 1.44165e-05 | C68: =IF('DF raw data'!C73="","",'DF raw data'!C73) -> 0.000146198 | D68: =IF('DF raw data'!D73="","",'DF raw data'!D73) -> -2.63355e-05 | F68: 1.44770493e-05 | G68: 0.0001468120316 | H68: -2.64461091e-05 | J68: -4.776660883e-07 | K68: -2.332873613e-05 | L68: 0.0004782321744 | M68: 0.0009396643338 | N68: 3.181213342e-07
A69: =IF('DF raw data'!A74="","",'DF raw data'!A74) -> -296.5 | B69: =IF('DF raw data'!B74="","",'DF raw data'!B74) -> 2.37336e-06 | C69: =IF('DF raw data'!C74="","",'DF raw data'!C74) -> 0.000141996 | D69: =IF('DF raw data'!D74="","",'DF raw data'!D74) -> -2.74213e-05 | F69: 2.383328112e-06 | G69: 0.0001425923832 | H69: -2.753646946e-05 | J69: 7.139979677e-07 | K69: -2.297173715e-05 | L69: 0.000549528366 | M69: 0.001214428517 | N69: 4.691123016e-07
A70: =IF('DF raw data'!A75="","",'DF raw data'!A75) -> -296 | B70: =IF('DF raw data'!B75="","",'DF raw data'!B75) -> -3.26437e-06 | C70: =IF('DF raw data'!C75="","",'DF raw data'!C75) -> 0.000141348 | D70: =IF('DF raw data'!D75="","",'DF raw data'!D75) -> -2.71401e-05 | F70: -3.278080354e-06 | G70: 0.0001419416616 | H70: -2.725408842e-05 | J70: -9.250422093e-07 | K70: -2.343425825e-05 | L70: 0.0006204991968 | M70: 0.001524678115 | N70: 6.616223561e-07
A71: =IF('DF raw data'!A76="","",'DF raw data'!A76) -> -295.5 | B71: =IF('DF raw data'!B76="","",'DF raw data'!B76) -> -2.43187e-06 | C71: =IF('DF raw data'!C76="","",'DF raw data'!C76) -> 0.000146777 | D71: =IF('DF raw data'!D76="","",'DF raw data'!D76) -> -2.65143e-05 | F71: -2.442083854e-06 | G71: 0.0001473934634 | H71: -2.662566006e-05 | J71: -2.146084136e-06 | K71: -2.450730032e-05 | L71: 0.0006941959285 | M71: 0.001871776079 | N71: 9.025786525e-07
A72: =IF('DF raw data'!A77="","",'DF raw data'!A77) -> -295 | B72: =IF('DF raw data'!B77="","",'DF raw data'!B77) -> -1.85543e-06 | C72: =IF('DF raw data'!C77="","",'DF raw data'!C77) -> 0.00013891 | D72: =IF('DF raw data'!D77="","",'DF raw data'!D77) -> -2.65555e-05 | F72: -1.863222806e-06 | G72: 0.000139493422 | H72: -2.66670331e-05 | J72: -3.077695539e-06 | K72: -2.604614809e-05 | L72: 0.0007639426395 | M72: 0.002253747399 | N72: 1.194387567e-06
A73: =IF('DF raw data'!A78="","",'DF raw data'!A78) -> -294.5 | B73: =IF('DF raw data'!B78="","",'DF raw data'!B78) -> -2.88018e-06 | C73: =IF('DF raw data'!C78="","",'DF raw data'!C78) -> 0.00013566 | D73: =IF('DF raw data'!D78="","",'DF raw data'!D78) -> -2.68926e-05 | F73: -2.892276756e-06 | G73: 0.000136229772 | H73: -2.700554892e-05 | J73: -4.523833917e-06 | K73: -2.830806505e-05 | L73: 0.0008320575255 | M73: 0.002669776162 | N73: 1.540557662e-06
A74: =IF('DF raw data'!A79="","",'DF raw data'!A79) -> -294 | B74: =IF('DF raw data'!B79="","",'DF raw data'!B79) -> -9.86326e-06 | C74: =IF('DF raw data'!C79="","",'DF raw data'!C79) -> 0.000138298 | D74: =IF('DF raw data'!D79="","",'DF raw data'!D79) -> -2.66504e-05 | F74: -9.904685692e-06 | G74: 0.0001388788516 | H74: -2.676233168e-05 | J74: -9.476176763e-06 | K74: -3.304615343e-05 | L74: 0.0009014969513 | M74: 0.003120524638 | N74: 1.946950938e-06
A75: =IF('DF raw data'!A80="","",'DF raw data'!A80) -> -293.5 | B75: =IF('DF raw data'!B80="","",'DF raw data'!B80) -> -1.11449e-05 | C75: =IF('DF raw data'!C80="","",'DF raw data'!C80) -> 0.000129842 | D75: =IF('DF raw data'!D80="","",'DF raw data'!D80) -> -2.60779e-05 | F75: -1.119170858e-05 | G75: 0.0001303873364 | H75: -2.618742718e-05 | J75: -1.507203105e-05 | K75: -4.058216895e-05 | L75: 0.0009666906195 | M75: 0.003603869947 | N75: 2.414309898e-06
A76: =IF('DF raw data'!A81="","",'DF raw data'!A81) -> -293 | B76: =IF('DF raw data'!B81="","",'DF raw data'!B81) -> -4.35411e-06 | C76: =IF('DF raw data'!C81="","",'DF raw data'!C81) -> 0.000131856 | D76: =IF('DF raw data'!D81="","",'DF raw data'!D81) -> -2.62338e-05 | F76: -4.372397262e-06 | G76: 0.0001324097952 | H76: -2.634398196e-05 | J76: -1.725822968e-05 | K76: -4.92112838e-05 | L76: 0.001032895517 | M76: 0.004120317706 | N76: 2.947895396e-06
A77: =IF('DF raw data'!A82="","",'DF raw data'!A82) -> -292.5 | B77: =IF('DF raw data'!B82="","",'DF raw data'!B82) -> -5.18634e-06 | C77: =IF('DF raw data'!C82="","",'DF raw data'!C82) -> 0.000128072 | D77: =IF('DF raw data'!D82="","",'DF raw data'!D82) -> -2.68976e-05 | F77: -5.208122628e-06 | G77: 0.0001286099024 | H77: -2.701056992e-05 | J77: -1.9862291e-05 | K77: -5.91424293e-05 | L77: 0.001097200468 | M77: 0.00466891794 | N77: 3.550017085e-06
A78: =IF('DF raw data'!A83="","",'DF raw data'!A83) -> -292 | B78: =IF('DF raw data'!B83="","",'DF raw data'!B83) -> -1.77429e-05 | C78: =IF('DF raw data'!C83="","",'DF raw data'!C83) -> 0.000126723 | D78: =IF('DF raw data'!D83="","",'DF raw data'!D83) -> -2.68939e-05 | F78: -1.781742018e-05 | G78: 0.0001272552366 | H78: -2.700685438e-05 | J78: -2.877100109e-05 | K78: -7.352792984e-05 | L78: 0.001160828087 | M78: 0.005249331983 | N78: 4.224191893e-06
A79: =IF('DF raw data'!A84="","",'DF raw data'!A84) -> -291.5 | B79: =IF('DF raw data'!B84="","",'DF raw data'!B84) -> -1.20992e-05 | C79: =IF('DF raw data'!C84="","",'DF raw data'!C84) -> 0.000124821 | D79: =IF('DF raw data'!D84="","",'DF raw data'!D84) -> -3.64552e-05 | F79: -1.215001664e-05 | G79: 0.0001253452482 | H79: -3.660831184e-05 | J79: -3.484600941e-05 | K79: -9.095093454e-05 | L79: 0.001223500711 | M79: 0.005861082339 | N79: 4.97327601e-06
A80: =IF('DF raw data'!A85="","",'DF raw data'!A85) -> -291 | B80: =IF('DF raw data'!B85="","",'DF raw data'!B85) -> -1.62708e-05 | C80: =IF('DF raw data'!C85="","",'DF raw data'!C85) -> 0.00012275 | D80: =IF('DF raw data'!D85="","",'DF raw data'!D85) -> -2.46064e-05 | F80: -1.633913736e-05 | G80: 0.00012326555 | H80: -2.470974688e-05 | J80: -4.301557809e-05 | K80: -0.0001124587236 | L80: 0.001285133486 | M80: 0.006503649082 | N80: 5.799985218e-06
A81: =IF('DF raw data'!A86="","",'DF raw data'!A86) -> -290.5 | B81: =IF('DF raw data'!B86="","",'DF raw data'!B86) -> -9.60854e-06 | C81: =IF('DF raw data'!C86="","",'DF raw data'!C86) -> 0.000122451 | D81: =IF('DF raw data'!D86="","",'DF raw data'!D86) -> -2.43316e-05 | F81: -9.648895868e-06 | G81: 0.0001229652942 | H81: -2.443379272e-05 | J81: -4.784002602e-05 | K81: -0.0001363787366 | L81: 0.001346616133 | M81: 0.007176957148 | N81: 6.707817057e-06
A82: =IF('DF raw data'!A87="","",'DF raw data'!A87) -> -290 | B82: =IF('DF raw data'!B87="","",'DF raw data'!B87) -> -1.92164e-05 | C82: =IF('DF raw data'!C87="","",'DF raw data'!C87) -> 0.000121705 | D82: =IF('DF raw data'!D87="","",'DF raw data'!D87) -> -2.63981e-05 | F82: -1.929710888e-05 | G82: 0.000122216161 | H82: -2.650897202e-05 | J82: -5.748858046e-05 | K82: -0.0001651230268 | L82: 0.001407724213 | M82: 0.007880819255 | N82: 7.700313255e-06
A83: =IF('DF raw data'!A88="","",'DF raw data'!A88) -> -289.5 | B83: =IF('DF raw data'!B88="","",'DF raw data'!B88) -> -1.07557e-05 | C83: =IF('DF raw data'!C88="","",'DF raw data'!C88) -> 0.000126182 | D83: =IF('DF raw data'!D88="","",'DF raw data'!D88) -> -3.34842e-05 | F83: -1.080087394e-05 | G83: 0.0001267119644 | H83: -3.362483364e-05 | J83: -6.288901743e-05 | K83: -0.0001965675355 | L83: 0.001471080195 | M83: 0.008616359352 | N83: 8.784329241e-06
A84: =IF('DF raw data'!A89="","",'DF raw data'!A89) -> -289 | B84: =IF('DF raw data'!B89="","",'DF raw data'!B89) -> -1.48625e-05 | C84: =IF('DF raw data'!C89="","",'DF raw data'!C89) -> 0.000125262 | D84: =IF('DF raw data'!D89="","",'DF raw data'!D89) -> -2.31462e-05 | F84: -1.49249225e-05 | G84: 0.0001257881004 | H84: -2.324341404e-05 | J84: -7.035147868e-05 | K84: -0.0002317432749 | L84: 0.001533974246 | M84: 0.009383346475 | N84: 9.963342399e-06
A85: =IF('DF raw data'!A90="","",'DF raw data'!A90) -> -288.5 | B85: =IF('DF raw data'!B90="","",'DF raw data'!B90) -> -2.05035e-05 | C85: =IF('DF raw data'!C90="","",'DF raw data'!C90) -> 0.000124412 | D85: =IF('DF raw data'!D90="","",'DF raw data'!D90) -> -1.78214e-05 | F85: -2.05896147e-05 | G85: 0.0001249345304 | H85: -1.789624988e-05 | J85: -8.064628603e-05 | K85: -0.0002720664179 | L85: 0.001596441511 | M85: 0.01018156723 | N85: 1.124090706e-05
A86: =IF('DF raw data'!A91="","",'DF raw data'!A91) -> -288 | B86: =IF('DF raw data'!B91="","",'DF raw data'!B91) -> -1.755e-05 | C86: =IF('DF raw data'!C91="","",'DF raw data'!C91) -> 0.000127464 | D86: =IF('DF raw data'!D91="","",'DF raw data'!D91) -> -2.77173e-05 | F86: -1.762371e-05 | G86: 0.0001279993488 | H86: -2.783371266e-05 | J86: -8.945814103e-05 | K86: -0.0003167954884 | L86: 0.001660441185 | M86: 0.01101178782 | N86: 1.26234409e-05
A87: =IF('DF raw data'!A92="","",'DF raw data'!A92) -> -287.5 | B87: =IF('DF raw data'!B92="","",'DF raw data'!B92) -> -1.53132e-05 | C87: =IF('DF raw data'!C92="","",'DF raw data'!C92) -> 0.000118293 | D87: =IF('DF raw data'!D92="","",'DF raw data'!D92) -> -1.94915e-05 | F87: -1.537751544e-05 | G87: 0.0001187898306 | H87: -1.95733643e-05 | J87: -9.714689875e-05 | K87: -0.0003653689378 | L87: 0.001719836101 | M87: 0.01187170587 | N87: 1.410707777e-05
A88: =IF('DF raw data'!A93="","",'DF raw data'!A93) -> -287 | B88: =IF('DF raw data'!B93="","",'DF raw data'!B93) -> -1.22979e-05 | C88: =IF('DF raw data'!C93="","",'DF raw data'!C93) -> 0.000125389 | D88: =IF('DF raw data'!D93="","",'DF raw data'!D93) -> -2.60799e-05 | F88: -1.234955118e-05 | G88: 0.0001259156338 | H88: -2.618943558e-05 | J88: -0.0001033216743 | K88: -0.000417029775 | L88: 0.001782793917 | M88: 0.01276310283 | N88: 1.570159253e-05
A89: =IF('DF raw data'!A94="","",'DF raw data'!A94) -> -286.5 | B89: =IF('DF raw data'!B94="","",'DF raw data'!B94) -> -2.15888e-05 | C89: =IF('DF raw data'!C94="","",'DF raw data'!C94) -> 0.000119443 | D89: =IF('DF raw data'!D94="","",'DF raw data'!D94) -> -2.34424e-05 | F89: -2.167947296e-05 | G89: 0.0001199446606 | H89: -2.354085808e-05 | J89: -0.0001141614108 | K89: -0.0004741104804 | L89: 0.001842766248 | M89: 0.01368448596 | N89: 1.740600267e-05
A90: =IF('DF raw data'!A95="","",'DF raw data'!A95) -> -286 | B90: =IF('DF raw data'!B95="","",'DF raw data'!B95) -> -2.69182e-06 | C90: =IF('DF raw data'!C95="","",'DF raw data'!C95) -> 0.000127228 | D90: =IF('DF raw data'!D95="","",'DF raw data'!D95) -> -2.11925e-05 | F90: -2.703125644e-06 | G90: 0.0001277623576 | H90: -2.12815085e-05 | J90: -0.0001155129736 | K90: -0.0005318669672 | L90: 0.001906647427 | M90: 0.01463780967 | N90: 1.923032649e-05
A91: =IF('DF raw data'!A96="","",'DF raw data'!A96) -> -285.5 | B91: =IF('DF raw data'!B96="","",'DF raw data'!B96) -> -9.03957e-06 | C91: =IF('DF raw data'!C96="","",'DF raw data'!C96) -> 0.000137615 | D91: =IF('DF raw data'!D96="","",'DF raw data'!D96) -> -1.2489e-05 | F91: -9.077536194e-06 | G91: 0.000138192983 | H91: -1.25414538e-05 | J91: -0.0001200517417 | K91: -0.0005918928381 | L91: 0.001975743918 | M91: 0.01562568163 | N91: 2.118931472e-05
A92: =IF('DF raw data'!A97="","",'DF raw data'!A97) -> -285 | B92: =IF('DF raw data'!B97="","",'DF raw data'!B97) -> -9.67432e-06 | C92: =IF('DF raw data'!C97="","",'DF raw data'!C97) -> 0.000143454 | D92: =IF('DF raw data'!D97="","",'DF raw data'!D97) -> -2.1443e-05 | F92: -9.714952144e-06 | G92: 0.0001440565068 | H92: -2.15330606e-05 | J92: -0.0001249092178 | K92: -0.000654347447 | L92: 0.002047772171 | M92: 0.01664956771 | N92: 2.329380131e-05
A93: =IF('DF raw data'!A98="","",'DF raw data'!A98) -> -284.5 | B93: =IF('DF raw data'!B98="","",'DF raw data'!B98) -> -1.10823e-05 | C93: =IF('DF raw data'!C98="","",'DF raw data'!C98) -> 0.000146104 | D93: =IF('DF raw data'!D98="","",'DF raw data'!D98) -> -2.35541e-05 | F93: -1.112884566e-05 | G93: 0.0001467176368 | H93: -2.365302722e-05 | J93: -0.0001304736406 | K93: -0.0007195842673 | L93: 0.00212113099 | M93: 0.01771013321 | N93: 2.555191133e-05
A94: =IF('DF raw data'!A99="","",'DF raw data'!A99) -> -284 | B94: =IF('DF raw data'!B99="","",'DF raw data'!B99) -> -4.73947e-06 | C94: =IF('DF raw data'!C99="","",'DF raw data'!C99) -> 0.000142835 | D94: =IF('DF raw data'!D99="","",'DF raw data'!D99) -> -2.46843e-05 | F94: -4.759375774e-06 | G94: 0.000143434907 | H94: -2.478797406e-05 | J94: -0.0001328533285 | K94: -0.0007860109316 | L94: 0.002192848443 | M94: 0.01880655743 | N94: 2.796502848e-05
A95: =IF('DF raw data'!A100="","",'DF raw data'!A100) -> -283.5 | B95: =IF('DF raw data'!B100="","",'DF raw data'!B100) -> -6.47165e-06 | C95: =IF('DF raw data'!C100="","",'DF raw data'!C100) -> 0.000137752 | D95: =IF('DF raw data'!D100="","",'DF raw data'!D100) -> -2.09884e-05 | F95: -6.49883093e-06 | G95: 0.0001383305584 | H95: -2.107655128e-05 | J95: -0.000136102744 | K95: -0.0008540623036 | L95: 0.002262013723 | M95: 0.01993756429 | N95: 3.05326435e-05
A96: =IF('DF raw data'!A101="","",'DF raw data'!A101) -> -283 | B96: =IF('DF raw data'!B101="","",'DF raw data'!B101) -> -7.37455e-06 | C96: =IF('DF raw data'!C101="","",'DF raw data'!C101) -> 0.000135919 | D96: =IF('DF raw data'!D101="","",'DF raw data'!D101) -> -1.15925e-05 | F96: -7.40552311e-06 | G96: 0.0001364898598 | H96: -1.16411885e-05 | J96: -0.0001398055056 | K96: -0.0009239650563 | L96: 0.002330258652 | M96: 0.02110269362 | N96: 3.325746899e-05
A97: =IF('DF raw data'!A102="","",'DF raw data'!A102) -> -282.5 | B97: =IF('DF raw data'!B102="","",'DF raw data'!B102) -> -1.05017e-05 | C97: =IF('DF raw data'!C102="","",'DF raw data'!C102) -> 0.000129921 | D97: =IF('DF raw data'!D102="","",'DF raw data'!D102) -> -3.00263e-05 | F97: -1.054580714e-05 | G97: 0.0001304666682 | H97: -3.015241046e-05 | J97: -0.0001450784091 | K97: -0.0009965042609 | L97: 0.002395491987 | M97: 0.02230043961 | N97: 3.613718379e-05
A98: =IF('DF raw data'!A103="","",'DF raw data'!A103) -> -282 | B98: =IF('DF raw data'!B103="","",'DF raw data'!B103) -> -1.23633e-05 | C98: =IF('DF raw data'!C103="","",'DF raw data'!C103) -> 0.000134932 | D98: =IF('DF raw data'!D103="","",'DF raw data'!D103) -> -2.41723e-05 | F98: -1.241522586e-05 | G98: 0.0001354987144 | H98: -2.427382366e-05 | J98: -0.0001512860221 | K98: -0.001072147272 | L98: 0.002463241344 | M98: 0.02353206028 | N98: 3.918240648e-05
A99: =IF('DF raw data'!A104="","",'DF raw data'!A104) -> -281.5 | B99: =IF('DF raw data'!B104="","",'DF raw data'!B104) -> -1.49284e-05 | C99: =IF('DF raw data'!C104="","",'DF raw data'!C104) -> 0.000129883 | D99: =IF('DF raw data'!D104="","",'DF raw data'!D104) -> -2.02035e-05 | F99: -1.499109928e-05 | G99: 0.0001304285086 | H99: -2.02883547e-05 | J99: -0.0001587815717 | K99: -0.001151538058 | L99: 0.002528455598 | M99: 0.02479628808 | N99: 4.239155613e-05
A100: =IF('DF raw data'!A105="","",'DF raw data'!A105) -> -281 | B100: =IF('DF raw data'!B105="","",'DF raw data'!B105) -> -1.20358e-05 | C100: =IF('DF raw data'!C105="","",'DF raw data'!C105) -> 0.000129404 | D100: =IF('DF raw data'!D105="","",'DF raw data'!D105) -> -3.51879e-05 | F100: -1.208635036e-05 | G100: 0.0001299474968 | H100: -3.533568918e-05 | J100: -0.0001648247469 | K100: -0.001233950431 | L100: 0.002593429346 | M100: 0.02609300276 | N100: 4.576807761e-05
A101: =IF('DF raw data'!A106="","",'DF raw data'!A106) -> -280.5 | B101: =IF('DF raw data'!B106="","",'DF raw data'!B106) -> -1.80094e-05 | C101: =IF('DF raw data'!C106="","",'DF raw data'!C106) -> 0.000129384 | D101: =IF('DF raw data'!D106="","",'DF raw data'!D106) -> -1.1185e-05 | F101: -1.808503948e-05 | G101: 0.0001299274128 | H101: -1.1231977e-05 | J101: -0.0001738672666 | K101: -0.001320884065 | L101: 0.002658393053 | M101: 0.02742219928 | N101: 4.931671934e-05
A102: =IF('DF raw data'!A107="","",'DF raw data'!A107) -> -280 | B102: =IF('DF raw data'!B107="","",'DF raw data'!B107) -> 1.3441e-06 | C102: =IF('DF raw data'!C107="","",'DF raw data'!C107) -> 0.00012543 | D102: =IF('DF raw data'!D107="","",'DF raw data'!D107) -> -2.08006e-05 | F102: 1.34974522e-06 | G102: 0.000125956806 | H102: -2.088796252e-05 | J102: -0.000173192394 | K102: -0.001407480262 | L102: 0.002721371456 | M102: 0.02878288501 | N102: 5.303464844e-05
A103: =IF('DF raw data'!A108="","",'DF raw data'!A108) -> -279.5 | B103: =IF('DF raw data'!B108="","",'DF raw data'!B108) -> -1.82515e-05 | C103: =IF('DF raw data'!C108="","",'DF raw data'!C108) -> 0.000125365 | D103: =IF('DF raw data'!D108="","",'DF raw data'!D108) -> -3.29043e-05 | F103: -1.83281563e-05 | G103: 0.000125891533 | H103: -3.304249806e-05 | J103: -0.0001823564722 | K103: -0.001498658498 | L103: 0.002784317222 | M103: 0.03017504362 | N103: 5.692748658e-05
A104: =IF('DF raw data'!A109="","",'DF raw data'!A109) -> -279 | B104: =IF('DF raw data'!B109="","",'DF raw data'!B109) -> -1.03114e-05 | C104: =IF('DF raw data'!C109="","",'DF raw data'!C109) -> 0.000122753 | D104: =IF('DF raw data'!D109="","",'DF raw data'!D109) -> -2.69677e-05 | F104: -1.035470788e-05 | G104: 0.0001232685626 | H104: -2.708096434e-05 | J104: -0.0001875338261 | K104: -0.001592425411 | L104: 0.002845951504 | M104: 0.03159801937 | N104: 6.099479103e-05
A105: =IF('DF raw data'!A110="","",'DF raw data'!A110) -> -278.5 | B105: =IF('DF raw data'!B110="","",'DF raw data'!B110) -> -9.54401e-06 | C105: =IF('DF raw data'!C110="","",'DF raw data'!C110) -> 0.000127098 | D105: =IF('DF raw data'!D110="","",'DF raw data'!D110) -> -2.48682e-05 | F105: -9.584094842e-06 | G105: 0.0001276318116 | H105: -2.497264644e-05 | J105: -0.0001923258735 | K105: -0.001688588347 | L105: 0.002909767409 | M105: 0.03305290308 | N105: 6.524665884e-05
A106: =IF('DF raw data'!A111="","",'DF raw data'!A111) -> -278 | B106: =IF('DF raw data'!B111="","",'DF raw data'!B111) -> -9.47978e-06 | C106: =IF('DF raw data'!C111="","",'DF raw data'!C111) -> 0.000131475 | D106: =IF('DF raw data'!D111="","",'DF raw data'!D111) -> -2.53144e-05 | F106: -9.519595076e-06 | G106: 0.000132027195 | H106: -2.542072048e-05 | J106: -0.000197085671 | K106: -0.001787131183 | L106: 0.002975781007 | M106: 0.03454079358 | N106: 6.969371652e-05
A107: =IF('DF raw data'!A112="","",'DF raw data'!A112) -> -277.5 | B107: =IF('DF raw data'!B112="","",'DF raw data'!B112) -> -1.07002e-05 | C107: =IF('DF raw data'!C112="","",'DF raw data'!C112) -> 0.000131467 | D107: =IF('DF raw data'!D112="","",'DF raw data'!D112) -> -2.01116e-05 | F107: -1.074514084e-05 | G107: 0.0001320191614 | H107: -2.019606872e-05 | J107: -0.0002024582415 | K107: -0.001888360304 | L107: 0.003041790588 | M107: 0.03606168888 | N107: 7.434045618e-05
A108: =IF('DF raw data'!A113="","",'DF raw data'!A113) -> -277 | B108: =IF('DF raw data'!B113="","",'DF raw data'!B113) -> -1.11509e-05 | C108: =IF('DF raw data'!C113="","",'DF raw data'!C113) -> 0.000128839 | D108: =IF('DF raw data'!D113="","",'DF raw data'!D113) -> -1.67768e-05 | F108: -1.119773378e-05 | G108: 0.0001293801238 | H108: -1.684726256e-05 | J108: -0.0002080571084 | K108: -0.001992388858 | L108: 0.00310648065 | M108: 0.0376149292 | N108: 7.918721107e-05
A109: =IF('DF raw data'!A114="","",'DF raw data'!A114) -> -276.5 | B109: =IF('DF raw data'!B114="","",'DF raw data'!B114) -> -1.27788e-06 | C109: =IF('DF raw data'!C114="","",'DF raw data'!C114) -> 0.000128661 | D109: =IF('DF raw data'!D114="","",'DF raw data'!D114) -> -2.79219e-05 | F109: -1.283247096e-06 | G109: 0.0001292013762 | H109: -2.803917198e-05 | J109: -0.0002086987319 | K109: -0.002096738224 | L109: 0.003171081338 | M109: 0.03920046987 | N109: 8.423686708e-05
A110: =IF('DF raw data'!A115="","",'DF raw data'!A115) -> -276 | B110: =IF('DF raw data'!B115="","",'DF raw data'!B115) -> -9.56462e-07 | C110: =IF('DF raw data'!C115="","",'DF raw data'!C115) -> 0.000126562 | D110: =IF('DF raw data'!D115="","",'DF raw data'!D115) -> -2.98409e-05 | F110: -9.604791404e-07 | G110: 0.0001270935604 | H110: -2.996623178e-05 | J110: -0.0002091789715 | K110: -0.00220132771 | L110: 0.003234628118 | M110: 0.04081778393 | N110: 8.949015453e-05
A111: =IF('DF raw data'!A116="","",'DF raw data'!A116) -> -275.5 | B111: =IF('DF raw data'!B116="","",'DF raw data'!B116) -> -1.44117e-05 | C111: =IF('DF raw data'!C116="","",'DF raw data'!C116) -> 0.000126623 | D111: =IF('DF raw data'!D116="","",'DF raw data'!D116) -> -2.66237e-05 | F111: -1.447222914e-05 | G111: 0.0001271548166 | H111: -2.673551954e-05 | J111: -0.000216415086 | K111: -0.002309535253 | L111: 0.003298205526 | M111: 0.04246688669 | N111: 9.495265212e-05
A112: =IF('DF raw data'!A117="","",'DF raw data'!A117) -> -275 | B112: =IF('DF raw data'!B117="","",'DF raw data'!B117) -> -1.18525e-05 | C112: =IF('DF raw data'!C117="","",'DF raw data'!C117) -> 0.00012472 | D112: =IF('DF raw data'!D117="","",'DF raw data'!D117) -> -2.16139e-05 | F112: -1.19022805e-05 | G112: 0.000125243824 | H112: -2.170467838e-05 | J112: -0.0002223662263 | K112: -0.002420718366 | L112: 0.003360827438 | M112: 0.04414730041 | N112: 0.000100624956
A113: =IF('DF raw data'!A118="","",'DF raw data'!A118) -> -274.5 | B113: =IF('DF raw data'!B118="","",'DF raw data'!B118) -> -7.93889e-06 | C113: =IF('DF raw data'!C118="","",'DF raw data'!C118) -> 0.000125156 | D113: =IF('DF raw data'!D118="","",'DF raw data'!D118) -> -3.02438e-05 | F113: -7.972233338e-06 | G113: 0.0001256816552 | H113: -3.037082396e-05 | J113: -0.000226352343 | K113: -0.002533894537 | L113: 0.003423668266 | M113: 0.04585913454 | N113: 0.0001065113259
A114: =IF('DF raw data'!A119="","",'DF raw data'!A119) -> -274 | B114: =IF('DF raw data'!B119="","",'DF raw data'!B119) -> -1.56258e-05 | C114: =IF('DF raw data'!C119="","",'DF raw data'!C119) -> 0.000134343 | D114: =IF('DF raw data'!D119="","",'DF raw data'!D119) -> -3.14636e-05 | F114: -1.569142836e-05 | G114: 0.0001349072406 | H114: -3.159574712e-05 | J114: -0.0002341980571 | K114: -0.002650993566 | L114: 0.003491121886 | M114: 0.04760469549 | N114: 0.0001126327163
A115: =IF('DF raw data'!A120="","",'DF raw data'!A120) -> -273.5 | B115: =IF('DF raw data'!B120="","",'DF raw data'!B120) -> -8.51694e-06 | C115: =IF('DF raw data'!C120="","",'DF raw data'!C120) -> 0.000137449 | D115: =IF('DF raw data'!D120="","",'DF raw data'!D120) -> -2.81123e-05 | F115: -8.552711148e-06 | G115: 0.0001380262858 | H115: -2.823037166e-05 | J115: -0.0002384744127 | K115: -0.002770230772 | L115: 0.003560135029 | M115: 0.049384763 | N115: 0.000118998432
A116: =IF('DF raw data'!A121="","",'DF raw data'!A121) -> -273 | B116: =IF('DF raw data'!B121="","",'DF raw data'!B121) -> -7.68086e-06 | C116: =IF('DF raw data'!C121="","",'DF raw data'!C121) -> 0.000134846 | D116: =IF('DF raw data'!D121="","",'DF raw data'!D121) -> -3.29875e-05 | F116: -7.713119612e-06 | G116: 0.0001354123532 | H116: -3.31260475e-05 | J116: -0.0002423309725 | K116: -0.002891396258 | L116: 0.003627841206 | M116: 0.0511986836 | N116: 0.0001256084101
A117: =IF('DF raw data'!A122="","",'DF raw data'!A122) -> -272.5 | B117: =IF('DF raw data'!B122="","",'DF raw data'!B122) -> -1.56969e-05 | C117: =IF('DF raw data'!C122="","",'DF raw data'!C122) -> 0.000133152 | D117: =IF('DF raw data'!D122="","",'DF raw data'!D122) -> -2.04586e-05 | F117: -1.576282698e-05 | G117: 0.0001337112384 | H117: -2.054452612e-05 | J117: -0.000250212386 | K117: -0.003016502451 | L117: 0.003694696825 | M117: 0.05304603202 | N117: 0.0001324651055
A118: =IF('DF raw data'!A123="","",'DF raw data'!A123) -> -272 | B118: =IF('DF raw data'!B123="","",'DF raw data'!B123) -> -2.16481e-05 | C118: =IF('DF raw data'!C123="","",'DF raw data'!C123) -> 0.000132171 | D118: =IF('DF raw data'!D123="","",'DF raw data'!D123) -> -3.08988e-05 | F118: -2.173902202e-05 | G118: 0.0001327261182 | H118: -3.102857496e-05 | J118: -0.000261081897 | K118: -0.0031470434 | L118: 0.003761059884 | M118: 0.05492656196 | N118: 0.0001395719731
A119: =IF('DF raw data'!A124="","",'DF raw data'!A124) -> -271.5 | B119: =IF('DF raw data'!B124="","",'DF raw data'!B124) -> -1.06871e-05 | C119: =IF('DF raw data'!C124="","",'DF raw data'!C124) -> 0.000129977 | D119: =IF('DF raw data'!D124="","",'DF raw data'!D124) -> -4.03291e-05 | F119: -1.073198582e-05 | G119: 0.0001305229034 | H119: -4.049848222e-05 | J119: -0.0002664478899 | K119: -0.003280267345 | L119: 0.003826321336 | M119: 0.05683972263 | N119: 0.0001469278378
A120: =IF('DF raw data'!A125="","",'DF raw data'!A125) -> -271 | B120: =IF('DF raw data'!B125="","",'DF raw data'!B125) -> -1.49218e-05 | C120: =IF('DF raw data'!C125="","",'DF raw data'!C125) -> 0.000133651 | D120: =IF('DF raw data'!D125="","",'DF raw data'!D125) -> -3.02787e-05 | F120: -1.498447156e-05 | G120: 0.0001342123342 | H120: -3.040587054e-05 | J120: -0.0002739401257 | K120: -0.003417237408 | L120: 0.003893427503 | M120: 0.05878643638 | N120: 0.0001545447483
A121: =IF('DF raw data'!A126="","",'DF raw data'!A126) -> -270.5 | B121: =IF('DF raw data'!B126="","",'DF raw data'!B126) -> -2.01736e-05 | C121: =IF('DF raw data'!C126="","",'DF raw data'!C126) -> 0.000134595 | D121: =IF('DF raw data'!D126="","",'DF raw data'!D126) -> -3.24343e-05 | F121: -2.025832912e-05 | G121: 0.000135160299 | H121: -3.257052406e-05 | J121: -0.0002840692903 | K121: -0.003559272053 | L121: 0.003961007652 | M121: 0.0607669402 | N121: 0.0001624298868
A122: =IF('DF raw data'!A127="","",'DF raw data'!A127) -> -270 | B122: =IF('DF raw data'!B127="","",'DF raw data'!B127) -> -9.3479e-06 | C122: =IF('DF raw data'!C127="","",'DF raw data'!C127) -> 0.000134797 | D122: =IF('DF raw data'!D127="","",'DF raw data'!D127) -> -3.11252e-05 | F122: -9.38716118e-06 | G122: 0.0001353631474 | H122: -3.125592584e-05 | J122: -0.0002887628709 | K122: -0.003703653488 | L122: 0.004028689226 | M122: 0.06278128482 | N122: 0.0001705867472
A123: =IF('DF raw data'!A128="","",'DF raw data'!A128) -> -269.5 | B123: =IF('DF raw data'!B128="","",'DF raw data'!B128) -> -1.3453e-05 | C123: =IF('DF raw data'!C128="","",'DF raw data'!C128) -> 0.000135636 | D123: =IF('DF raw data'!D128="","",'DF raw data'!D128) -> -2.3049e-05 | F123: -1.35095026e-05 | G123: 0.0001362056712 | H123: -2.31458058e-05 | J123: -0.0002955176222 | K123: -0.003851412299 | L123: 0.004096792061 | M123: 0.06482968085 | N123: 0.0001790222652
A124: =IF('DF raw data'!A129="","",'DF raw data'!A129) -> -269 | B124: =IF('DF raw data'!B129="","",'DF raw data'!B129) -> -4.15844e-06 | C124: =IF('DF raw data'!C129="","",'DF raw data'!C129) -> 0.000143061 | D124: =IF('DF raw data'!D129="","",'DF raw data'!D129) -> -3.14288e-05 | F124: -4.175905448e-06 | G124: 0.0001436618562 | H124: -3.156080096e-05 | J124: -0.0002976055749 | K124: -0.004000215087 | L124: 0.00416862299 | M124: 0.06691399234 | N124: 0.0001877552585
A125: =IF('DF raw data'!A130="","",'DF raw data'!A130) -> -268.5 | B125: =IF('DF raw data'!B130="","",'DF raw data'!B130) -> -1.95993e-05 | C125: =IF('DF raw data'!C130="","",'DF raw data'!C130) -> 0.000133547 | D125: =IF('DF raw data'!D130="","",'DF raw data'!D130) -> -2.88786e-05 | F125: -1.968161706e-05 | G125: 0.0001341078974 | H125: -2.899989012e-05 | J125: -0.0003074463834 | K125: -0.004153938279 | L125: 0.004235676938 | M125: 0.06903183081 | N125: 0.0001967729997
A126: =IF('DF raw data'!A131="","",'DF raw data'!A131) -> -268 | B126: =IF('DF raw data'!B131="","",'DF raw data'!B131) -> -1.80677e-05 | C126: =IF('DF raw data'!C131="","",'DF raw data'!C131) -> 0.000134493 | D126: =IF('DF raw data'!D131="","",'DF raw data'!D131) -> -1.9854e-05 | F126: -1.814358434e-05 | G126: 0.0001350578706 | H126: -1.99373868e-05 | J126: -0.0003165181756 | K126: -0.004312197366 | L126: 0.004303205874 | M126: 0.07118343375 | N126: 0.000206081882
A127: =IF('DF raw data'!A132="","",'DF raw data'!A132) -> -267.5 | B127: =IF('DF raw data'!B132="","",'DF raw data'!B132) -> -9.86441e-06 | C127: =IF('DF raw data'!C132="","",'DF raw data'!C132) -> 0.000132921 | D127: =IF('DF raw data'!D132="","",'DF raw data'!D132) -> -2.49546e-05 | F127: -9.905840522e-06 | G127: 0.0001334792682 | H127: -2.505940932e-05 | J127: -0.0003214710959 | K127: -0.004472932914 | L127: 0.004369945508 | M127: 0.0733684065 | N127: 0.0002156817657
A128: =IF('DF raw data'!A133="","",'DF raw data'!A133) -> -267 | B128: =IF('DF raw data'!B133="","",'DF raw data'!B133) -> -1.66297e-06 | C128: =IF('DF raw data'!C133="","",'DF raw data'!C133) -> 0.000132913 | D128: =IF('DF raw data'!D133="","",'DF raw data'!D133) -> -2.67982e-05 | F128: =(1-$G$1*($B$49-$G$2))*B128 -> -1.669954474e-06 | G128: 0.0001334712346 | H128: -2.691075244e-05 | J128: =F128*$G$3+J127 -> -0.0003223060731 | K128: =J128*$G$3+K127 -> -0.004634085951 | L128: =G128*$G$3+L127 -> 0.004436681125 | M128: =L128*$G$3+M127 -> 0.07558674706 | N128: =(J128^2+L128^2)*$G$3+N127 -> 0.000225575776
A129: =IF('DF raw data'!A134="","",'DF raw data'!A134) -> -266.5 | B129: =IF('DF raw data'!B134="","",'DF raw data'!B134) -> -1.42883e-05 | C129: =IF('DF raw data'!C134="","",'DF raw data'!C134) -> 0.00013629 | D129: =IF('DF raw data'!D134="","",'DF raw data'!D134) -> -1.94497e-05 | F129: -1.434831086e-05 | G129: 0.000136862418 | H129: -1.953138874e-05 | J129: -0.0003294802285 | K129: -0.004798826065 | L129: 0.004505112334 | M129: 0.07783930323 | N129: 0.0002357780732
A130: =IF('DF raw data'!A135="","",'DF raw data'!A135) -> -266 | B130: =IF('DF raw data'!B135="","",'DF raw data'!B135) -> -3.22325e-05 | C130: =IF('DF raw data'!C135="","",'DF raw data'!C135) -> 0.000122279 | D130: =IF('DF raw data'!D135="","",'DF raw data'!D135) -> -9.20751e-06 | F130: -3.23678765e-05 | G130: 0.0001227925718 | H130: -9.246181542e-06 | J130: -0.0003456641668 | K130: -0.004971658148 | L130: 0.00456650862 | M130: 0.08012255754 | N130: 0.0002462643155
A131: =IF('DF raw data'!A136="","",'DF raw data'!A136) -> -265.5 | B131: =IF('DF raw data'!B136="","",'DF raw data'!B136) -> -1.28773e-05 | C131: =IF('DF raw data'!C136="","",'DF raw data'!C136) -> 0.000127041 | D131: =IF('DF raw data'!D136="","",'DF raw data'!D136) -> -2.1996e-05 | F131: -1.293138466e-05 | G131: 0.0001275745722 | H131: -2.20883832e-05 | J131: -0.0003521298591 | K131: -0.005147723078 | L131: 0.004630295906 | M131: 0.08243770549 | N131: 0.0002570461333
A132: =IF('DF raw data'!A137="","",'DF raw data'!A137) -> -265 | B132: =IF('DF raw data'!B137="","",'DF raw data'!B137) -> -1.74945e-05 | C132: =IF('DF raw data'!C137="","",'DF raw data'!C137) -> 0.000131644 | D132: =IF('DF raw data'!D137="","",'DF raw data'!D137) -> -1.48907e-05 | F132: -1.75679769e-05 | G132: 0.0001321969048 | H132: -1.495324094e-05 | J132: -0.0003609138475 | K132: -0.005328180002 | L132: 0.004696394358 | M132: 0.08478590267 | N132: 0.0002681393227
A133: =IF('DF raw data'!A138="","",'DF raw data'!A138) -> -264.5 | B133: =IF('DF raw data'!B138="","",'DF raw data'!B138) -> -2.03754e-05 | C133: =IF('DF raw data'!C138="","",'DF raw data'!C138) -> 0.000131184 | D133: =IF('DF raw data'!D138="","",'DF raw data'!D138) -> -1.78191e-05 | F133: -2.046097668e-05 | G133: 0.0001317349728 | H133: -1.789394022e-05 | J133: -0.0003711443359 | K133: -0.00551375217 | L133: 0.004762261845 | M133: 0.0871670336 | N133: 0.0002795477657
A134: =IF('DF raw data'!A139="","",'DF raw data'!A139) -> -264 | B134: =IF('DF raw data'!B139="","",'DF raw data'!B139) -> -8.01028e-06 | C134: =IF('DF raw data'!C139="","",'DF raw data'!C139) -> 0.000131115 | D134: =IF('DF raw data'!D139="","",'DF raw data'!D139) -> -1.9172e-05 | F134: -8.043923176e-06 | G134: 0.000131665683 | H134: -1.92525224e-05 | J134: -0.0003751662975 | K134: -0.005701335318 | L134: 0.004828094686 | M134: 0.08958108094 | N134: 0.0002912733897
A135: =IF('DF raw data'!A140="","",'DF raw data'!A140) -> -263.5 | B135: =IF('DF raw data'!B140="","",'DF raw data'!B140) -> -2.30005e-05 | C135: =IF('DF raw data'!C140="","",'DF raw data'!C140) -> 0.000138928 | D135: =IF('DF raw data'!D140="","",'DF raw data'!D140) -> -1.96913e-05 | F135: -2.30971021e-05 | G135: 0.0001395114976 | H135: -1.977400346e-05 | J135: -0.0003867148485 | K135: -0.005894692743 | L135: 0.004897850435 | M135: 0.09203000616 | N135: 0.0003033426334
A136: =IF('DF raw data'!A141="","",'DF raw data'!A141) -> -263 | B136: =IF('DF raw data'!B141="","",'DF raw data'!B141) -> -2.13964e-05 | C136: =IF('DF raw data'!C141="","",'DF raw data'!C141) -> 0.000134652 | D136: =IF('DF raw data'!D141="","",'DF raw data'!D141) -> -2.39465e-05 | F136: -2.148626488e-05 | G136: 0.0001352175384 | H136: -2.40470753e-05 | J136: -0.000397457981 | K136: -0.006093421733 | L136: 0.004965459204 | M136: 0.09451273576 | N136: 0.0003157495123
A137: =IF('DF raw data'!A142="","",'DF raw data'!A142) -> -262.5 | B137: =IF('DF raw data'!B142="","",'DF raw data'!B142) -> -1.75635e-05 | C137: =IF('DF raw data'!C142="","",'DF raw data'!C142) -> 0.000137927 | D137: =IF('DF raw data'!D142="","",'DF raw data'!D142) -> -6.98836e-06 | F137: -1.76372667e-05 | G137: 0.0001385062934 | H137: -7.017711112e-06 | J137: -0.0004062766143 | K137: -0.00629656004 | L137: 0.005034712351 | M137: 0.09703009193 | N137: 0.0003285062069
A138: =IF('DF raw data'!A143="","",'DF raw data'!A143) -> -262 | B138: =IF('DF raw data'!B143="","",'DF raw data'!B143) -> -2.43338e-05 | C138: =IF('DF raw data'!C143="","",'DF raw data'!C143) -> 0.000136993 | D138: =IF('DF raw data'!D143="","",'DF raw data'!D143) -> -3.84411e-05 | F138: -2.443600196e-05 | G138: 0.0001375683706 | H138: -3.860255262e-05 | J138: -0.0004184946153 | K138: -0.006505807348 | L138: 0.005103496536 | M138: 0.0995818402 | N138: 0.0003416166142
A139: =IF('DF raw data'!A144="","",'DF raw data'!A144) -> -261.5 | B139: =IF('DF raw data'!B144="","",'DF raw data'!B144) -> -1.28727e-05 | C139: =IF('DF raw data'!C144="","",'DF raw data'!C144) -> 0.00012262 | D139: =IF('DF raw data'!D144="","",'DF raw data'!D144) -> -2.91079e-05 | F139: -1.292676534e-05 | G139: 0.000123135004 | H139: -2.923015318e-05 | J139: -0.000424957998 | K139: -0.006718286347 | L139: 0.005165064038 | M139: 0.1021643722 | N139: 0.0003550458521
A140: =IF('DF raw data'!A145="","",'DF raw data'!A145) -> -261 | B140: =IF('DF raw data'!B145="","",'DF raw data'!B145) -> -6.65975e-06 | C140: =IF('DF raw data'!C145="","",'DF raw data'!C145) -> 0.000116011 | D140: =IF('DF raw data'!D145="","",'DF raw data'!D145) -> -2.7085e-05 | F140: -6.68772095e-06 | G140: 0.0001164982462 | H140: -2.7198757e-05 | J140: -0.0004283018584 | K140: -0.006932437276 | L140: 0.005223313161 | M140: 0.1047760288 | N140: 0.0003687790736
A141: =IF('DF raw data'!A146="","",'DF raw data'!A146) -> -260.5 | B141: =IF('DF raw data'!B146="","",'DF raw data'!B146) -> -1.75591e-05 | C141: =IF('DF raw data'!C146="","",'DF raw data'!C146) -> 0.000116577 | D141: =IF('DF raw data'!D146="","",'DF raw data'!D146) -> -1.39136e-05 | F141: -1.763284822e-05 | G141: 0.0001170666234 | H141: -1.397203712e-05 | J141: -0.0004371182826 | K141: -0.007150996417 | L141: 0.005281846473 | M141: 0.107416952 | N141: 0.0003828235609
A142: =IF('DF raw data'!A147="","",'DF raw data'!A147) -> -260 | B142: =IF('DF raw data'!B147="","",'DF raw data'!B147) -> -1.99831e-05 | C142: =IF('DF raw data'!C147="","",'DF raw data'!C147) -> 0.000112115 | D142: =IF('DF raw data'!D147="","",'DF raw data'!D147) -> -2.9739e-05 | F142: -2.006702902e-05 | G142: 0.000112585883 | H142: -2.98639038e-05 | J142: -0.0004471517971 | K142: -0.007374572316 | L142: 0.005338139415 | M142: 0.1100860217 | N142: 0.0003971713994
A143: =IF('DF raw data'!A148="","",'DF raw data'!A148) -> -259.5 | B143: =IF('DF raw data'!B148="","",'DF raw data'!B148) -> -6.72031e-06 | C143: =IF('DF raw data'!C148="","",'DF raw data'!C148) -> 0.000118041 | D143: =IF('DF raw data'!D148="","",'DF raw data'!D148) -> -3.26759e-05 | F143: -6.748535302e-06 | G143: 0.0001185367722 | H143: -3.281313878e-05 | J143: -0.0004505260647 | K143: -0.007599835348 | L143: 0.005397407801 | M143: 0.1127847256 | N143: 0.0004118388918
A144: =IF('DF raw data'!A149="","",'DF raw data'!A149) -> -259 | B144: =IF('DF raw data'!B149="","",'DF raw data'!B149) -> -3.44956e-06 | C144: =IF('DF raw data'!C149="","",'DF raw data'!C149) -> 0.000118521 | D144: =IF('DF raw data'!D149="","",'DF raw data'!D149) -> -3.81505e-05 | F144: -3.464048152e-06 | G144: 0.0001190187882 | H144: -3.83107321e-05 | J144: -0.0004522580888 | K144: -0.007825964393 | L144: 0.005456917195 | M144: 0.1155131842 | N144: 0.0004268301331
A145: =IF('DF raw data'!A150="","",'DF raw data'!A150) -> -258.5 | B145: =IF('DF raw data'!B150="","",'DF raw data'!B150) -> -1.77358e-05 | C145: =IF('DF raw data'!C150="","",'DF raw data'!C150) -> 0.000121837 | D145: =IF('DF raw data'!D150="","",'DF raw data'!D150) -> -3.79823e-05 | F145: -1.781029036e-05 | G145: 0.0001223487154 | H145: -3.814182566e-05 | J145: -0.000461163234 | K145: -0.00805654601 | L145: 0.005518091552 | M145: 0.11827223 | N145: 0.0004421611361
A146: =IF('DF raw data'!A151="","",'DF raw data'!A151) -> -258 | B146: =IF('DF raw data'!B151="","",'DF raw data'!B151) -> -1.48522e-05 | C146: =IF('DF raw data'!C151="","",'DF raw data'!C151) -> 0.00011928 | D146: =IF('DF raw data'!D151="","",'DF raw data'!D151) -> -3.91731e-05 | F146: -1.491457924e-05 | G146: 0.000119780976 | H146: -3.933762702e-05 | J146: -0.0004686205236 | K146: -0.008290856272 | L146: 0.00557798204 | M146: 0.121061221 | N146: 0.0004578278805
A147: =IF('DF raw data'!A152="","",'DF raw data'!A152) -> -257.5 | B147: =IF('DF raw data'!B152="","",'DF raw data'!B152) -> 6.79624e-06 | C147: =IF('DF raw data'!C152="","",'DF raw data'!C152) -> 0.000119817 | D147: =IF('DF raw data'!D152="","",'DF raw data'!D152) -> -3.1403e-05 | F147: 6.824784208e-06 | G147: 0.0001203202314 | H147: -3.15348926e-05 | J147: -0.0004652081315 | K147: -0.008523460337 | L147: 0.005638142156 | M147: 0.1238802921 | N147: 0.0004738304133
A148: =IF('DF raw data'!A153="","",'DF raw data'!A153) -> -257 | B148: =IF('DF raw data'!B153="","",'DF raw data'!B153) -> -1.34473e-05 | C148: =IF('DF raw data'!C153="","",'DF raw data'!C153) -> 0.000120466 | D148: =IF('DF raw data'!D153="","",'DF raw data'!D153) -> -3.19374e-05 | F148: -1.350377866e-05 | G148: 0.0001209719572 | H148: -3.207153708e-05 | J148: -0.0004719600208 | K148: -0.008759440348 | L148: 0.005698628135 | M148: 0.1267296062 | N148: 0.0004901789677
A149: =IF('DF raw data'!A154="","",'DF raw data'!A154) -> -256.5 | B149: =IF('DF raw data'!B154="","",'DF raw data'!B154) -> -1.96013e-05 | C149: =IF('DF raw data'!C154="","",'DF raw data'!C154) -> 0.000124128 | D149: =IF('DF raw data'!D154="","",'DF raw data'!D154) -> -2.58524e-05 | F149: -1.968362546e-05 | G149: 0.0001246493376 | H149: -2.596098008e-05 | J149: -0.0004818018335 | K149: -0.009000341264 | L149: 0.005760952804 | M149: 0.1296100826 | N149: 0.0005068893228
A150: =IF('DF raw data'!A155="","",'DF raw data'!A155) -> -256 | B150: =IF('DF raw data'!B155="","",'DF raw data'!B155) -> -6.33947e-06 | C150: =IF('DF raw data'!C155="","",'DF raw data'!C155) -> 0.000125947 | D150: =IF('DF raw data'!D155="","",'DF raw data'!D155) -> -2.72747e-05 | F150: -6.366095774e-06 | G150: 0.0001264759774 | H150: -2.738925374e-05 | J150: -0.0004849848814 | K150: -0.009242833705 | L150: 0.005824190792 | M150: 0.132522178 | N150: 0.0005239675272
A151: =IF('DF raw data'!A156="","",'DF raw data'!A156) -> -255.5 | B151: =IF('DF raw data'!B156="","",'DF raw data'!B156) -> -6.78476e-06 | C151: =IF('DF raw data'!C156="","",'DF raw data'!C156) -> 0.000128755 | D151: =IF('DF raw data'!D156="","",'DF raw data'!D156) -> -3.18812e-05 | F151: -6.813255992e-06 | G151: 0.000129295771 | H151: -3.201510104e-05 | J151: -0.0004883915094 | K151: -0.00948702946 | L151: 0.005888838678 | M151: 0.1354665973 | N151: 0.0005414260008
A152: =IF('DF raw data'!A157="","",'DF raw data'!A157) -> -255 | B152: =IF('DF raw data'!B157="","",'DF raw data'!B157) -> -1.17191e-05 | C152: =IF('DF raw data'!C157="","",'DF raw data'!C157) -> 0.000130497 | D152: =IF('DF raw data'!D157="","",'DF raw data'!D157) -> -2.99196e-05 | F152: -1.176832022e-05 | G152: 0.0001310450874 | H152: -3.004526232e-05 | J152: -0.0004942756695 | K152: -0.009734167295 | L152: 0.005954361221 | M152: 0.1384437779 | N152: 0.0005592753638
A153: =IF('DF raw data'!A158="","",'DF raw data'!A158) -> -254.5 | B153: =IF('DF raw data'!B158="","",'DF raw data'!B158) -> -1.56254e-05 | C153: =IF('DF raw data'!C158="","",'DF raw data'!C158) -> 0.000128969 | D153: =IF('DF raw data'!D158="","",'DF raw data'!D158) -> -3.2261e-05 | F153: -1.569102668e-05 | G153: 0.0001295106698 | H153: -3.23964962e-05 | J153: -0.0005021211829 | K153: -0.009985227886 | L153: 0.006019116556 | M153: 0.1414533362 | N153: 0.0005775163087
A154: =IF('DF raw data'!A159="","",'DF raw data'!A159) -> -254 | B154: =IF('DF raw data'!B159="","",'DF raw data'!B159) -> -6.72377e-06 | C154: =IF('DF raw data'!C159="","",'DF raw data'!C159) -> 0.000124086 | D154: =IF('DF raw data'!D159="","",'DF raw data'!D159) -> -2.7377e-05 | F154: -6.752009834e-06 | G154: 0.0001246071612 | H154: -2.74919834e-05 | J154: -0.0005054971878 | K154: -0.01023797648 | L154: 0.006081420137 | M154: 0.1444940463 | N154: 0.0005961359078
A155: =IF('DF raw data'!A160="","",'DF raw data'!A160) -> -253.5 | B155: =IF('DF raw data'!B160="","",'DF raw data'!B160) -> -7.68562e-06 | C155: =IF('DF raw data'!C160="","",'DF raw data'!C160) -> 0.000125484 | D155: =IF('DF raw data'!D160="","",'DF raw data'!D160) -> -2.57074e-05 | F155: -7.717899604e-06 | G155: 0.0001260110328 | H155: -2.581537108e-05 | J155: -0.0005093561376 | K155: -0.01049265455 | L155: 0.006144425653 | M155: 0.1475662591 | N155: 0.000615142613
A156: =IF('DF raw data'!A161="","",'DF raw data'!A161) -> -253 | B156: =IF('DF raw data'!B161="","",'DF raw data'!B161) -> 8.3181e-07 | C156: =IF('DF raw data'!C161="","",'DF raw data'!C161) -> 0.000127367 | D156: =IF('DF raw data'!D161="","",'DF raw data'!D161) -> -2.10842e-05 | F156: 8.35303602e-07 | G156: 0.0001279019414 | H156: -2.117275364e-05 | J156: -0.0005089384858 | K156: -0.01074712379 | L156: 0.006208376624 | M156: 0.1506704474 | N156: 0.0006345440923
A157: =IF('DF raw data'!A162="","",'DF raw data'!A162) -> -252.5 | B157: =IF('DF raw data'!B162="","",'DF raw data'!B162) -> -1.70427e-05 | C157: =IF('DF raw data'!C162="","",'DF raw data'!C162) -> 0.000128643 | D157: =IF('DF raw data'!D162="","",'DF raw data'!D162) -> -1.98843e-05 | F157: -1.711427934e-05 | G157: 0.0001291833006 | H157: -1.996781406e-05 | J157: -0.0005174956255 | K157: -0.0110058716 | L157: 0.006272968274 | M157: 0.1538069316 | N157: 0.0006543530587
A158: =IF('DF raw data'!A163="","",'DF raw data'!A163) -> -252 | B158: =IF('DF raw data'!B163="","",'DF raw data'!B163) -> -1.56311e-05 | C158: =IF('DF raw data'!C163="","",'DF raw data'!C163) -> 0.000130298 | D158: =IF('DF raw data'!D163="","",'DF raw data'!D163) -> -2.34467e-05 | F158: -1.569675062e-05 | G158: 0.0001308452516 | H158: -2.354517614e-05 | J158: -0.0005253440008 | K158: -0.0112685436 | L158: 0.0063383909 | M158: 0.156976127 | N158: 0.0006745786514
A159: =IF('DF raw data'!A164="","",'DF raw data'!A164) -> -251.5 | B159: =IF('DF raw data'!B164="","",'DF raw data'!B164) -> -1.09629e-06 | C159: =IF('DF raw data'!C164="","",'DF raw data'!C164) -> 0.000127753 | D159: =IF('DF raw data'!D164="","",'DF raw data'!D164) -> -1.17915e-05 | F159: -1.100894418e-06 | G159: 0.0001282895626 | H159: -1.18410243e-05 | J159: -0.000525894448 | K159: -0.01153149083 | L159: 0.006402535681 | M159: 0.1601773948 | N159: 0.0006952131655
A160: =IF('DF raw data'!A165="","",'DF raw data'!A165) -> -251 | B160: =IF('DF raw data'!B165="","",'DF raw data'!B165) -> -1.18523e-05 | C160: =IF('DF raw data'!C165="","",'DF raw data'!C165) -> 0.000112012 | D160: =IF('DF raw data'!D165="","",'DF raw data'!D165) -> -2.21319e-05 | F160: -1.190207966e-05 | G160: 0.0001124824504 | H160: -2.222485398e-05 | J160: -0.0005318454878 | K160: -0.01179741357 | L160: 0.006458776907 | M160: 0.1634067833 | N160: 0.0007162124949
A161: =IF('DF raw data'!A166="","",'DF raw data'!A166) -> -250.5 | B161: =IF('DF raw data'!B166="","",'DF raw data'!B166) -> -1.50584e-05 | C161: =IF('DF raw data'!C166="","",'DF raw data'!C166) -> 0.000107414 | D161: =IF('DF raw data'!D166="","",'DF raw data'!D166) -> -1.72655e-05 | F161: -1.512164528e-05 | G161: 0.0001078651388 | H161: -1.73380151e-05 | J161: -0.0005394063105 | K161: -0.01206711673 | L161: 0.006512709476 | M161: 0.166663138 | N161: 0.0007375656668
A162: =IF('DF raw data'!A167="","",'DF raw data'!A167) -> -250 | B162: =IF('DF raw data'!B167="","",'DF raw data'!B167) -> -1.08805e-06 | C162: =IF('DF raw data'!C167="","",'DF raw data'!C167) -> 0.00011269 | D162: =IF('DF raw data'!D167="","",'DF raw data'!D167) -> -2.45057e-05 | F162: -1.09261981e-06 | G162: 0.000113163298 | H162: -2.460862394e-05 | J162: -0.0005399526204 | K162: -0.01233709304 | L162: 0.006569291125 | M162: 0.1699477836 | N162: 0.0007592892342
A163: =IF('DF raw data'!A168="","",'DF raw data'!A168) -> -249.5 | B163: =IF('DF raw data'!B168="","",'DF raw data'!B168) -> -2.49771e-05 | C163: =IF('DF raw data'!C168="","",'DF raw data'!C168) -> 0.000106409 | D163: =IF('DF raw data'!D168="","",'DF raw data'!D168) -> -3.4381e-05 | F163: -2.508200382e-05 | G163: 0.0001068559178 | H163: -3.45254002e-05 | J163: -0.0005524936223 | K163: -0.01261333985 | L163: 0.006622719084 | M163: 0.1732591431 | N163: 0.0007813720628
A164: =IF('DF raw data'!A169="","",'DF raw data'!A169) -> -249 | B164: =IF('DF raw data'!B169="","",'DF raw data'!B169) -> -1.23577e-05 | C164: =IF('DF raw data'!C169="","",'DF raw data'!C169) -> 0.000112801 | D164: =IF('DF raw data'!D169="","",'DF raw data'!D169) -> -3.30452e-05 | F164: -1.240960234e-05 | G164: 0.0001132747642 | H164: -3.318398984e-05 | J164: -0.0005586984234 | K164: -0.01289268906 | L164: 0.006679356466 | M164: 0.1765988214 | N164: 0.0008038350362
A165: =IF('DF raw data'!A170="","",'DF raw data'!A170) -> -248.5 | B165: =IF('DF raw data'!B170="","",'DF raw data'!B170) -> -1.11497e-05 | C165: =IF('DF raw data'!C170="","",'DF raw data'!C170) -> 0.000120658 | D165: =IF('DF raw data'!D170="","",'DF raw data'!D170) -> -1.86311e-05 | F165: -1.119652874e-05 | G165: 0.0001211647636 | H165: -1.870935062e-05 | J165: -0.0005642966878 | K165: -0.0131748374 | L165: 0.006739938848 | M165: 0.1799687908 | N165: 0.0008267076394
A166: =IF('DF raw data'!A171="","",'DF raw data'!A171) -> -248 | B166: =IF('DF raw data'!B171="","",'DF raw data'!B171) -> -1.41582e-05 | C166: =IF('DF raw data'!C171="","",'DF raw data'!C171) -> 0.000124091 | D166: =IF('DF raw data'!D171="","",'DF raw data'!D171) -> -2.25165e-05 | F166: -1.421766444e-05 | G166: 0.0001246121822 | H166: -2.26110693e-05 | J166: -0.00057140552 | K166: -0.01346054016 | L166: 0.006802244939 | M166: 0.1833699133 | N166: 0.0008500061596
A167: =IF('DF raw data'!A172="","",'DF raw data'!A172) -> -247.5 | B167: =IF('DF raw data'!B172="","",'DF raw data'!B172) -> -2.37664e-05 | C167: =IF('DF raw data'!C172="","",'DF raw data'!C172) -> 0.000122145 | D167: =IF('DF raw data'!D172="","",'DF raw data'!D172) -> -2.47035e-05 | F167: -2.386621888e-05 | G167: 0.000122658009 | H167: -2.48072547e-05 | J167: -0.0005833386295 | K167: -0.01375220948 | L167: 0.006863573943 | M167: 0.1868017002 | N167: 0.0008737306252
A168: =IF('DF raw data'!A173="","",'DF raw data'!A173) -> -247 | B168: =IF('DF raw data'!B173="","",'DF raw data'!B173) -> -1.70389e-05 | C168: =IF('DF raw data'!C173="","",'DF raw data'!C173) -> 0.000121118 | D168: =IF('DF raw data'!D173="","",'DF raw data'!D173) -> -2.59373e-05 | F168: -1.711046338e-05 | G168: 0.0001216266956 | H168: -2.604623666e-05 | J168: -0.0005918938612 | K168: -0.01404815641 | L168: 0.006924387291 | M168: 0.1902638939 | N168: 0.0008978793641
A169: =IF('DF raw data'!A174="","",'DF raw data'!A174) -> -246.5 | B169: =IF('DF raw data'!B174="","",'DF raw data'!B174) -> -8.45003e-06 | C169: =IF('DF raw data'!C174="","",'DF raw data'!C174) -> 0.000105522 | D169: =IF('DF raw data'!D174="","",'DF raw data'!D174) -> -3.27779e-05 | F169: -8.485520126e-06 | G169: 0.0001059651924 | H169: -3.291556718e-05 | J169: -0.0005961366212 | K169: -0.01434622472 | L169: 0.006977369887 | M169: 0.1937525788 | N169: 0.0009223988988
A170: =IF('DF raw data'!A175="","",'DF raw data'!A175) -> -246 | B170: =IF('DF raw data'!B175="","",'DF raw data'!B175) -> -3.00161e-06 | C170: =IF('DF raw data'!C175="","",'DF raw data'!C175) -> 0.000103121 | D170: =IF('DF raw data'!D175="","",'DF raw data'!D175) -> -3.72432e-05 | F170: -3.014216762e-06 | G170: 0.0001035541082 | H170: -3.739962144e-05 | J170: -0.0005976437296 | K170: -0.01464504659 | L170: 0.007029146942 | M170: 0.1972671523 | N170: 0.0009472819412
A171: =IF('DF raw data'!A176="","",'DF raw data'!A176) -> -245.5 | B171: =IF('DF raw data'!B176="","",'DF raw data'!B176) -> -8.70973e-06 | C171: =IF('DF raw data'!C176="","",'DF raw data'!C176) -> 0.000111979 | D171: =IF('DF raw data'!D176="","",'DF raw data'!D176) -> -2.74517e-05 | F171: -8.746310866e-06 | G171: 0.0001124493118 | H171: -2.756699714e-05 | J171: -0.000602016885 | K171: -0.01494605503 | L171: 0.007085371597 | M171: 0.2008098381 | N171: 0.0009725643987
A172: =IF('DF raw data'!A177="","",'DF raw data'!A177) -> -245 | B172: =IF('DF raw data'!B177="","",'DF raw data'!B177) -> -2.14648e-05 | C172: =IF('DF raw data'!C177="","",'DF raw data'!C177) -> 0.000118413 | D172: =IF('DF raw data'!D177="","",'DF raw data'!D177) -> -1.71968e-05 | F172: -2.155495216e-05 | G172: 0.0001189103346 | H172: -1.726902656e-05 | J172: -0.0006127943611 | K172: -0.01525245221 | L172: 0.007144826765 | M172: 0.2043822515 | N172: 0.0009982764319
A173: =IF('DF raw data'!A178="","",'DF raw data'!A178) -> -244.5 | B173: =IF('DF raw data'!B178="","",'DF raw data'!B178) -> -5.78369e-08 | C173: =IF('DF raw data'!C178="","",'DF raw data'!C178) -> 0.000117414 | D173: =IF('DF raw data'!D178="","",'DF raw data'!D178) -> -3.2592e-05 | F173: -5.807981498e-08 | G173: 0.0001179071388 | H173: -3.27288864e-05 | J173: -0.000612823401 | K173: -0.01555886391 | L173: 0.007203780334 | M173: 0.2079841416 | N173: 0.001024411434
A174: =IF('DF raw data'!A179="","",'DF raw data'!A179) -> -244 | B174: =IF('DF raw data'!B179="","",'DF raw data'!B179) -> -7.81159e-06 | C174: =IF('DF raw data'!C179="","",'DF raw data'!C179) -> 0.000112813 | D174: =IF('DF raw data'!D179="","",'DF raw data'!D179) -> -2.90517e-05 | F174: -7.844398678e-06 | G174: 0.0001132868146 | H174: -2.917371714e-05 | J174: -0.0006167456004 | K174: -0.01586723671 | L174: 0.007260423741 | M174: 0.2116143535 | N174: 0.001050958498
A175: =IF('DF raw data'!A180="","",'DF raw data'!A180) -> -243.5 | B175: =IF('DF raw data'!B180="","",'DF raw data'!B180) -> -8.64411e-06 | C175: =IF('DF raw data'!C180="","",'DF raw data'!C180) -> 0.000106384 | D175: =IF('DF raw data'!D180="","",'DF raw data'!D180) -> -2.96623e-05 | F175: -8.680415262e-06 | G175: 0.0001068308128 | H175: -2.978688166e-05 | J175: -0.000621085808 | K175: -0.01617777961 | L175: 0.007313839148 | M175: 0.2152712731 | N175: 0.001077897493
A176: =IF('DF raw data'!A181="","",'DF raw data'!A181) -> -243 | B176: =IF('DF raw data'!B181="","",'DF raw data'!B181) -> -5.63104e-06 | C176: =IF('DF raw data'!C181="","",'DF raw data'!C181) -> 0.00010889 | D176: =IF('DF raw data'!D181="","",'DF raw data'!D181) -> -3.28966e-05 | F176: -5.654690368e-06 | G176: 0.000109347338 | H176: -3.303476572e-05 | J176: -0.0006239131532 | K176: -0.01648973619 | L176: 0.007368512817 | M176: 0.2189555295 | N176: 0.001105239617
A177: =IF('DF raw data'!A182="","",'DF raw data'!A182) -> -242.5 | B177: =IF('DF raw data'!B182="","",'DF raw data'!B182) -> -7.55014e-06 | C177: =IF('DF raw data'!C182="","",'DF raw data'!C182) -> 0.00011597 | D177: =IF('DF raw data'!D182="","",'DF raw data'!D182) -> -3.70767e-05 | F177: -7.581850588e-06 | G177: 0.000116457074 | H177: -3.723242214e-05 | J177: -0.0006277040785 | K177: -0.01680358823 | L177: 0.007426741354 | M177: 0.2226689002 | N177: 0.001133014867
A178: =IF('DF raw data'!A183="","",'DF raw data'!A183) -> -242 | B178: =IF('DF raw data'!B183="","",'DF raw data'!B183) -> -1.24937e-05 | C178: =IF('DF raw data'!C183="","",'DF raw data'!C183) -> 0.000117388 | D178: =IF('DF raw data'!D183="","",'DF raw data'!D183) -> -2.09048e-05 | F178: -1.254617354e-05 | G178: 0.0001178810296 | H178: -2.099260016e-05 | J178: -0.0006339771652 | K178: -0.01712057681 | L178: 0.007485681869 | M178: 0.2264117411 | N178: 0.001161233547
A179: =IF('DF raw data'!A184="","",'DF raw data'!A184) -> -241.5 | B179: =IF('DF raw data'!B184="","",'DF raw data'!B184) -> -1.71024e-05 | C179: =IF('DF raw data'!C184="","",'DF raw data'!C184) -> 0.000112115 | D179: =IF('DF raw data'!D184="","",'DF raw data'!D184) -> -2.65519e-05 | F179: -1.717423008e-05 | G179: 0.000112585883 | H179: -2.666341798e-05 | J179: -0.0006425642803 | K179: -0.01744185895 | L179: 0.00754197481 | M179: 0.2301827285 | N179: 0.001189880684
A180: =IF('DF raw data'!A185="","",'DF raw data'!A185) -> -241 | B180: =IF('DF raw data'!B185="","",'DF raw data'!B185) -> -1.17797e-05 | C180: =IF('DF raw data'!C185="","",'DF raw data'!C185) -> 0.00011302 | D180: =IF('DF raw data'!D185="","",'DF raw data'!D185) -> -3.51488e-05 | F180: -1.182917474e-05 | G180: 0.000113494684 | H180: -3.529642496e-05 | J180: -0.0006484788677 | K180: -0.01776609839 | L180: 0.007598722152 | M180: 0.2339820896 | N180: 0.001218961235
A181: =IF('DF raw data'!A186="","",'DF raw data'!A186) -> -240.5 | B181: =IF('DF raw data'!B186="","",'DF raw data'!B186) -> -9.28895e-06 | C181: =IF('DF raw data'!C186="","",'DF raw data'!C186) -> 0.000117948 | D181: =IF('DF raw data'!D186="","",'DF raw data'!D186) -> -2.31384e-05 | F181: -9.32796359e-06 | G181: 0.0001184433816 | H181: -2.323558128e-05 | J181: -0.0006531428494 | K181: -0.01809266981 | L181: 0.007657943843 | M181: 0.2378110615 | N181: 0.001248496585
A182: =IF('DF raw data'!A187="","",'DF raw data'!A187) -> -240 | B182: =IF('DF raw data'!B187="","",'DF raw data'!B187) -> -1.22976e-05 | C182: =IF('DF raw data'!C187="","",'DF raw data'!C187) -> 0.000113368 | D182: =IF('DF raw data'!D187="","",'DF raw data'!D187) -> -2.67771e-05 | F182: -1.234924992e-05 | G182: 0.0001138441456 | H182: -2.688956382e-05 | J182: -0.0006593174744 | K182: -0.01842232855 | L182: 0.007714865916 | M182: 0.2416684945 | N182: 0.001278473513
A183: =IF('DF raw data'!A188="","",'DF raw data'!A188) -> -239.5 | B183: =IF('DF raw data'!B188="","",'DF raw data'!B188) -> -1.2491e-05 | C183: =IF('DF raw data'!C188="","",'DF raw data'!C188) -> 0.000111451 | D183: =IF('DF raw data'!D188="","",'DF raw data'!D188) -> -2.5081e-05 | F183: -1.25434622e-05 | G183: 0.0001119190942 | H183: -2.51863402e-05 | J183: -0.0006655892055 | K183: -0.01875512315 | L183: 0.007770825463 | M183: 0.2455539072 | N183: 0.001308887882
A184: =IF('DF raw data'!A189="","",'DF raw data'!A189) -> -239 | B184: =IF('DF raw data'!B189="","",'DF raw data'!B189) -> -6.27529e-06 | C184: =IF('DF raw data'!C189="","",'DF raw data'!C189) -> 0.000111513 | D184: =IF('DF raw data'!D189="","",'DF raw data'!D189) -> -2.72834e-05 | F184: -6.301646218e-06 | G184: 0.0001119813546 | H184: -2.739799028e-05 | J184: -0.0006687400286 | K184: -0.01908949316 | L184: 0.00782681614 | M184: 0.2494673153 | N184: 0.001339741014
A185: =IF('DF raw data'!A190="","",'DF raw data'!A190) -> -238.5 | B185: =IF('DF raw data'!B190="","",'DF raw data'!B190) -> -9.03002e-06 | C185: =IF('DF raw data'!C190="","",'DF raw data'!C190) -> 0.000125718 | D185: =IF('DF raw data'!D190="","",'DF raw data'!D190) -> -2.72763e-05 | F185: -9.067946084e-06 | G185: 0.0001262460156 | H185: -2.739086046e-05 | J185: -0.0006732740017 | K185: -0.01942613017 | L185: 0.007889939148 | M185: 0.2534122848 | N185: 0.001371093232
A186: =IF('DF raw data'!A191="","",'DF raw data'!A191) -> -238 | B186: =IF('DF raw data'!B191="","",'DF raw data'!B191) -> -1.5887e-05 | C186: =IF('DF raw data'!C191="","",'DF raw data'!C191) -> 0.000128399 | D186: =IF('DF raw data'!D191="","",'DF raw data'!D191) -> -2.41348e-05 | F186: -1.59537254e-05 | G186: 0.0001289382758 | H186: -2.423616616e-05 | J186: -0.0006812508644 | K186: -0.0197667556 | L186: 0.007954408286 | M186: 0.257389489 | N186: 0.001402961589
A187: =IF('DF raw data'!A192="","",'DF raw data'!A192) -> -237.5 | B187: =IF('DF raw data'!B192="","",'DF raw data'!B192) -> -1.1718e-05 | C187: =IF('DF raw data'!C192="","",'DF raw data'!C192) -> 0.000114176 | D187: =IF('DF raw data'!D192="","",'DF raw data'!D192) -> -3.15887e-05 | F187: -1.17672156e-05 | G187: 0.0001146555392 | H187: -3.172137254e-05 | J187: -0.0006871344722 | K187: -0.02011032283 | L187: 0.008011736055 | M187: 0.261395357 | N187: 0.001435291624
A188: =IF('DF raw data'!A193="","",'DF raw data'!A193) -> -237 | B188: =IF('DF raw data'!B193="","",'DF raw data'!B193) -> -1.69081e-05 | C188: =IF('DF raw data'!C193="","",'DF raw data'!C193) -> 0.00010796 | D188: =IF('DF raw data'!D193="","",'DF raw data'!D193) -> -3.0027e-05 | F188: -1.697911402e-05 | G188: 0.000108413432 | H188: -3.01531134e-05 | J188: -0.0006956240292 | K188: -0.02045813485 | L188: 0.008065942771 | M188: 0.2654283284 | N188: 0.001468063286
A189: =IF('DF raw data'!A194="","",'DF raw data'!A194) -> -236.5 | B189: =IF('DF raw data'!B194="","",'DF raw data'!B194) -> -1.37721e-05 | C189: =IF('DF raw data'!C194="","",'DF raw data'!C194) -> 0.000102176 | D189: =IF('DF raw data'!D194="","",'DF raw data'!D194) -> -2.51655e-05 | F189: -1.382994282e-05 | G189: 0.0001026051392 | H189: -2.52711951e-05 | J189: -0.0007025390006 | K189: -0.02080940435 | L189: 0.008117245341 | M189: 0.2694869511 | N189: 0.001501254903
A190: =IF('DF raw data'!A195="","",'DF raw data'!A195) -> -236 | B190: =IF('DF raw data'!B195="","",'DF raw data'!B195) -> -1.69056e-05 | C190: =IF('DF raw data'!C195="","",'DF raw data'!C195) -> 0.000110983 | D190: =IF('DF raw data'!D195="","",'DF raw data'!D195) -> -3.38833e-05 | F190: -1.697660352e-05 | G190: 0.0001114491286 | H190: -3.402560986e-05 | J190: -0.0007110273023 | K190: -0.021164918 | L190: 0.008172969905 | M190: 0.273573436 | N190: 0.001534906401
A191: =IF('DF raw data'!A196="","",'DF raw data'!A196) -> -235.5 | B191: =IF('DF raw data'!B196="","",'DF raw data'!B196) -> -7.94707e-06 | C191: =IF('DF raw data'!C196="","",'DF raw data'!C196) -> 0.000112376 | D191: =IF('DF raw data'!D196="","",'DF raw data'!D196) -> -1.77103e-05 | F191: -7.980447694e-06 | G191: 0.0001128479792 | H191: -1.778468326e-05 | J191: -0.0007150175262 | K191: -0.02152242676 | L191: 0.008229393895 | M191: 0.277688133 | N191: 0.001569023488
A192: =IF('DF raw data'!A197="","",'DF raw data'!A197) -> -235 | B192: =IF('DF raw data'!B197="","",'DF raw data'!B197) -> -1.38918e-05 | C192: =IF('DF raw data'!C197="","",'DF raw data'!C197) -> 0.000114539 | D192: =IF('DF raw data'!D197="","",'DF raw data'!D197) -> -3.83187e-05 | F192: =(1-$G$1*($B$49-$G$2))*B192 -> -1.395014556e-05 | G192: 0.0001150200638 | H192: -3.847963854e-05 | J192: =F192*$G$3+J191 -> -0.000721992599 | K192: =J192*$G$3+K191 -> -0.02188342306 | L192: =G192*$G$3+L191 -> 0.008286903927 | M192: =L192*$G$3+M191 -> 0.2818315849 | N192: =(J192^2+L192^2)*$G$3+N191 -> 0.001603620513
A193: =IF('DF raw data'!A198="","",'DF raw data'!A198) -> -234.5 | B193: =IF('DF raw data'!B198="","",'DF raw data'!B198) -> -1.64011e-05 | C193: =IF('DF raw data'!C198="","",'DF raw data'!C198) -> 0.000108244 | D193: =IF('DF raw data'!D198="","",'DF raw data'!D198) -> -2.15129e-05 | F193: -1.646998462e-05 | G193: 0.0001086986248 | H193: -2.160325418e-05 | J193: -0.0007302275913 | K193: -0.02224853686 | L193: 0.008341253239 | M193: 0.2860022116 | N193: 0.001638675382
A194: =IF('DF raw data'!A199="","",'DF raw data'!A199) -> -234 | B194: =IF('DF raw data'!B199="","",'DF raw data'!B199) -> -9.53934e-07 | C194: =IF('DF raw data'!C199="","",'DF raw data'!C199) -> 0.000116178 | D194: =IF('DF raw data'!D199="","",'DF raw data'!D199) -> -3.37526e-05 | F194: -9.579405228e-07 | G194: 0.0001166659476 | H194: -3.389436092e-05 | J194: -0.0007307065615 | K194: -0.02261389014 | L194: 0.008399586213 | M194: 0.2902020047 | N194: 0.001674218873
A195: =IF('DF raw data'!A200="","",'DF raw data'!A200) -> -233.5 | B195: =IF('DF raw data'!B200="","",'DF raw data'!B200) -> -1.55667e-05 | C195: =IF('DF raw data'!C200="","",'DF raw data'!C200) -> 0.000123951 | D195: =IF('DF raw data'!D200="","",'DF raw data'!D200) -> -2.38047e-05 | F195: -1.563208014e-05 | G195: 0.0001244715942 | H195: -2.390467974e-05 | J195: -0.0007385226016 | K195: -0.02298315144 | L195: 0.00846182201 | M195: 0.2944329157 | N195: 0.001710292796
A196: =IF('DF raw data'!A201="","",'DF raw data'!A201) -> -233 | B196: =IF('DF raw data'!B201="","",'DF raw data'!B201) -> -3.61977e-05 | C196: =IF('DF raw data'!C201="","",'DF raw data'!C201) -> 0.000121274 | D196: =IF('DF raw data'!D201="","",'DF raw data'!D201) -> -2.04209e-05 | F196: -3.634973034e-05 | G196: 0.0001217833508 | H196: -2.050666778e-05 | J196: -0.0007566974668 | K196: -0.02336150017 | L196: 0.008522713686 | M196: 0.2986942725 | N196: 0.001746897416
A197: =IF('DF raw data'!A202="","",'DF raw data'!A202) -> -232.5 | B197: =IF('DF raw data'!B202="","",'DF raw data'!B202) -> -2.30652e-06 | C197: =IF('DF raw data'!C202="","",'DF raw data'!C202) -> 0.000124107 | D197: =IF('DF raw data'!D202="","",'DF raw data'!D202) -> -2.22541e-05 | F197: -2.316207384e-06 | G197: 0.0001246282494 | H197: -2.234756722e-05 | J197: -0.0007578555705 | K197: -0.02374042796 | L197: 0.00858502781 | M197: 0.3029867864 | N197: 0.00178403594
A198: =IF('DF raw data'!A203="","",'DF raw data'!A203) -> -232 | B198: =IF('DF raw data'!B203="","",'DF raw data'!B203) -> -1.2774e-06 | C198: =IF('DF raw data'!C203="","",'DF raw data'!C203) -> 0.000118774 | D198: =IF('DF raw data'!D203="","",'DF raw data'!D203) -> -2.86776e-05 | F198: -1.28276508e-06 | G198: 0.0001192728508 | H198: -2.879804592e-05 | J198: -0.000758496953 | K198: -0.02411967643 | L198: 0.008644664236 | M198: 0.3073091185 | N198: 0.001821688709
A199: =IF('DF raw data'!A204="","",'DF raw data'!A204) -> -231.5 | B199: =IF('DF raw data'!B204="","",'DF raw data'!B204) -> -2.07569e-05 | C199: =IF('DF raw data'!C204="","",'DF raw data'!C204) -> 0.000100494 | D199: =IF('DF raw data'!D204="","",'DF raw data'!D204) -> -2.22779e-05 | F199: -2.084407898e-05 | G199: 0.0001009160748 | H199: -2.237146718e-05 | J199: -0.0007689189925 | K199: -0.02450413593 | L199: 0.008695122273 | M199: 0.3116566797 | N199: 0.001859786902
A200: =IF('DF raw data'!A205="","",'DF raw data'!A205) -> -231 | B200: =IF('DF raw data'!B205="","",'DF raw data'!B205) -> -1.63945e-05 | C200: =IF('DF raw data'!C205="","",'DF raw data'!C205) -> 9.84518e-05 | D200: =IF('DF raw data'!D205="","",'DF raw data'!D205) -> -3.21195e-05 | F200: -1.64633569e-05 | G200: 9.886529756e-05 | H200: -3.22544019e-05 | J200: -0.0007771506709 | K200: -0.02489271127 | L200: 0.008744554922 | M200: 0.3160289571 | N200: 0.001898322504
A201: =IF('DF raw data'!A206="","",'DF raw data'!A206) -> -230.5 | B201: =IF('DF raw data'!B206="","",'DF raw data'!B206) -> -2.04275e-05 | C201: =IF('DF raw data'!C206="","",'DF raw data'!C206) -> 0.000106527 | D201: =IF('DF raw data'!D206="","",'DF raw data'!D206) -> -3.60663e-05 | F201: -2.05132955e-05 | G201: 0.0001069744134 | H201: -3.621777846e-05 | J201: -0.0007874073187 | K201: -0.02528641493 | L201: 0.008798042129 | M201: 0.3204279782 | N201: 0.001937335282
... 1061 more rows

Sheet 10 x=-1
A1: =IF('DF raw data'!E1="","",'DF raw data'!E1) -> Number of header lines | B1: =IF('DF raw data'!F1="","",'DF raw data'!F1) -> 54 | C1: =IF('DF raw data'!G1="","",'DF raw data'!G1) ->  | D1: =IF('DF raw data'!H1="","",'DF raw data'!H1) ->  | F1: T_coeff | G1: -0.001 | H1: /degC | J1: IBy total | K1: =J1262*1000 -> 16.47479118 | L1: muTm | M1: =L1262*1000 -> 80.08954716 | R1: DF ref | S1: ='10 x=-2'!S1 -> 1
A2: =IF('DF raw data'!E2="","",'DF raw data'!E2) -> Measured by | B2: =IF('DF raw data'!F2="","",'DF raw data'!F2) -> Danfysik | C2: =IF('DF raw data'!G2="","",'DF raw data'!G2) ->  | D2: =IF('DF raw data'!H2="","",'DF raw data'!H2) ->  | F2: Tcorr | G2: 20 | H2: degC | J2: JBy total | K2: =K1262 -> 6.595978789 | L2: muTm^2 | M2: =M1262 -> 25.87737846
A3: =IF('DF raw data'!E3="","",'DF raw data'!E3) -> Operator | B3: =IF('DF raw data'!F3="","",'DF raw data'!F3) -> PMHA | C3: =IF('DF raw data'!G3="","",'DF raw data'!G3) ->  | D3: =IF('DF raw data'!H3="","",'DF raw data'!H3) ->  | F3: Step | G3: =A63-A62 -> 0.5 | H3: mm | J3: PI total | K3: =N1262 -> 10707.20643 | L3: T^2mm^3
A4: =IF('DF raw data'!E4="","",'DF raw data'!E4) -> Data-time | B4: =IF('DF raw data'!F4="","",'DF raw data'!F4) -> 30-09-2024, 22:01:05 | C4: =IF('DF raw data'!G4="","",'DF raw data'!G4) ->  | D4: =IF('DF raw data'!H4="","",'DF raw data'!H4) -> 
A5: =IF('DF raw data'!E5="","",'DF raw data'!E5) -> Project | B5: =IF('DF raw data'!F5="","",'DF raw data'!F5) -> 504314 | C5: =IF('DF raw data'!G5="","",'DF raw data'!G5) ->  | D5: =IF('DF raw data'!H5="","",'DF raw data'!H5) -> 
A6: =IF('DF raw data'!E6="","",'DF raw data'!E6) -> Magnet type | B6: =IF('DF raw data'!F6="","",'DF raw data'!F6) -> Dipole | C6: =IF('DF raw data'!G6="","",'DF raw data'!G6) ->  | D6: =IF('DF raw data'!H6="","",'DF raw data'!H6) -> 
A7: =IF('DF raw data'!E7="","",'DF raw data'!E7) -> Magnet nr. | B7: =IF('DF raw data'!F7="","",'DF raw data'!F7) -> 2410106 | C7: =IF('DF raw data'!G7="","",'DF raw data'!G7) ->  | D7: =IF('DF raw data'!H7="","",'DF raw data'!H7) -> 
A8: =IF('DF raw data'!E8="","",'DF raw data'!E8) -> Meas. number | B8: =IF('DF raw data'!F8="","",'DF raw data'!F8) -> 856 | C8: =IF('DF raw data'!G8="","",'DF raw data'!G8) ->  | D8: =IF('DF raw data'!H8="","",'DF raw data'!H8) -> 
A9: =IF('DF raw data'!E9="","",'DF raw data'!E9) -> Add. info | B9: =IF('DF raw data'!F9="","",'DF raw data'!F9) -> X-alignment scan 2) | C9: =IF('DF raw data'!G9="","",'DF raw data'!G9) ->  | D9: =IF('DF raw data'!H9="","",'DF raw data'!H9) -> 
A10: =IF('DF raw data'!E10="","",'DF raw data'!E10) -> Device | B10: =IF('DF raw data'!F10="","",'DF raw data'!F10) -> (HAL) HALL-PROBE | C10: =IF('DF raw data'!G10="","",'DF raw data'!G10) ->  | D10: =IF('DF raw data'!H10="","",'DF raw data'!H10) -> 
A11: =IF('DF raw data'!E11="","",'DF raw data'!E11) -> Goal | B11: =IF('DF raw data'!F11="","",'DF raw data'!F11) -> (AXI) AXis Integral (Line, EFB) | C11: =IF('DF raw data'!G11="","",'DF raw data'!G11) ->  | D11: =IF('DF raw data'!H11="","",'DF raw data'!H11) -> 
A12: =IF('DF raw data'!E12="","",'DF raw data'!E12) -> Power supply mode | B12: =IF('DF raw data'!F12="","",'DF raw data'!F12) -> (PM) Permanent Magnet (no MPS in use) | C12: =IF('DF raw data'!G12="","",'DF raw data'!G12) ->  | D12: =IF('DF raw data'!H12="","",'DF raw data'!H12) -> 
A13: =IF('DF raw data'!E13="","",'DF raw data'!E13) -> Data format | B13: =IF('DF raw data'!F13="","",'DF raw data'!F13) -> Raw data text file | C13: =IF('DF raw data'!G13="","",'DF raw data'!G13) ->  | D13: =IF('DF raw data'!H13="","",'DF raw data'!H13) -> 
A14: =IF('DF raw data'!E14="","",'DF raw data'!E14) -> Direction of the pos. x-axis | B14: =IF('DF raw data'!F14="","",'DF raw data'!F14) -> See test program | C14: =IF('DF raw data'!G14="","",'DF raw data'!G14) ->  | D14: =IF('DF raw data'!H14="","",'DF raw data'!H14) -> 
A15: =IF('DF raw data'!E15="","",'DF raw data'!E15) -> Direction of the pos. y-axis | B15: =IF('DF raw data'!F15="","",'DF raw data'!F15) -> Vertical up | C15: =IF('DF raw data'!G15="","",'DF raw data'!G15) ->  | D15: =IF('DF raw data'!H15="","",'DF raw data'!H15) -> 
A16: =IF('DF raw data'!E16="","",'DF raw data'!E16) -> Direction of the pos. z-axis | B16: =IF('DF raw data'!F16="","",'DF raw data'!F16) -> See test program | C16: =IF('DF raw data'!G16="","",'DF raw data'!G16) ->  | D16: =IF('DF raw data'!H16="","",'DF raw data'!H16) -> 
A17: =IF('DF raw data'!E17="","",'DF raw data'!E17) -> Mapper type | B17: =IF('DF raw data'!F17="","",'DF raw data'!F17) -> Precision Hall Mapper | C17: =IF('DF raw data'!G17="","",'DF raw data'!G17) ->  | D17: =IF('DF raw data'!H17="","",'DF raw data'!H17) -> 
A18: =IF('DF raw data'!E18="","",'DF raw data'!E18) -> Mapper Danfysik Reg. Number | B18: =IF('DF raw data'!F18="","",'DF raw data'!F18) -> 2033-D (mapper 1) | C18: =IF('DF raw data'!G18="","",'DF raw data'!G18) ->  | D18: =IF('DF raw data'!H18="","",'DF raw data'!H18) -> 
A19: =IF('DF raw data'!E19="","",'DF raw data'!E19) -> Measurement consept | B19: =IF('DF raw data'!F19="","",'DF raw data'!F19) -> Square line grid | C19: =IF('DF raw data'!G19="","",'DF raw data'!G19) ->  | D19: =IF('DF raw data'!H19="","",'DF raw data'!H19) -> 
A20: =IF('DF raw data'!E20="","",'DF raw data'!E20) -> Mode | B20: =IF('DF raw data'!F20="","",'DF raw data'!F20) -> On-the-fly measurement | C20: =IF('DF raw data'!G20="","",'DF raw data'!G20) ->  | D20: =IF('DF raw data'!H20="","",'DF raw data'!H20) -> 
A21: =IF('DF raw data'!E21="","",'DF raw data'!E21) ->  | B21: =IF('DF raw data'!F21="","",'DF raw data'!F21) ->  | C21: =IF('DF raw data'!G21="","",'DF raw data'!G21) ->  | D21: =IF('DF raw data'!H21="","",'DF raw data'!H21) -> 
A22: =IF('DF raw data'!E22="","",'DF raw data'!E22) -> Probe Name | B22: =IF('DF raw data'!F22="","",'DF raw data'!F22) -> ID12_By | C22: =IF('DF raw data'!G22="","",'DF raw data'!G22) ->  | D22: =IF('DF raw data'!H22="","",'DF raw data'!H22) -> 
A23: =IF('DF raw data'!E23="","",'DF raw data'!E23) -> Probe Type | B23: =IF('DF raw data'!F23="","",'DF raw data'!F23) -> DF_ID_3D_Bxyz | C23: =IF('DF raw data'!G23="","",'DF raw data'!G23) ->  | D23: =IF('DF raw data'!H23="","",'DF raw data'!H23) -> 
A24: =IF('DF raw data'!E24="","",'DF raw data'!E24) -> Probe Danfysik Reg. Number | B24: =IF('DF raw data'!F24="","",'DF raw data'!F24) -> 2277 | C24: =IF('DF raw data'!G24="","",'DF raw data'!G24) ->  | D24: =IF('DF raw data'!H24="","",'DF raw data'!H24) -> 
A25: =IF('DF raw data'!E25="","",'DF raw data'!E25) -> Probe Axis | B25: =IF('DF raw data'!F25="","",'DF raw data'!F25) -> By | C25: =IF('DF raw data'!G25="","",'DF raw data'!G25) ->  | D25: =IF('DF raw data'!H25="","",'DF raw data'!H25) -> 
A26: =IF('DF raw data'!E26="","",'DF raw data'!E26) -> Probe Current Supply | B26: =IF('DF raw data'!F26="","",'DF raw data'!F26) -> 1825-D | C26: =IF('DF raw data'!G26="","",'DF raw data'!G26) ->  | D26: =IF('DF raw data'!H26="","",'DF raw data'!H26) -> 
A27: =IF('DF raw data'!E27="","",'DF raw data'!E27) -> Probe Gain Correction | B27: =IF('DF raw data'!F27="","",'DF raw data'!F27) -> 0.99613 | C27: =IF('DF raw data'!G27="","",'DF raw data'!G27) ->  | D27: =IF('DF raw data'!H27="","",'DF raw data'!H27) -> 
A28: =IF('DF raw data'!E28="","",'DF raw data'!E28) -> Probe Offset Correction | B28: =IF('DF raw data'!F28="","",'DF raw data'!F28) -> 0.002746 | C28: =IF('DF raw data'!G28="","",'DF raw data'!G28) ->  | D28: =IF('DF raw data'!H28="","",'DF raw data'!H28) -> 
A29: =IF('DF raw data'!E29="","",'DF raw data'!E29) -> DVM Number | B29: =IF('DF raw data'!F29="","",'DF raw data'!F29) -> 2 | C29: =IF('DF raw data'!G29="","",'DF raw data'!G29) ->  | D29: =IF('DF raw data'!H29="","",'DF raw data'!H29) -> 
A30: =IF('DF raw data'!E30="","",'DF raw data'!E30) -> DVM Type | B30: =IF('DF raw data'!F30="","",'DF raw data'!F30) -> K2701 | C30: =IF('DF raw data'!G30="","",'DF raw data'!G30) ->  | D30: =IF('DF raw data'!H30="","",'DF raw data'!H30) -> 
A31: =IF('DF raw data'!E31="","",'DF raw data'!E31) -> DVM Danfysik Reg. Number | B31: =IF('DF raw data'!F31="","",'DF raw data'!F31) -> 1743-D | C31: =IF('DF raw data'!G31="","",'DF raw data'!G31) ->  | D31: =IF('DF raw data'!H31="","",'DF raw data'!H31) -> 
A32: =IF('DF raw data'!E32="","",'DF raw data'!E32) -> Probe Name | B32: =IF('DF raw data'!F32="","",'DF raw data'!F32) -> ID12_Bx | C32: =IF('DF raw data'!G32="","",'DF raw data'!G32) ->  | D32: =IF('DF raw data'!H32="","",'DF raw data'!H32) -> 
A33: =IF('DF raw data'!E33="","",'DF raw data'!E33) -> Probe Type | B33: =IF('DF raw data'!F33="","",'DF raw data'!F33) -> DF_ID_3D_Bxyz | C33: =IF('DF raw data'!G33="","",'DF raw data'!G33) ->  | D33: =IF('DF raw data'!H33="","",'DF raw data'!H33) -> 
A34: =IF('DF raw data'!E34="","",'DF raw data'!E34) -> Probe Danfysik Reg. Number | B34: =IF('DF raw data'!F34="","",'DF raw data'!F34) -> 2277 | C34: =IF('DF raw data'!G34="","",'DF raw data'!G34) ->  | D34: =IF('DF raw data'!H34="","",'DF raw data'!H34) -> 
A35: =IF('DF raw data'!E35="","",'DF raw data'!E35) -> Probe Axis | B35: =IF('DF raw data'!F35="","",'DF raw data'!F35) -> Bx | C35: =IF('DF raw data'!G35="","",'DF raw data'!G35) ->  | D35: =IF('DF raw data'!H35="","",'DF raw data'!H35) -> 
A36: =IF('DF raw data'!E36="","",'DF raw data'!E36) -> Probe Current Supply | B36: =IF('DF raw data'!F36="","",'DF raw data'!F36) -> 1825-D | C36: =IF('DF raw data'!G36="","",'DF raw data'!G36) ->  | D36: =IF('DF raw data'!H36="","",'DF raw data'!H36) -> 
A37: =IF('DF raw data'!E37="","",'DF raw data'!E37) -> Probe Gain Correction | B37: =IF('DF raw data'!F37="","",'DF raw data'!F37) -> 1 | C37: =IF('DF raw data'!G37="","",'DF raw data'!G37) ->  | D37: =IF('DF raw data'!H37="","",'DF raw data'!H37) -> 
A38: =IF('DF raw data'!E38="","",'DF raw data'!E38) -> Probe Offset Correction | B38: =IF('DF raw data'!F38="","",'DF raw data'!F38) -> -0.17546 | C38: =IF('DF raw data'!G38="","",'DF raw data'!G38) ->  | D38: =IF('DF raw data'!H38="","",'DF raw data'!H38) -> 
A39: =IF('DF raw data'!E39="","",'DF raw data'!E39) -> DVM Number | B39: =IF('DF raw data'!F39="","",'DF raw data'!F39) -> 3 | C39: =IF('DF raw data'!G39="","",'DF raw data'!G39) ->  | D39: =IF('DF raw data'!H39="","",'DF raw data'!H39) -> 
A40: =IF('DF raw data'!E40="","",'DF raw data'!E40) -> DVM Type | B40: =IF('DF raw data'!F40="","",'DF raw data'!F40) -> K2701 | C40: =IF('DF raw data'!G40="","",'DF raw data'!G40) ->  | D40: =IF('DF raw data'!H40="","",'DF raw data'!H40) -> 
A41: =IF('DF raw data'!E41="","",'DF raw data'!E41) -> DVM Danfysik Reg. Number | B41: =IF('DF raw data'!F41="","",'DF raw data'!F41) -> 1744-D | C41: =IF('DF raw data'!G41="","",'DF raw data'!G41) ->  | D41: =IF('DF raw data'!H41="","",'DF raw data'!H41) -> 
A42: =IF('DF raw data'!E42="","",'DF raw data'!E42) -> Probe Name | B42: =IF('DF raw data'!F42="","",'DF raw data'!F42) -> ID12_Bz | C42: =IF('DF raw data'!G42="","",'DF raw data'!G42) ->  | D42: =IF('DF raw data'!H42="","",'DF raw data'!H42) -> 
A43: =IF('DF raw data'!E43="","",'DF raw data'!E43) -> Probe Type | B43: =IF('DF raw data'!F43="","",'DF raw data'!F43) -> DF_ID_3D_Bxyz | C43: =IF('DF raw data'!G43="","",'DF raw data'!G43) ->  | D43: =IF('DF raw data'!H43="","",'DF raw data'!H43) -> 
A44: =IF('DF raw data'!E44="","",'DF raw data'!E44) -> Probe Danfysik Reg. Number | B44: =IF('DF raw data'!F44="","",'DF raw data'!F44) -> 2277 | C44: =IF('DF raw data'!G44="","",'DF raw data'!G44) ->  | D44: =IF('DF raw data'!H44="","",'DF raw data'!H44) -> 
A45: =IF('DF raw data'!E45="","",'DF raw data'!E45) -> Probe Axis | B45: =IF('DF raw data'!F45="","",'DF raw data'!F45) -> Bz | C45: =IF('DF raw data'!G45="","",'DF raw data'!G45) ->  | D45: =IF('DF raw data'!H45="","",'DF raw data'!H45) -> 
A46: =IF('DF raw data'!E46="","",'DF raw data'!E46) -> Probe Current Supply | B46: =IF('DF raw data'!F46="","",'DF raw data'!F46) -> 1825-D | C46: =IF('DF raw data'!G46="","",'DF raw data'!G46) ->  | D46: =IF('DF raw data'!H46="","",'DF raw data'!H46) -> 
A47: =IF('DF raw data'!E47="","",'DF raw data'!E47) -> Probe Gain Correction | B47: =IF('DF raw data'!F47="","",'DF raw data'!F47) -> 1 | C47: =IF('DF raw data'!G47="","",'DF raw data'!G47) ->  | D47: =IF('DF raw data'!H47="","",'DF raw data'!H47) -> 
A48: =IF('DF raw data'!E53="","",'DF raw data'!E53) -> PS-Gap: | B48: =IF('DF raw data'!F53="","",'DF raw data'!F53) -> 10 | C48: =IF('DF raw data'!G53="","",'DF raw data'!G53) ->  | D48: =IF('DF raw data'!H53="","",'DF raw data'!H53) -> 
A49: =IF('DF raw data'!E54="","",'DF raw data'!E54) -> PS-Temperature: | B49: =IF('DF raw data'!F54="","",'DF raw data'!F54) -> 24.2 | C49: =IF('DF raw data'!G54="","",'DF raw data'!G54) ->  | D49: =IF('DF raw data'!H54="","",'DF raw data'!H54) -> 
A50: =IF('DF raw data'!E55="","",'DF raw data'!E55) -> PS-Encoder: | B50: =IF('DF raw data'!F55="","",'DF raw data'!F55) -> 19.6328 | C50: =IF('DF raw data'!G55="","",'DF raw data'!G55) ->  | D50: =IF('DF raw data'!H55="","",'DF raw data'!H55) -> 
A51: =IF('DF raw data'!E56="","",'DF raw data'!E56) ->  | B51: =IF('DF raw data'!F56="","",'DF raw data'!F56) ->  | C51: =IF('DF raw data'!G56="","",'DF raw data'!G56) ->  | D51: =IF('DF raw data'!H56="","",'DF raw data'!H56) -> 
A52: =IF('DF raw data'!E57="","",'DF raw data'!E57) -> Monitor-Index | B52: =IF('DF raw data'!F57="","",'DF raw data'!F57) -> [1,1,4] | C52: =IF('DF raw data'!G57="","",'DF raw data'!G57) ->  | D52: =IF('DF raw data'!H57="","",'DF raw data'!H57) -> 
A53: =IF('DF raw data'!E58="","",'DF raw data'!E58) ->  | B53: =IF('DF raw data'!F58="","",'DF raw data'!F58) ->  | C53: =IF('DF raw data'!G58="","",'DF raw data'!G58) ->  | D53: =IF('DF raw data'!H58="","",'DF raw data'!H58) -> 
A54: =IF('DF raw data'!E59="","",'DF raw data'!E59) -> Time [s] | B54: =IF('DF raw data'!F59="","",'DF raw data'!F59) -> Y [mm] | C54: =IF('DF raw data'!G59="","",'DF raw data'!G59) -> X [mm] | D54: =IF('DF raw data'!H59="","",'DF raw data'!H59) -> Nominal current [A]
A55: =IF('DF raw data'!E60="","",'DF raw data'!E60) ->  | B55: =IF('DF raw data'!F60="","",'DF raw data'!F60) ->  | C55: =IF('DF raw data'!G60="","",'DF raw data'!G60) ->  | D55: =IF('DF raw data'!H60="","",'DF raw data'!H60) -> 
A56: =IF('DF raw data'!E61="","",'DF raw data'!E61) -> 207.9 | B56: =IF('DF raw data'!F61="","",'DF raw data'!F61) -> 31.48 | C56: =IF('DF raw data'!G61="","",'DF raw data'!G61) -> 300.8 | D56: =IF('DF raw data'!H61="","",'DF raw data'!H61) -> 0
A57: =IF('DF raw data'!E62="","",'DF raw data'!E62) ->  | B57: =IF('DF raw data'!F62="","",'DF raw data'!F62) ->  | C57: =IF('DF raw data'!G62="","",'DF raw data'!G62) ->  | D57: =IF('DF raw data'!H62="","",'DF raw data'!H62) -> 
A58: =IF('DF raw data'!E63="","",'DF raw data'!E63) -> Measurement-Index | B58: =IF('DF raw data'!F63="","",'DF raw data'!F63) -> [1,1,1201,2] | C58: =IF('DF raw data'!G63="","",'DF raw data'!G63) ->  | D58: =IF('DF raw data'!H63="","",'DF raw data'!H63) -> 
A59: =IF('DF raw data'!E64="","",'DF raw data'!E64) ->  | B59: =IF('DF raw data'!F64="","",'DF raw data'!F64) ->  | C59: =IF('DF raw data'!G64="","",'DF raw data'!G64) ->  | D59: =IF('DF raw data'!H64="","",'DF raw data'!H64) -> 
A60: =IF('DF raw data'!E65="","",'DF raw data'!E65) -> Z [mm] | B60: By [T] | C60: Bx [T] | D60: Bz [T] | F60: By_corr | G60: Bx_corr | H60: Bz_corr | J60: Iy | K60: Jy | L60: Ix | M60: Jx | N60: PI
A62: =IF('DF raw data'!E67="","",'DF raw data'!E67) -> -300 | B62: =IF('DF raw data'!F67="","",'DF raw data'!F67) -> -8.12554e-06 | C62: =IF('DF raw data'!G67="","",'DF raw data'!G67) -> 0.000157522 | D62: =IF('DF raw data'!H67="","",'DF raw data'!H67) -> -2.68546e-05 | F62: =(1-$G$1*($B$49))*B62 -> -8.322178068e-06 | G62: =(1-$G$1*($B$49-$G$2))*C62 -> 0.0001581835924 | H62: =(1-$G$1*($B$49-$G$2))*D62 -> -2.696738932e-05 | J62: =F62*$G$3 -> -4.161089034e-06 | K62: =J62*$G$3 -> -2.080544517e-06 | L62: =G62*$G$3 -> 7.90917962e-05 | M62: =L62*$G$3 -> 3.95458981e-05 | N62: =(J62^2+L62^2)*$G$3 -> 3.136413444e-09
A63: =IF('DF raw data'!E68="","",'DF raw data'!E68) -> -299.5 | B63: =IF('DF raw data'!F68="","",'DF raw data'!F68) -> -7.5483e-06 | C63: =IF('DF raw data'!G68="","",'DF raw data'!G68) -> 0.000153844 | D63: =IF('DF raw data'!H68="","",'DF raw data'!H68) -> -2.68468e-05 | F63: =(1-$G$1*($B$49-$G$2))*B63 -> -7.58000286e-06 | G63: =(1-$G$1*($B$49-$G$2))*C63 -> 0.0001544901448 | H63: -2.695955656e-05 | J63: =F63*$G$3+J62 -> -7.951090464e-06 | K63: =J63*$G$3+K62 -> -6.056089749e-06 | L63: =G63*$G$3+L62 -> 0.0001563368686 | M63: =L63*$G$3+M62 -> 0.0001177143324 | N63: =(J63^2+L63^2)*$G$3+N62 -> 1.538863161e-08
A64: =IF('DF raw data'!E69="","",'DF raw data'!E69) -> -299 | B64: =IF('DF raw data'!F69="","",'DF raw data'!F69) -> -6.39531e-06 | C64: =IF('DF raw data'!G69="","",'DF raw data'!G69) -> 0.000159458 | D64: =IF('DF raw data'!H69="","",'DF raw data'!H69) -> -2.68679e-05 | F64: =(1-$G$1*($B$49-$G$2))*B64 -> -6.422170302e-06 | G64: 0.0001601277236 | H64: -2.698074518e-05 | J64: =F64*$G$3+J63 -> -1.116217562e-05 | K64: =J64*$G$3+K63 -> -1.163717756e-05 | L64: =G64*$G$3+L63 -> 0.0002364007304 | M64: =L64*$G$3+M63 -> 0.0002359146976 | N64: =(J64^2+L64^2)*$G$3+N63 -> 4.339358135e-08
A65: =IF('DF raw data'!E70="","",'DF raw data'!E70) -> -298.5 | B65: =IF('DF raw data'!F70="","",'DF raw data'!F70) -> -6.01121e-06 | C65: =IF('DF raw data'!G70="","",'DF raw data'!G70) -> 0.000167777 | D65: =IF('DF raw data'!H70="","",'DF raw data'!H70) -> -2.69993e-05 | F65: -6.036457082e-06 | G65: 0.0001684816634 | H65: -2.711269706e-05 | J65: -1.418040416e-05 | K65: -1.872737963e-05 | L65: 0.0003206415621 | M65: 0.0003962354786 | N65: 9.489962896e-08
A66: =IF('DF raw data'!E71="","",'DF raw data'!E71) -> -298 | B66: =IF('DF raw data'!F71="","",'DF raw data'!F71) -> -4.47301e-06 | C66: =IF('DF raw data'!G71="","",'DF raw data'!G71) -> 0.000164273 | D66: =IF('DF raw data'!H71="","",'DF raw data'!H71) -> -2.7267e-05 | F66: -4.491796642e-06 | G66: 0.0001649629466 | H66: -2.73815214e-05 | J66: -1.642630248e-05 | K66: -2.694053087e-05 | L66: 0.0004031230354 | M66: 0.0005977969963 | N66: 1.762886315e-07
A67: =IF('DF raw data'!E72="","",'DF raw data'!E72) -> -297.5 | B67: =IF('DF raw data'!F72="","",'DF raw data'!F72) -> -7.93275e-06 | C67: =IF('DF raw data'!G72="","",'DF raw data'!G72) -> 0.00015826 | D67: =IF('DF raw data'!H72="","",'DF raw data'!H72) -> -2.75128e-05 | F67: -7.96606755e-06 | G67: 0.000158924692 | H67: -2.762835376e-05 | J67: -2.040933625e-05 | K67: -3.7145199e-05 | L67: 0.0004825853814 | M67: 0.000839089687 | N67: 2.929412272e-07
A68: =IF('DF raw data'!E73="","",'DF raw data'!E73) -> -297 | B68: =IF('DF raw data'!F73="","",'DF raw data'!F73) -> -6.07457e-06 | C68: =IF('DF raw data'!G73="","",'DF raw data'!G73) -> 0.000163176 | D68: =IF('DF raw data'!H73="","",'DF raw data'!H73) -> -2.73903e-05 | F68: -6.100083194e-06 | G68: 0.0001638613392 | H68: -2.750533926e-05 | J68: -2.345937785e-05 | K68: -4.887488792e-05 | L68: 0.000564516051 | M68: 0.001121347713 | N68: 4.525555843e-07
A69: =IF('DF raw data'!E74="","",'DF raw data'!E74) -> -296.5 | B69: =IF('DF raw data'!F74="","",'DF raw data'!F74) -> -1.52367e-05 | C69: =IF('DF raw data'!G74="","",'DF raw data'!G74) -> 0.000169213 | D69: =IF('DF raw data'!H74="","",'DF raw data'!H74) -> -2.67462e-05 | F69: -1.530069414e-05 | G69: 0.0001699236946 | H69: -2.685853404e-05 | J69: -3.110972492e-05 | K69: -6.442975038e-05 | L69: 0.0006494778983 | M69: 0.001446086662 | N69: 6.63950262e-07
A70: =IF('DF raw data'!E75="","",'DF raw data'!E75) -> -296 | B70: =IF('DF raw data'!F75="","",'DF raw data'!F75) -> -3.00032e-06 | C70: =IF('DF raw data'!G75="","",'DF raw data'!G75) -> 0.000169201 | D70: =IF('DF raw data'!H75="","",'DF raw data'!H75) -> -2.64421e-05 | F70: -3.012921344e-06 | G70: 0.0001699116442 | H70: -2.655315682e-05 | J70: -3.261618559e-05 | K70: -8.073784318e-05 | L70: 0.0007344337204 | M70: 0.001813303522 | N70: 9.341786146e-07
A71: =IF('DF raw data'!E76="","",'DF raw data'!E76) -> -295.5 | B71: =IF('DF raw data'!F76="","",'DF raw data'!F76) -> -4.15331e-06 | C71: =IF('DF raw data'!G76="","",'DF raw data'!G76) -> 0.000161225 | D71: =IF('DF raw data'!H76="","",'DF raw data'!H76) -> -2.69786e-05 | F71: -4.170753902e-06 | G71: 0.000161902145 | H71: -2.709191012e-05 | J71: -3.470156254e-05 | K71: -9.808862445e-05 | L71: 0.0008153847929 | M71: 0.002220995918 | N71: 1.267206894e-06
A72: =IF('DF raw data'!E77="","",'DF raw data'!E77) -> -295 | B72: =IF('DF raw data'!F77="","",'DF raw data'!F77) -> -2.55089e-06 | C72: =IF('DF raw data'!G77="","",'DF raw data'!G77) -> 0.000161333 | D72: =IF('DF raw data'!H77="","",'DF raw data'!H77) -> -2.7815e-05 | F72: -2.561603738e-06 | G72: 0.0001620105986 | H72: -2.7931823e-05 | J72: -3.598236441e-05 | K72: -0.0001160798067 | L72: 0.0008963900922 | M72: 0.002669190964 | N72: 1.669611858e-06
A73: =IF('DF raw data'!E78="","",'DF raw data'!E78) -> -294.5 | B73: =IF('DF raw data'!F78="","",'DF raw data'!F78) -> -1.10079e-05 | C73: =IF('DF raw data'!G78="","",'DF raw data'!G78) -> 0.000167899 | D73: =IF('DF raw data'!H78="","",'DF raw data'!H78) -> -2.78699e-05 | F73: -1.105413318e-05 | G73: 0.0001686041758 | H73: -2.798695358e-05 | J73: -4.1509431e-05 | K73: -0.0001368345222 | L73: 0.0009806921801 | M73: 0.003159537055 | N73: 2.151351951e-06
A74: =IF('DF raw data'!E79="","",'DF raw data'!E79) -> -294 | B74: =IF('DF raw data'!F79="","",'DF raw data'!F79) -> -1.24808e-05 | C74: =IF('DF raw data'!G79="","",'DF raw data'!G79) -> 0.000163982 | D74: =IF('DF raw data'!H79="","",'DF raw data'!H79) -> -2.69385e-05 | F74: -1.253321936e-05 | G74: 0.0001646707244 | H74: -2.70516417e-05 | J74: -4.777604068e-05 | K74: -0.0001607225425 | L74: 0.001063027542 | M74: 0.003691050826 | N74: 2.717507003e-06
A75: =IF('DF raw data'!E80="","",'DF raw data'!E80) -> -293.5 | B75: =IF('DF raw data'!F80="","",'DF raw data'!F80) -> -1.2931e-05 | C75: =IF('DF raw data'!G80="","",'DF raw data'!G80) -> 0.000160166 | D75: =IF('DF raw data'!H80="","",'DF raw data'!H80) -> -2.60844e-05 | F75: -1.29853102e-05 | G75: 0.0001608386972 | H75: -2.619395448e-05 | J75: -5.426869578e-05 | K75: -0.0001878568904 | L75: 0.001143446891 | M75: 0.004262774271 | N75: 3.372714945e-06
A76: =IF('DF raw data'!E81="","",'DF raw data'!E81) -> -293 | B76: =IF('DF raw data'!F81="","",'DF raw data'!F81) -> 3.79008e-06 | C76: =IF('DF raw data'!G81="","",'DF raw data'!G81) -> 0.000159106 | D76: =IF('DF raw data'!H81="","",'DF raw data'!H81) -> -2.63763e-05 | F76: 3.805998336e-06 | G76: 0.0001597742452 | H76: -2.648708046e-05 | J76: -5.236569661e-05 | K76: -0.0002140397387 | L76: 0.001223334014 | M76: 0.004874441278 | N76: 4.122359083e-06
A77: =IF('DF raw data'!E82="","",'DF raw data'!E82) -> -292.5 | B77: =IF('DF raw data'!F82="","",'DF raw data'!F82) -> -5.75502e-06 | C77: =IF('DF raw data'!G82="","",'DF raw data'!G82) -> 0.000168644 | D77: =IF('DF raw data'!H82="","",'DF raw data'!H82) -> -2.69994e-05 | F77: -5.779191084e-06 | G77: 0.0001693523048 | H77: -2.711279748e-05 | J77: -5.525529215e-05 | K77: -0.0002416673848 | L77: 0.001308010166 | M77: 0.005528446361 | N77: 4.979330953e-06
A78: =IF('DF raw data'!E83="","",'DF raw data'!E83) -> -292 | B78: =IF('DF raw data'!F83="","",'DF raw data'!F83) -> -6.01056e-06 | C78: =IF('DF raw data'!G83="","",'DF raw data'!G83) -> 0.000168423 | D78: =IF('DF raw data'!H83="","",'DF raw data'!H83) -> -2.73614e-05 | F78: -6.035804352e-06 | G78: 0.0001691303766 | H78: -2.747631788e-05 | J78: -5.827319433e-05 | K78: -0.0002708039819 | L78: 0.001392575354 | M78: 0.006224734038 | N78: 5.950661894e-06
A79: =IF('DF raw data'!E84="","",'DF raw data'!E84) -> -291.5 | B79: =IF('DF raw data'!F84="","",'DF raw data'!F84) -> 2.31847e-06 | C79: =IF('DF raw data'!G84="","",'DF raw data'!G84) -> 0.000159783 | D79: =IF('DF raw data'!H84="","",'DF raw data'!H84) -> -2.85783e-05 | F79: 2.328207574e-06 | G79: 0.0001604540886 | H79: -2.869832886e-05 | J79: -5.710909054e-05 | K79: -0.0002993585272 | L79: 0.001472802399 | M79: 0.006961135237 | N79: 7.036866071e-06
A80: =IF('DF raw data'!E85="","",'DF raw data'!E85) -> -291 | B80: =IF('DF raw data'!F85="","",'DF raw data'!F85) -> -1.42751e-05 | C80: =IF('DF raw data'!G85="","",'DF raw data'!G85) -> 0.000158375 | D80: =IF('DF raw data'!H85="","",'DF raw data'!H85) -> -2.63474e-05 | F80: -1.433505542e-05 | G80: 0.000159040175 | H80: -2.645805908e-05 | J80: -6.427661825e-05 | K80: -0.0003314968363 | L80: 0.001552322486 | M80: 0.00773729648 | N80: 8.243784363e-06
A81: =IF('DF raw data'!E86="","",'DF raw data'!E86) -> -290.5 | B81: =IF('DF raw data'!F86="","",'DF raw data'!F86) -> -6.91225e-06 | C81: =IF('DF raw data'!G86="","",'DF raw data'!G86) -> 0.000164469 | D81: =IF('DF raw data'!H86="","",'DF raw data'!H86) -> -2.06906e-05 | F81: -6.94128145e-06 | G81: 0.0001651597698 | H81: -2.077750052e-05 | J81: -6.774725898e-05 | K81: -0.0003653704658 | L81: 0.001634902371 | M81: 0.008554747666 | N81: 9.58253209e-06
A82: =IF('DF raw data'!E87="","",'DF raw data'!E87) -> -290 | B82: =IF('DF raw data'!F87="","",'DF raw data'!F87) -> -7.6182e-06 | C82: =IF('DF raw data'!G87="","",'DF raw data'!G87) -> 0.000163674 | D82: =IF('DF raw data'!H87="","",'DF raw data'!H87) -> -1.80409e-05 | F82: -7.65019644e-06 | G82: 0.0001643614308 | H82: -1.811667178e-05 | J82: -7.15723572e-05 | K82: -0.0004011566444 | L82: 0.001717083086 | M82: 0.009413289209 | N82: 1.105928055e-05
A83: =IF('DF raw data'!E88="","",'DF raw data'!E88) -> -289.5 | B83: =IF('DF raw data'!F88="","",'DF raw data'!F88) -> -1.4345e-05 | C83: =IF('DF raw data'!G88="","",'DF raw data'!G88) -> 0.000163508 | D83: =IF('DF raw data'!H88="","",'DF raw data'!H88) -> -1.88007e-05 | F83: -1.4405249e-05 | G83: 0.0001641947336 | H83: -1.887966294e-05 | J83: -7.87749817e-05 | K83: -0.0004405441353 | L83: 0.001799180453 | M83: 0.01031287944 | N83: 1.268090845e-05
A84: =IF('DF raw data'!E89="","",'DF raw data'!E89) -> -289 | B84: =IF('DF raw data'!F89="","",'DF raw data'!F89) -> -7.04362e-06 | C84: =IF('DF raw data'!G89="","",'DF raw data'!G89) -> 0.000168619 | D84: =IF('DF raw data'!H89="","",'DF raw data'!H89) -> -1.48313e-05 | F84: -7.073203204e-06 | G84: 0.0001693271998 | H84: -1.489359146e-05 | J84: -8.23115833e-05 | K84: -0.0004816999269 | L84: 0.001883844053 | M84: 0.01125480146 | N84: 1.445873026e-05
A85: =IF('DF raw data'!E90="","",'DF raw data'!E90) -> -288.5 | B85: =IF('DF raw data'!F90="","",'DF raw data'!F90) -> -5.44067e-06 | C85: =IF('DF raw data'!G90="","",'DF raw data'!G90) -> 0.000172137 | D85: =IF('DF raw data'!H90="","",'DF raw data'!H90) -> -1.76295e-05 | F85: -5.463520814e-06 | G85: 0.0001728599754 | H85: -1.77035439e-05 | J85: -8.504334371e-05 | K85: -0.0005242215988 | L85: 0.001970274041 | M85: 0.01223993848 | N85: 1.640333634e-05
A86: =IF('DF raw data'!E91="","",'DF raw data'!E91) -> -288 | B86: =IF('DF raw data'!F91="","",'DF raw data'!F91) -> -8.90193e-06 | C86: =IF('DF raw data'!G91="","",'DF raw data'!G91) -> 0.000165452 | D86: =IF('DF raw data'!H91="","",'DF raw data'!H91) -> -1.41002e-05 | F86: -8.939318106e-06 | G86: 0.0001661468984 | H86: -1.415942084e-05 | J86: -8.951300276e-05 | K86: -0.0005689781002 | L86: 0.00205334749 | M86: 0.01326661223 | N86: 1.851546059e-05
A87: =IF('DF raw data'!E92="","",'DF raw data'!E92) -> -287.5 | B87: =IF('DF raw data'!F92="","",'DF raw data'!F92) -> -1.01804e-05 | C87: =IF('DF raw data'!G92="","",'DF raw data'!G92) -> 0.000159215 | D87: =IF('DF raw data'!H92="","",'DF raw data'!H92) -> -1.95747e-05 | F87: -1.022315768e-05 | G87: 0.000159883703 | H87: -1.965691374e-05 | J87: -9.46245816e-05 | K87: -0.000616290391 | L87: 0.002133289341 | M87: 0.0143332569 | N87: 2.07953992e-05
A88: =IF('DF raw data'!E93="","",'DF raw data'!E93) -> -287 | B88: =IF('DF raw data'!F93="","",'DF raw data'!F93) -> -3.96742e-06 | C88: =IF('DF raw data'!G93="","",'DF raw data'!G93) -> 0.000157768 | D88: =IF('DF raw data'!H93="","",'DF raw data'!H93) -> -1.65733e-05 | F88: -3.984083164e-06 | G88: 0.0001584306256 | H88: -1.664290786e-05 | J88: -9.661662318e-05 | K88: -0.0006645987026 | L88: 0.002212504654 | M88: 0.01543950922 | N88: 2.324765501e-05
A89: =IF('DF raw data'!E94="","",'DF raw data'!E94) -> -286.5 | B89: =IF('DF raw data'!F94="","",'DF raw data'!F94) -> 1.10926e-05 | C89: =IF('DF raw data'!G94="","",'DF raw data'!G94) -> 0.000157591 | D89: =IF('DF raw data'!H94="","",'DF raw data'!H94) -> -2.41215e-05 | F89: 1.113918892e-05 | G89: 0.0001582528822 | H89: -2.42228103e-05 | J89: -9.104702872e-05 | K89: -0.0007101222169 | L89: 0.002291631095 | M89: 0.01658532477 | N89: 2.587758633e-05
A90: =IF('DF raw data'!E95="","",'DF raw data'!E95) -> -286 | B90: =IF('DF raw data'!F95="","",'DF raw data'!F95) -> -8.9548e-06 | C90: =IF('DF raw data'!G95="","",'DF raw data'!G95) -> 0.000149256 | D90: =IF('DF raw data'!H95="","",'DF raw data'!H95) -> -3.10351e-05 | F90: -8.99241016e-06 | G90: 0.0001498828752 | H90: -3.116544742e-05 | J90: -9.55432338e-05 | K90: -0.0007578938338 | L90: 0.002366572533 | M90: 0.01776861104 | N90: 2.868248336e-05
A91: =IF('DF raw data'!E96="","",'DF raw data'!E96) -> -285.5 | B91: =IF('DF raw data'!F96="","",'DF raw data'!F96) -> -9.34739e-06 | C91: =IF('DF raw data'!G96="","",'DF raw data'!G96) -> 0.000153449 | D91: =IF('DF raw data'!H96="","",'DF raw data'!H96) -> -1.9659e-05 | F91: -9.386649038e-06 | G91: 0.0001540934858 | H91: -1.97415678e-05 | J91: -0.0001002365583 | K91: -0.000808012113 | L91: 0.002443619276 | M91: 0.01899042068 | N91: 3.167314463e-05
A92: =IF('DF raw data'!E97="","",'DF raw data'!E97) -> -285 | B92: =IF('DF raw data'!F97="","",'DF raw data'!F97) -> -3.05721e-06 | C92: =IF('DF raw data'!G97="","",'DF raw data'!G97) -> 0.000160518 | D92: =IF('DF raw data'!H97="","",'DF raw data'!H97) -> -3.72132e-05 | F92: -3.070050282e-06 | G92: 0.0001611921756 | H92: -3.736949544e-05 | J92: -0.0001017715835 | K92: -0.0008588979047 | L92: 0.002524215364 | M92: 0.02025252836 | N92: 3.486415496e-05
A93: =IF('DF raw data'!E98="","",'DF raw data'!E98) -> -284.5 | B93: =IF('DF raw data'!F98="","",'DF raw data'!F98) -> -1.93456e-05 | C93: =IF('DF raw data'!G98="","",'DF raw data'!G98) -> 0.000159778 | D93: =IF('DF raw data'!H98="","",'DF raw data'!H98) -> -1.39418e-05 | F93: -1.942685152e-05 | G93: 0.0001604490676 | H93: -1.400035556e-05 | J93: -0.0001114850092 | K93: -0.0009146404093 | L93: 0.002604439897 | M93: 0.02155474831 | N93: 3.8261923e-05
A94: =IF('DF raw data'!E99="","",'DF raw data'!E99) -> -284 | B94: =IF('DF raw data'!F99="","",'DF raw data'!F99) -> -1.13903e-05 | C94: =IF('DF raw data'!G99="","",'DF raw data'!G99) -> 0.000168736 | D94: =IF('DF raw data'!H99="","",'DF raw data'!H99) -> -2.94313e-05 | F94: -1.143813926e-05 | G94: 0.0001694446912 | H94: -2.955491146e-05 | J94: -0.0001172040789 | K94: -0.0009732424487 | L94: 0.002689162243 | M94: 0.02289932943 | N94: 4.188458818e-05
A95: =IF('DF raw data'!E100="","",'DF raw data'!E100) -> -283.5 | B95: =IF('DF raw data'!F100="","",'DF raw data'!F100) -> 1.98446e-07 | C95: =IF('DF raw data'!G100="","",'DF raw data'!G100) -> 0.000173252 | D95: =IF('DF raw data'!H100="","",'DF raw data'!H100) -> -1.9606e-05 | F95: 1.992794732e-07 | G95: 0.0001739796584 | H95: -1.96883452e-05 | J95: -0.0001171044391 | K95: -0.001031794668 | L95: 0.002776152072 | M95: 0.02428740546 | N95: 4.574495507e-05
A96: =IF('DF raw data'!E101="","",'DF raw data'!E101) -> -283 | B96: =IF('DF raw data'!F101="","",'DF raw data'!F101) -> 2.18996e-06 | C96: =IF('DF raw data'!G101="","",'DF raw data'!G101) -> 0.000179228 | D96: =IF('DF raw data'!H101="","",'DF raw data'!H101) -> -2.82644e-05 | F96: 2.199157832e-06 | G96: 0.0001799807576 | H96: -2.838311048e-05 | J96: -0.0001160048602 | K96: -0.001089797098 | L96: 0.002866142451 | M96: 0.02572047669 | N96: 4.985906991e-05
A97: =IF('DF raw data'!E102="","",'DF raw data'!E102) -> -282.5 | B97: =IF('DF raw data'!F102="","",'DF raw data'!F102) -> -7.86828e-06 | C97: =IF('DF raw data'!G102="","",'DF raw data'!G102) -> 0.0001897 | D97: =IF('DF raw data'!H102="","",'DF raw data'!H102) -> -2.85915e-05 | F97: -7.901326776e-06 | G97: 0.00019049674 | H97: -2.87115843e-05 | J97: -0.0001199555236 | K97: -0.00114977486 | L97: 0.002961390821 | M97: 0.0272011721 | N97: 5.425118237e-05
A98: =IF('DF raw data'!E103="","",'DF raw data'!E103) -> -282 | B98: =IF('DF raw data'!F103="","",'DF raw data'!F103) -> -1.08389e-06 | C98: =IF('DF raw data'!G103="","",'DF raw data'!G103) -> 0.000180025 | D98: =IF('DF raw data'!H103="","",'DF raw data'!H103) -> -1.78104e-05 | F98: -1.088442338e-06 | G98: 0.000180781105 | H98: -1.788520368e-05 | J98: -0.0001204997448 | K98: -0.001210024733 | L98: 0.003051781373 | M98: 0.02872706279 | N98: 5.891512724e-05
A99: =IF('DF raw data'!E104="","",'DF raw data'!E104) -> -281.5 | B99: =IF('DF raw data'!F104="","",'DF raw data'!F104) -> -4.60593e-06 | C99: =IF('DF raw data'!G104="","",'DF raw data'!G104) -> 0.000168862 | D99: =IF('DF raw data'!H104="","",'DF raw data'!H104) -> -2.08333e-05 | F99: -4.625274906e-06 | G99: 0.0001695712204 | H99: -2.092079986e-05 | J99: -0.0001228123822 | K99: -0.001271430924 | L99: 0.003136566984 | M99: 0.03029534628 | N99: 6.38416949e-05
A100: =IF('DF raw data'!E105="","",'DF raw data'!E105) -> -281 | B100: =IF('DF raw data'!F105="","",'DF raw data'!F105) -> 3.46554e-06 | C100: =IF('DF raw data'!G105="","",'DF raw data'!G105) -> 0.000178852 | D100: =IF('DF raw data'!H105="","",'DF raw data'!H105) -> -1.96786e-05 | F100: 3.480095268e-06 | G100: 0.0001796031784 | H100: -1.976125012e-05 | J100: -0.0001210723346 | K100: -0.001331967091 | L100: 0.003226368573 | M100: 0.03190853057 | N100: 6.905375124e-05
A101: =IF('DF raw data'!E106="","",'DF raw data'!E106) -> -280.5 | B101: =IF('DF raw data'!F106="","",'DF raw data'!F106) -> -1.13315e-05 | C101: =IF('DF raw data'!G106="","",'DF raw data'!G106) -> 0.000179006 | D101: =IF('DF raw data'!H106="","",'DF raw data'!H106) -> -2.26833e-05 | F101: -1.13790923e-05 | G101: 0.0001797578252 | H101: -2.277856986e-05 | J101: -0.0001267618807 | K101: -0.001395348031 | L101: 0.003316247485 | M101: 0.03356665431 | N101: 7.456053422e-05
A102: =IF('DF raw data'!E107="","",'DF raw data'!E107) -> -280 | B102: =IF('DF raw data'!F107="","",'DF raw data'!F107) -> -3.58979e-06 | C102: =IF('DF raw data'!G107="","",'DF raw data'!G107) -> 0.000177877 | D102: =IF('DF raw data'!H107="","",'DF raw data'!H107) -> -6.20985e-06 | F102: -3.604867118e-06 | G102: 0.0001786240834 | H102: -6.23593137e-06 | J102: -0.0001285643143 | K102: -0.001459630188 | L102: 0.003405559527 | M102: 0.03526943407 | N102: 8.036771646e-05
A103: =IF('DF raw data'!E108="","",'DF raw data'!E108) -> -279.5 | B103: =IF('DF raw data'!F108="","",'DF raw data'!F108) -> 1.09232e-06 | C103: =IF('DF raw data'!G108="","",'DF raw data'!G108) -> 0.000174201 | D103: =IF('DF raw data'!H108="","",'DF raw data'!H108) -> -1.49602e-05 | F103: 1.096907744e-06 | G103: 0.0001749326442 | H103: -1.502303284e-05 | J103: -0.0001280158604 | K103: -0.001523638119 | L103: 0.003493025849 | M103: 0.037015947 | N103: 8.647652528e-05
A104: =IF('DF raw data'!E109="","",'DF raw data'!E109) -> -279 | B104: =IF('DF raw data'!F109="","",'DF raw data'!F109) -> -2.04216e-06 | C104: =IF('DF raw data'!G109="","",'DF raw data'!G109) -> 0.000176727 | D104: =IF('DF raw data'!H109="","",'DF raw data'!H109) -> -2.20162e-05 | F104: -2.050737072e-06 | G104: 0.0001774692534 | H104: -2.210866804e-05 | J104: -0.0001290412289 | K104: -0.001588158733 | L104: 0.003581760476 | M104: 0.03880682724 | N104: 9.289935515e-05
A105: =IF('DF raw data'!E110="","",'DF raw data'!E110) -> -278.5 | B105: =IF('DF raw data'!F110="","",'DF raw data'!F110) -> 2.64067e-06 | C105: =IF('DF raw data'!G110="","",'DF raw data'!G110) -> 0.000182131 | D105: =IF('DF raw data'!H110="","",'DF raw data'!H110) -> -3.1678e-05 | F105: 2.651760814e-06 | G105: 0.0001828959502 | H105: -3.18110476e-05 | J105: -0.0001277153485 | K105: -0.001652016407 | L105: 0.003673208451 | M105: 0.04064343146 | N105: 9.965374092e-05
A106: =IF('DF raw data'!E111="","",'DF raw data'!E111) -> -278 | B106: =IF('DF raw data'!F111="","",'DF raw data'!F111) -> -3.77052e-06 | C106: =IF('DF raw data'!G111="","",'DF raw data'!G111) -> 0.000184346 | D106: =IF('DF raw data'!H111="","",'DF raw data'!H111) -> -2.41008e-05 | F106: -3.786356184e-06 | G106: 0.0001851202532 | H106: -2.420202336e-05 | J106: -0.0001296085266 | K106: -0.001716820671 | L106: 0.003765768578 | M106: 0.04252631575 | N106: 0.0001067526466
A107: =IF('DF raw data'!E112="","",'DF raw data'!E112) -> -277.5 | B107: =IF('DF raw data'!F112="","",'DF raw data'!F112) -> -4.92333e-06 | C107: =IF('DF raw data'!G112="","",'DF raw data'!G112) -> 0.00018403 | D107: =IF('DF raw data'!H112="","",'DF raw data'!H112) -> -2.50807e-05 | F107: -4.944007986e-06 | G107: 0.000184802926 | H107: -2.518603894e-05 | J107: -0.0001320805306 | K107: -0.001782860936 | L107: 0.003858170041 | M107: 0.04445540077 | N107: 0.0001142041073
A108: =IF('DF raw data'!E113="","",'DF raw data'!E113) -> -277 | B108: =IF('DF raw data'!F113="","",'DF raw data'!F113) -> -5.11573e-06 | C108: =IF('DF raw data'!G113="","",'DF raw data'!G113) -> 0.000178137 | D108: =IF('DF raw data'!H113="","",'DF raw data'!H113) -> -2.43215e-05 | F108: -5.137216066e-06 | G108: 0.0001788851754 | H108: -2.44236503e-05 | J108: -0.0001346491387 | K108: -0.001850185505 | L108: 0.003947612628 | M108: 0.04642920708 | N108: 0.0001220049952
A109: =IF('DF raw data'!E114="","",'DF raw data'!E114) -> -276.5 | B109: =IF('DF raw data'!F114="","",'DF raw data'!F114) -> -1.41484e-05 | C109: =IF('DF raw data'!G114="","",'DF raw data'!G114) -> 0.00017003 | D109: =IF('DF raw data'!H114="","",'DF raw data'!H114) -> -2.58895e-05 | F109: -1.420782328e-05 | G109: 0.000170744126 | H109: -2.59982359e-05 | J109: -0.0001417530503 | K109: -0.001921062031 | L109: 0.004032984691 | M109: 0.04844569943 | N109: 0.0001301475249
A110: =IF('DF raw data'!E115="","",'DF raw data'!E115) -> -276 | B110: =IF('DF raw data'!F115="","",'DF raw data'!F115) -> -1.51777e-05 | C110: =IF('DF raw data'!G115="","",'DF raw data'!G115) -> 0.000170235 | D110: =IF('DF raw data'!H115="","",'DF raw data'!H115) -> -1.75316e-05 | F110: -1.524144634e-05 | G110: 0.000170949987 | H110: -1.760523272e-05 | J110: -0.0001493737735 | K110: -0.001995748917 | L110: 0.004118459685 | M110: 0.05050492927 | N110: 0.0001386395363
A111: =IF('DF raw data'!E116="","",'DF raw data'!E116) -> -275.5 | B111: =IF('DF raw data'!F116="","",'DF raw data'!F116) -> -1.27456e-05 | C111: =IF('DF raw data'!G116="","",'DF raw data'!G116) -> 0.000171266 | D111: =IF('DF raw data'!H116="","",'DF raw data'!H116) -> -1.53681e-05 | F111: -1.279913152e-05 | G111: 0.0001719853172 | H111: -1.543264602e-05 | J111: -0.0001557733392 | K111: -0.002073635587 | L111: 0.004204452343 | M111: 0.05260715544 | N111: 0.0001474903787
A112: =IF('DF raw data'!E117="","",'DF raw data'!E117) -> -275 | B112: =IF('DF raw data'!F117="","",'DF raw data'!F117) -> -3.38415e-06 | C112: =IF('DF raw data'!G117="","",'DF raw data'!G117) -> 0.000179417 | D112: =IF('DF raw data'!H117="","",'DF raw data'!H117) -> -2.7217e-05 | F112: -3.39836343e-06 | G112: 0.0001801705514 | H112: -2.73313114e-05 | J112: -0.0001574725209 | K112: -0.002152371847 | L112: 0.004294537619 | M112: 0.05475442425 | N112: 0.0001567243042
A113: =IF('DF raw data'!E118="","",'DF raw data'!E118) -> -274.5 | B113: =IF('DF raw data'!F118="","",'DF raw data'!F118) -> -1.12683e-05 | C113: =IF('DF raw data'!G118="","",'DF raw data'!G118) -> 0.000178373 | D113: =IF('DF raw data'!H118="","",'DF raw data'!H118) -> -2.14235e-05 | F113: -1.131562686e-05 | G113: 0.0001791221666 | H113: -2.15134787e-05 | J113: -0.0001631303344 | K113: -0.002233937015 | L113: 0.004384098702 | M113: 0.0569464736 | N113: 0.0001663477706
A114: =IF('DF raw data'!E119="","",'DF raw data'!E119) -> -274 | B114: =IF('DF raw data'!F119="","",'DF raw data'!F119) -> -1.38969e-05 | C114: =IF('DF raw data'!G119="","",'DF raw data'!G119) -> 0.000177728 | D114: =IF('DF raw data'!H119="","",'DF raw data'!H119) -> -1.69469e-05 | F114: -1.395526698e-05 | G114: 0.0001784744576 | H114: -1.701807698e-05 | J114: -0.0001701079679 | K114: -0.002318990998 | L114: 0.004473335931 | M114: 0.05918314157 | N114: 0.0001763676062
A115: =IF('DF raw data'!E120="","",'DF raw data'!E120) -> -273.5 | B115: =IF('DF raw data'!F120="","",'DF raw data'!F120) -> -4.08924e-06 | C115: =IF('DF raw data'!G120="","",'DF raw data'!G120) -> 0.000167036 | D115: =IF('DF raw data'!H120="","",'DF raw data'!H120) -> -2.68375e-05 | F115: -4.106414808e-06 | G115: 0.0001677375512 | H115: -2.69502175e-05 | J115: -0.0001721611753 | K115: -0.002405071586 | L115: 0.004557204707 | M115: 0.06146174392 | N115: 0.0001867664833
A116: =IF('DF raw data'!E121="","",'DF raw data'!E121) -> -273 | B116: =IF('DF raw data'!F121="","",'DF raw data'!F121) -> -1.97146e-06 | C116: =IF('DF raw data'!G121="","",'DF raw data'!G121) -> 0.000163375 | D116: =IF('DF raw data'!H121="","",'DF raw data'!H121) -> -3.2458e-05 | F116: -1.979740132e-06 | G116: 0.000164061175 | H116: -3.25943236e-05 | J116: -0.0001731510453 | K116: -0.002491647109 | L116: 0.004639235294 | M116: 0.06378136157 | N116: 0.000197542726
A117: =IF('DF raw data'!E122="","",'DF raw data'!E122) -> -272.5 | B117: =IF('DF raw data'!F122="","",'DF raw data'!F122) -> -3.90135e-06 | C117: =IF('DF raw data'!G122="","",'DF raw data'!G122) -> 0.000163469 | D117: =IF('DF raw data'!H122="","",'DF raw data'!H122) -> -2.04252e-05 | F117: -3.91773567e-06 | G117: 0.0001641555698 | H117: -2.051098584e-05 | J117: -0.0001751099132 | K117: -0.002579202065 | L117: 0.004721313079 | M117: 0.06614201811 | N117: 0.0002087034563
A118: =IF('DF raw data'!E123="","",'DF raw data'!E123) -> -272 | B118: =IF('DF raw data'!F123="","",'DF raw data'!F123) -> -6.40044e-06 | C118: =IF('DF raw data'!G123="","",'DF raw data'!G123) -> 0.000165016 | D118: =IF('DF raw data'!H123="","",'DF raw data'!H123) -> -1.87663e-05 | F118: -6.427321848e-06 | G118: 0.0001657090672 | H118: -1.884511846e-05 | J118: -0.0001783235741 | K118: -0.002668363852 | L118: 0.004804167613 | M118: 0.06854410192 | N118: 0.0002202593692
A119: =IF('DF raw data'!E124="","",'DF raw data'!E124) -> -271.5 | B119: =IF('DF raw data'!F124="","",'DF raw data'!F124) -> 3.53577e-06 | C119: =IF('DF raw data'!G124="","",'DF raw data'!G124) -> 0.00016625 | D119: =IF('DF raw data'!H124="","",'DF raw data'!H124) -> -2.88779e-05 | F119: 3.550620234e-06 | G119: 0.00016694825 | H119: -2.899918718e-05 | J119: -0.000176548264 | K119: -0.002756637984 | L119: 0.004887641738 | M119: 0.07098792279 | N119: 0.0002322194747
A120: =IF('DF raw data'!E125="","",'DF raw data'!E125) -> -271 | B120: =IF('DF raw data'!F125="","",'DF raw data'!F125) -> -1.56867e-05 | C120: =IF('DF raw data'!G125="","",'DF raw data'!G125) -> 0.000165715 | D120: =IF('DF raw data'!H125="","",'DF raw data'!H125) -> -2.255e-05 | F120: -1.575258414e-05 | G120: 0.000166411003 | H120: -2.264471e-05 | J120: -0.000184424556 | K120: -0.002848850262 | L120: 0.004970847239 | M120: 0.07347334641 | N120: 0.0002445911421
A121: =IF('DF raw data'!E126="","",'DF raw data'!E126) -> -270.5 | B121: =IF('DF raw data'!F126="","",'DF raw data'!F126) -> -1.26202e-05 | C121: =IF('DF raw data'!G126="","",'DF raw data'!G126) -> 0.000165518 | D121: =IF('DF raw data'!H126="","",'DF raw data'!H126) -> -1.12666e-05 | F121: -1.267320484e-05 | G121: 0.0001662131756 | H121: -1.131391972e-05 | J121: -0.0001907611585 | K121: -0.002944230842 | L121: 0.005053953827 | M121: 0.07600032332 | N121: 0.0002573805616
A122: =IF('DF raw data'!E127="","",'DF raw data'!E127) -> -270 | B122: =IF('DF raw data'!F127="","",'DF raw data'!F127) -> -4.35516e-06 | C122: =IF('DF raw data'!G127="","",'DF raw data'!G127) -> 0.00016823 | D122: =IF('DF raw data'!H127="","",'DF raw data'!H127) -> -1.1309e-05 | F122: -4.373451672e-06 | G122: 0.000168936566 | H122: -1.13564978e-05 | J122: -0.0001929478843 | K122: -0.003040704784 | L122: 0.00513842211 | M122: 0.07856953437 | N122: 0.0002706008669
A123: =IF('DF raw data'!E128="","",'DF raw data'!E128) -> -269.5 | B123: =IF('DF raw data'!F128="","",'DF raw data'!F128) -> 5.38567e-06 | C123: =IF('DF raw data'!G128="","",'DF raw data'!G128) -> 0.000157146 | D123: =IF('DF raw data'!H128="","",'DF raw data'!H128) -> -1.63724e-05 | F123: 5.408289814e-06 | G123: 0.0001578060132 | H123: -1.644116408e-05 | J123: -0.0001902437394 | K123: -0.003135826654 | L123: 0.005217325117 | M123: 0.08117819693 | N123: 0.000284229204
A124: =IF('DF raw data'!E129="","",'DF raw data'!E129) -> -269 | B124: =IF('DF raw data'!F129="","",'DF raw data'!F129) -> -2.87815e-06 | C124: =IF('DF raw data'!G129="","",'DF raw data'!G129) -> 0.000168843 | D124: =IF('DF raw data'!H129="","",'DF raw data'!H129) -> -1.71969e-05 | F124: -2.89023823e-06 | G124: 0.0001695521406 | H124: -1.726912698e-05 | J124: -0.0001916888585 | K124: -0.003231671083 | L124: 0.005302101187 | M124: 0.08382924753 | N124: 0.0002983037148
A125: =IF('DF raw data'!E130="","",'DF raw data'!E130) -> -268.5 | B125: =IF('DF raw data'!F130="","",'DF raw data'!F130) -> -8.82496e-06 | C125: =IF('DF raw data'!G130="","",'DF raw data'!G130) -> 0.000177024 | D125: =IF('DF raw data'!H130="","",'DF raw data'!H130) -> -3.50208e-05 | F125: -8.862024832e-06 | G125: 0.0001777675008 | H125: -3.516788736e-05 | J125: -0.0001961198709 | K125: -0.003329731018 | L125: 0.005390984937 | M125: 0.08652474 | N125: 0.0003128543056
A126: =IF('DF raw data'!E131="","",'DF raw data'!E131) -> -268 | B126: =IF('DF raw data'!F131="","",'DF raw data'!F131) -> -6.0084e-06 | C126: =IF('DF raw data'!G131="","",'DF raw data'!G131) -> 0.000171302 | D126: =IF('DF raw data'!H131="","",'DF raw data'!H131) -> -3.05717e-05 | F126: -6.03363528e-06 | G126: 0.0001720214684 | H126: -3.070010114e-05 | J126: -0.0001991366886 | K126: -0.003429299363 | L126: 0.005476995672 | M126: 0.08926323783 | N126: 0.0003278728741
A127: =IF('DF raw data'!E132="","",'DF raw data'!E132) -> -267.5 | B127: =IF('DF raw data'!F132="","",'DF raw data'!F132) -> -1.25545e-05 | C127: =IF('DF raw data'!G132="","",'DF raw data'!G132) -> 0.000171818 | D127: =IF('DF raw data'!H132="","",'DF raw data'!H132) -> -1.41434e-05 | F127: -1.26072289e-05 | G127: 0.0001725396356 | H127: -1.420280228e-05 | J127: -0.000205440303 | K127: -0.003532019514 | L127: 0.005563265489 | M127: 0.09204487058 | N127: 0.0003433689384
A128: =IF('DF raw data'!E133="","",'DF raw data'!E133) -> -267 | B128: =IF('DF raw data'!F133="","",'DF raw data'!F133) -> -1.21057e-06 | C128: =IF('DF raw data'!G133="","",'DF raw data'!G133) -> 0.000173652 | D128: =IF('DF raw data'!H133="","",'DF raw data'!H133) -> -2.00045e-05 | F128: =(1-$G$1*($B$49-$G$2))*B128 -> -1.215654394e-06 | G128: 0.0001743813384 | H128: -2.00885189e-05 | J128: =F128*$G$3+J127 -> -0.0002060481302 | K128: =J128*$G$3+K127 -> -0.003635043579 | L128: =G128*$G$3+L127 -> 0.005650456159 | M128: =L128*$G$3+M127 -> 0.09487009866 | N128: =(J128^2+L128^2)*$G$3+N127 -> 0.0003593539937
A129: =IF('DF raw data'!E134="","",'DF raw data'!E134) -> -266.5 | B129: =IF('DF raw data'!F134="","",'DF raw data'!F134) -> -1.38256e-05 | C129: =IF('DF raw data'!G134="","",'DF raw data'!G134) -> 0.000178728 | D129: =IF('DF raw data'!H134="","",'DF raw data'!H134) -> -2.98182e-05 | F129: -1.388366752e-05 | G129: 0.0001794786576 | H129: -2.994343644e-05 | J129: -0.000212989964 | K129: -0.003741538561 | L129: 0.005740195488 | M129: 0.0977401964 | N129: 0.0003758515982
A130: =IF('DF raw data'!E135="","",'DF raw data'!E135) -> -266 | B130: =IF('DF raw data'!F135="","",'DF raw data'!F135) -> -1.49233e-05 | C130: =IF('DF raw data'!G135="","",'DF raw data'!G135) -> 0.000166013 | D130: =IF('DF raw data'!H135="","",'DF raw data'!H135) -> -1.43593e-05 | F130: -1.498597786e-05 | G130: 0.0001667102546 | H130: -1.441960906e-05 | J130: -0.0002204829529 | K130: -0.003851780038 | L130: 0.005823550615 | M130: 0.1006519717 | N130: 0.0003928327754
A131: =IF('DF raw data'!E136="","",'DF raw data'!E136) -> -265.5 | B131: =IF('DF raw data'!F136="","",'DF raw data'!F136) -> 1.3016e-07 | C131: =IF('DF raw data'!G136="","",'DF raw data'!G136) -> 0.000168893 | D131: =IF('DF raw data'!H136="","",'DF raw data'!H136) -> -1.32982e-05 | F131: 1.30706672e-07 | G131: 0.0001696023506 | H131: -1.335405244e-05 | J131: -0.0002204175996 | K131: -0.003961988837 | L131: 0.00590835179 | M131: 0.1036061476 | N131: 0.0004103113778
A132: =IF('DF raw data'!E137="","",'DF raw data'!E137) -> -265 | B132: =IF('DF raw data'!F137="","",'DF raw data'!F137) -> -9.09036e-06 | C132: =IF('DF raw data'!G137="","",'DF raw data'!G137) -> 0.000177282 | D132: =IF('DF raw data'!H137="","",'DF raw data'!H137) -> -1.95432e-05 | F132: -9.128539512e-06 | G132: 0.0001780265844 | H132: -1.962528144e-05 | J132: -0.0002249818693 | K132: -0.004074479772 | L132: 0.005997365082 | M132: 0.1066048301 | N132: 0.0004283208802
A133: =IF('DF raw data'!E138="","",'DF raw data'!E138) -> -264.5 | B133: =IF('DF raw data'!F138="","",'DF raw data'!F138) -> -9.09133e-06 | C133: =IF('DF raw data'!G138="","",'DF raw data'!G138) -> 0.000173548 | D133: =IF('DF raw data'!H138="","",'DF raw data'!H138) -> -1.93544e-05 | F133: -9.129513586e-06 | G133: 0.0001742769016 | H133: -1.943568848e-05 | J133: -0.0002295466261 | K133: -0.004189253085 | L133: 0.006084503533 | M133: 0.1096470819 | N133: 0.0004468578177
A134: =IF('DF raw data'!E139="","",'DF raw data'!E139) -> -264 | B134: =IF('DF raw data'!F139="","",'DF raw data'!F139) -> -2.48862e-06 | C134: =IF('DF raw data'!G139="","",'DF raw data'!G139) -> 0.00016455 | D134: =IF('DF raw data'!H139="","",'DF raw data'!H139) -> -2.51999e-05 | F134: -2.499072204e-06 | G134: 0.00016524111 | H134: -2.530573958e-05 | J134: -0.0002307961622 | K134: -0.004304651166 | L134: 0.006167124088 | M134: 0.112730644 | N134: 0.0004659011609
A135: =IF('DF raw data'!E140="","",'DF raw data'!E140) -> -263.5 | B135: =IF('DF raw data'!F140="","",'DF raw data'!F140) -> -2.29193e-06 | C135: =IF('DF raw data'!G140="","",'DF raw data'!G140) -> 0.000171265 | D135: =IF('DF raw data'!H140="","",'DF raw data'!H140) -> -3.22982e-05 | F135: -2.301556106e-06 | G135: 0.000171984313 | H135: -3.243385244e-05 | J135: -0.0002319469403 | K135: -0.004420624636 | L135: 0.006253116245 | M135: 0.1158572021 | N135: 0.0004854787919
A136: =IF('DF raw data'!E141="","",'DF raw data'!E141) -> -263 | B136: =IF('DF raw data'!F141="","",'DF raw data'!F141) -> -4.28765e-06 | C136: =IF('DF raw data'!G141="","",'DF raw data'!G141) -> 0.000182586 | D136: =IF('DF raw data'!H141="","",'DF raw data'!H141) -> -1.68528e-05 | F136: -4.30565813e-06 | G136: 0.0001833528612 | H136: -1.692358176e-05 | J136: -0.0002340997693 | K136: -0.004537674521 | L136: 0.006344792675 | M136: 0.1190295984 | N136: 0.0005056343903
A137: =IF('DF raw data'!E142="","",'DF raw data'!E142) -> -262.5 | B137: =IF('DF raw data'!F142="","",'DF raw data'!F142) -> 2.56198e-06 | C137: =IF('DF raw data'!G142="","",'DF raw data'!G142) -> 0.000175428 | D137: =IF('DF raw data'!H142="","",'DF raw data'!H142) -> -8.8848e-06 | F137: 2.572740316e-06 | G137: 0.0001761647976 | H137: -8.92211616e-06 | J137: -0.0002328133992 | K137: -0.004654081221 | L137: 0.006432875074 | M137: 0.1222460359 | N137: 0.0005263524322
A138: =IF('DF raw data'!E143="","",'DF raw data'!E143) -> -262 | B138: =IF('DF raw data'!F143="","",'DF raw data'!F143) -> -5.0534e-06 | C138: =IF('DF raw data'!G143="","",'DF raw data'!G143) -> 0.000158172 | D138: =IF('DF raw data'!H143="","",'DF raw data'!H143) -> -2.1386e-05 | F138: -5.07462428e-06 | G138: 0.0001588363224 | H138: -2.14758212e-05 | J138: -0.0002353507113 | K138: -0.004771756576 | L138: 0.006512293235 | M138: 0.1255021826 | N138: 0.0005475851088
A139: =IF('DF raw data'!E144="","",'DF raw data'!E144) -> -261.5 | B139: =IF('DF raw data'!F144="","",'DF raw data'!F144) -> -1.0371e-05 | C139: =IF('DF raw data'!G144="","",'DF raw data'!G144) -> 0.000159182 | D139: =IF('DF raw data'!H144="","",'DF raw data'!H144) -> -2.22895e-05 | F139: -1.04145582e-05 | G139: 0.0001598505644 | H139: -2.23831159e-05 | J139: -0.0002405579904 | K139: -0.004892035571 | L139: 0.006592218517 | M139: 0.1287982918 | N139: 0.0005693427154
A140: =IF('DF raw data'!E145="","",'DF raw data'!E145) -> -261 | B140: =IF('DF raw data'!F145="","",'DF raw data'!F145) -> -6.33633e-07 | C140: =IF('DF raw data'!G145="","",'DF raw data'!G145) -> 0.00016867 | D140: =IF('DF raw data'!H145="","",'DF raw data'!H145) -> -2.08721e-05 | F140: -6.362942586e-07 | G140: 0.000169378414 | H140: -2.095976282e-05 | J140: -0.0002408761375 | K140: -0.00501247364 | L140: 0.006676907724 | M140: 0.1321367457 | N140: 0.0005916622744
A141: =IF('DF raw data'!E146="","",'DF raw data'!E146) -> -260.5 | B141: =IF('DF raw data'!F146="","",'DF raw data'!F146) -> -4.61003e-06 | C141: =IF('DF raw data'!G146="","",'DF raw data'!G146) -> 0.000172762 | D141: =IF('DF raw data'!H146="","",'DF raw data'!H146) -> -1.45019e-05 | F141: -4.629392126e-06 | G141: 0.0001734876004 | H141: -1.456280798e-05 | J141: -0.0002431908336 | K141: -0.005134069057 | L141: 0.006763651525 | M141: 0.1355185715 | N141: 0.0006145653363
A142: =IF('DF raw data'!E147="","",'DF raw data'!E147) -> -260 | B142: =IF('DF raw data'!F147="","",'DF raw data'!F147) -> -7.61982e-06 | C142: =IF('DF raw data'!G147="","",'DF raw data'!G147) -> 0.000171284 | D142: =IF('DF raw data'!H147="","",'DF raw data'!H147) -> -1.54684e-05 | F142: -7.651823244e-06 | G142: 0.0001720033928 | H142: -1.553336728e-05 | J142: -0.0002470167452 | K142: -0.00525757743 | L142: 0.006849653221 | M142: 0.1389433981 | N142: 0.0006380547195
A143: =IF('DF raw data'!E148="","",'DF raw data'!E148) -> -259.5 | B143: =IF('DF raw data'!F148="","",'DF raw data'!F148) -> -6.71468e-06 | C143: =IF('DF raw data'!G148="","",'DF raw data'!G148) -> 0.000162609 | D143: =IF('DF raw data'!H148="","",'DF raw data'!H148) -> -2.88933e-05 | F143: -6.742881656e-06 | G143: 0.0001632919578 | H143: -2.901465186e-05 | J143: -0.0002503881861 | K143: -0.005382771523 | L143: 0.0069312992 | M143: 0.1424090477 | N143: 0.000662107521
A144: =IF('DF raw data'!E149="","",'DF raw data'!E149) -> -259 | B144: =IF('DF raw data'!F149="","",'DF raw data'!F149) -> -2.16608e-06 | C144: =IF('DF raw data'!G149="","",'DF raw data'!G149) -> 0.000174238 | D144: =IF('DF raw data'!H149="","",'DF raw data'!H149) -> -2.84692e-05 | F144: -2.175177536e-06 | G144: 0.0001749697996 | H144: -2.858877064e-05 | J144: -0.0002514757748 | K144: -0.00550850941 | L144: 0.0070187841 | M144: 0.1459184397 | N144: 0.0006867708061
A145: =IF('DF raw data'!E150="","",'DF raw data'!E150) -> -258.5 | B145: =IF('DF raw data'!F150="","",'DF raw data'!F150) -> -1.33832e-05 | C145: =IF('DF raw data'!G150="","",'DF raw data'!G150) -> 0.000177395 | D145: =IF('DF raw data'!H150="","",'DF raw data'!H150) -> -2.05645e-05 | F145: -1.343940944e-05 | G145: 0.000178140059 | H145: -2.06508709e-05 | J145: -0.0002581954795 | K145: -0.00563760715 | L145: 0.007107854129 | M145: 0.1494723668 | N145: 0.0007120649337
A146: =IF('DF raw data'!E151="","",'DF raw data'!E151) -> -258 | B146: =IF('DF raw data'!F151="","",'DF raw data'!F151) -> -1.3504e-05 | C146: =IF('DF raw data'!G151="","",'DF raw data'!G151) -> 0.000170156 | D146: =IF('DF raw data'!H151="","",'DF raw data'!H151) -> -2.98928e-05 | F146: -1.35607168e-05 | G146: 0.0001708706552 | H146: -3.001834976e-05 | J146: -0.0002649758379 | K146: -0.005770095069 | L146: 0.007193289457 | M146: 0.1530690115 | N146: 0.0007379717464
A147: =IF('DF raw data'!E152="","",'DF raw data'!E152) -> -257.5 | B147: =IF('DF raw data'!F152="","",'DF raw data'!F152) -> -8.77035e-06 | C147: =IF('DF raw data'!G152="","",'DF raw data'!G152) -> 0.000171276 | D147: =IF('DF raw data'!H152="","",'DF raw data'!H152) -> -2.06215e-05 | F147: -8.80718547e-06 | G147: 0.0001719953592 | H147: -2.07081103e-05 | J147: -0.0002693794307 | K147: -0.005904784784 | L147: 0.007279287136 | M147: 0.1567086551 | N147: 0.0007645020397
A148: =IF('DF raw data'!E153="","",'DF raw data'!E153) -> -257 | B148: =IF('DF raw data'!F153="","",'DF raw data'!F153) -> -1.68351e-05 | C148: =IF('DF raw data'!G153="","",'DF raw data'!G153) -> 0.000174807 | D148: =IF('DF raw data'!H153="","",'DF raw data'!H153) -> -2.95827e-05 | F148: -1.690580742e-05 | G148: 0.0001755411894 | H148: -2.970694734e-05 | J148: -0.0002778323344 | K148: -0.006043700951 | L148: 0.007367057731 | M148: 0.1603921839 | N148: 0.0007916774049
A149: =IF('DF raw data'!E154="","",'DF raw data'!E154) -> -256.5 | B149: =IF('DF raw data'!F154="","",'DF raw data'!F154) -> -1.05038e-05 | C149: =IF('DF raw data'!G154="","",'DF raw data'!G154) -> 0.000174067 | D149: =IF('DF raw data'!H154="","",'DF raw data'!H154) -> -1.51503e-05 | F149: -1.054791596e-05 | G149: 0.0001747980814 | H149: -1.521393126e-05 | J149: -0.0002831062924 | K149: -0.006185254098 | L149: 0.007454456772 | M149: 0.1641194123 | N149: 0.0008195019423
A150: =IF('DF raw data'!E155="","",'DF raw data'!E155) -> -256 | B150: =IF('DF raw data'!F155="","",'DF raw data'!F155) -> -7.29922e-06 | C150: =IF('DF raw data'!G155="","",'DF raw data'!G155) -> 0.00018384 | D150: =IF('DF raw data'!H155="","",'DF raw data'!H155) -> -1.56619e-05 | F150: -7.329876724e-06 | G150: 0.000184612128 | H150: -1.572767998e-05 | J150: -0.0002867712307 | K150: -0.006328639713 | L150: 0.007546762836 | M150: 0.1678927937 | N150: 0.0008480198759
A151: =IF('DF raw data'!E156="","",'DF raw data'!E156) -> -255.5 | B151: =IF('DF raw data'!F156="","",'DF raw data'!F156) -> -6.58763e-06 | C151: =IF('DF raw data'!G156="","",'DF raw data'!G156) -> 0.000188831 | D151: =IF('DF raw data'!H156="","",'DF raw data'!H156) -> -2.72781e-05 | F151: -6.615298046e-06 | G151: 0.0001896240902 | H151: -2.739266802e-05 | J151: -0.0002900788798 | K151: -0.006473679153 | L151: 0.007641574881 | M151: 0.1717135812 | N151: 0.0008772587821
A152: =IF('DF raw data'!E157="","",'DF raw data'!E157) -> -255 | B152: =IF('DF raw data'!F157="","",'DF raw data'!F157) -> 7.05566e-07 | C152: =IF('DF raw data'!G157="","",'DF raw data'!G157) -> 0.000186483 | D152: =IF('DF raw data'!H157="","",'DF raw data'!H157) -> -1.14101e-05 | F152: 7.085293772e-07 | G152: 0.0001872662286 | H152: -1.145802242e-05 | J152: -0.0002897246151 | K152: -0.00661854146 | L152: 0.007735207995 | M152: 0.1755811852 | N152: 0.0009072174736
A153: =IF('DF raw data'!E158="","",'DF raw data'!E158) -> -254.5 | B153: =IF('DF raw data'!F158="","",'DF raw data'!F158) -> -3.32982e-06 | C153: =IF('DF raw data'!G158="","",'DF raw data'!G158) -> 0.000183046 | D153: =IF('DF raw data'!H158="","",'DF raw data'!H158) -> -1.25077e-05 | F153: -3.343805244e-06 | G153: 0.0001838147932 | H153: -1.256023234e-05 | J153: -0.0002913965177 | K153: -0.006764239719 | L153: 0.007827115392 | M153: 0.1794947429 | N153: 0.0009378917973
A154: =IF('DF raw data'!E159="","",'DF raw data'!E159) -> -254 | B154: =IF('DF raw data'!F159="","",'DF raw data'!F159) -> 4.94366e-06 | C154: =IF('DF raw data'!G159="","",'DF raw data'!G159) -> 0.000193594 | D154: =IF('DF raw data'!H159="","",'DF raw data'!H159) -> -2.69459e-05 | F154: 4.964423372e-06 | G154: 0.0001944070948 | H154: -2.705907278e-05 | J154: -0.000288914306 | K154: -0.006908696872 | L154: 0.007924318939 | M154: 0.1834569023 | N154: 0.0009693309483
A155: =IF('DF raw data'!E160="","",'DF raw data'!E160) -> -253.5 | B155: =IF('DF raw data'!F160="","",'DF raw data'!F160) -> -1.13257e-05 | C155: =IF('DF raw data'!G160="","",'DF raw data'!G160) -> 0.000187901 | D155: =IF('DF raw data'!H160="","",'DF raw data'!H160) -> -3.19054e-05 | F155: -1.137326794e-05 | G155: 0.0001886901842 | H155: -3.203940268e-05 | J155: -0.00029460094 | K155: -0.007055997342 | L155: 0.008018664031 | M155: 0.1874662344 | N155: 0.00100152383
A156: =IF('DF raw data'!E161="","",'DF raw data'!E161) -> -253 | B156: =IF('DF raw data'!F161="","",'DF raw data'!F161) -> -1.36919e-05 | C156: =IF('DF raw data'!G161="","",'DF raw data'!G161) -> 0.000180401 | D156: =IF('DF raw data'!H161="","",'DF raw data'!H161) -> -3.61284e-05 | F156: -1.374940598e-05 | G156: 0.0001811586842 | H156: -3.628013928e-05 | J156: -0.000301475643 | K156: -0.007206735164 | L156: 0.008109243373 | M156: 0.191520856 | N156: 0.001034449187
A157: =IF('DF raw data'!E162="","",'DF raw data'!E162) -> -252.5 | B157: =IF('DF raw data'!F162="","",'DF raw data'!F162) -> -5.94888e-06 | C157: =IF('DF raw data'!G162="","",'DF raw data'!G162) -> 0.000191517 | D157: =IF('DF raw data'!H162="","",'DF raw data'!H162) -> -2.44015e-05 | F157: -5.973865296e-06 | G157: 0.0001923213714 | H157: -2.45039863e-05 | J157: -0.0003044625756 | K157: -0.007358966451 | L157: 0.008205404059 | M157: 0.1956235581 | N157: 0.001068159864
A158: =IF('DF raw data'!E163="","",'DF raw data'!E163) -> -252 | B158: =IF('DF raw data'!F163="","",'DF raw data'!F163) -> -1.06314e-05 | C158: =IF('DF raw data'!G163="","",'DF raw data'!G163) -> 0.000188187 | D158: =IF('DF raw data'!H163="","",'DF raw data'!H163) -> -1.41737e-05 | F158: -1.067605188e-05 | G158: 0.0001889773854 | H158: -1.423322954e-05 | J158: -0.0003098006016 | K158: -0.007513866752 | L158: 0.008299892752 | M158: 0.1997735045 | N158: 0.001102651962
A159: =IF('DF raw data'!E164="","",'DF raw data'!E164) -> -251.5 | B159: =IF('DF raw data'!F164="","",'DF raw data'!F164) -> -1.86297e-05 | C159: =IF('DF raw data'!G164="","",'DF raw data'!G164) -> 0.00018337 | D159: =IF('DF raw data'!H164="","",'DF raw data'!H164) -> -3.1714e-05 | F159: -1.870794474e-05 | G159: 0.000184140154 | H159: -3.18471988e-05 | J159: -0.0003191545739 | K159: -0.007673444039 | L159: 0.008391962829 | M159: 0.2039694859 | N159: 0.001137915412
A160: =IF('DF raw data'!E165="","",'DF raw data'!E165) -> -251 | B160: =IF('DF raw data'!F165="","",'DF raw data'!F165) -> -4.73635e-06 | C160: =IF('DF raw data'!G165="","",'DF raw data'!G165) -> 0.000176705 | D160: =IF('DF raw data'!H165="","",'DF raw data'!H165) -> -1.65166e-05 | F160: -4.75624267e-06 | G160: 0.000177447161 | H160: -1.658596972e-05 | J160: -0.0003215326953 | K160: -0.007834210387 | L160: 0.008480686409 | M160: 0.2082098291 | N160: 0.001173928125
A161: =IF('DF raw data'!E166="","",'DF raw data'!E166) -> -250.5 | B161: =IF('DF raw data'!F166="","",'DF raw data'!F166) -> -1.85042e-05 | C161: =IF('DF raw data'!G166="","",'DF raw data'!G166) -> 0.000179845 | D161: =IF('DF raw data'!H166="","",'DF raw data'!H166) -> -2.71779e-05 | F161: -1.858191764e-05 | G161: 0.000180600349 | H161: -2.729204718e-05 | J161: -0.0003308236541 | K161: -0.007999622214 | L161: 0.008570986584 | M161: 0.2124953224 | N161: 0.001210713752
A162: =IF('DF raw data'!E167="","",'DF raw data'!E167) -> -250 | B162: =IF('DF raw data'!F167="","",'DF raw data'!F167) -> -9.80116e-06 | C162: =IF('DF raw data'!G167="","",'DF raw data'!G167) -> 0.000173675 | D162: =IF('DF raw data'!H167="","",'DF raw data'!H167) -> -1.00531e-05 | F162: -9.842324872e-06 | G162: 0.000174404435 | H162: -1.009532302e-05 | J162: -0.0003357448165 | K162: -0.008167494622 | L162: 0.008658188801 | M162: 0.2168244168 | N162: 0.001248252231
A163: =IF('DF raw data'!E168="","",'DF raw data'!E168) -> -249.5 | B163: =IF('DF raw data'!F168="","",'DF raw data'!F168) -> -6.35647e-07 | C163: =IF('DF raw data'!G168="","",'DF raw data'!G168) -> 0.000165707 | D163: =IF('DF raw data'!H168="","",'DF raw data'!H168) -> -1.78682e-05 | F163: -6.383167174e-07 | G163: 0.0001664029694 | H163: -1.794324644e-05 | J163: -0.0003360639749 | K163: -0.00833552661 | L163: 0.008741390286 | M163: 0.2211951119 | N163: 0.001286514653
A164: =IF('DF raw data'!E169="","",'DF raw data'!E169) -> -249 | B164: =IF('DF raw data'!F169="","",'DF raw data'!F169) -> 2.50612e-06 | C164: =IF('DF raw data'!G169="","",'DF raw data'!G169) -> 0.000174883 | D164: =IF('DF raw data'!H169="","",'DF raw data'!H169) -> -2.21547e-05 | F164: 2.516645704e-06 | G164: 0.0001756175086 | H164: -2.224774974e-05 | J164: -0.000334805652 | K164: -0.008502929436 | L164: 0.00882919904 | M164: 0.2256097114 | N164: 0.001325548078
A165: =IF('DF raw data'!E170="","",'DF raw data'!E170) -> -248.5 | B165: =IF('DF raw data'!F170="","",'DF raw data'!F170) -> -9.53509e-07 | C165: =IF('DF raw data'!G170="","",'DF raw data'!G170) -> 0.000173605 | D165: =IF('DF raw data'!H170="","",'DF raw data'!H170) -> -2.14544e-05 | F165: -9.575137378e-07 | G165: 0.000174334141 | H165: -2.154450848e-05 | J165: -0.0003352844089 | K165: -0.00867057164 | L165: 0.008916366111 | M165: 0.2300678945 | N165: 0.001365355078
A166: =IF('DF raw data'!E171="","",'DF raw data'!E171) -> -248 | B166: =IF('DF raw data'!F171="","",'DF raw data'!F171) -> 2.50434e-06 | C166: =IF('DF raw data'!G171="","",'DF raw data'!G171) -> 0.000178473 | D166: =IF('DF raw data'!H171="","",'DF raw data'!H171) -> -1.93922e-05 | F166: 2.514858228e-06 | G166: 0.0001792225866 | H166: -1.947364724e-05 | J166: -0.0003340269798 | K166: -0.00883758513 | L166: 0.009005977404 | M166: 0.2345708832 | N166: 0.00140596468
A167: =IF('DF raw data'!E172="","",'DF raw data'!E172) -> -247.5 | B167: =IF('DF raw data'!F172="","",'DF raw data'!F172) -> -1.2689e-05 | C167: =IF('DF raw data'!G172="","",'DF raw data'!G172) -> 0.000173652 | D167: =IF('DF raw data'!H172="","",'DF raw data'!H172) -> -4.37254e-06 | F167: -1.27422938e-05 | G167: 0.0001743813384 | H167: -4.390904668e-06 | J167: -0.0003403981267 | K167: -0.009007784193 | L167: 0.009093168073 | M167: 0.2391174672 | N167: 0.001447365468
A168: =IF('DF raw data'!E173="","",'DF raw data'!E173) -> -247 | B168: =IF('DF raw data'!F173="","",'DF raw data'!F173) -> -2.35643e-05 | C168: =IF('DF raw data'!G173="","",'DF raw data'!G173) -> 0.000172858 | D168: =IF('DF raw data'!H173="","",'DF raw data'!H173) -> -2.51088e-05 | F168: -2.366327006e-05 | G168: 0.0001735840036 | H168: -2.521425696e-05 | J168: -0.0003522297617 | K168: -0.009183899074 | L168: 0.009179960075 | M168: 0.2437074473 | N168: 0.001489563334
A169: =IF('DF raw data'!E174="","",'DF raw data'!E174) -> -246.5 | B169: =IF('DF raw data'!F174="","",'DF raw data'!F174) -> -9.5455e-06 | C169: =IF('DF raw data'!G174="","",'DF raw data'!G174) -> 0.000167763 | D169: =IF('DF raw data'!H174="","",'DF raw data'!H174) -> -1.08804e-05 | F169: -9.5855911e-06 | G169: 0.0001684676046 | H169: -1.092609768e-05 | J169: -0.0003570225573 | K169: -0.009362410353 | L169: 0.009264193877 | M169: 0.2483395442 | N169: 0.001532539711
A170: =IF('DF raw data'!E175="","",'DF raw data'!E175) -> -246 | B170: =IF('DF raw data'!F175="","",'DF raw data'!F175) -> -1.12083e-05 | C170: =IF('DF raw data'!G175="","",'DF raw data'!G175) -> 0.000166603 | D170: =IF('DF raw data'!H175="","",'DF raw data'!H175) -> -1.34092e-05 | F170: -1.125537486e-05 | G170: 0.0001673027326 | H170: -1.346551864e-05 | J170: -0.0003626502447 | K170: -0.009543735475 | L170: 0.009347845244 | M170: 0.2530134668 | N170: 0.001576296574
A171: =IF('DF raw data'!E176="","",'DF raw data'!E176) -> -245.5 | B171: =IF('DF raw data'!F176="","",'DF raw data'!F176) -> -1.40233e-06 | C171: =IF('DF raw data'!G176="","",'DF raw data'!G176) -> 0.000153564 | D171: =IF('DF raw data'!H176="","",'DF raw data'!H176) -> -2.10819e-05 | F171: -1.408219786e-06 | G171: 0.0001542089688 | H171: -2.117044398e-05 | J171: -0.0003633543546 | K171: -0.009725412652 | L171: 0.009424949728 | M171: 0.2577259417 | N171: 0.001620777426
A172: =IF('DF raw data'!E177="","",'DF raw data'!E177) -> -245 | B172: =IF('DF raw data'!F177="","",'DF raw data'!F177) -> -1.25989e-06 | C172: =IF('DF raw data'!G177="","",'DF raw data'!G177) -> 0.000156428 | D172: =IF('DF raw data'!H177="","",'DF raw data'!H177) -> -4.29262e-05 | F172: -1.265181538e-06 | G172: 0.0001570849976 | H172: -4.310649004e-05 | J172: -0.0003639869453 | K172: -0.009907406125 | L172: 0.009503492227 | M172: 0.2624776878 | N172: 0.001666001851
A173: =IF('DF raw data'!E178="","",'DF raw data'!E178) -> -244.5 | B173: =IF('DF raw data'!F178="","",'DF raw data'!F178) -> -1.21599e-05 | C173: =IF('DF raw data'!G178="","",'DF raw data'!G178) -> 0.000168985 | D173: =IF('DF raw data'!H178="","",'DF raw data'!H178) -> -2.99313e-05 | F173: -1.221097158e-05 | G173: 0.000169694737 | H173: -3.005701146e-05 | J173: -0.0003700924311 | K173: -0.01009245234 | L173: 0.009588339595 | M173: 0.2672718576 | N173: 0.001712038464
A174: =IF('DF raw data'!E179="","",'DF raw data'!E179) -> -244 | B174: =IF('DF raw data'!F179="","",'DF raw data'!F179) -> -4.28581e-06 | C174: =IF('DF raw data'!G179="","",'DF raw data'!G179) -> 0.000161797 | D174: =IF('DF raw data'!H179="","",'DF raw data'!H179) -> -1.96093e-05 | F174: -4.303810402e-06 | G174: 0.0001624765474 | H174: -1.969165906e-05 | J174: -0.0003722443363 | K174: -0.01027857451 | L174: 0.009669577869 | M174: 0.2721066465 | N174: 0.001758858115
A175: =IF('DF raw data'!E180="","",'DF raw data'!E180) -> -243.5 | B175: =IF('DF raw data'!F180="","",'DF raw data'!F180) -> -1.3958e-05 | C175: =IF('DF raw data'!G180="","",'DF raw data'!G180) -> 0.000168579 | D175: =IF('DF raw data'!H180="","",'DF raw data'!H180) -> -2.33813e-05 | F175: -1.40166236e-05 | G175: 0.0001692870318 | H175: -2.347950146e-05 | J175: -0.0003792526481 | K175: -0.01046820083 | L175: 0.009754221385 | M175: 0.2769837572 | N175: 0.001806502448
A176: =IF('DF raw data'!E181="","",'DF raw data'!E181) -> -243 | B176: =IF('DF raw data'!F181="","",'DF raw data'!F181) -> -5.43648e-06 | C176: =IF('DF raw data'!G181="","",'DF raw data'!G181) -> 0.000176028 | D176: =IF('DF raw data'!H181="","",'DF raw data'!H181) -> -2.32598e-05 | F176: -5.459313216e-06 | G176: 0.0001767673176 | H176: -2.335749116e-05 | J176: -0.0003819823047 | K176: -0.01065919199 | L176: 0.009842605044 | M176: 0.2819050597 | N176: 0.001855013841
A177: =IF('DF raw data'!E182="","",'DF raw data'!E182) -> -242.5 | B177: =IF('DF raw data'!F182="","",'DF raw data'!F182) -> -1.21598e-05 | C177: =IF('DF raw data'!G182="","",'DF raw data'!G182) -> 0.000176281 | D177: =IF('DF raw data'!H182="","",'DF raw data'!H182) -> -3.01282e-05 | F177: -1.221087116e-05 | G177: 0.0001770213802 | H177: -3.025473844e-05 | J177: -0.0003880877403 | K177: -0.01085323586 | L177: 0.009931115734 | M177: 0.2868706176 | N177: 0.001904402676
A178: =IF('DF raw data'!E183="","",'DF raw data'!E183) -> -242 | B178: =IF('DF raw data'!F183="","",'DF raw data'!F183) -> -1.29927e-05 | C178: =IF('DF raw data'!G183="","",'DF raw data'!G183) -> 0.000175234 | D178: =IF('DF raw data'!H183="","",'DF raw data'!H183) -> -2.80211e-05 | F178: -1.304726934e-05 | G178: 0.0001759699828 | H178: -2.813878862e-05 | J178: -0.000394611375 | K178: -0.01105054154 | L178: 0.01001910073 | M178: 0.291880168 | N178: 0.001954671725
A179: =IF('DF raw data'!E184="","",'DF raw data'!E184) -> -241.5 | B179: =IF('DF raw data'!F184="","",'DF raw data'!F184) -> -4.34814e-06 | C179: =IF('DF raw data'!G184="","",'DF raw data'!G184) -> 0.000177253 | D179: =IF('DF raw data'!H184="","",'DF raw data'!H184) -> -2.2831e-05 | F179: -4.366402188e-06 | G179: 0.0001779974626 | H179: -2.29268902e-05 | J179: -0.0003967945761 | K179: -0.01124893883 | L179: 0.01010809946 | M179: 0.2969342177 | N179: 0.002005837285
A180: =IF('DF raw data'!E185="","",'DF raw data'!E185) -> -241 | B180: =IF('DF raw data'!F185="","",'DF raw data'!F185) -> -8.38573e-06 | C180: =IF('DF raw data'!G185="","",'DF raw data'!G185) -> 0.000176998 | D180: =IF('DF raw data'!H185="","",'DF raw data'!H185) -> -1.9681e-05 | F180: -8.420950066e-06 | G180: 0.0001777413916 | H180: -1.97636602e-05 | J180: -0.0004010050511 | K180: -0.01144944136 | L180: 0.01019697015 | M180: 0.3020327028 | N180: 0.002057906788
A181: =IF('DF raw data'!E186="","",'DF raw data'!E186) -> -240.5 | B181: =IF('DF raw data'!F186="","",'DF raw data'!F186) -> -2.54921e-06 | C181: =IF('DF raw data'!G186="","",'DF raw data'!G186) -> 0.000173994 | D181: =IF('DF raw data'!H186="","",'DF raw data'!H186) -> -3.07396e-05 | F181: -2.559916682e-06 | G181: 0.0001747247748 | H181: -3.086870632e-05 | J181: -0.0004022850095 | K181: -0.01165058386 | L181: 0.01028433254 | M181: 0.307174869 | N181: 0.002110871453
A182: =IF('DF raw data'!E187="","",'DF raw data'!E187) -> -240 | B182: =IF('DF raw data'!F187="","",'DF raw data'!F187) -> -5.64427e-08 | C182: =IF('DF raw data'!G187="","",'DF raw data'!G187) -> 0.000176171 | D182: =IF('DF raw data'!H187="","",'DF raw data'!H187) -> -2.17016e-05 | F182: -5.667975934e-08 | G182: 0.0001769109182 | H182: -2.179274672e-05 | J182: -0.0004023133493 | K182: -0.01185174054 | L182: 0.010372788 | M182: 0.312361263 | N182: 0.002164749746
A183: =IF('DF raw data'!E188="","",'DF raw data'!E188) -> -239.5 | B183: =IF('DF raw data'!F188="","",'DF raw data'!F188) -> -1.71515e-05 | C183: =IF('DF raw data'!G188="","",'DF raw data'!G188) -> 0.000180985 | D183: =IF('DF raw data'!H188="","",'DF raw data'!H188) -> -3.84854e-05 | F183: -1.72235363e-05 | G183: 0.000181745137 | H183: -3.864703868e-05 | J183: -0.0004109251175 | K183: -0.01205720309 | L183: 0.01046366057 | M183: 0.3175930933 | N183: 0.002219578272
A184: =IF('DF raw data'!E189="","",'DF raw data'!E189) -> -239 | B184: =IF('DF raw data'!F189="","",'DF raw data'!F189) -> 9.17222e-06 | C184: =IF('DF raw data'!G189="","",'DF raw data'!G189) -> 0.000181883 | D184: =IF('DF raw data'!H189="","",'DF raw data'!H189) -> -2.80881e-05 | F184: 9.210743324e-06 | G184: 0.0001826469086 | H184: -2.820607002e-05 | J184: -0.0004063197458 | K184: -0.01226036297 | L184: 0.01055498402 | M184: 0.3228705853 | N184: 0.002275364664
A185: =IF('DF raw data'!E190="","",'DF raw data'!E190) -> -238.5 | B185: =IF('DF raw data'!F190="","",'DF raw data'!F190) -> -1.4982e-05 | C185: =IF('DF raw data'!G190="","",'DF raw data'!G190) -> 0.000178003 | D185: =IF('DF raw data'!H190="","",'DF raw data'!H190) -> -2.46849e-05 | F185: -1.50449244e-05 | G185: 0.0001787506126 | H185: -2.478857658e-05 | J185: -0.000413842208 | K185: -0.01246728407 | L185: 0.01064435933 | M185: 0.328192765 | N185: 0.002332101489
A186: =IF('DF raw data'!E191="","",'DF raw data'!E191) -> -238 | B186: =IF('DF raw data'!F191="","",'DF raw data'!F191) -> -6.90534e-06 | C186: =IF('DF raw data'!G191="","",'DF raw data'!G191) -> 0.000170338 | D186: =IF('DF raw data'!H191="","",'DF raw data'!H191) -> -3.04247e-05 | F186: -6.934342428e-06 | G186: 0.0001710534196 | H186: -3.055248374e-05 | J186: -0.0004173093792 | K186: -0.01267593876 | L186: 0.01072988604 | M186: 0.333557708 | N186: 0.00238975379
A187: =IF('DF raw data'!E192="","",'DF raw data'!E192) -> -237.5 | B187: =IF('DF raw data'!F192="","",'DF raw data'!F192) -> -1.10774e-05 | C187: =IF('DF raw data'!G192="","",'DF raw data'!G192) -> 0.000161044 | D187: =IF('DF raw data'!H192="","",'DF raw data'!H192) -> -1.94126e-05 | F187: -1.112392508e-05 | G187: 0.0001617203848 | H187: -1.949413292e-05 | J187: -0.0004228713418 | K187: -0.01288737443 | L187: 0.01081074623 | M187: 0.3389630811 | N187: 0.002448279317
A188: =IF('DF raw data'!E193="","",'DF raw data'!E193) -> -237 | B188: =IF('DF raw data'!F193="","",'DF raw data'!F193) -> -3.39056e-06 | C188: =IF('DF raw data'!G193="","",'DF raw data'!G193) -> 0.000177579 | D188: =IF('DF raw data'!H193="","",'DF raw data'!H193) -> -1.72824e-05 | F188: -3.404800352e-06 | G188: 0.0001783248318 | H188: -1.735498608e-05 | J188: -0.000424573742 | K188: -0.0130996613 | L188: 0.01089990865 | M188: 0.3444130355 | N188: 0.002507773453
A189: =IF('DF raw data'!E194="","",'DF raw data'!E194) -> -236.5 | B189: =IF('DF raw data'!F194="","",'DF raw data'!F194) -> -6.71511e-06 | C189: =IF('DF raw data'!G194="","",'DF raw data'!G194) -> 0.000178026 | D189: =IF('DF raw data'!H194="","",'DF raw data'!H194) -> -2.82501e-05 | F189: -6.743313462e-06 | G189: 0.0001787737092 | H189: -2.836875042e-05 | J189: -0.0004279453987 | K189: -0.013313634 | L189: 0.0109892955 | M189: 0.3499076832 | N189: 0.002568247329
A190: =IF('DF raw data'!E195="","",'DF raw data'!E195) -> -236 | B190: =IF('DF raw data'!F195="","",'DF raw data'!F195) -> 8.44591e-07 | C190: =IF('DF raw data'!G195="","",'DF raw data'!G195) -> 0.000173564 | D190: =IF('DF raw data'!H195="","",'DF raw data'!H195) -> -2.82245e-05 | F190: 8.481382822e-07 | G190: 0.0001742929688 | H190: -2.83430429e-05 | J190: -0.0004275213296 | K190: -0.01352739467 | L190: 0.01107644199 | M190: 0.3554459042 | N190: 0.0026296825
A191: =IF('DF raw data'!E196="","",'DF raw data'!E196) -> -235.5 | B191: =IF('DF raw data'!F196="","",'DF raw data'!F196) -> -1.2611e-05 | C191: =IF('DF raw data'!G196="","",'DF raw data'!G196) -> 0.00017619 | D191: =IF('DF raw data'!H196="","",'DF raw data'!H196) -> -2.54877e-05 | F191: -1.26639662e-05 | G191: 0.000176929998 | H191: -2.559474834e-05 | J191: -0.0004338533127 | K191: -0.01374432132 | L191: 0.01116490698 | M191: 0.3610283577 | N191: 0.002692104188
A192: =IF('DF raw data'!E197="","",'DF raw data'!E197) -> -235 | B192: =IF('DF raw data'!F197="","",'DF raw data'!F197) -> 1.54387e-06 | C192: =IF('DF raw data'!G197="","",'DF raw data'!G197) -> 0.000183958 | D192: =IF('DF raw data'!H197="","",'DF raw data'!H197) -> -1.97582e-05 | F192: =(1-$G$1*($B$49-$G$2))*B192 -> 1.550354254e-06 | G192: 0.0001847306236 | H192: -1.984118444e-05 | J192: =F192*$G$3+J191 -> -0.0004330781355 | K192: =J192*$G$3+K191 -> -0.01396086039 | L192: =G192*$G$3+L191 -> 0.0112572723 | M192: =L192*$G$3+M191 -> 0.3666569938 | N192: =(J192^2+L192^2)*$G$3+N191 -> 0.002755561056
A193: =IF('DF raw data'!E198="","",'DF raw data'!E198) -> -234.5 | B193: =IF('DF raw data'!F198="","",'DF raw data'!F198) -> 1.10006e-06 | C193: =IF('DF raw data'!G198="","",'DF raw data'!G198) -> 0.000180111 | D193: =IF('DF raw data'!H198="","",'DF raw data'!H198) -> -2.68949e-05 | F193: 1.104680252e-06 | G193: 0.0001808674662 | H193: -2.700785858e-05 | J193: -0.0004325257954 | K193: -0.01417712329 | L193: 0.01134770603 | M193: 0.3723308469 | N193: 0.002820039812
A194: =IF('DF raw data'!E199="","",'DF raw data'!E199) -> -234 | B194: =IF('DF raw data'!F199="","",'DF raw data'!F199) -> 5.0733e-06 | C194: =IF('DF raw data'!G199="","",'DF raw data'!G199) -> 0.000181251 | D194: =IF('DF raw data'!H199="","",'DF raw data'!H199) -> -2.92378e-05 | F194: 5.09460786e-06 | G194: 0.0001820122542 | H194: -2.936059876e-05 | J194: -0.0004299784915 | K194: -0.01439211253 | L194: 0.01143871216 | M194: 0.3780502029 | N194: 0.00288555432
A195: =IF('DF raw data'!E200="","",'DF raw data'!E200) -> -233.5 | B195: =IF('DF raw data'!F200="","",'DF raw data'!F200) -> -6.90869e-06 | C195: =IF('DF raw data'!G200="","",'DF raw data'!G200) -> 0.00018389 | D195: =IF('DF raw data'!H200="","",'DF raw data'!H200) -> -2.62944e-05 | F195: -6.937706498e-06 | G195: 0.000184662338 | H195: -2.640483648e-05 | J195: -0.0004334473447 | K195: -0.01460883621 | L195: 0.01153104333 | M195: 0.3838157246 | N195: 0.002952130739
A196: =IF('DF raw data'!E201="","",'DF raw data'!E201) -> -233 | B196: =IF('DF raw data'!F201="","",'DF raw data'!F201) -> 3.39619e-06 | C196: =IF('DF raw data'!G201="","",'DF raw data'!G201) -> 0.000184844 | D196: =IF('DF raw data'!H201="","",'DF raw data'!H201) -> -1.1733e-05 | F196: 3.410453998e-06 | G196: 0.0001856203448 | H196: -1.17822786e-05 | J196: -0.0004317421177 | K196: -0.01482470727 | L196: 0.0116238535 | M196: 0.3896276513 | N196: 0.003019780924
A197: =IF('DF raw data'!E202="","",'DF raw data'!E202) -> -232.5 | B197: =IF('DF raw data'!F202="","",'DF raw data'!F202) -> -4.87286e-06 | C197: =IF('DF raw data'!G202="","",'DF raw data'!G202) -> 0.000181739 | D197: =IF('DF raw data'!H202="","",'DF raw data'!H202) -> -4.3949e-06 | F197: -4.893326012e-06 | G197: 0.0001825023038 | H197: -4.41335858e-06 | J197: -0.0004341887807 | K197: -0.01504180166 | L197: 0.01171510465 | M197: 0.3954852037 | N197: 0.003088497023
A198: =IF('DF raw data'!E203="","",'DF raw data'!E203) -> -232 | B198: =IF('DF raw data'!F203="","",'DF raw data'!F203) -> -1.71627e-06 | C198: =IF('DF raw data'!G203="","",'DF raw data'!G203) -> 0.00018175 | D198: =IF('DF raw data'!H203="","",'DF raw data'!H203) -> -3.04326e-05 | F198: -1.723478334e-06 | G198: 0.00018251335 | H198: -3.056041692e-05 | J198: -0.0004350505199 | K198: -0.01525932692 | L198: 0.01180636132 | M198: 0.4013883843 | N198: 0.003158286741
A199: =IF('DF raw data'!E204="","",'DF raw data'!E204) -> -231.5 | B199: =IF('DF raw data'!F204="","",'DF raw data'!F204) -> -1.01072e-05 | C199: =IF('DF raw data'!G204="","",'DF raw data'!G204) -> 0.000179704 | D199: =IF('DF raw data'!H204="","",'DF raw data'!H204) -> -3.34246e-05 | F199: -1.014965024e-05 | G199: 0.0001804587568 | H199: -3.356498332e-05 | J199: -0.000440125345 | K199: -0.01547938959 | L199: 0.0118965907 | M199: 0.4073366797 | N199: 0.003229148032
A200: =IF('DF raw data'!E205="","",'DF raw data'!E205) -> -231 | B200: =IF('DF raw data'!F205="","",'DF raw data'!F205) -> -5.04791e-06 | C200: =IF('DF raw data'!G205="","",'DF raw data'!G205) -> 0.000172134 | D200: =IF('DF raw data'!H205="","",'DF raw data'!H205) -> -2.9846e-05 | F200: -5.069111222e-06 | G200: 0.0001728569628 | H200: -2.99713532e-05 | J200: -0.0004426599006 | K200: -0.01570071954 | L200: 0.01198301918 | M200: 0.4133281893 | N200: 0.00330104238
A201: =IF('DF raw data'!E206="","",'DF raw data'!E206) -> -230.5 | B201: =IF('DF raw data'!F206="","",'DF raw data'!F206) -> -1.51773e-05 | C201: =IF('DF raw data'!G206="","",'DF raw data'!G206) -> 0.000163523 | D201: =IF('DF raw data'!H206="","",'DF raw data'!H206) -> -2.00859e-05 | F201: -1.524104466e-05 | G201: 0.0001642097966 | H201: -2.017026078e-05 | J201: -0.000450280423 | K201: -0.01592585975 | L201: 0.01206512408 | M201: 0.4193607513 | N201: 0.003373927366
... 1061 more rows

Sheet 10 x=0
A1: =IF('DF raw data'!I1="","",'DF raw data'!I1) -> Number of header lines | B1: =IF('DF raw data'!J1="","",'DF raw data'!J1) -> 54 | C1: =IF('DF raw data'!K1="","",'DF raw data'!K1) ->  | D1: =IF('DF raw data'!L1="","",'DF raw data'!L1) ->  | F1: T_coeff | G1: -0.001 | H1: /degC | J1: IBy total | K1: =J1262*1000 -> 13.68603456 | L1: muTm | M1: =L1262*1000 -> 105.7437172 | R1: DF ref | S1: ='10 x=-2'!S1 -> 1
A2: =IF('DF raw data'!I2="","",'DF raw data'!I2) -> Measured by | B2: =IF('DF raw data'!J2="","",'DF raw data'!J2) -> Danfysik | C2: =IF('DF raw data'!K2="","",'DF raw data'!K2) ->  | D2: =IF('DF raw data'!L2="","",'DF raw data'!L2) ->  | F2: Tcorr | G2: 20 | H2: degC | J2: JBy total | K2: =K1262 -> 6.0230317 | L2: muTm^2 | M2: =M1262 -> 36.30740936
A3: =IF('DF raw data'!I3="","",'DF raw data'!I3) -> Operator | B3: =IF('DF raw data'!J3="","",'DF raw data'!J3) -> PMHA | C3: =IF('DF raw data'!K3="","",'DF raw data'!K3) ->  | D3: =IF('DF raw data'!L3="","",'DF raw data'!L3) ->  | F3: Step | G3: =A63-A62 -> 0.5 | H3: mm | J3: PI total | K3: =N1262 -> 10709.62764 | L3: T^2mm^3
A4: =IF('DF raw data'!I4="","",'DF raw data'!I4) -> Data-time | B4: =IF('DF raw data'!J4="","",'DF raw data'!J4) -> 30-09-2024, 22:04:33 | C4: =IF('DF raw data'!K4="","",'DF raw data'!K4) ->  | D4: =IF('DF raw data'!L4="","",'DF raw data'!L4) -> 
A5: =IF('DF raw data'!I5="","",'DF raw data'!I5) -> Project | B5: =IF('DF raw data'!J5="","",'DF raw data'!J5) -> 504314 | C5: =IF('DF raw data'!K5="","",'DF raw data'!K5) ->  | D5: =IF('DF raw data'!L5="","",'DF raw data'!L5) -> 
A6: =IF('DF raw data'!I6="","",'DF raw data'!I6) -> Magnet type | B6: =IF('DF raw data'!J6="","",'DF raw data'!J6) -> Dipole | C6: =IF('DF raw data'!K6="","",'DF raw data'!K6) ->  | D6: =IF('DF raw data'!L6="","",'DF raw data'!L6) -> 
A7: =IF('DF raw data'!I7="","",'DF raw data'!I7) -> Magnet nr. | B7: =IF('DF raw data'!J7="","",'DF raw data'!J7) -> 2410106 | C7: =IF('DF raw data'!K7="","",'DF raw data'!K7) ->  | D7: =IF('DF raw data'!L7="","",'DF raw data'!L7) -> 
A8: =IF('DF raw data'!I8="","",'DF raw data'!I8) -> Meas. number | B8: =IF('DF raw data'!J8="","",'DF raw data'!J8) -> 857 | C8: =IF('DF raw data'!K8="","",'DF raw data'!K8) ->  | D8: =IF('DF raw data'!L8="","",'DF raw data'!L8) -> 
A9: =IF('DF raw data'!I9="","",'DF raw data'!I9) -> Add. info | B9: =IF('DF raw data'!J9="","",'DF raw data'!J9) -> X-alignment scan 3) | C9: =IF('DF raw data'!K9="","",'DF raw data'!K9) ->  | D9: =IF('DF raw data'!L9="","",'DF raw data'!L9) -> 
A10: =IF('DF raw data'!I10="","",'DF raw data'!I10) -> Device | B10: =IF('DF raw data'!J10="","",'DF raw data'!J10) -> (HAL) HALL-PROBE | C10: =IF('DF raw data'!K10="","",'DF raw data'!K10) ->  | D10: =IF('DF raw data'!L10="","",'DF raw data'!L10) -> 
A11: =IF('DF raw data'!I11="","",'DF raw data'!I11) -> Goal | B11: =IF('DF raw data'!J11="","",'DF raw data'!J11) -> (AXI) AXis Integral (Line, EFB) | C11: =IF('DF raw data'!K11="","",'DF raw data'!K11) ->  | D11: =IF('DF raw data'!L11="","",'DF raw data'!L11) -> 
A12: =IF('DF raw data'!I12="","",'DF raw data'!I12) -> Power supply mode | B12: =IF('DF raw data'!J12="","",'DF raw data'!J12) -> (PM) Permanent Magnet (no MPS in use) | C12: =IF('DF raw data'!K12="","",'DF raw data'!K12) ->  | D12: =IF('DF raw data'!L12="","",'DF raw data'!L12) -> 
A13: =IF('DF raw data'!I13="","",'DF raw data'!I13) -> Data format | B13: =IF('DF raw data'!J13="","",'DF raw data'!J13) -> Raw data text file | C13: =IF('DF raw data'!K13="","",'DF raw data'!K13) ->  | D13: =IF('DF raw data'!L13="","",'DF raw data'!L13) -> 
A14: =IF('DF raw data'!I14="","",'DF raw data'!I14) -> Direction of the pos. x-axis | B14: =IF('DF raw data'!J14="","",'DF raw data'!J14) -> See test program | C14: =IF('DF raw data'!K14="","",'DF raw data'!K14) ->  | D14: =IF('DF raw data'!L14="","",'DF raw data'!L14) -> 
A15: =IF('DF raw data'!I15="","",'DF raw data'!I15) -> Direction of the pos. y-axis | B15: =IF('DF raw data'!J15="","",'DF raw data'!J15) -> Vertical up | C15: =IF('DF raw data'!K15="","",'DF raw data'!K15) ->  | D15: =IF('DF raw data'!L15="","",'DF raw data'!L15) -> 
A16: =IF('DF raw data'!I16="","",'DF raw data'!I16) -> Direction of the pos. z-axis | B16: =IF('DF raw data'!J16="","",'DF raw data'!J16) -> See test program | C16: =IF('DF raw data'!K16="","",'DF raw data'!K16) ->  | D16: =IF('DF raw data'!L16="","",'DF raw data'!L16) -> 
A17: =IF('DF raw data'!I17="","",'DF raw data'!I17) -> Mapper type | B17: =IF('DF raw data'!J17="","",'DF raw data'!J17) -> Precision Hall Mapper | C17: =IF('DF raw data'!K17="","",'DF raw data'!K17) ->  | D17: =IF('DF raw data'!L17="","",'DF raw data'!L17) -> 
A18: =IF('DF raw data'!I18="","",'DF raw data'!I18) -> Mapper Danfysik Reg. Number | B18: =IF('DF raw data'!J18="","",'DF raw data'!J18) -> 2033-D (mapper 1) | C18: =IF('DF raw data'!K18="","",'DF raw data'!K18) ->  | D18: =IF('DF raw data'!L18="","",'DF raw data'!L18) -> 
A19: =IF('DF raw data'!I19="","",'DF raw data'!I19) -> Measurement consept | B19: =IF('DF raw data'!J19="","",'DF raw data'!J19) -> Square line grid | C19: =IF('DF raw data'!K19="","",'DF raw data'!K19) ->  | D19: =IF('DF raw data'!L19="","",'DF raw data'!L19) -> 
A20: =IF('DF raw data'!I20="","",'DF raw data'!I20) -> Mode | B20: =IF('DF raw data'!J20="","",'DF raw data'!J20) -> On-the-fly measurement | C20: =IF('DF raw data'!K20="","",'DF raw data'!K20) ->  | D20: =IF('DF raw data'!L20="","",'DF raw data'!L20) -> 
A21: =IF('DF raw data'!I21="","",'DF raw data'!I21) ->  | B21: =IF('DF raw data'!J21="","",'DF raw data'!J21) ->  | C21: =IF('DF raw data'!K21="","",'DF raw data'!K21) ->  | D21: =IF('DF raw data'!L21="","",'DF raw data'!L21) -> 
A22: =IF('DF raw data'!I22="","",'DF raw data'!I22) -> Probe Name | B22: =IF('DF raw data'!J22="","",'DF raw data'!J22) -> ID12_By | C22: =IF('DF raw data'!K22="","",'DF raw data'!K22) ->  | D22: =IF('DF raw data'!L22="","",'DF raw data'!L22) -> 
A23: =IF('DF raw data'!I23="","",'DF raw data'!I23) -> Probe Type | B23: =IF('DF raw data'!J23="","",'DF raw data'!J23) -> DF_ID_3D_Bxyz | C23: =IF('DF raw data'!K23="","",'DF raw data'!K23) ->  | D23: =IF('DF raw data'!L23="","",'DF raw data'!L23) -> 
A24: =IF('DF raw data'!I24="","",'DF raw data'!I24) -> Probe Danfysik Reg. Number | B24: =IF('DF raw data'!J24="","",'DF raw data'!J24) -> 2277 | C24: =IF('DF raw data'!K24="","",'DF raw data'!K24) ->  | D24: =IF('DF raw data'!L24="","",'DF raw data'!L24) -> 
A25: =IF('DF raw data'!I25="","",'DF raw data'!I25) -> Probe Axis | B25: =IF('DF raw data'!J25="","",'DF raw data'!J25) -> By | C25: =IF('DF raw data'!K25="","",'DF raw data'!K25) ->  | D25: =IF('DF raw data'!L25="","",'DF raw data'!L25) -> 
A26: =IF('DF raw data'!I26="","",'DF raw data'!I26) -> Probe Current Supply | B26: =IF('DF raw data'!J26="","",'DF raw data'!J26) -> 1825-D | C26: =IF('DF raw data'!K26="","",'DF raw data'!K26) ->  | D26: =IF('DF raw data'!L26="","",'DF raw data'!L26) -> 
A27: =IF('DF raw data'!I27="","",'DF raw data'!I27) -> Probe Gain Correction | B27: =IF('DF raw data'!J27="","",'DF raw data'!J27) -> 0.99613 | C27: =IF('DF raw data'!K27="","",'DF raw data'!K27) ->  | D27: =IF('DF raw data'!L27="","",'DF raw data'!L27) -> 
A28: =IF('DF raw data'!I28="","",'DF raw data'!I28) -> Probe Offset Correction | B28: =IF('DF raw data'!J28="","",'DF raw data'!J28) -> 0.002746 | C28: =IF('DF raw data'!K28="","",'DF raw data'!K28) ->  | D28: =IF('DF raw data'!L28="","",'DF raw data'!L28) -> 
A29: =IF('DF raw data'!I29="","",'DF raw data'!I29) -> DVM Number | B29: =IF('DF raw data'!J29="","",'DF raw data'!J29) -> 2 | C29: =IF('DF raw data'!K29="","",'DF raw data'!K29) ->  | D29: =IF('DF raw data'!L29="","",'DF raw data'!L29) -> 
A30: =IF('DF raw data'!I30="","",'DF raw data'!I30) -> DVM Type | B30: =IF('DF raw data'!J30="","",'DF raw data'!J30) -> K2701 | C30: =IF('DF raw data'!K30="","",'DF raw data'!K30) ->  | D30: =IF('DF raw data'!L30="","",'DF raw data'!L30) -> 
A31: =IF('DF raw data'!I31="","",'DF raw data'!I31) -> DVM Danfysik Reg. Number | B31: =IF('DF raw data'!J31="","",'DF raw data'!J31) -> 1743-D | C31: =IF('DF raw data'!K31="","",'DF raw data'!K31) ->  | D31: =IF('DF raw data'!L31="","",'DF raw data'!L31) -> 
A32: =IF('DF raw data'!I32="","",'DF raw data'!I32) -> Probe Name | B32: =IF('DF raw data'!J32="","",'DF raw data'!J32) -> ID12_Bx | C32: =IF('DF raw data'!K32="","",'DF raw data'!K32) ->  | D32: =IF('DF raw data'!L32="","",'DF raw data'!L32) -> 
A33: =IF('DF raw data'!I33="","",'DF raw data'!I33) -> Probe Type | B33: =IF('DF raw data'!J33="","",'DF raw data'!J33) -> DF_ID_3D_Bxyz | C33: =IF('DF raw data'!K33="","",'DF raw data'!K33) ->  | D33: =IF('DF raw data'!L33="","",'DF raw data'!L33) -> 
A34: =IF('DF raw data'!I34="","",'DF raw data'!I34) -> Probe Danfysik Reg. Number | B34: =IF('DF raw data'!J34="","",'DF raw data'!J34) -> 2277 | C34: =IF('DF raw data'!K34="","",'DF raw data'!K34) ->  | D34: =IF('DF raw data'!L34="","",'DF raw data'!L34) -> 
A35: =IF('DF raw data'!I35="","",'DF raw data'!I35) -> Probe Axis | B35: =IF('DF raw data'!J35="","",'DF raw data'!J35) -> Bx | C35: =IF('DF raw data'!K35="","",'DF raw data'!K35) ->  | D35: =IF('DF raw data'!L35="","",'DF raw data'!L35) -> 
A36: =IF('DF raw data'!I36="","",'DF raw data'!I36) -> Probe Current Supply | B36: =IF('DF raw data'!J36="","",'DF raw data'!J36) -> 1825-D | C36: =IF('DF raw data'!K36="","",'DF raw data'!K36) ->  | D36: =IF('DF raw data'!L36="","",'DF raw data'!L36) -> 
A37: =IF('DF raw data'!I37="","",'DF raw data'!I37) -> Probe Gain Correction | B37: =IF('DF raw data'!J37="","",'DF raw data'!J37) -> 1 | C37: =IF('DF raw data'!K37="","",'DF raw data'!K37) ->  | D37: =IF('DF raw data'!L37="","",'DF raw data'!L37) -> 
A38: =IF('DF raw data'!I38="","",'DF raw data'!I38) -> Probe Offset Correction | B38: =IF('DF raw data'!J38="","",'DF raw data'!J38) -> -0.17546 | C38: =IF('DF raw data'!K38="","",'DF raw data'!K38) ->  | D38: =IF('DF raw data'!L38="","",'DF raw data'!L38) -> 
A39: =IF('DF raw data'!I39="","",'DF raw data'!I39) -> DVM Number | B39: =IF('DF raw data'!J39="","",'DF raw data'!J39) -> 3 | C39: =IF('DF raw data'!K39="","",'DF raw data'!K39) ->  | D39: =IF('DF raw data'!L39="","",'DF raw data'!L39) -> 
A40: =IF('DF raw data'!I40="","",'DF raw data'!I40) -> DVM Type | B40: =IF('DF raw data'!J40="","",'DF raw data'!J40) -> K2701 | C40: =IF('DF raw data'!K40="","",'DF raw data'!K40) ->  | D40: =IF('DF raw data'!L40="","",'DF raw data'!L40) -> 
A41: =IF('DF raw data'!I41="","",'DF raw data'!I41) -> DVM Danfysik Reg. Number | B41: =IF('DF raw data'!J41="","",'DF raw data'!J41) -> 1744-D | C41: =IF('DF raw data'!K41="","",'DF raw data'!K41) ->  | D41: =IF('DF raw data'!L41="","",'DF raw data'!L41) -> 
A42: =IF('DF raw data'!I42="","",'DF raw data'!I42) -> Probe Name | B42: =IF('DF raw data'!J42="","",'DF raw data'!J42) -> ID12_Bz | C42: =IF('DF raw data'!K42="","",'DF raw data'!K42) ->  | D42: =IF('DF raw data'!L42="","",'DF raw data'!L42) -> 
A43: =IF('DF raw data'!I43="","",'DF raw data'!I43) -> Probe Type | B43: =IF('DF raw data'!J43="","",'DF raw data'!J43) -> DF_ID_3D_Bxyz | C43: =IF('DF raw data'!K43="","",'DF raw data'!K43) ->  | D43: =IF('DF raw data'!L43="","",'DF raw data'!L43) -> 
A44: =IF('DF raw data'!I44="","",'DF raw data'!I44) -> Probe Danfysik Reg. Number | B44: =IF('DF raw data'!J44="","",'DF raw data'!J44) -> 2277 | C44: =IF('DF raw data'!K44="","",'DF raw data'!K44) ->  | D44: =IF('DF raw data'!L44="","",'DF raw data'!L44) -> 
A45: =IF('DF raw data'!I45="","",'DF raw data'!I45) -> Probe Axis | B45: =IF('DF raw data'!J45="","",'DF raw data'!J45) -> Bz | C45: =IF('DF raw data'!K45="","",'DF raw data'!K45) ->  | D45: =IF('DF raw data'!L45="","",'DF raw data'!L45) -> 
A46: =IF('DF raw data'!I46="","",'DF raw data'!I46) -> Probe Current Supply | B46: =IF('DF raw data'!J46="","",'DF raw data'!J46) -> 1825-D | C46: =IF('DF raw data'!K46="","",'DF raw data'!K46) ->  | D46: =IF('DF raw data'!L46="","",'DF raw data'!L46) -> 
A47: =IF('DF raw data'!I47="","",'DF raw data'!I47) -> Probe Gain Correction | B47: =IF('DF raw data'!J47="","",'DF raw data'!J47) -> 1 | C47: =IF('DF raw data'!K47="","",'DF raw data'!K47) ->  | D47: =IF('DF raw data'!L47="","",'DF raw data'!L47) -> 
A48: =IF('DF raw data'!I53="","",'DF raw data'!I53) -> PS-Gap: | B48: =IF('DF raw data'!J53="","",'DF raw data'!J53) -> 10 | C48: =IF('DF raw data'!K53="","",'DF raw data'!K53) ->  | D48: =IF('DF raw data'!L53="","",'DF raw data'!L53) -> 
A49: =IF('DF raw data'!I54="","",'DF raw data'!I54) -> PS-Temperature: | B49: =IF('DF raw data'!J54="","",'DF raw data'!J54) -> 24.2 | C49: =IF('DF raw data'!K54="","",'DF raw data'!K54) ->  | D49: =IF('DF raw data'!L54="","",'DF raw data'!L54) -> 
A50: =IF('DF raw data'!I55="","",'DF raw data'!I55) -> PS-Encoder: | B50: =IF('DF raw data'!J55="","",'DF raw data'!J55) -> 19.6328 | C50: =IF('DF raw data'!K55="","",'DF raw data'!K55) ->  | D50: =IF('DF raw data'!L55="","",'DF raw data'!L55) -> 
A51: =IF('DF raw data'!I56="","",'DF raw data'!I56) ->  | B51: =IF('DF raw data'!J56="","",'DF raw data'!J56) ->  | C51: =IF('DF raw data'!K56="","",'DF raw data'!K56) ->  | D51: =IF('DF raw data'!L56="","",'DF raw data'!L56) -> 
A52: =IF('DF raw data'!I57="","",'DF raw data'!I57) -> Monitor-Index | B52: =IF('DF raw data'!J57="","",'DF raw data'!J57) -> [1,1,4] | C52: =IF('DF raw data'!K57="","",'DF raw data'!K57) ->  | D52: =IF('DF raw data'!L57="","",'DF raw data'!L57) -> 
A53: =IF('DF raw data'!I58="","",'DF raw data'!I58) ->  | B53: =IF('DF raw data'!J58="","",'DF raw data'!J58) ->  | C53: =IF('DF raw data'!K58="","",'DF raw data'!K58) ->  | D53: =IF('DF raw data'!L58="","",'DF raw data'!L58) -> 
A54: =IF('DF raw data'!I59="","",'DF raw data'!I59) -> Time [s] | B54: =IF('DF raw data'!J59="","",'DF raw data'!J59) -> Y [mm] | C54: =IF('DF raw data'!K59="","",'DF raw data'!K59) -> X [mm] | D54: =IF('DF raw data'!L59="","",'DF raw data'!L59) -> Nominal current [A]
A55: =IF('DF raw data'!I60="","",'DF raw data'!I60) ->  | B55: =IF('DF raw data'!J60="","",'DF raw data'!J60) ->  | C55: =IF('DF raw data'!K60="","",'DF raw data'!K60) ->  | D55: =IF('DF raw data'!L60="","",'DF raw data'!L60) -> 
A56: =IF('DF raw data'!I61="","",'DF raw data'!I61) -> 207.9 | B56: =IF('DF raw data'!J61="","",'DF raw data'!J61) -> 31.48 | C56: =IF('DF raw data'!K61="","",'DF raw data'!K61) -> 301.8 | D56: =IF('DF raw data'!L61="","",'DF raw data'!L61) -> 0
A57: =IF('DF raw data'!I62="","",'DF raw data'!I62) ->  | B57: =IF('DF raw data'!J62="","",'DF raw data'!J62) ->  | C57: =IF('DF raw data'!K62="","",'DF raw data'!K62) ->  | D57: =IF('DF raw data'!L62="","",'DF raw data'!L62) -> 
A58: =IF('DF raw data'!I63="","",'DF raw data'!I63) -> Measurement-Index | B58: =IF('DF raw data'!J63="","",'DF raw data'!J63) -> [1,1,1201,2] | C58: =IF('DF raw data'!K63="","",'DF raw data'!K63) ->  | D58: =IF('DF raw data'!L63="","",'DF raw data'!L63) -> 
A59: =IF('DF raw data'!I64="","",'DF raw data'!I64) ->  | B59: =IF('DF raw data'!J64="","",'DF raw data'!J64) ->  | C59: =IF('DF raw data'!K64="","",'DF raw data'!K64) ->  | D59: =IF('DF raw data'!L64="","",'DF raw data'!L64) -> 
A60: =IF('DF raw data'!I65="","",'DF raw data'!I65) -> Z [mm] | B60: By [T] | C60: Bx [T] | D60: Bz [T] | F60: By_corr | G60: Bx_corr | H60: Bz_corr | J60: Iy | K60: Jy | L60: Ix | M60: Jx | N60: PI
A62: =IF('DF raw data'!I67="","",'DF raw data'!I67) -> -300 | B62: =IF('DF raw data'!J67="","",'DF raw data'!J67) -> -3.69783e-06 | C62: =IF('DF raw data'!K67="","",'DF raw data'!K67) -> 0.000254049 | D62: =IF('DF raw data'!L67="","",'DF raw data'!L67) -> -2.09244e-05 | F62: =(1-$G$1*($B$49))*B62 -> -3.787317486e-06 | G62: =(1-$G$1*($B$49-$G$2))*C62 -> 0.0002551160058 | H62: =(1-$G$1*($B$49-$G$2))*D62 -> -2.101228248e-05 | J62: =F62*$G$3 -> -1.893658743e-06 | K62: =J62*$G$3 -> -9.468293715e-07 | L62: =G62*$G$3 -> 0.0001275580029 | M62: =L62*$G$3 -> 6.377900145e-05 | N62: =(J62^2+L62^2)*$G$3 -> 8.137315024e-09
A63: =IF('DF raw data'!I68="","",'DF raw data'!I68) -> -299.5 | B63: =IF('DF raw data'!J68="","",'DF raw data'!J68) -> -1.13211e-05 | C63: =IF('DF raw data'!K68="","",'DF raw data'!K68) -> 0.000250448 | D63: =IF('DF raw data'!L68="","",'DF raw data'!L68) -> -2.02137e-05 | F63: =(1-$G$1*($B$49-$G$2))*B63 -> -1.136864862e-05 | G63: =(1-$G$1*($B$49-$G$2))*C63 -> 0.0002514998816 | H63: -2.029859754e-05 | J63: =F63*$G$3+J62 -> -7.577983053e-06 | K63: =J63*$G$3+K62 -> -4.735820898e-06 | L63: =G63*$G$3+L62 -> 0.0002533079437 | M63: =L63*$G$3+M62 -> 0.0001904329733 | N63: =(J63^2+L63^2)*$G$3+N62 -> 4.024848511e-08
A64: =IF('DF raw data'!I69="","",'DF raw data'!I69) -> -299 | B64: =IF('DF raw data'!J69="","",'DF raw data'!J69) -> -1.38204e-05 | C64: =IF('DF raw data'!K69="","",'DF raw data'!K69) -> 0.000247295 | D64: =IF('DF raw data'!L69="","",'DF raw data'!L69) -> -1.89357e-05 | F64: =(1-$G$1*($B$49-$G$2))*B64 -> -1.387844568e-05 | G64: 0.000248333639 | H64: -1.901522994e-05 | J64: =F64*$G$3+J63 -> -1.451720589e-05 | K64: =J64*$G$3+K63 -> -1.199442384e-05 | L64: =G64*$G$3+L63 -> 0.0003774747632 | M64: =L64*$G$3+M63 -> 0.0003791703549 | N64: =(J64^2+L64^2)*$G$3+N63 -> 1.115974582e-07
A65: =IF('DF raw data'!I70="","",'DF raw data'!I70) -> -298.5 | B65: =IF('DF raw data'!J70="","",'DF raw data'!J70) -> 3.35874e-07 | C65: =IF('DF raw data'!K70="","",'DF raw data'!K70) -> 0.000246305 | D65: =IF('DF raw data'!L70="","",'DF raw data'!L70) -> -1.81459e-05 | F65: 3.372846708e-07 | G65: 0.000247339481 | H65: -1.822211278e-05 | J65: -1.434856356e-05 | K65: -1.916870562e-05 | L65: 0.0005011445037 | M65: 0.0006297426068 | N65: 2.372733056e-07
A66: =IF('DF raw data'!I71="","",'DF raw data'!I71) -> -298 | B66: =IF('DF raw data'!J71="","",'DF raw data'!J71) -> -9.46492e-06 | C66: =IF('DF raw data'!K71="","",'DF raw data'!K71) -> 0.000245258 | D66: =IF('DF raw data'!L71="","",'DF raw data'!L71) -> -1.80052e-05 | F66: -9.504672664e-06 | G66: 0.0002462880836 | H66: -1.808082184e-05 | J66: -1.910089989e-05 | K66: -2.871915557e-05 | L66: 0.0006242885455 | M66: 0.0009418868795 | N66: 4.323238218e-07
A67: =IF('DF raw data'!I72="","",'DF raw data'!I72) -> -297.5 | B67: =IF('DF raw data'!J72="","",'DF raw data'!J72) -> 1.41084e-05 | C67: =IF('DF raw data'!K72="","",'DF raw data'!K72) -> 0.00025499 | D67: =IF('DF raw data'!L72="","",'DF raw data'!L72) -> -1.88791e-05 | F67: 1.416765528e-05 | G67: 0.000256060958 | H67: -1.895839222e-05 | J67: -1.201707225e-05 | K67: -3.472769169e-05 | L67: 0.0007523190245 | M67: 0.001318046392 | N67: 7.153879841e-07
A68: =IF('DF raw data'!I73="","",'DF raw data'!I73) -> -297 | B68: =IF('DF raw data'!J73="","",'DF raw data'!J73) -> 1.10563e-06 | C68: =IF('DF raw data'!K73="","",'DF raw data'!K73) -> 0.000255682 | D68: =IF('DF raw data'!L73="","",'DF raw data'!L73) -> -1.98419e-05 | F68: 1.110273646e-06 | G68: 0.0002567558644 | H68: -1.992523598e-05 | J68: -1.146193543e-05 | K68: -4.045865941e-05 | L68: 0.0008806969567 | M68: 0.00175839487 | N68: 1.103267237e-06
A69: =IF('DF raw data'!I74="","",'DF raw data'!I74) -> -296.5 | B69: =IF('DF raw data'!J74="","",'DF raw data'!J74) -> -6.23971e-07 | C69: =IF('DF raw data'!K74="","",'DF raw data'!K74) -> 0.000258126 | D69: =IF('DF raw data'!L74="","",'DF raw data'!L74) -> -1.98211e-05 | F69: -6.265916782e-07 | G69: 0.0002592101292 | H69: -1.990434862e-05 | J69: -1.177523127e-05 | K69: -4.634627504e-05 | L69: 0.001010302021 | M69: 0.002263545881 | N69: 1.613691652e-06
A70: =IF('DF raw data'!I75="","",'DF raw data'!I75) -> -296 | B70: =IF('DF raw data'!J75="","",'DF raw data'!J75) -> -3.12253e-06 | C70: =IF('DF raw data'!K75="","",'DF raw data'!K75) -> 0.000256081 | D70: =IF('DF raw data'!L75="","",'DF raw data'!L75) -> -1.93151e-05 | F70: -3.135644626e-06 | G70: 0.0002571565402 | H70: -1.939622342e-05 | J70: -1.334305358e-05 | K70: -5.301780183e-05 | L70: 0.001138880291 | M70: 0.002832986026 | N70: 2.26230483e-06
A71: =IF('DF raw data'!I76="","",'DF raw data'!I76) -> -295.5 | B71: =IF('DF raw data'!J76="","",'DF raw data'!J76) -> 8.6e-06 | C71: =IF('DF raw data'!K76="","",'DF raw data'!K76) -> 0.000262334 | D71: =IF('DF raw data'!L76="","",'DF raw data'!L76) -> -1.93916e-05 | F71: 8.63612e-06 | G71: 0.0002634358028 | H71: -1.947304472e-05 | J71: -9.024993579e-06 | K71: -5.753029862e-05 | L71: 0.001270598193 | M71: 0.003468285123 | N71: 3.069555439e-06
A72: =IF('DF raw data'!I77="","",'DF raw data'!I77) -> -295 | B72: =IF('DF raw data'!J77="","",'DF raw data'!J77) -> -4.7878e-06 | C72: =IF('DF raw data'!K77="","",'DF raw data'!K77) -> 0.000259846 | D72: =IF('DF raw data'!L77="","",'DF raw data'!L77) -> -1.9502e-05 | F72: -4.80790876e-06 | G72: 0.0002609373532 | H72: -1.95839084e-05 | J72: -1.142894796e-05 | K72: -6.32447726e-05 | L72: 0.001401066869 | M72: 0.004168818558 | N72: 4.051114935e-06
A73: =IF('DF raw data'!I78="","",'DF raw data'!I78) -> -294.5 | B73: =IF('DF raw data'!J78="","",'DF raw data'!J78) -> 2.57881e-06 | C73: =IF('DF raw data'!K78="","",'DF raw data'!K78) -> 0.000250709 | D73: =IF('DF raw data'!L78="","",'DF raw data'!L78) -> -1.95694e-05 | F73: 2.589641002e-06 | G73: 0.0002517619778 | H73: -1.965159148e-05 | J73: -1.013412746e-05 | K73: -6.831183633e-05 | L73: 0.001526947858 | M73: 0.004932292487 | N73: 5.216951167e-06
A74: =IF('DF raw data'!I79="","",'DF raw data'!I79) -> -294 | B74: =IF('DF raw data'!J79="","",'DF raw data'!J79) -> 3.66797e-06 | C74: =IF('DF raw data'!K79="","",'DF raw data'!K79) -> 0.000255792 | D74: =IF('DF raw data'!L79="","",'DF raw data'!L79) -> -1.97313e-05 | F74: 3.683375474e-06 | G74: 0.0002568663264 | H74: -1.981417146e-05 | J74: -8.292439721e-06 | K74: -7.245805619e-05 | L74: 0.001655381021 | M74: 0.005759982997 | N74: 6.587128712e-06
A75: =IF('DF raw data'!I80="","",'DF raw data'!I80) -> -293.5 | B75: =IF('DF raw data'!J80="","",'DF raw data'!J80) -> -5.74873e-06 | C75: =IF('DF raw data'!K80="","",'DF raw data'!K80) -> 0.0002534 | D75: =IF('DF raw data'!L80="","",'DF raw data'!L80) -> -1.95099e-05 | F75: -5.772874666e-06 | G75: 0.00025446428 | H75: -1.959184158e-05 | J75: -1.117887705e-05 | K75: -7.804749471e-05 | L75: 0.001782613161 | M75: 0.006651289578 | N75: 8.176046037e-06
A76: =IF('DF raw data'!I81="","",'DF raw data'!I81) -> -293 | B76: =IF('DF raw data'!J81="","",'DF raw data'!J81) -> -4.96276e-07 | C76: =IF('DF raw data'!K81="","",'DF raw data'!K81) -> 0.000251676 | D76: =IF('DF raw data'!L81="","",'DF raw data'!L81) -> -1.91873e-05 | F76: -4.983603592e-07 | G76: 0.0002527330392 | H76: -1.926788666e-05 | J76: -1.142805723e-05 | K76: -8.376152333e-05 | L76: 0.001908979681 | M76: 0.007605779419 | N76: 9.998213049e-06
A77: =IF('DF raw data'!I82="","",'DF raw data'!I82) -> -292.5 | B77: =IF('DF raw data'!J82="","",'DF raw data'!J82) -> 4.82073e-06 | C77: =IF('DF raw data'!K82="","",'DF raw data'!K82) -> 0.000252314 | D77: =IF('DF raw data'!L82="","",'DF raw data'!L82) -> -1.94385e-05 | F77: 4.840977066e-06 | G77: 0.0002533737188 | H77: -1.95201417e-05 | J77: -9.0075687e-06 | K77: -8.826530768e-05 | L77: 0.00203566654 | M77: 0.008623612689 | N77: 1.207022275e-05
A78: =IF('DF raw data'!I83="","",'DF raw data'!I83) -> -292 | B78: =IF('DF raw data'!J83="","",'DF raw data'!J83) -> -2.09718e-06 | C78: =IF('DF raw data'!K83="","",'DF raw data'!K83) -> 0.000246765 | D78: =IF('DF raw data'!L83="","",'DF raw data'!L83) -> -1.96657e-05 | F78: -2.105988156e-06 | G78: 0.000247801413 | H78: -1.974829594e-05 | J78: -1.006056278e-05 | K78: -9.329558907e-05 | L78: 0.002159567247 | M78: 0.009703396312 | N78: 1.44021387e-05
A79: =IF('DF raw data'!I84="","",'DF raw data'!I84) -> -291.5 | B79: =IF('DF raw data'!J84="","",'DF raw data'!J84) -> -2.6693e-06 | C79: =IF('DF raw data'!K84="","",'DF raw data'!K84) -> 0.000239464 | D79: =IF('DF raw data'!L84="","",'DF raw data'!L84) -> -2.65806e-05 | F79: -2.68051106e-06 | G79: 0.0002404697488 | H79: -2.669223852e-05 | J79: -1.140081831e-05 | K79: -9.899599822e-05 | L79: 0.002279802121 | M79: 0.01084329737 | N79: 1.700095255e-05
A80: =IF('DF raw data'!I85="","",'DF raw data'!I85) -> -291 | B80: =IF('DF raw data'!J85="","",'DF raw data'!J85) -> 5.94863e-07 | C80: =IF('DF raw data'!K85="","",'DF raw data'!K85) -> 0.000243456 | D80: =IF('DF raw data'!L85="","",'DF raw data'!L85) -> -2.24161e-05 | F80: 5.973614246e-07 | G80: 0.0002444785152 | H80: -2.251024762e-05 | J80: -1.11021376e-05 | K80: -0.000104547067 | L80: 0.002402041379 | M80: 0.01204431806 | N80: 1.988591557e-05
A81: =IF('DF raw data'!I86="","",'DF raw data'!I86) -> -290.5 | B81: =IF('DF raw data'!J86="","",'DF raw data'!J86) -> 3.86543e-06 | C81: =IF('DF raw data'!K86="","",'DF raw data'!K86) -> 0.000242215 | D81: =IF('DF raw data'!L86="","",'DF raw data'!L86) -> -2.81165e-05 | F81: 3.881664806e-06 | G81: 0.000243232303 | H81: -2.82345893e-05 | J81: -9.161305193e-06 | K81: -0.0001091277196 | L81: 0.002523657531 | M81: 0.01330614683 | N81: 2.30703812e-05
A82: =IF('DF raw data'!I87="","",'DF raw data'!I87) -> -290 | B82: =IF('DF raw data'!J87="","",'DF raw data'!J87) -> 4.36706e-06 | C82: =IF('DF raw data'!K87="","",'DF raw data'!K87) -> 0.00024463 | D82: =IF('DF raw data'!L87="","",'DF raw data'!L87) -> -1.1464e-05 | F82: 4.385401652e-06 | G82: 0.000245657446 | H82: -1.15121488e-05 | J82: -6.968604367e-06 | K82: -0.0001126120218 | L82: 0.002646486254 | M82: 0.01462938995 | N82: 2.657235023e-05
A83: =IF('DF raw data'!I88="","",'DF raw data'!I88) -> -289.5 | B83: =IF('DF raw data'!J88="","",'DF raw data'!J88) -> 1.68399e-06 | C83: =IF('DF raw data'!K88="","",'DF raw data'!K88) -> 0.000254185 | D83: =IF('DF raw data'!L88="","",'DF raw data'!L88) -> -2.2547e-05 | F83: 1.691062758e-06 | G83: 0.000255252577 | H83: -2.26416974e-05 | J83: -6.123072988e-06 | K83: -0.0001156735583 | L83: 0.002774112542 | M83: 0.01601644623 | N83: 3.042021917e-05
A84: =IF('DF raw data'!I89="","",'DF raw data'!I89) -> -289 | B84: =IF('DF raw data'!J89="","",'DF raw data'!J89) -> -3.12164e-06 | C84: =IF('DF raw data'!K89="","",'DF raw data'!K89) -> 0.000252406 | D84: =IF('DF raw data'!L89="","",'DF raw data'!L89) -> -2.06901e-05 | F84: -3.134750888e-06 | G84: 0.0002534661052 | H84: -2.077699842e-05 | J84: -7.690448432e-06 | K84: -0.0001195187825 | L84: 0.002900845595 | M84: 0.01746686902 | N84: 3.462770132e-05
A85: =IF('DF raw data'!I90="","",'DF raw data'!I90) -> -288.5 | B85: =IF('DF raw data'!J90="","",'DF raw data'!J90) -> 6.23092e-06 | C85: =IF('DF raw data'!K90="","",'DF raw data'!K90) -> 0.000247155 | D85: =IF('DF raw data'!L90="","",'DF raw data'!L90) -> -2.0985e-05 | F85: 6.257089864e-06 | G85: 0.000248193051 | H85: -2.1073137e-05 | J85: -4.5619035e-06 | K85: -0.0001217997343 | L85: 0.00302494212 | M85: 0.01897934008 | N85: 3.920284915e-05
A86: =IF('DF raw data'!I91="","",'DF raw data'!I91) -> -288 | B86: =IF('DF raw data'!J91="","",'DF raw data'!J91) -> -3.0621e-06 | C86: =IF('DF raw data'!K91="","",'DF raw data'!K91) -> 0.000240098 | D86: =IF('DF raw data'!L91="","",'DF raw data'!L91) -> -1.35224e-05 | F86: -3.07496082e-06 | G86: 0.0002411064116 | H86: -1.357919408e-05 | J86: -6.09938391e-06 | K86: -0.0001248494262 | L86: 0.003145495326 | M86: 0.02055208775 | N86: 4.414993817e-05
A87: =IF('DF raw data'!I92="","",'DF raw data'!I92) -> -287.5 | B87: =IF('DF raw data'!J92="","",'DF raw data'!J92) -> 1.09948e-06 | C87: =IF('DF raw data'!K92="","",'DF raw data'!K92) -> 0.000242055 | D87: =IF('DF raw data'!L92="","",'DF raw data'!L92) -> -1.0367e-05 | F87: 1.104097816e-06 | G87: 0.000243071631 | H87: -1.04105414e-05 | J87: -5.547335002e-06 | K87: -0.0001276230937 | L87: 0.003267031141 | M87: 0.02218560332 | N87: 4.94866998e-05
A88: =IF('DF raw data'!I93="","",'DF raw data'!I93) -> -287 | B88: =IF('DF raw data'!J93="","",'DF raw data'!J93) -> -5.09032e-08 | C88: =IF('DF raw data'!K93="","",'DF raw data'!K93) -> 0.000248234 | D88: =IF('DF raw data'!L93="","",'DF raw data'!L93) -> -1.43525e-05 | F88: -5.111699344e-08 | G88: 0.0002492765828 | H88: -1.44127805e-05 | J88: -5.572893499e-06 | K88: -0.0001304095405 | L88: 0.003391669433 | M88: 0.02388143803 | N88: 5.523842609e-05
A89: =IF('DF raw data'!I94="","",'DF raw data'!I94) -> -286.5 | B89: =IF('DF raw data'!J94="","",'DF raw data'!J94) -> 2.00546e-06 | C89: =IF('DF raw data'!K94="","",'DF raw data'!K94) -> 0.000250375 | D89: =IF('DF raw data'!L94="","",'DF raw data'!L94) -> -2.46007e-05 | F89: 2.013882932e-06 | G89: 0.000251426575 | H89: -2.470402294e-05 | J89: -4.565952033e-06 | K89: -0.0001326925165 | L89: 0.00351738272 | M89: 0.02564012939 | N89: 6.142442712e-05
A90: =IF('DF raw data'!I95="","",'DF raw data'!I95) -> -286 | B90: =IF('DF raw data'!J95="","",'DF raw data'!J95) -> -5.87695e-06 | C90: =IF('DF raw data'!K95="","",'DF raw data'!K95) -> 0.000250328 | D90: =IF('DF raw data'!L95="","",'DF raw data'!L95) -> -1.9339e-05 | F90: -5.90163319e-06 | G90: 0.0002513793776 | H90: -1.94202238e-05 | J90: -7.516768628e-06 | K90: -0.0001364509008 | L90: 0.003643072409 | M90: 0.0274616656 | N90: 6.806044366e-05
A91: =IF('DF raw data'!I96="","",'DF raw data'!I96) -> -285.5 | B91: =IF('DF raw data'!J96="","",'DF raw data'!J96) -> 6.52622e-07 | C91: =IF('DF raw data'!K96="","",'DF raw data'!K96) -> 0.000248698 | D91: =IF('DF raw data'!L96="","",'DF raw data'!L96) -> -1.25043e-05 | F91: 6.553630124e-07 | G91: 0.0002497425316 | H91: -1.255681806e-05 | J91: -7.189087122e-06 | K91: -0.0001400454444 | L91: 0.003767943675 | M91: 0.02934563744 | N91: 7.515916927e-05
A92: =IF('DF raw data'!I97="","",'DF raw data'!I97) -> -285 | B92: =IF('DF raw data'!J97="","",'DF raw data'!J97) -> -1.70843e-05 | C92: =IF('DF raw data'!K97="","",'DF raw data'!K97) -> 0.000247065 | D92: =IF('DF raw data'!L97="","",'DF raw data'!L97) -> -2.31259e-05 | F92: -1.715605406e-05 | G92: 0.000248102673 | H92: -2.322302878e-05 | J92: -1.576711415e-05 | K92: -0.0001479290014 | L92: 0.003891995011 | M92: 0.03129163494 | N92: 8.273310615e-05
A93: =IF('DF raw data'!I98="","",'DF raw data'!I98) -> -284.5 | B93: =IF('DF raw data'!J98="","",'DF raw data'!J98) -> -1.55491e-05 | C93: =IF('DF raw data'!K98="","",'DF raw data'!K98) -> 0.000249677 | D93: =IF('DF raw data'!L98="","",'DF raw data'!L98) -> -1.98884e-05 | F93: -1.561440622e-05 | G93: 0.0002507256434 | H93: -1.997193128e-05 | J93: -2.357431726e-05 | K93: -0.0001597161601 | L93: 0.004017357833 | M93: 0.03330031386 | N93: 9.080296601e-05
A94: =IF('DF raw data'!I99="","",'DF raw data'!I99) -> -284 | B94: =IF('DF raw data'!J99="","",'DF raw data'!J99) -> -4.38036e-07 | C94: =IF('DF raw data'!K99="","",'DF raw data'!K99) -> 0.000255655 | D94: =IF('DF raw data'!L99="","",'DF raw data'!L99) -> -1.00173e-05 | F94: -4.398757512e-07 | G94: 0.000256728751 | H94: -1.005937266e-05 | J94: -2.379425514e-05 | K94: -0.0001716132876 | L94: 0.004145722209 | M94: 0.03537317496 | N94: 9.939675541e-05
A95: =IF('DF raw data'!I100="","",'DF raw data'!I100) -> -283.5 | B95: =IF('DF raw data'!J100="","",'DF raw data'!J100) -> 5.45837e-06 | C95: =IF('DF raw data'!K100="","",'DF raw data'!K100) -> 0.000257768 | D95: =IF('DF raw data'!L100="","",'DF raw data'!L100) -> -1.49266e-05 | F95: 5.481295154e-06 | G95: 0.0002588506256 | H95: -1.498929172e-05 | J95: -2.105360756e-05 | K95: -0.0001821400914 | L95: 0.004275147521 | M95: 0.03751074872 | N95: 0.0001085354202
A96: =IF('DF raw data'!I101="","",'DF raw data'!I101) -> -283 | B96: =IF('DF raw data'!J101="","",'DF raw data'!J101) -> 7.12284e-07 | C96: =IF('DF raw data'!K101="","",'DF raw data'!K101) -> 0.000253842 | D96: =IF('DF raw data'!L101="","",'DF raw data'!L101) -> -5.94061e-06 | F96: 7.152755928e-07 | G96: 0.0002549081364 | H96: -5.965560562e-06 | J96: -2.069596976e-05 | K96: -0.0001924880763 | L96: 0.00440260159 | M96: 0.03971204952 | N96: 0.0001182270847
A97: =IF('DF raw data'!I102="","",'DF raw data'!I102) -> -282.5 | B97: =IF('DF raw data'!J102="","",'DF raw data'!J102) -> 3.47054e-06 | C97: =IF('DF raw data'!K102="","",'DF raw data'!K102) -> 0.000253742 | D97: =IF('DF raw data'!L102="","",'DF raw data'!L102) -> -1.17987e-05 | F97: 3.485116268e-06 | G97: 0.0002548077164 | H97: -1.184825454e-05 | J97: -1.895341163e-05 | K97: -0.0002019647821 | L97: 0.004530005448 | M97: 0.04197705224 | N97: 0.000128487739
A98: =IF('DF raw data'!I103="","",'DF raw data'!I103) -> -282 | B98: =IF('DF raw data'!J103="","",'DF raw data'!J103) -> -9.01678e-06 | C98: =IF('DF raw data'!K103="","",'DF raw data'!K103) -> 0.000251515 | D98: =IF('DF raw data'!L103="","",'DF raw data'!L103) -> -1.76291e-05 | F98: -9.054650476e-06 | G98: 0.000252571363 | H98: -1.770314222e-05 | J98: -2.348073687e-05 | K98: -0.0002137051505 | L98: 0.004656291129 | M98: 0.04430519781 | N98: 0.0001393285382
A99: =IF('DF raw data'!I104="","",'DF raw data'!I104) -> -281.5 | B99: =IF('DF raw data'!J104="","",'DF raw data'!J104) -> -8.76112e-06 | C99: =IF('DF raw data'!K104="","",'DF raw data'!K104) -> 0.000253175 | D99: =IF('DF raw data'!L104="","",'DF raw data'!L104) -> -1.69204e-05 | F99: -8.797916704e-06 | G99: 0.000254238335 | H99: -1.699146568e-05 | J99: -2.787969522e-05 | K99: -0.0002276449982 | L99: 0.004783410297 | M99: 0.04669690295 | N99: 0.0001507694339
A100: =IF('DF raw data'!I105="","",'DF raw data'!I105) -> -281 | B100: =IF('DF raw data'!J105="","",'DF raw data'!J105) -> 5.91987e-07 | C100: =IF('DF raw data'!K105="","",'DF raw data'!K105) -> 0.000254462 | D100: =IF('DF raw data'!L105="","",'DF raw data'!L105) -> -1.79864e-05 | F100: 5.944733454e-07 | G100: 0.0002555307404 | H100: -1.806194288e-05 | J100: -2.758245855e-05 | K100: -0.0002414362274 | L100: 0.004911175667 | M100: 0.04915249079 | N100: 0.0001628296375
A101: =IF('DF raw data'!I106="","",'DF raw data'!I106) -> -280.5 | B101: =IF('DF raw data'!J106="","",'DF raw data'!J106) -> -6.13203e-06 | C101: =IF('DF raw data'!K106="","",'DF raw data'!K106) -> 0.000264076 | D101: =IF('DF raw data'!L106="","",'DF raw data'!L106) -> -2.11667e-05 | F101: -6.157784526e-06 | G101: 0.0002651851192 | H101: -2.125560014e-05 | J101: -3.066135081e-05 | K101: -0.0002567669028 | L101: 0.005043768227 | M101: 0.0516743749 | N101: 0.0001755499066
A102: =IF('DF raw data'!I107="","",'DF raw data'!I107) -> -280 | B102: =IF('DF raw data'!J107="","",'DF raw data'!J107) -> -7.2261e-06 | C102: =IF('DF raw data'!K107="","",'DF raw data'!K107) -> 0.000260231 | D102: =IF('DF raw data'!L107="","",'DF raw data'!L107) -> -1.28602e-05 | F102: -7.25644962e-06 | G102: 0.0002613239702 | H102: -1.291421284e-05 | J102: -3.428957562e-05 | K102: -0.0002739116906 | L102: 0.005174430212 | M102: 0.05426159001 | N102: 0.0001889378584
A103: =IF('DF raw data'!I108="","",'DF raw data'!I108) -> -279.5 | B103: =IF('DF raw data'!J108="","",'DF raw data'!J108) -> 1.29471e-06 | C103: =IF('DF raw data'!K108="","",'DF raw data'!K108) -> 0.000259535 | D103: =IF('DF raw data'!L108="","",'DF raw data'!L108) -> -1.4886e-05 | F103: 1.300147782e-06 | G103: 0.000260625047 | H103: -1.49485212e-05 | J103: -3.363950173e-05 | K103: -0.0002907314415 | L103: 0.005304742735 | M103: 0.05691396137 | N103: 0.000203008572
A104: =IF('DF raw data'!I109="","",'DF raw data'!I109) -> -279 | B104: =IF('DF raw data'!J109="","",'DF raw data'!J109) -> -5.94401e-06 | C104: =IF('DF raw data'!K109="","",'DF raw data'!K109) -> 0.000259398 | D104: =IF('DF raw data'!L109="","",'DF raw data'!L109) -> -1.4435e-05 | F104: -5.968974842e-06 | G104: 0.0002604874716 | H104: -1.4495627e-05 | J104: -3.662398915e-05 | K104: -0.0003090434361 | L104: 0.005434986471 | M104: 0.05963145461 | N104: 0.0002177787816
A105: =IF('DF raw data'!I110="","",'DF raw data'!I110) -> -278.5 | B105: =IF('DF raw data'!J110="","",'DF raw data'!J110) -> -1.7345e-05 | C105: =IF('DF raw data'!K110="","",'DF raw data'!K110) -> 0.00025401 | D105: =IF('DF raw data'!L110="","",'DF raw data'!L110) -> -1.63984e-05 | F105: -1.7417849e-05 | G105: 0.000255076842 | H105: -1.646727328e-05 | J105: -4.533291365e-05 | K105: -0.0003317098929 | L105: 0.005562524892 | M105: 0.06241271706 | N105: 0.0002332506508
A106: =IF('DF raw data'!I111="","",'DF raw data'!I111) -> -278 | B106: =IF('DF raw data'!J111="","",'DF raw data'!J111) -> -6.26761e-06 | C106: =IF('DF raw data'!K111="","",'DF raw data'!K111) -> 0.000254686 | D106: =IF('DF raw data'!L111="","",'DF raw data'!L111) -> -9.49695e-06 | F106: -6.293933962e-06 | G106: 0.0002557556812 | H106: -9.53683719e-06 | J106: -4.847988063e-05 | K106: -0.0003559498332 | L106: 0.005690402733 | M106: 0.06525791842 | N106: 0.0002494421675
A107: =IF('DF raw data'!I112="","",'DF raw data'!I112) -> -277.5 | B107: =IF('DF raw data'!J112="","",'DF raw data'!J112) -> -3.82807e-06 | C107: =IF('DF raw data'!K112="","",'DF raw data'!K112) -> 0.000255567 | D107: =IF('DF raw data'!L112="","",'DF raw data'!L112) -> -1.77006e-05 | F107: -3.844147894e-06 | G107: 0.0002566403814 | H107: -1.777494252e-05 | J107: -5.040195458e-05 | K107: -0.0003811508105 | L107: 0.005818722923 | M107: 0.06816727988 | N107: 0.0002663722059
A108: =IF('DF raw data'!I113="","",'DF raw data'!I113) -> -277 | B108: =IF('DF raw data'!J113="","",'DF raw data'!J113) -> -4.8495e-06 | C108: =IF('DF raw data'!K113="","",'DF raw data'!K113) -> 0.000251637 | D108: =IF('DF raw data'!L113="","",'DF raw data'!L113) -> -2.28668e-05 | F108: -4.8698679e-06 | G108: 0.0002526938754 | H108: -2.296284056e-05 | J108: -5.283688853e-05 | K108: -0.0004075692548 | L108: 0.005945069861 | M108: 0.07113981481 | N108: 0.0002840455296
A109: =IF('DF raw data'!I114="","",'DF raw data'!I114) -> -276.5 | B109: =IF('DF raw data'!J114="","",'DF raw data'!J114) -> 1.41091e-05 | C109: =IF('DF raw data'!K114="","",'DF raw data'!K114) -> 0.000258231 | D109: =IF('DF raw data'!L114="","",'DF raw data'!L114) -> -1.94117e-05 | F109: 1.416835822e-05 | G109: 0.0002593155702 | H109: -1.949322914e-05 | J109: -4.575270942e-05 | K109: -0.0004304456095 | L109: 0.006074727646 | M109: 0.07417717864 | N109: 0.0003024977343
A110: =IF('DF raw data'!I115="","",'DF raw data'!I115) -> -276 | B110: =IF('DF raw data'!J115="","",'DF raw data'!J115) -> 1.23124e-06 | C110: =IF('DF raw data'!K115="","",'DF raw data'!K115) -> 0.000260039 | D110: =IF('DF raw data'!L115="","",'DF raw data'!L115) -> -1.6014e-05 | F110: 1.236411208e-06 | G110: 0.0002611311638 | H110: -1.60812588e-05 | J110: -4.513450381e-05 | K110: -0.0004530128614 | L110: 0.006205293228 | M110: 0.07727982525 | N110: 0.0003217515849
A111: =IF('DF raw data'!I116="","",'DF raw data'!I116) -> -275.5 | B111: =IF('DF raw data'!J116="","",'DF raw data'!J116) -> 4.1862e-06 | C111: =IF('DF raw data'!K116="","",'DF raw data'!K116) -> 0.000252177 | D111: =IF('DF raw data'!L116="","",'DF raw data'!L116) -> -2.85927e-05 | F111: 4.20378204e-06 | G111: 0.0002532361434 | H111: -2.871278934e-05 | J111: -4.303261279e-05 | K111: -0.0004745291678 | L111: 0.0063319113 | M111: 0.0804457809 | N111: 0.0003417990611
A112: =IF('DF raw data'!I117="","",'DF raw data'!I117) -> -275 | B112: =IF('DF raw data'!J117="","",'DF raw data'!J117) -> -5.75181e-06 | C112: =IF('DF raw data'!K117="","",'DF raw data'!K117) -> 0.000247952 | D112: =IF('DF raw data'!L117="","",'DF raw data'!L117) -> -1.46534e-05 | F112: -5.775967602e-06 | G112: 0.0002489933984 | H112: -1.471494428e-05 | J112: -4.59205966e-05 | K112: -0.0004974894661 | L112: 0.006456407999 | M112: 0.0836739849 | N112: 0.0003626427176
A113: =IF('DF raw data'!I118="","",'DF raw data'!I118) -> -274.5 | B113: =IF('DF raw data'!J118="","",'DF raw data'!J118) -> -3.12322e-06 | C113: =IF('DF raw data'!K118="","",'DF raw data'!K118) -> 0.000251063 | D113: =IF('DF raw data'!L118="","",'DF raw data'!L118) -> -1.83308e-05 | F113: -3.136337524e-06 | G113: 0.0002521174646 | H113: -1.840778936e-05 | J113: -4.748876536e-05 | K113: -0.0005212338488 | L113: 0.006582466731 | M113: 0.08696521827 | N113: 0.0003843082793
A114: =IF('DF raw data'!I119="","",'DF raw data'!I119) -> -274 | B114: =IF('DF raw data'!J119="","",'DF raw data'!J119) -> -1.14782e-06 | C114: =IF('DF raw data'!K119="","",'DF raw data'!K119) -> 0.000250506 | D114: =IF('DF raw data'!L119="","",'DF raw data'!L119) -> -2.18271e-06 | F114: -1.152640844e-06 | G114: 0.0002515581252 | H114: -2.191877382e-06 | J114: -4.806508578e-05 | K114: -0.0005452663917 | L114: 0.006708245794 | M114: 0.09031934116 | N114: 0.0004068097153
A115: =IF('DF raw data'!I120="","",'DF raw data'!I120) -> -273.5 | B115: =IF('DF raw data'!J120="","",'DF raw data'!J120) -> -1.27422e-05 | C115: =IF('DF raw data'!K120="","",'DF raw data'!K120) -> 0.000242124 | D115: =IF('DF raw data'!L120="","",'DF raw data'!L120) -> -2.19587e-06 | F115: -1.279571724e-05 | G115: 0.0002431409208 | H115: -2.205092654e-06 | J115: -5.44629444e-05 | K115: -0.0005724978639 | L115: 0.006829816254 | M115: 0.09373424929 | N115: 0.0004301343934
A116: =IF('DF raw data'!I121="","",'DF raw data'!I121) -> -273 | B116: =IF('DF raw data'!J121="","",'DF raw data'!J121) -> -8.44818e-06 | C116: =IF('DF raw data'!K121="","",'DF raw data'!K121) -> 0.000249263 | D116: =IF('DF raw data'!L121="","",'DF raw data'!L121) -> -5.07291e-06 | F116: -8.483662356e-06 | G116: 0.0002503099046 | H116: -5.094216222e-06 | J116: -5.870477558e-05 | K116: -0.0006018502516 | L116: 0.006954971207 | M116: 0.09721173489 | N116: 0.0004543219288
A117: =IF('DF raw data'!I122="","",'DF raw data'!I122) -> -272.5 | B117: =IF('DF raw data'!J122="","",'DF raw data'!J122) -> -6.72019e-06 | C117: =IF('DF raw data'!K122="","",'DF raw data'!K122) -> 0.00024357 | D117: =IF('DF raw data'!L122="","",'DF raw data'!L122) -> -3.1485e-06 | F117: -6.748414798e-06 | G117: 0.000244592994 | H117: -3.1617237e-06 | J117: -6.207898298e-05 | K117: -0.0006328897431 | L117: 0.007077267704 | M117: 0.1007503687 | N117: 0.0004793677147
A118: =IF('DF raw data'!I123="","",'DF raw data'!I123) -> -272 | B118: =IF('DF raw data'!J123="","",'DF raw data'!J123) -> -9.08739e-06 | C118: =IF('DF raw data'!K123="","",'DF raw data'!K123) -> 0.000248024 | D118: =IF('DF raw data'!L123="","",'DF raw data'!L123) -> -7.00606e-06 | F118: -9.125557038e-06 | G118: 0.0002490657008 | H118: -7.035485452e-06 | J118: -6.66417615e-05 | K118: -0.0006662106239 | L118: 0.007201800554 | M118: 0.104351269 | N118: 0.0005053029009
A119: =IF('DF raw data'!I124="","",'DF raw data'!I124) -> -271.5 | B119: =IF('DF raw data'!J124="","",'DF raw data'!J124) -> -6.14152e-06 | C119: =IF('DF raw data'!K124="","",'DF raw data'!K124) -> 0.000248203 | D119: =IF('DF raw data'!L124="","",'DF raw data'!L124) -> -6.75671e-06 | F119: -6.167314384e-06 | G119: 0.0002492454526 | H119: -6.785088182e-06 | J119: -6.972541869e-05 | K119: -0.0007010733332 | L119: 0.00732642328 | M119: 0.1080144807 | N119: 0.0005321435708
A120: =IF('DF raw data'!I125="","",'DF raw data'!I125) -> -271 | B120: =IF('DF raw data'!J125="","",'DF raw data'!J125) -> -1.22823e-05 | C120: =IF('DF raw data'!K125="","",'DF raw data'!K125) -> 0.000248256 | D120: =IF('DF raw data'!L125="","",'DF raw data'!L125) -> -1.92158e-05 | F120: -1.233388566e-05 | G120: 0.0002492986752 | H120: -1.929650636e-05 | J120: -7.589236152e-05 | K120: -0.000739019514 | L120: 0.007451072618 | M120: 0.111740017 | N120: 0.0005599056922
A121: =IF('DF raw data'!I126="","",'DF raw data'!I126) -> -270.5 | B121: =IF('DF raw data'!J126="","",'DF raw data'!J126) -> -1.44605e-05 | C121: =IF('DF raw data'!K126="","",'DF raw data'!K126) -> 0.000259349 | D121: =IF('DF raw data'!L126="","",'DF raw data'!L126) -> -2.00247e-05 | F121: -1.45212341e-05 | G121: 0.0002604382658 | H121: -2.010880374e-05 | J121: -8.315297857e-05 | K121: -0.0007805960033 | L121: 0.007581291751 | M121: 0.1155306628 | N121: 0.0005886471417
A122: =IF('DF raw data'!I127="","",'DF raw data'!I127) -> -270 | B122: =IF('DF raw data'!J127="","",'DF raw data'!J127) -> -1.15794e-05 | C122: =IF('DF raw data'!K127="","",'DF raw data'!K127) -> 0.000269819 | D122: =IF('DF raw data'!L127="","",'DF raw data'!L127) -> -1.64253e-05 | F122: -1.162803348e-05 | G122: 0.0002709522398 | H122: -1.649428626e-05 | J122: -8.896699531e-05 | K122: -0.0008250795009 | L122: 0.007716767871 | M122: 0.1193890468 | N122: 0.0006184253524
A123: =IF('DF raw data'!I128="","",'DF raw data'!I128) -> -269.5 | B123: =IF('DF raw data'!J128="","",'DF raw data'!J128) -> -1.53682e-05 | C123: =IF('DF raw data'!K128="","",'DF raw data'!K128) -> 0.000254959 | D123: =IF('DF raw data'!L128="","",'DF raw data'!L128) -> -3.31891e-06 | F123: -1.543274644e-05 | G123: 0.0002560298278 | H123: -3.332849422e-06 | J123: -9.668336853e-05 | K123: -0.0008734211852 | L123: 0.007844782784 | M123: 0.1233114382 | N123: 0.0006492003347
A124: =IF('DF raw data'!I129="","",'DF raw data'!I129) -> -269 | B124: =IF('DF raw data'!J129="","",'DF raw data'!J129) -> 8.15536e-06 | C124: =IF('DF raw data'!K129="","",'DF raw data'!K129) -> 0.000268599 | D124: =IF('DF raw data'!L129="","",'DF raw data'!L129) -> -2.54032e-05 | F124: 8.189612512e-06 | G124: 0.0002697271158 | H124: -2.550989344e-05 | J124: -9.258856227e-05 | K124: -0.0009197154663 | L124: 0.007979646342 | M124: 0.1273012613 | N124: 0.0006810419989
A125: =IF('DF raw data'!I130="","",'DF raw data'!I130) -> -268.5 | B125: =IF('DF raw data'!J130="","",'DF raw data'!J130) -> -5.10185e-06 | C125: =IF('DF raw data'!K130="","",'DF raw data'!K130) -> 0.000276224 | D125: =IF('DF raw data'!L130="","",'DF raw data'!L130) -> -2.92268e-05 | F125: -5.12327777e-06 | G125: 0.0002773841408 | H125: -2.934955256e-05 | J125: -9.515020116e-05 | K125: -0.0009672905669 | L125: 0.008118338413 | M125: 0.1313604306 | N125: 0.000714000235
A126: =IF('DF raw data'!I131="","",'DF raw data'!I131) -> -268 | B126: =IF('DF raw data'!J131="","",'DF raw data'!J131) -> -1.70814e-05 | C126: =IF('DF raw data'!K131="","",'DF raw data'!K131) -> 0.000261312 | D126: =IF('DF raw data'!L131="","",'DF raw data'!L131) -> -2.6409e-05 | F126: -1.715314188e-05 | G126: 0.0002624095104 | H126: -2.65199178e-05 | J126: -0.0001037267721 | K126: -0.001019153953 | L126: 0.008249543168 | M126: 0.1354852021 | N126: 0.0007480330959
A127: =IF('DF raw data'!I132="","",'DF raw data'!I132) -> -267.5 | B127: =IF('DF raw data'!J132="","",'DF raw data'!J132) -> -2.22427e-06 | C127: =IF('DF raw data'!K132="","",'DF raw data'!K132) -> 0.000259222 | D127: =IF('DF raw data'!L132="","",'DF raw data'!L132) -> -2.13914e-05 | F127: -2.233611934e-06 | G127: 0.0002603107324 | H127: -2.148124388e-05 | J127: -0.0001048435781 | K127: -0.001071575742 | L127: 0.008379698534 | M127: 0.1396750514 | N127: 0.0007831482657
A128: =IF('DF raw data'!I133="","",'DF raw data'!I133) -> -267 | B128: =IF('DF raw data'!J133="","",'DF raw data'!J133) -> 2.06144e-06 | C128: =IF('DF raw data'!K133="","",'DF raw data'!K133) -> 0.000262597 | D128: =IF('DF raw data'!L133="","",'DF raw data'!L133) -> -1.20849e-05 | F128: =(1-$G$1*($B$49-$G$2))*B128 -> 2.070098048e-06 | G128: 0.0002636999074 | H128: -1.213565658e-05 | J128: =F128*$G$3+J127 -> -0.000103808529 | K128: =J128*$G$3+K127 -> -0.001123480006 | L128: =G128*$G$3+L127 -> 0.008511548488 | M128: =L128*$G$3+M127 -> 0.1439308256 | N128: =(J128^2+L128^2)*$G$3+N127 -> 0.0008193768826
A129: =IF('DF raw data'!I134="","",'DF raw data'!I134) -> -266.5 | B129: =IF('DF raw data'!J134="","",'DF raw data'!J134) -> 5.27289e-06 | C129: =IF('DF raw data'!K134="","",'DF raw data'!K134) -> 0.000258982 | D129: =IF('DF raw data'!L134="","",'DF raw data'!L134) -> -2.46593e-05 | F129: 5.295036138e-06 | G129: 0.0002600697244 | H129: -2.476286906e-05 | J129: -0.000101161011 | K129: -0.001174060512 | L129: 0.00864158335 | M129: 0.1482516173 | N129: 0.0008567204808
A130: =IF('DF raw data'!I135="","",'DF raw data'!I135) -> -266 | B130: =IF('DF raw data'!J135="","",'DF raw data'!J135) -> 4.68318e-06 | C130: =IF('DF raw data'!K135="","",'DF raw data'!K135) -> 0.000262789 | D130: =IF('DF raw data'!L135="","",'DF raw data'!L135) -> -5.20608e-06 | F130: 4.702849356e-06 | G130: 0.0002638927138 | H130: -5.227945536e-06 | J130: -9.880958629e-05 | K130: -0.001223465305 | L130: 0.008773529707 | M130: 0.1526383822 | N130: 0.0008952127743
A131: =IF('DF raw data'!I136="","",'DF raw data'!I136) -> -265.5 | B131: =IF('DF raw data'!J136="","",'DF raw data'!J136) -> 7.90718e-08 | C131: =IF('DF raw data'!K136="","",'DF raw data'!K136) -> 0.00026006 | D131: =IF('DF raw data'!L136="","",'DF raw data'!L136) -> -1.72273e-05 | F131: 7.940390156e-08 | G131: 0.000261152252 | H131: -1.729965466e-05 | J131: -9.876988434e-05 | K131: -0.001272850247 | L131: 0.008904105833 | M131: 0.1570904351 | N131: 0.0009348592023
A132: =IF('DF raw data'!I137="","",'DF raw data'!I137) -> -265 | B132: =IF('DF raw data'!J137="","",'DF raw data'!J137) -> -1.65225e-06 | C132: =IF('DF raw data'!K137="","",'DF raw data'!K137) -> 0.000258497 | D132: =IF('DF raw data'!L137="","",'DF raw data'!L137) -> -1.4426e-05 | F132: -1.65918945e-06 | G132: 0.0002595826874 | H132: -1.44865892e-05 | J132: -9.959947907e-05 | K132: -0.001322649987 | L132: 0.009033897177 | M132: 0.1616073837 | N132: 0.0009756698115
A133: =IF('DF raw data'!I138="","",'DF raw data'!I138) -> -264.5 | B133: =IF('DF raw data'!J138="","",'DF raw data'!J138) -> 3.79604e-06 | C133: =IF('DF raw data'!K138="","",'DF raw data'!K138) -> 0.000256232 | D133: =IF('DF raw data'!L138="","",'DF raw data'!L138) -> -1.93906e-05 | F133: 3.811983368e-06 | G133: 0.0002573081744 | H133: -1.947204052e-05 | J133: -9.769348738e-05 | K133: -0.001371496731 | L133: 0.009162551264 | M133: 0.1661886593 | N133: 0.001017650756
A134: =IF('DF raw data'!I139="","",'DF raw data'!I139) -> -264 | B134: =IF('DF raw data'!J139="","",'DF raw data'!J139) -> 5.88004e-07 | C134: =IF('DF raw data'!K139="","",'DF raw data'!K139) -> 0.000260488 | D134: =IF('DF raw data'!L139="","",'DF raw data'!L139) -> -1.18829e-05 | F134: 5.904736168e-07 | G134: 0.0002615820496 | H134: -1.193280818e-05 | J134: -9.739825057e-05 | K134: -0.001420195856 | L134: 0.009293342289 | M134: 0.1708353305 | N134: 0.001060838605
A135: =IF('DF raw data'!I140="","",'DF raw data'!I140) -> -263.5 | B135: =IF('DF raw data'!J140="","",'DF raw data'!J140) -> -3.50757e-06 | C135: =IF('DF raw data'!K140="","",'DF raw data'!K140) -> 0.000263465 | D135: =IF('DF raw data'!L140="","",'DF raw data'!L140) -> -1.84823e-05 | F135: -3.522301794e-06 | G135: 0.000264571553 | H135: -1.855992566e-05 | J135: -9.915940147e-05 | K135: -0.001469775557 | L135: 0.009425628065 | M135: 0.1755481445 | N135: 0.001105264753
A136: =IF('DF raw data'!I141="","",'DF raw data'!I141) -> -263 | B136: =IF('DF raw data'!J141="","",'DF raw data'!J141) -> -2.73911e-06 | C136: =IF('DF raw data'!K141="","",'DF raw data'!K141) -> 0.000265245 | D136: =IF('DF raw data'!L141="","",'DF raw data'!L141) -> -1.72946e-05 | F136: -2.750614262e-06 | G136: 0.000266359029 | H136: -1.736723732e-05 | J136: -0.0001005347086 | K136: -0.001520042911 | L136: 0.00955880758 | M136: 0.1803275483 | N136: 0.001150955208
A137: =IF('DF raw data'!I142="","",'DF raw data'!I142) -> -262.5 | B137: =IF('DF raw data'!J142="","",'DF raw data'!J142) -> -2.03603e-06 | C137: =IF('DF raw data'!K142="","",'DF raw data'!K142) -> 0.000266284 | D137: =IF('DF raw data'!L142="","",'DF raw data'!L142) -> -1.55605e-05 | F137: -2.044581326e-06 | G137: 0.0002674023928 | H137: -1.56258541e-05 | J137: -0.0001015569993 | K137: -0.00157082141 | L137: 0.009692508776 | M137: 0.1851738027 | N137: 0.001197932728
A138: =IF('DF raw data'!I143="","",'DF raw data'!I143) -> -262 | B138: =IF('DF raw data'!J143="","",'DF raw data'!J143) -> 2.25985e-06 | C138: =IF('DF raw data'!K143="","",'DF raw data'!K143) -> 0.000254853 | D138: =IF('DF raw data'!L143="","",'DF raw data'!L143) -> -2.19617e-05 | F138: 2.26934137e-06 | G138: 0.0002559233826 | H138: -2.205393914e-05 | J138: -0.0001004223286 | K138: -0.001621032575 | L138: 0.009820470467 | M138: 0.1900840379 | N138: 0.001246158591
A139: =IF('DF raw data'!I144="","",'DF raw data'!I144) -> -261.5 | B139: =IF('DF raw data'!J144="","",'DF raw data'!J144) -> -1.23496e-05 | C139: =IF('DF raw data'!K144="","",'DF raw data'!K144) -> 0.000248163 | D139: =IF('DF raw data'!L144="","",'DF raw data'!L144) -> -1.55798e-05 | F139: -1.240146832e-05 | G139: 0.0002492052846 | H139: -1.564523516e-05 | J139: -0.0001066230627 | K139: -0.001674344106 | L139: 0.00994507311 | M139: 0.1950565745 | N139: 0.001295616515
A140: =IF('DF raw data'!I145="","",'DF raw data'!I145) -> -261 | B140: =IF('DF raw data'!J145="","",'DF raw data'!J145) -> -1.72009e-06 | C140: =IF('DF raw data'!K145="","",'DF raw data'!K145) -> 0.000263539 | D140: =IF('DF raw data'!L145="","",'DF raw data'!L145) -> -8.36988e-06 | F140: -1.727314378e-06 | G140: 0.0002646458638 | H140: -8.405033496e-06 | J140: -0.0001074867199 | K140: -0.001728087466 | L140: 0.01007739604 | M140: 0.2000952725 | N140: 0.001346399247
A141: =IF('DF raw data'!I146="","",'DF raw data'!I146) -> -260.5 | B141: =IF('DF raw data'!J146="","",'DF raw data'!J146) -> -6.32991e-06 | C141: =IF('DF raw data'!K146="","",'DF raw data'!K146) -> 0.000255913 | D141: =IF('DF raw data'!L146="","",'DF raw data'!L146) -> -1.26347e-05 | F141: -6.356495622e-06 | G141: 0.0002569878346 | H141: -1.268776574e-05 | J141: -0.0001106649677 | K141: -0.00178341995 | L141: 0.01020588996 | M141: 0.2051982175 | N141: 0.001398485465
A142: =IF('DF raw data'!I147="","",'DF raw data'!I147) -> -260 | B142: =IF('DF raw data'!J147="","",'DF raw data'!J147) -> -1.71322e-07 | C142: =IF('DF raw data'!K147="","",'DF raw data'!K147) -> 0.000254257 | D142: =IF('DF raw data'!L147="","",'DF raw data'!L147) -> -2.61928e-05 | F142: -1.720415524e-07 | G142: 0.0002553248794 | H142: -2.630280976e-05 | J142: -0.0001107509885 | K142: -0.001838795444 | L142: 0.0103335524 | M142: 0.2103649937 | N142: 0.001451882751
A143: =IF('DF raw data'!I148="","",'DF raw data'!I148) -> -259.5 | B143: =IF('DF raw data'!J148="","",'DF raw data'!J148) -> -8.63655e-06 | C143: =IF('DF raw data'!K148="","",'DF raw data'!K148) -> 0.000251059 | D143: =IF('DF raw data'!L148="","",'DF raw data'!L148) -> -1.2177e-05 | F143: -8.67282351e-06 | G143: 0.0002521134478 | H143: -1.22281434e-05 | J143: -0.0001150874003 | K143: -0.001896339144 | L143: 0.01045960912 | M143: 0.2155947982 | N143: 0.001506591085
A144: =IF('DF raw data'!I149="","",'DF raw data'!I149) -> -259 | B144: =IF('DF raw data'!J149="","",'DF raw data'!J149) -> -1.03658e-05 | C144: =IF('DF raw data'!K149="","",'DF raw data'!K149) -> 0.000250122 | D144: =IF('DF raw data'!L149="","",'DF raw data'!L149) -> -1.0601e-05 | F144: -1.040933636e-05 | G144: 0.0002511725124 | H144: -1.06455242e-05 | J144: -0.0001202920685 | K144: -0.001956485179 | L144: 0.01058519538 | M144: 0.2208873959 | N144: 0.0015626215
A145: =IF('DF raw data'!I150="","",'DF raw data'!I150) -> -258.5 | B145: =IF('DF raw data'!J150="","",'DF raw data'!J150) -> -1.10781e-05 | C145: =IF('DF raw data'!K150="","",'DF raw data'!K150) -> 0.000244703 | D145: =IF('DF raw data'!L150="","",'DF raw data'!L150) -> -7.89375e-07 | F145: -1.112462802e-05 | G145: 0.0002457307526 | H145: -7.92690375e-07 | J145: -0.0001258543825 | K145: -0.00201941237 | L145: 0.01070806076 | M145: 0.2262414263 | N145: 0.001619960703
A146: =IF('DF raw data'!I151="","",'DF raw data'!I151) -> -258 | B146: =IF('DF raw data'!J151="","",'DF raw data'!J151) -> -8.83018e-06 | C146: =IF('DF raw data'!K151="","",'DF raw data'!K151) -> 0.000252364 | D146: =IF('DF raw data'!L151="","",'DF raw data'!L151) -> -8.22875e-06 | F146: -8.867266756e-06 | G146: 0.0002534239288 | H146: -8.26331075e-06 | J146: -0.0001302880158 | K146: -0.002084556378 | L146: 0.01083477272 | M146: 0.2316588126 | N146: 0.00167866534
A147: =IF('DF raw data'!I152="","",'DF raw data'!I152) -> -257.5 | B147: =IF('DF raw data'!J152="","",'DF raw data'!J152) -> -6.89516e-06 | C147: =IF('DF raw data'!K152="","",'DF raw data'!K152) -> 0.000248955 | D147: =IF('DF raw data'!L152="","",'DF raw data'!L152) -> -3.01529e-05 | F147: -6.924119672e-06 | G147: 0.000250000611 | H147: -3.027954218e-05 | J147: -0.0001337500757 | K147: -0.002151431416 | L147: 0.01095977302 | M147: 0.2371386992 | N147: 0.001738732597
A148: =IF('DF raw data'!I153="","",'DF raw data'!I153) -> -257 | B148: =IF('DF raw data'!J153="","",'DF raw data'!J153) -> 1.17962e-05 | C148: =IF('DF raw data'!K153="","",'DF raw data'!K153) -> 0.000259731 | D148: =IF('DF raw data'!L153="","",'DF raw data'!L153) -> -9.79039e-06 | F148: 1.184574404e-05 | G148: 0.0002608218702 | H148: -9.831509638e-06 | J148: -0.0001278272037 | K148: -0.002215345017 | L148: 0.01109018396 | M148: 0.2426837911 | N148: 0.001800236857
A149: =IF('DF raw data'!I154="","",'DF raw data'!I154) -> -256.5 | B149: =IF('DF raw data'!J154="","",'DF raw data'!J154) -> -9.71893e-06 | C149: =IF('DF raw data'!K154="","",'DF raw data'!K154) -> 0.000258775 | D149: =IF('DF raw data'!L154="","",'DF raw data'!L154) -> -2.20122e-05 | F149: -9.759749506e-06 | G149: 0.000259861855 | H149: -2.210465124e-05 | J149: -0.0001327070784 | K149: -0.002281698557 | L149: 0.01122011489 | M149: 0.2482938486 | N149: 0.001863191152
A150: =IF('DF raw data'!I155="","",'DF raw data'!I155) -> -256 | B150: =IF('DF raw data'!J155="","",'DF raw data'!J155) -> 1.36898e-06 | C150: =IF('DF raw data'!K155="","",'DF raw data'!K155) -> 0.000265864 | D150: =IF('DF raw data'!L155="","",'DF raw data'!L155) -> -3.09468e-05 | F150: 1.374729716e-06 | G150: 0.0002669806288 | H150: -3.107677656e-05 | J150: -0.0001320197136 | K150: -0.002347708413 | L150: 0.0113536052 | M150: 0.2539706512 | N150: 0.001927652042
A151: =IF('DF raw data'!I156="","",'DF raw data'!I156) -> -255.5 | B151: =IF('DF raw data'!J156="","",'DF raw data'!J156) -> -1.14473e-05 | C151: =IF('DF raw data'!K156="","",'DF raw data'!K156) -> 0.000265854 | D151: =IF('DF raw data'!L156="","",'DF raw data'!L156) -> -2.39659e-05 | F151: -1.149537866e-05 | G151: 0.0002669705868 | H151: -2.406655678e-05 | J151: -0.0001377674029 | K151: -0.002416592115 | L151: 0.0114870905 | M151: 0.2597141964 | N151: 0.001993638156
A152: =IF('DF raw data'!I157="","",'DF raw data'!I157) -> -255 | B152: =IF('DF raw data'!J157="","",'DF raw data'!J157) -> -6.06776e-06 | C152: =IF('DF raw data'!K157="","",'DF raw data'!K157) -> 0.000258608 | D152: =IF('DF raw data'!L157="","",'DF raw data'!L157) -> -2.08645e-05 | F152: -6.093244592e-06 | G152: 0.0002596941536 | H152: -2.09521309e-05 | J152: -0.0001408140252 | K152: -0.002486999127 | L152: 0.01161693757 | M152: 0.2655226652 | N152: 0.002061124689
A153: =IF('DF raw data'!I158="","",'DF raw data'!I158) -> -254.5 | B153: =IF('DF raw data'!J158="","",'DF raw data'!J158) -> -8.11672e-06 | C153: =IF('DF raw data'!K158="","",'DF raw data'!K158) -> 0.000261711 | D153: =IF('DF raw data'!L158="","",'DF raw data'!L158) -> -2.28896e-05 | F153: -8.150810224e-06 | G153: 0.0002628101862 | H153: -2.298573632e-05 | J153: -0.0001448894303 | K153: -0.002559443843 | L153: 0.01174834267 | M153: 0.2713968365 | N153: 0.002130146963
A154: =IF('DF raw data'!I159="","",'DF raw data'!I159) -> -254 | B154: =IF('DF raw data'!J159="","",'DF raw data'!J159) -> -3.117e-06 | C154: =IF('DF raw data'!K159="","",'DF raw data'!K159) -> 0.000269085 | D154: =IF('DF raw data'!L159="","",'DF raw data'!L159) -> -2.76839e-05 | F154: -3.1300914e-06 | G154: 0.000270215157 | H154: -2.780017238e-05 | J154: -0.000146454476 | K154: -0.002632671081 | L154: 0.01188345024 | M154: 0.2773385617 | N154: 0.002200765883
A155: =IF('DF raw data'!I160="","",'DF raw data'!I160) -> -253.5 | B155: =IF('DF raw data'!J160="","",'DF raw data'!J160) -> -1.3307e-05 | C155: =IF('DF raw data'!K160="","",'DF raw data'!K160) -> 0.000259813 | D155: =IF('DF raw data'!L160="","",'DF raw data'!L160) -> -2.08287e-05 | F155: -1.33628894e-05 | G155: 0.0002609042146 | H155: -2.091618054e-05 | J155: -0.0001531359207 | K155: -0.002709239041 | L155: 0.01201390235 | M155: 0.2833455128 | N155: 0.002272944533
A156: =IF('DF raw data'!I161="","",'DF raw data'!I161) -> -253 | B156: =IF('DF raw data'!J161="","",'DF raw data'!J161) -> 1.03246e-05 | C156: =IF('DF raw data'!K161="","",'DF raw data'!K161) -> 0.000260266 | D156: =IF('DF raw data'!L161="","",'DF raw data'!L161) -> -1.22078e-05 | F156: 1.036796332e-05 | G156: 0.0002613591172 | H156: -1.225907276e-05 | J156: -0.000147951939 | K156: -0.00278321501 | L156: 0.01214458191 | M156: 0.2894178038 | N156: 0.002346700913
A157: =IF('DF raw data'!I162="","",'DF raw data'!I162) -> -252.5 | B157: =IF('DF raw data'!J162="","",'DF raw data'!J162) -> -1.20978e-05 | C157: =IF('DF raw data'!K162="","",'DF raw data'!K162) -> 0.000263252 | D157: =IF('DF raw data'!L162="","",'DF raw data'!L162) -> -8.32833e-06 | F157: -1.214861076e-05 | G157: 0.0002643576584 | H157: -8.363308986e-06 | J157: -0.0001540262444 | K157: -0.002860228133 | L157: 0.01227676074 | M157: 0.2955561842 | N157: 0.002422072202
A158: =IF('DF raw data'!I163="","",'DF raw data'!I163) -> -252 | B158: =IF('DF raw data'!J163="","",'DF raw data'!J163) -> 2.33109e-06 | C158: =IF('DF raw data'!K163="","",'DF raw data'!K163) -> 0.000262805 | D158: =IF('DF raw data'!L163="","",'DF raw data'!L163) -> -3.27686e-05 | F158: 2.340880578e-06 | G158: 0.000263908781 | H158: -3.290622812e-05 | J158: -0.0001528558041 | K158: -0.002936656035 | L158: 0.01240871513 | M158: 0.3017605417 | N158: 0.00249907199
A159: =IF('DF raw data'!I164="","",'DF raw data'!I164) -> -251.5 | B159: =IF('DF raw data'!J164="","",'DF raw data'!J164) -> -6.70502e-06 | C159: =IF('DF raw data'!K164="","",'DF raw data'!K164) -> 0.000268615 | D159: =IF('DF raw data'!L164="","",'DF raw data'!L164) -> -2.6604e-05 | F159: -6.733181084e-06 | G159: 0.000269743183 | H159: -2.67157368e-05 | J159: -0.0001562223947 | K159: -0.003014767232 | L159: 0.01254358672 | M159: 0.3080323351 | N159: 0.002577754976
A160: =IF('DF raw data'!I165="","",'DF raw data'!I165) -> -251 | B160: =IF('DF raw data'!J165="","",'DF raw data'!J165) -> 6.61048e-06 | C160: =IF('DF raw data'!K165="","",'DF raw data'!K165) -> 0.000261238 | D160: =IF('DF raw data'!L165="","",'DF raw data'!L165) -> -1.39124e-05 | F160: 6.638244016e-06 | G160: 0.0002623351996 | H160: -1.397083208e-05 | J160: -0.0001529032727 | K160: -0.003091218868 | L160: 0.01267475432 | M160: 0.3143697123 | N160: 0.002658091365
A161: =IF('DF raw data'!I166="","",'DF raw data'!I166) -> -250.5 | B161: =IF('DF raw data'!J166="","",'DF raw data'!J166) -> -1.19592e-05 | C161: =IF('DF raw data'!K166="","",'DF raw data'!K166) -> 0.00026162 | D161: =IF('DF raw data'!L166="","",'DF raw data'!L166) -> -2.44647e-05 | F161: -1.200942864e-05 | G161: 0.000262718804 | H161: -2.456745174e-05 | J161: -0.000158907987 | K161: -0.003170672862 | L161: 0.01280611372 | M161: 0.3207727691 | N161: 0.002740102265
A162: =IF('DF raw data'!I167="","",'DF raw data'!I167) -> -250 | B162: =IF('DF raw data'!J167="","",'DF raw data'!J167) -> -2.86523e-06 | C162: =IF('DF raw data'!K167="","",'DF raw data'!K167) -> 0.000257018 | D162: =IF('DF raw data'!L167="","",'DF raw data'!L167) -> -2.04745e-05 | F162: -2.877263966e-06 | G162: 0.0002580974756 | H162: -2.05604929e-05 | J162: -0.000160346619 | K162: -0.003250846171 | L162: 0.01293516246 | M162: 0.3272403503 | N162: 0.002823774334
A163: =IF('DF raw data'!I168="","",'DF raw data'!I168) -> -249.5 | B163: =IF('DF raw data'!J168="","",'DF raw data'!J168) -> -3.76437e-06 | C163: =IF('DF raw data'!K168="","",'DF raw data'!K168) -> 0.000260065 | D163: =IF('DF raw data'!L168="","",'DF raw data'!L168) -> -1.7469e-05 | F163: -3.780180354e-06 | G163: 0.000261157273 | H163: -1.75423698e-05 | J163: -0.0001622367091 | K163: -0.003331964526 | L163: 0.0130657411 | M163: 0.3337732209 | N163: 0.00290914429
A164: =IF('DF raw data'!I169="","",'DF raw data'!I169) -> -249 | B164: =IF('DF raw data'!J169="","",'DF raw data'!J169) -> -1.54231e-05 | C164: =IF('DF raw data'!K169="","",'DF raw data'!K169) -> 0.000268044 | D164: =IF('DF raw data'!L169="","",'DF raw data'!L169) -> -1.60855e-05 | F164: -1.548787702e-05 | G164: 0.0002691697848 | H164: -1.61530591e-05 | J164: -0.0001699806476 | K164: -0.00341695485 | L164: 0.01320032599 | M164: 0.3403733839 | N164: 0.00299628304
A165: =IF('DF raw data'!I170="","",'DF raw data'!I170) -> -248.5 | B165: =IF('DF raw data'!J170="","",'DF raw data'!J170) -> -1.26002e-05 | C165: =IF('DF raw data'!K170="","",'DF raw data'!K170) -> 0.000263665 | D165: =IF('DF raw data'!L170="","",'DF raw data'!L170) -> -2.36999e-05 | F165: -1.265312084e-05 | G165: 0.000264772393 | H165: -2.379943958e-05 | J165: -0.0001763072081 | K165: -0.003505108454 | L165: 0.01333271219 | M165: 0.34703974 | N165: 0.003085179189
A166: =IF('DF raw data'!I171="","",'DF raw data'!I171) -> -248 | B166: =IF('DF raw data'!J171="","",'DF raw data'!J171) -> 1.21937e-05 | C166: =IF('DF raw data'!K171="","",'DF raw data'!K171) -> 0.000266504 | D166: =IF('DF raw data'!L171="","",'DF raw data'!L171) -> -2.97267e-05 | F166: 1.224491354e-05 | G166: 0.0002676233168 | H166: -2.985155214e-05 | J166: -0.0001701847513 | K166: -0.003590200829 | L166: 0.01346652384 | M166: 0.3537730019 | N166: 0.003175867303
A167: =IF('DF raw data'!I172="","",'DF raw data'!I172) -> -247.5 | B167: =IF('DF raw data'!J172="","",'DF raw data'!J172) -> -1.32449e-05 | C167: =IF('DF raw data'!K172="","",'DF raw data'!K172) -> 0.000257678 | D167: =IF('DF raw data'!L172="","",'DF raw data'!L172) -> -1.73084e-05 | F167: -1.330052858e-05 | G167: 0.0002587602476 | H167: -1.738109528e-05 | J167: -0.0001768350156 | K167: -0.003678618337 | L167: 0.01359590397 | M167: 0.3605709539 | N167: 0.00326830724
A168: =IF('DF raw data'!I173="","",'DF raw data'!I173) -> -247 | B168: =IF('DF raw data'!J173="","",'DF raw data'!J173) -> -5.30023e-06 | C168: =IF('DF raw data'!K173="","",'DF raw data'!K173) -> 0.000260681 | D168: =IF('DF raw data'!L173="","",'DF raw data'!L173) -> -1.93448e-05 | F168: -5.322490966e-06 | G168: 0.0002617758602 | H168: -1.942604816e-05 | J168: -0.0001794962611 | K168: -0.003768366468 | L168: 0.0137267919 | M168: 0.3674343498 | N168: 0.003362535758
A169: =IF('DF raw data'!I174="","",'DF raw data'!I174) -> -246.5 | B169: =IF('DF raw data'!J174="","",'DF raw data'!J174) -> -1.31221e-05 | C169: =IF('DF raw data'!K174="","",'DF raw data'!K174) -> 0.000256262 | D169: =IF('DF raw data'!L174="","",'DF raw data'!L174) -> -9.09528e-06 | F169: -1.317721282e-05 | G169: 0.0002573383004 | H169: -9.133480176e-06 | J169: -0.0001860848675 | K169: -0.003861408901 | L169: 0.01385546105 | M169: 0.3743620804 | N169: 0.003458539972
A170: =IF('DF raw data'!I175="","",'DF raw data'!I175) -> -246 | B170: =IF('DF raw data'!J175="","",'DF raw data'!J175) -> 2.32237e-06 | C170: =IF('DF raw data'!K175="","",'DF raw data'!K175) -> 0.000260495 | D170: =IF('DF raw data'!L175="","",'DF raw data'!L175) -> -1.92761e-05 | F170: 2.332123954e-06 | G170: 0.000261589079 | H170: -1.935705962e-05 | J170: -0.0001849188055 | K170: -0.003953868304 | L170: 0.01398625559 | M170: 0.3813552082 | N170: 0.003556364742
A171: =IF('DF raw data'!I176="","",'DF raw data'!I176) -> -245.5 | B171: =IF('DF raw data'!J176="","",'DF raw data'!J176) -> -7.67486e-06 | C171: =IF('DF raw data'!K176="","",'DF raw data'!K176) -> 0.000265979 | D171: =IF('DF raw data'!L176="","",'DF raw data'!L176) -> -1.27587e-05 | F171: -7.707094412e-06 | G171: 0.0002670961118 | H171: -1.281228654e-05 | J171: -0.0001887723527 | K171: -0.004048254481 | L171: 0.01411980364 | M171: 0.38841511 | N171: 0.003656066987
A172: =IF('DF raw data'!I177="","",'DF raw data'!I177) -> -245 | B172: =IF('DF raw data'!J177="","",'DF raw data'!J177) -> -6.29521e-07 | C172: =IF('DF raw data'!K177="","",'DF raw data'!K177) -> 0.000261787 | D172: =IF('DF raw data'!L177="","",'DF raw data'!L177) -> -1.12533e-05 | F172: -6.321649882e-07 | G172: 0.0002628865054 | H172: -1.130056386e-05 | J172: -0.0001890884352 | K172: -0.004142798698 | L172: 0.0142512469 | M172: 0.3955407334 | N172: 0.003757633883
A173: =IF('DF raw data'!I178="","",'DF raw data'!I178) -> -244.5 | B173: =IF('DF raw data'!J178="","",'DF raw data'!J178) -> -1.06221e-05 | C173: =IF('DF raw data'!K178="","",'DF raw data'!K178) -> 0.000262889 | D173: =IF('DF raw data'!L178="","",'DF raw data'!L178) -> -1.16445e-05 | F173: -1.066671282e-05 | G173: 0.0002639931338 | H173: -1.16934069e-05 | J173: -0.0001944217916 | K173: -0.004240009594 | L173: 0.01438324346 | M173: 0.4027323552 | N173: 0.003861091629
A174: =IF('DF raw data'!I179="","",'DF raw data'!I179) -> -244 | B174: =IF('DF raw data'!J179="","",'DF raw data'!J179) -> 5.91258e-06 | C174: =IF('DF raw data'!K179="","",'DF raw data'!K179) -> 0.000262401 | D174: =IF('DF raw data'!L179="","",'DF raw data'!L179) -> -2.3812e-05 | F174: 5.937412836e-06 | G174: 0.0002635030842 | H174: -2.39120104e-05 | J174: -0.0001914530852 | K174: -0.004335736137 | L174: 0.01451499501 | M174: 0.4099898527 | N174: 0.003966452497
A175: =IF('DF raw data'!I180="","",'DF raw data'!I180) -> -243.5 | B175: =IF('DF raw data'!J180="","",'DF raw data'!J180) -> -1.09372e-05 | C175: =IF('DF raw data'!K180="","",'DF raw data'!K180) -> 0.000267643 | D175: =IF('DF raw data'!L180="","",'DF raw data'!L180) -> -1.97502e-05 | F175: -1.098313624e-05 | G175: 0.0002687671006 | H175: -1.983315084e-05 | J175: -0.0001969446533 | K175: -0.004434208463 | L175: 0.01464937856 | M175: 0.4173145419 | N175: 0.004073774036
A176: =IF('DF raw data'!I181="","",'DF raw data'!I181) -> -243 | B176: =IF('DF raw data'!J181="","",'DF raw data'!J181) -> 5.08373e-06 | C176: =IF('DF raw data'!K181="","",'DF raw data'!K181) -> 0.000263349 | D176: =IF('DF raw data'!L181="","",'DF raw data'!L181) -> -2.99053e-05 | F176: 5.105081666e-06 | G176: 0.0002644550658 | H176: -3.003090226e-05 | J176: -0.0001943921125 | K176: -0.004531404519 | L176: 0.01478160609 | M176: 0.424705345 | N176: 0.00418304087
A177: =IF('DF raw data'!I182="","",'DF raw data'!I182) -> -242.5 | B177: =IF('DF raw data'!J182="","",'DF raw data'!J182) -> 1.03765e-06 | C177: =IF('DF raw data'!K182="","",'DF raw data'!K182) -> 0.000254519 | D177: =IF('DF raw data'!L182="","",'DF raw data'!L182) -> -1.35956e-05 | F177: 1.04200813e-06 | G177: 0.0002555879798 | H177: -1.365270152e-05 | J177: -0.0001938711084 | K177: -0.004628340074 | L177: 0.01490940008 | M177: 0.432160045 | N177: 0.004294204768
A178: =IF('DF raw data'!I183="","",'DF raw data'!I183) -> -242 | B178: =IF('DF raw data'!J183="","",'DF raw data'!J183) -> -2.09794e-06 | C178: =IF('DF raw data'!K183="","",'DF raw data'!K183) -> 0.000256753 | D178: =IF('DF raw data'!L183="","",'DF raw data'!L183) -> -1.8493e-05 | F178: -2.106751348e-06 | G178: 0.0002578313626 | H178: -1.85706706e-05 | J178: -0.0001949244841 | K178: -0.004725802316 | L178: 0.01503831576 | M178: 0.4396792029 | N178: 0.004407299236
A179: =IF('DF raw data'!I184="","",'DF raw data'!I184) -> -241.5 | B179: =IF('DF raw data'!J184="","",'DF raw data'!J184) -> -6.97645e-06 | C179: =IF('DF raw data'!K184="","",'DF raw data'!K184) -> 0.000262591 | D179: =IF('DF raw data'!L184="","",'DF raw data'!L184) -> -2.83847e-06 | F179: -7.00575109e-06 | G179: 0.0002636938822 | H179: -2.850391574e-06 | J179: -0.0001984273596 | K179: -0.004825015995 | L179: 0.0151701627 | M179: 0.4472642843 | N179: 0.004522385841
A180: =IF('DF raw data'!I185="","",'DF raw data'!I185) -> -241 | B180: =IF('DF raw data'!J185="","",'DF raw data'!J185) -> -1.08731e-05 | C180: =IF('DF raw data'!K185="","",'DF raw data'!K185) -> 0.00026039 | D180: =IF('DF raw data'!L185="","",'DF raw data'!L185) -> -1.98167e-05 | F180: -1.091876702e-05 | G180: 0.000261483638 | H180: -1.989993014e-05 | J180: -0.0002038867431 | K180: -0.004926959367 | L180: 0.01530090452 | M180: 0.4549147365 | N180: 0.004639465466
A181: =IF('DF raw data'!I186="","",'DF raw data'!I186) -> -240.5 | B181: =IF('DF raw data'!J186="","",'DF raw data'!J186) -> -5.70377e-07 | C181: =IF('DF raw data'!K186="","",'DF raw data'!K186) -> 0.000272354 | D181: =IF('DF raw data'!L186="","",'DF raw data'!L186) -> -3.49152e-06 | F181: -5.727725834e-07 | G181: 0.0002734978868 | H181: -3.506184384e-06 | J181: -0.0002041731294 | K181: -0.005029045932 | L181: 0.01543765346 | M181: 0.4626335632 | N181: 0.004758646881
A182: =IF('DF raw data'!I187="","",'DF raw data'!I187) -> -240 | B182: =IF('DF raw data'!J187="","",'DF raw data'!J187) -> -7.0253e-06 | C182: =IF('DF raw data'!K187="","",'DF raw data'!K187) -> 0.000272267 | D182: =IF('DF raw data'!L187="","",'DF raw data'!L187) -> -2.64743e-05 | F182: -7.05480626e-06 | G182: 0.0002734105214 | H182: -2.658549206e-05 | J182: -0.0002077005326 | K182: -0.005132896198 | L182: 0.01557435872 | M182: 0.4704207426 | N182: 0.004879948776
A183: =IF('DF raw data'!I188="","",'DF raw data'!I188) -> -239.5 | B183: =IF('DF raw data'!J188="","",'DF raw data'!J188) -> -4.94654e-07 | C183: =IF('DF raw data'!K188="","",'DF raw data'!K188) -> 0.000275931 | D183: =IF('DF raw data'!L188="","",'DF raw data'!L188) -> -2.169e-05 | F183: -4.967315468e-07 | G183: 0.0002770899102 | H183: -2.1781098e-05 | J183: -0.0002079488983 | K183: -0.005236870647 | L183: 0.01571290368 | M183: 0.4782771944 | N183: 0.005003418068
A184: =IF('DF raw data'!I189="","",'DF raw data'!I189) -> -239 | B184: =IF('DF raw data'!J189="","",'DF raw data'!J189) -> -1.22154e-05 | C184: =IF('DF raw data'!K189="","",'DF raw data'!K189) -> 0.000269801 | D184: =IF('DF raw data'!L189="","",'DF raw data'!L189) -> -2.40353e-05 | F184: -1.226670468e-05 | G184: 0.0002709341642 | H184: -2.413624826e-05 | J184: -0.0002140822507 | K184: -0.005343911773 | L184: 0.01584837076 | M184: 0.4862013798 | N184: 0.005129026412
A185: =IF('DF raw data'!I190="","",'DF raw data'!I190) -> -238.5 | B185: =IF('DF raw data'!J190="","",'DF raw data'!J190) -> -9.59389e-06 | C185: =IF('DF raw data'!K190="","",'DF raw data'!K190) -> 0.000267344 | D185: =IF('DF raw data'!L190="","",'DF raw data'!L190) -> -1.65677e-05 | F185: -9.634184338e-06 | G185: 0.0002684668448 | H185: -1.663728434e-05 | J185: -0.0002188993428 | K185: -0.005453361444 | L185: 0.01598260418 | M185: 0.4941926819 | N185: 0.005256772188
A186: =IF('DF raw data'!I191="","",'DF raw data'!I191) -> -238 | B186: =IF('DF raw data'!J191="","",'DF raw data'!J191) -> -7.9231e-06 | C186: =IF('DF raw data'!K191="","",'DF raw data'!K191) -> 0.000268055 | D186: =IF('DF raw data'!L191="","",'DF raw data'!L191) -> -2.48568e-05 | F186: -7.95637702e-06 | G186: 0.000269180831 | H186: -2.496119856e-05 | J186: -0.0002228775314 | K186: -0.00556480021 | L186: 0.0161171946 | M186: 0.5022512792 | N186: 0.005386679006
A187: =IF('DF raw data'!I192="","",'DF raw data'!I192) -> -237.5 | B187: =IF('DF raw data'!J192="","",'DF raw data'!J192) -> 1.28538e-06 | C187: =IF('DF raw data'!K192="","",'DF raw data'!K192) -> 0.000266538 | D187: =IF('DF raw data'!L192="","",'DF raw data'!L192) -> -4.97232e-07 | F187: 1.290778596e-06 | G187: 0.0002676574596 | H187: -4.993203744e-07 | J187: -0.0002222321421 | K187: -0.005675916281 | L187: 0.01625102333 | M187: 0.5103767909 | N187: 0.00551875158
A188: =IF('DF raw data'!I193="","",'DF raw data'!I193) -> -237 | B188: =IF('DF raw data'!J193="","",'DF raw data'!J193) -> 1.48893e-06 | C188: =IF('DF raw data'!K193="","",'DF raw data'!K193) -> 0.000264214 | D188: =IF('DF raw data'!L193="","",'DF raw data'!L193) -> -1.82664e-05 | F188: 1.495183506e-06 | G188: 0.0002653236988 | H188: -1.834311888e-05 | J188: -0.0002214845503 | K188: -0.005786658556 | L188: 0.01638368518 | M188: 0.5185686335 | N188: 0.005652988677
A189: =IF('DF raw data'!I194="","",'DF raw data'!I194) -> -236.5 | B189: =IF('DF raw data'!J194="","",'DF raw data'!J194) -> -1.39489e-05 | C189: =IF('DF raw data'!K194="","",'DF raw data'!K194) -> 0.000272241 | D189: =IF('DF raw data'!L194="","",'DF raw data'!L194) -> -1.80369e-05 | F189: -1.400748538e-05 | G189: 0.0002733844122 | H189: -1.811265498e-05 | J189: -0.000228488293 | K189: -0.005900902702 | L189: 0.01652037738 | M189: 0.5268288222 | N189: 0.005789476215
A190: =IF('DF raw data'!I195="","",'DF raw data'!I195) -> -236 | B190: =IF('DF raw data'!J195="","",'DF raw data'!J195) -> -1.19583e-05 | C190: =IF('DF raw data'!K195="","",'DF raw data'!K195) -> 0.000275909 | D190: =IF('DF raw data'!L195="","",'DF raw data'!L195) -> -2.53953e-05 | F190: -1.200852486e-05 | G190: 0.0002770678178 | H190: -2.550196026e-05 | J190: -0.0002344925554 | K190: -0.00601814898 | L190: 0.01665891129 | M190: 0.5351582778 | N190: 0.005928263371
A191: =IF('DF raw data'!I196="","",'DF raw data'!I196) -> -235.5 | B191: =IF('DF raw data'!J196="","",'DF raw data'!J196) -> -5.74616e-06 | C191: =IF('DF raw data'!K196="","",'DF raw data'!K196) -> 0.000277088 | D191: =IF('DF raw data'!L196="","",'DF raw data'!L196) -> -2.35043e-05 | F191: -5.770293872e-06 | G191: 0.0002782517696 | H191: -2.360301806e-05 | J191: -0.0002373777024 | K191: -0.006136837831 | L191: 0.01679803718 | M191: 0.5435572964 | N191: 0.006069378572
A192: =IF('DF raw data'!I197="","",'DF raw data'!I197) -> -235 | B192: =IF('DF raw data'!J197="","",'DF raw data'!J197) -> -3.42927e-06 | C192: =IF('DF raw data'!K197="","",'DF raw data'!K197) -> 0.000270078 | D192: =IF('DF raw data'!L197="","",'DF raw data'!L197) -> -3.99819e-05 | F192: =(1-$G$1*($B$49-$G$2))*B192 -> -3.443672934e-06 | G192: 0.0002712123276 | H192: -4.014982398e-05 | J192: =F192*$G$3+J191 -> -0.0002390995388 | K192: =J192*$G$3+K191 -> -0.006256387601 | L192: =G192*$G$3+L191 -> 0.01693364334 | M192: =L192*$G$3+M191 -> 0.5520241181 | N192: =(J192^2+L192^2)*$G$3+N191 -> 0.006212781295
A193: =IF('DF raw data'!I198="","",'DF raw data'!I198) -> -234.5 | B193: =IF('DF raw data'!J198="","",'DF raw data'!J198) -> -4.33387e-06 | C193: =IF('DF raw data'!K198="","",'DF raw data'!K198) -> 0.000262276 | D193: =IF('DF raw data'!L198="","",'DF raw data'!L198) -> -2.78805e-05 | F193: -4.352072254e-06 | G193: 0.0002633775592 | H193: -2.79975981e-05 | J193: -0.000241275575 | K193: -0.006377025388 | L193: 0.01706533212 | M193: 0.5605567841 | N193: 0.006358423182
A194: =IF('DF raw data'!I199="","",'DF raw data'!I199) -> -234 | B194: =IF('DF raw data'!J199="","",'DF raw data'!J199) -> -1.77369e-06 | C194: =IF('DF raw data'!K199="","",'DF raw data'!K199) -> 0.000260528 | D194: =IF('DF raw data'!L199="","",'DF raw data'!L199) -> -2.48345e-05 | F194: -1.781139498e-06 | G194: 0.0002616222176 | H194: -2.49388049e-05 | J194: -0.0002421661447 | K194: -0.00649810846 | L194: 0.01719614323 | M194: 0.5691548557 | N194: 0.006506306175
A195: =IF('DF raw data'!I200="","",'DF raw data'!I200) -> -233.5 | B195: =IF('DF raw data'!J200="","",'DF raw data'!J200) -> -8.7552e-06 | C195: =IF('DF raw data'!K200="","",'DF raw data'!K200) -> 0.00026732 | D195: =IF('DF raw data'!L200="","",'DF raw data'!L200) -> -2.60171e-05 | F195: -8.79197184e-06 | G195: 0.000268442744 | H195: -2.612637182e-05 | J195: -0.0002465621306 | K195: -0.006621389526 | L195: 0.0173303646 | M195: 0.577820038 | N195: 0.00665650734
A196: =IF('DF raw data'!I201="","",'DF raw data'!I201) -> -233 | B196: =IF('DF raw data'!J201="","",'DF raw data'!J201) -> -1.70213e-05 | C196: =IF('DF raw data'!K201="","",'DF raw data'!K201) -> 0.000268917 | D196: =IF('DF raw data'!L201="","",'DF raw data'!L201) -> -2.17883e-05 | F196: -1.709278946e-05 | G196: 0.0002700464514 | H196: -2.187981086e-05 | J196: -0.0002551085254 | K196: -0.006748943788 | L196: 0.01746538783 | M196: 0.586552732 | N196: 0.006809059766
A197: =IF('DF raw data'!I202="","",'DF raw data'!I202) -> -232.5 | B197: =IF('DF raw data'!J202="","",'DF raw data'!J202) -> -1.88077e-05 | C197: =IF('DF raw data'!K202="","",'DF raw data'!K202) -> 0.00026355 | D197: =IF('DF raw data'!L202="","",'DF raw data'!L202) -> -3.26965e-05 | F197: -1.888669234e-05 | G197: 0.00026465691 | H197: -3.28338253e-05 | J197: -0.0002645518715 | K197: -0.006881219724 | L197: 0.01759771628 | M197: 0.5953515901 | N197: 0.006963934569
A198: =IF('DF raw data'!I203="","",'DF raw data'!I203) -> -232 | B198: =IF('DF raw data'!J203="","",'DF raw data'!J203) -> -1.12549e-05 | C198: =IF('DF raw data'!K203="","",'DF raw data'!K203) -> 0.000261411 | D198: =IF('DF raw data'!L203="","",'DF raw data'!L203) -> -2.37751e-05 | F198: -1.130217058e-05 | G198: 0.0002625089262 | H198: -2.387495542e-05 | J198: -0.0002702029568 | K198: -0.007016321203 | L198: 0.01772897075 | M198: 0.6042160755 | N198: 0.007121129276
A199: =IF('DF raw data'!I204="","",'DF raw data'!I204) -> -231.5 | B199: =IF('DF raw data'!J204="","",'DF raw data'!J204) -> -5.80711e-06 | C199: =IF('DF raw data'!K204="","",'DF raw data'!K204) -> 0.00025779 | D199: =IF('DF raw data'!L204="","",'DF raw data'!L204) -> -2.80852e-05 | F199: -5.831499862e-06 | G199: 0.000258872718 | H199: -2.820315784e-05 | J199: -0.0002731187067 | K199: -0.007152880556 | L199: 0.01785840711 | M199: 0.613145279 | N199: 0.007280627925
A200: =IF('DF raw data'!I205="","",'DF raw data'!I205) -> -231 | B200: =IF('DF raw data'!J205="","",'DF raw data'!J205) -> -6.06736e-06 | C200: =IF('DF raw data'!K205="","",'DF raw data'!K205) -> 0.000249487 | D200: =IF('DF raw data'!L205="","",'DF raw data'!L205) -> -2.18618e-05 | F200: -6.092842912e-06 | G200: 0.0002505348454 | H200: -2.195361956e-05 | J200: -0.0002761651282 | K200: -0.00729096312 | L200: 0.01798367453 | M200: 0.6221371163 | N200: 0.007442372333
A201: =IF('DF raw data'!I206="","",'DF raw data'!I206) -> -230.5 | B201: =IF('DF raw data'!J206="","",'DF raw data'!J206) -> -1.3045e-05 | C201: =IF('DF raw data'!K206="","",'DF raw data'!K206) -> 0.00024232 | D201: =IF('DF raw data'!L206="","",'DF raw data'!L206) -> -2.90564e-05 | F201: -1.3099789e-05 | G201: 0.000243337744 | H201: -2.917843688e-05 | J201: -0.0002827150227 | K201: -0.007432320631 | L201: 0.0181053434 | M201: 0.631189788 | N201: 0.007606314027
... 1061 more rows

Sheet 10 x=1
A1: =IF('DF raw data'!M1="","",'DF raw data'!M1) -> Number of header lines | B1: =IF('DF raw data'!N1="","",'DF raw data'!N1) -> 54 | C1: =IF('DF raw data'!O1="","",'DF raw data'!O1) ->  | D1: =IF('DF raw data'!P1="","",'DF raw data'!P1) ->  | F1: T_coeff | G1: -0.001 | H1: /degC | J1: ='10 x=-2'!J1 -> IBy total | K1: ='10 x=-2'!K1 -> 14.89241739 | L1: ='10 x=-2'!L1 -> muTm | R1: ='10 x=-2'!R1 -> DF ref | S1: ='10 x=-2'!S1 -> 1
A2: =IF('DF raw data'!M2="","",'DF raw data'!M2) -> Measured by | B2: =IF('DF raw data'!N2="","",'DF raw data'!N2) -> Danfysik | C2: =IF('DF raw data'!O2="","",'DF raw data'!O2) ->  | D2: =IF('DF raw data'!P2="","",'DF raw data'!P2) ->  | F2: Tcorr | G2: 20 | H2: degC | J2: JBy total | K2: =K1262 -> 4.708089029 | L2: muTm^2 | M2: =M1262 -> 40.29902379
A3: =IF('DF raw data'!M3="","",'DF raw data'!M3) -> Operator | B3: =IF('DF raw data'!N3="","",'DF raw data'!N3) -> PMHA | C3: =IF('DF raw data'!O3="","",'DF raw data'!O3) ->  | D3: =IF('DF raw data'!P3="","",'DF raw data'!P3) ->  | F3: Step | G3: =A63-A62 -> 0.5 | H3: mm | J3: PI total | K3: =N1262 -> 10710.0869 | L3: T^2mm^3
A4: =IF('DF raw data'!M4="","",'DF raw data'!M4) -> Data-time | B4: =IF('DF raw data'!N4="","",'DF raw data'!N4) -> 30-09-2024, 22:08:01 | C4: =IF('DF raw data'!O4="","",'DF raw data'!O4) ->  | D4: =IF('DF raw data'!P4="","",'DF raw data'!P4) -> 
A5: =IF('DF raw data'!M5="","",'DF raw data'!M5) -> Project | B5: =IF('DF raw data'!N5="","",'DF raw data'!N5) -> 504314 | C5: =IF('DF raw data'!O5="","",'DF raw data'!O5) ->  | D5: =IF('DF raw data'!P5="","",'DF raw data'!P5) -> 
A6: =IF('DF raw data'!M6="","",'DF raw data'!M6) -> Magnet type | B6: =IF('DF raw data'!N6="","",'DF raw data'!N6) -> Dipole | C6: =IF('DF raw data'!O6="","",'DF raw data'!O6) ->  | D6: =IF('DF raw data'!P6="","",'DF raw data'!P6) -> 
A7: =IF('DF raw data'!M7="","",'DF raw data'!M7) -> Magnet nr. | B7: =IF('DF raw data'!N7="","",'DF raw data'!N7) -> 2410106 | C7: =IF('DF raw data'!O7="","",'DF raw data'!O7) ->  | D7: =IF('DF raw data'!P7="","",'DF raw data'!P7) -> 
A8: =IF('DF raw data'!M8="","",'DF raw data'!M8) -> Meas. number | B8: =IF('DF raw data'!N8="","",'DF raw data'!N8) -> 858 | C8: =IF('DF raw data'!O8="","",'DF raw data'!O8) ->  | D8: =IF('DF raw data'!P8="","",'DF raw data'!P8) -> 
A9: =IF('DF raw data'!M9="","",'DF raw data'!M9) -> Add. info | B9: =IF('DF raw data'!N9="","",'DF raw data'!N9) -> X-alignment scan 4) | C9: =IF('DF raw data'!O9="","",'DF raw data'!O9) ->  | D9: =IF('DF raw data'!P9="","",'DF raw data'!P9) -> 
A10: =IF('DF raw data'!M10="","",'DF raw data'!M10) -> Device | B10: =IF('DF raw data'!N10="","",'DF raw data'!N10) -> (HAL) HALL-PROBE | C10: =IF('DF raw data'!O10="","",'DF raw data'!O10) ->  | D10: =IF('DF raw data'!P10="","",'DF raw data'!P10) -> 
A11: =IF('DF raw data'!M11="","",'DF raw data'!M11) -> Goal | B11: =IF('DF raw data'!N11="","",'DF raw data'!N11) -> (AXI) AXis Integral (Line, EFB) | C11: =IF('DF raw data'!O11="","",'DF raw data'!O11) ->  | D11: =IF('DF raw data'!P11="","",'DF raw data'!P11) -> 
A12: =IF('DF raw data'!M12="","",'DF raw data'!M12) -> Power supply mode | B12: =IF('DF raw data'!N12="","",'DF raw data'!N12) -> (PM) Permanent Magnet (no MPS in use) | C12: =IF('DF raw data'!O12="","",'DF raw data'!O12) ->  | D12: =IF('DF raw data'!P12="","",'DF raw data'!P12) -> 
A13: =IF('DF raw data'!M13="","",'DF raw data'!M13) -> Data format | B13: =IF('DF raw data'!N13="","",'DF raw data'!N13) -> Raw data text file | C13: =IF('DF raw data'!O13="","",'DF raw data'!O13) ->  | D13: =IF('DF raw data'!P13="","",'DF raw data'!P13) -> 
A14: =IF('DF raw data'!M14="","",'DF raw data'!M14) -> Direction of the pos. x-axis | B14: =IF('DF raw data'!N14="","",'DF raw data'!N14) -> See test program | C14: =IF('DF raw data'!O14="","",'DF raw data'!O14) ->  | D14: =IF('DF raw data'!P14="","",'DF raw data'!P14) -> 
A15: =IF('DF raw data'!M15="","",'DF raw data'!M15) -> Direction of the pos. y-axis | B15: =IF('DF raw data'!N15="","",'DF raw data'!N15) -> Vertical up | C15: =IF('DF raw data'!O15="","",'DF raw data'!O15) ->  | D15: =IF('DF raw data'!P15="","",'DF raw data'!P15) -> 
A16: =IF('DF raw data'!M16="","",'DF raw data'!M16) -> Direction of the pos. z-axis | B16: =IF('DF raw data'!N16="","",'DF raw data'!N16) -> See test program | C16: =IF('DF raw data'!O16="","",'DF raw data'!O16) ->  | D16: =IF('DF raw data'!P16="","",'DF raw data'!P16) -> 
A17: =IF('DF raw data'!M17="","",'DF raw data'!M17) -> Mapper type | B17: =IF('DF raw data'!N17="","",'DF raw data'!N17) -> Precision Hall Mapper | C17: =IF('DF raw data'!O17="","",'DF raw data'!O17) ->  | D17: =IF('DF raw data'!P17="","",'DF raw data'!P17) -> 
A18: =IF('DF raw data'!M18="","",'DF raw data'!M18) -> Mapper Danfysik Reg. Number | B18: =IF('DF raw data'!N18="","",'DF raw data'!N18) -> 2033-D (mapper 1) | C18: =IF('DF raw data'!O18="","",'DF raw data'!O18) ->  | D18: =IF('DF raw data'!P18="","",'DF raw data'!P18) -> 
A19: =IF('DF raw data'!M19="","",'DF raw data'!M19) -> Measurement consept | B19: =IF('DF raw data'!N19="","",'DF raw data'!N19) -> Square line grid | C19: =IF('DF raw data'!O19="","",'DF raw data'!O19) ->  | D19: =IF('DF raw data'!P19="","",'DF raw data'!P19) -> 
A20: =IF('DF raw data'!M20="","",'DF raw data'!M20) -> Mode | B20: =IF('DF raw data'!N20="","",'DF raw data'!N20) -> On-the-fly measurement | C20: =IF('DF raw data'!O20="","",'DF raw data'!O20) ->  | D20: =IF('DF raw data'!P20="","",'DF raw data'!P20) -> 
A21: =IF('DF raw data'!M21="","",'DF raw data'!M21) ->  | B21: =IF('DF raw data'!N21="","",'DF raw data'!N21) ->  | C21: =IF('DF raw data'!O21="","",'DF raw data'!O21) ->  | D21: =IF('DF raw data'!P21="","",'DF raw data'!P21) -> 
A22: =IF('DF raw data'!M22="","",'DF raw data'!M22) -> Probe Name | B22: =IF('DF raw data'!N22="","",'DF raw data'!N22) -> ID12_By | C22: =IF('DF raw data'!O22="","",'DF raw data'!O22) ->  | D22: =IF('DF raw data'!P22="","",'DF raw data'!P22) -> 
A23: =IF('DF raw data'!M23="","",'DF raw data'!M23) -> Probe Type | B23: =IF('DF raw data'!N23="","",'DF raw data'!N23) -> DF_ID_3D_Bxyz | C23: =IF('DF raw data'!O23="","",'DF raw data'!O23) ->  | D23: =IF('DF raw data'!P23="","",'DF raw data'!P23) -> 
A24: =IF('DF raw data'!M24="","",'DF raw data'!M24) -> Probe Danfysik Reg. Number | B24: =IF('DF raw data'!N24="","",'DF raw data'!N24) -> 2277 | C24: =IF('DF raw data'!O24="","",'DF raw data'!O24) ->  | D24: =IF('DF raw data'!P24="","",'DF raw data'!P24) -> 
A25: =IF('DF raw data'!M25="","",'DF raw data'!M25) -> Probe Axis | B25: =IF('DF raw data'!N25="","",'DF raw data'!N25) -> By | C25: =IF('DF raw data'!O25="","",'DF raw data'!O25) ->  | D25: =IF('DF raw data'!P25="","",'DF raw data'!P25) -> 
A26: =IF('DF raw data'!M26="","",'DF raw data'!M26) -> Probe Current Supply | B26: =IF('DF raw data'!N26="","",'DF raw data'!N26) -> 1825-D | C26: =IF('DF raw data'!O26="","",'DF raw data'!O26) ->  | D26: =IF('DF raw data'!P26="","",'DF raw data'!P26) -> 
A27: =IF('DF raw data'!M27="","",'DF raw data'!M27) -> Probe Gain Correction | B27: =IF('DF raw data'!N27="","",'DF raw data'!N27) -> 0.99613 | C27: =IF('DF raw data'!O27="","",'DF raw data'!O27) ->  | D27: =IF('DF raw data'!P27="","",'DF raw data'!P27) -> 
A28: =IF('DF raw data'!M28="","",'DF raw data'!M28) -> Probe Offset Correction | B28: =IF('DF raw data'!N28="","",'DF raw data'!N28) -> 0.002746 | C28: =IF('DF raw data'!O28="","",'DF raw data'!O28) ->  | D28: =IF('DF raw data'!P28="","",'DF raw data'!P28) -> 
A29: =IF('DF raw data'!M29="","",'DF raw data'!M29) -> DVM Number | B29: =IF('DF raw data'!N29="","",'DF raw data'!N29) -> 2 | C29: =IF('DF raw data'!O29="","",'DF raw data'!O29) ->  | D29: =IF('DF raw data'!P29="","",'DF raw data'!P29) -> 
A30: =IF('DF raw data'!M30="","",'DF raw data'!M30) -> DVM Type | B30: =IF('DF raw data'!N30="","",'DF raw data'!N30) -> K2701 | C30: =IF('DF raw data'!O30="","",'DF raw data'!O30) ->  | D30: =IF('DF raw data'!P30="","",'DF raw data'!P30) -> 
A31: =IF('DF raw data'!M31="","",'DF raw data'!M31) -> DVM Danfysik Reg. Number | B31: =IF('DF raw data'!N31="","",'DF raw data'!N31) -> 1743-D | C31: =IF('DF raw data'!O31="","",'DF raw data'!O31) ->  | D31: =IF('DF raw data'!P31="","",'DF raw data'!P31) -> 
A32: =IF('DF raw data'!M32="","",'DF raw data'!M32) -> Probe Name | B32: =IF('DF raw data'!N32="","",'DF raw data'!N32) -> ID12_Bx | C32: =IF('DF raw data'!O32="","",'DF raw data'!O32) ->  | D32: =IF('DF raw data'!P32="","",'DF raw data'!P32) -> 
A33: =IF('DF raw data'!M33="","",'DF raw data'!M33) -> Probe Type | B33: =IF('DF raw data'!N33="","",'DF raw data'!N33) -> DF_ID_3D_Bxyz | C33: =IF('DF raw data'!O33="","",'DF raw data'!O33) ->  | D33: =IF('DF raw data'!P33="","",'DF raw data'!P33) -> 
A34: =IF('DF raw data'!M34="","",'DF raw data'!M34) -> Probe Danfysik Reg. Number | B34: =IF('DF raw data'!N34="","",'DF raw data'!N34) -> 2277 | C34: =IF('DF raw data'!O34="","",'DF raw data'!O34) ->  | D34: =IF('DF raw data'!P34="","",'DF raw data'!P34) -> 
A35: =IF('DF raw data'!M35="","",'DF raw data'!M35) -> Probe Axis | B35: =IF('DF raw data'!N35="","",'DF raw data'!N35) -> Bx | C35: =IF('DF raw data'!O35="","",'DF raw data'!O35) ->  | D35: =IF('DF raw data'!P35="","",'DF raw data'!P35) -> 
A36: =IF('DF raw data'!M36="","",'DF raw data'!M36) -> Probe Current Supply | B36: =IF('DF raw data'!N36="","",'DF raw data'!N36) -> 1825-D | C36: =IF('DF raw data'!O36="","",'DF raw data'!O36) ->  | D36: =IF('DF raw data'!P36="","",'DF raw data'!P36) -> 
A37: =IF('DF raw data'!M37="","",'DF raw data'!M37) -> Probe Gain Correction | B37: =IF('DF raw data'!N37="","",'DF raw data'!N37) -> 1 | C37: =IF('DF raw data'!O37="","",'DF raw data'!O37) ->  | D37: =IF('DF raw data'!P37="","",'DF raw data'!P37) -> 
A38: =IF('DF raw data'!M38="","",'DF raw data'!M38) -> Probe Offset Correction | B38: =IF('DF raw data'!N38="","",'DF raw data'!N38) -> -0.17546 | C38: =IF('DF raw data'!O38="","",'DF raw data'!O38) ->  | D38: =IF('DF raw data'!P38="","",'DF raw data'!P38) -> 
A39: =IF('DF raw data'!M39="","",'DF raw data'!M39) -> DVM Number | B39: =IF('DF raw data'!N39="","",'DF raw data'!N39) -> 3 | C39: =IF('DF raw data'!O39="","",'DF raw data'!O39) ->  | D39: =IF('DF raw data'!P39="","",'DF raw data'!P39) -> 
A40: =IF('DF raw data'!M40="","",'DF raw data'!M40) -> DVM Type | B40: =IF('DF raw data'!N40="","",'DF raw data'!N40) -> K2701 | C40: =IF('DF raw data'!O40="","",'DF raw data'!O40) ->  | D40: =IF('DF raw data'!P40="","",'DF raw data'!P40) -> 
A41: =IF('DF raw data'!M41="","",'DF raw data'!M41) -> DVM Danfysik Reg. Number | B41: =IF('DF raw data'!N41="","",'DF raw data'!N41) -> 1744-D | C41: =IF('DF raw data'!O41="","",'DF raw data'!O41) ->  | D41: =IF('DF raw data'!P41="","",'DF raw data'!P41) -> 
A42: =IF('DF raw data'!M42="","",'DF raw data'!M42) -> Probe Name | B42: =IF('DF raw data'!N42="","",'DF raw data'!N42) -> ID12_Bz | C42: =IF('DF raw data'!O42="","",'DF raw data'!O42) ->  | D42: =IF('DF raw data'!P42="","",'DF raw data'!P42) -> 
A43: =IF('DF raw data'!M43="","",'DF raw data'!M43) -> Probe Type | B43: =IF('DF raw data'!N43="","",'DF raw data'!N43) -> DF_ID_3D_Bxyz | C43: =IF('DF raw data'!O43="","",'DF raw data'!O43) ->  | D43: =IF('DF raw data'!P43="","",'DF raw data'!P43) -> 
A44: =IF('DF raw data'!M44="","",'DF raw data'!M44) -> Probe Danfysik Reg. Number | B44: =IF('DF raw data'!N44="","",'DF raw data'!N44) -> 2277 | C44: =IF('DF raw data'!O44="","",'DF raw data'!O44) ->  | D44: =IF('DF raw data'!P44="","",'DF raw data'!P44) -> 
A45: =IF('DF raw data'!M45="","",'DF raw data'!M45) -> Probe Axis | B45: =IF('DF raw data'!N45="","",'DF raw data'!N45) -> Bz | C45: =IF('DF raw data'!O45="","",'DF raw data'!O45) ->  | D45: =IF('DF raw data'!P45="","",'DF raw data'!P45) -> 
A46: =IF('DF raw data'!M46="","",'DF raw data'!M46) -> Probe Current Supply | B46: =IF('DF raw data'!N46="","",'DF raw data'!N46) -> 1825-D | C46: =IF('DF raw data'!O46="","",'DF raw data'!O46) ->  | D46: =IF('DF raw data'!P46="","",'DF raw data'!P46) -> 
A47: =IF('DF raw data'!M47="","",'DF raw data'!M47) -> Probe Gain Correction | B47: =IF('DF raw data'!N47="","",'DF raw data'!N47) -> 1 | C47: =IF('DF raw data'!O47="","",'DF raw data'!O47) ->  | D47: =IF('DF raw data'!P47="","",'DF raw data'!P47) -> 
A48: =IF('DF raw data'!M53="","",'DF raw data'!M53) -> PS-Gap: | B48: =IF('DF raw data'!N53="","",'DF raw data'!N53) -> 10 | C48: =IF('DF raw data'!O53="","",'DF raw data'!O53) ->  | D48: =IF('DF raw data'!P53="","",'DF raw data'!P53) -> 
A49: =IF('DF raw data'!M54="","",'DF raw data'!M54) -> PS-Temperature: | B49: =IF('DF raw data'!N54="","",'DF raw data'!N54) -> 24.2 | C49: =IF('DF raw data'!O54="","",'DF raw data'!O54) ->  | D49: =IF('DF raw data'!P54="","",'DF raw data'!P54) -> 
A50: =IF('DF raw data'!M55="","",'DF raw data'!M55) -> PS-Encoder: | B50: =IF('DF raw data'!N55="","",'DF raw data'!N55) -> 19.6328 | C50: =IF('DF raw data'!O55="","",'DF raw data'!O55) ->  | D50: =IF('DF raw data'!P55="","",'DF raw data'!P55) -> 
A51: =IF('DF raw data'!M56="","",'DF raw data'!M56) ->  | B51: =IF('DF raw data'!N56="","",'DF raw data'!N56) ->  | C51: =IF('DF raw data'!O56="","",'DF raw data'!O56) ->  | D51: =IF('DF raw data'!P56="","",'DF raw data'!P56) -> 
A52: =IF('DF raw data'!M57="","",'DF raw data'!M57) -> Monitor-Index | B52: =IF('DF raw data'!N57="","",'DF raw data'!N57) -> [1,1,4] | C52: =IF('DF raw data'!O57="","",'DF raw data'!O57) ->  | D52: =IF('DF raw data'!P57="","",'DF raw data'!P57) -> 
A53: =IF('DF raw data'!M58="","",'DF raw data'!M58) ->  | B53: =IF('DF raw data'!N58="","",'DF raw data'!N58) ->  | C53: =IF('DF raw data'!O58="","",'DF raw data'!O58) ->  | D53: =IF('DF raw data'!P58="","",'DF raw data'!P58) -> 
A54: =IF('DF raw data'!M59="","",'DF raw data'!M59) -> Time [s] | B54: =IF('DF raw data'!N59="","",'DF raw data'!N59) -> Y [mm] | C54: =IF('DF raw data'!O59="","",'DF raw data'!O59) -> X [mm] | D54: =IF('DF raw data'!P59="","",'DF raw data'!P59) -> Nominal current [A]
A55: =IF('DF raw data'!M60="","",'DF raw data'!M60) ->  | B55: =IF('DF raw data'!N60="","",'DF raw data'!N60) ->  | C55: =IF('DF raw data'!O60="","",'DF raw data'!O60) ->  | D55: =IF('DF raw data'!P60="","",'DF raw data'!P60) -> 
A56: =IF('DF raw data'!M61="","",'DF raw data'!M61) -> 208.2 | B56: =IF('DF raw data'!N61="","",'DF raw data'!N61) -> 31.48 | C56: =IF('DF raw data'!O61="","",'DF raw data'!O61) -> 302.8 | D56: =IF('DF raw data'!P61="","",'DF raw data'!P61) -> 0
A57: =IF('DF raw data'!M62="","",'DF raw data'!M62) ->  | B57: =IF('DF raw data'!N62="","",'DF raw data'!N62) ->  | C57: =IF('DF raw data'!O62="","",'DF raw data'!O62) ->  | D57: =IF('DF raw data'!P62="","",'DF raw data'!P62) -> 
A58: =IF('DF raw data'!M63="","",'DF raw data'!M63) -> Measurement-Index | B58: =IF('DF raw data'!N63="","",'DF raw data'!N63) -> [1,1,1201,2] | C58: =IF('DF raw data'!O63="","",'DF raw data'!O63) ->  | D58: =IF('DF raw data'!P63="","",'DF raw data'!P63) -> 
A59: =IF('DF raw data'!M64="","",'DF raw data'!M64) ->  | B59: =IF('DF raw data'!N64="","",'DF raw data'!N64) ->  | C59: =IF('DF raw data'!O64="","",'DF raw data'!O64) ->  | D59: =IF('DF raw data'!P64="","",'DF raw data'!P64) -> 
A60: =IF('DF raw data'!M65="","",'DF raw data'!M65) -> Z [mm] | B60: By [T] | C60: Bx [T] | D60: Bz [T] | F60: By_corr | G60: Bx_corr | H60: Bz_corr | J60: Iy | K60: Jy | L60: Ix | M60: Jx | N60: PI
A62: =IF('DF raw data'!M67="","",'DF raw data'!M67) -> -300 | B62: =IF('DF raw data'!N67="","",'DF raw data'!N67) -> -2.5035e-06 | C62: =IF('DF raw data'!O67="","",'DF raw data'!O67) -> 0.000248822 | D62: =IF('DF raw data'!P67="","",'DF raw data'!P67) -> -1.49902e-05 | F62: =(1-$G$1*($B$49))*B62 -> -2.5640847e-06 | G62: =(1-$G$1*($B$49-$G$2))*C62 -> 0.0002498670524 | H62: =(1-$G$1*($B$49-$G$2))*D62 -> -1.505315884e-05 | J62: =F62*$G$3 -> -1.28204235e-06 | K62: =J62*$G$3 -> -6.41021175e-07 | L62: =G62*$G$3 -> 0.0001249335262 | M62: =L62*$G$3 -> 6.24667631e-05 | N62: =(J62^2+L62^2)*$G$3 -> 7.805014801e-09
A63: =IF('DF raw data'!M68="","",'DF raw data'!M68) -> -299.5 | B63: =IF('DF raw data'!N68="","",'DF raw data'!N68) -> -5.25856e-06 | C63: =IF('DF raw data'!O68="","",'DF raw data'!O68) -> 0.000250921 | D63: =IF('DF raw data'!P68="","",'DF raw data'!P68) -> -1.4312e-05 | F63: =(1-$G$1*($B$49-$G$2))*B63 -> -5.280645952e-06 | G63: =(1-$G$1*($B$49-$G$2))*C63 -> 0.0002519748682 | H63: -1.43721104e-05 | J63: =F63*$G$3+J62 -> -3.922365326e-06 | K63: =J63*$G$3+K62 -> -2.602203838e-06 | L63: =G63*$G$3+L62 -> 0.0002509209603 | M63: =L63*$G$3+M62 -> 0.0001879272432 | N63: =(J63^2+L63^2)*$G$3+N62 -> 3.929337143e-08
A64: =IF('DF raw data'!M69="","",'DF raw data'!M69) -> -299 | B64: =IF('DF raw data'!N69="","",'DF raw data'!N69) -> -1.6085e-05 | C64: =IF('DF raw data'!O69="","",'DF raw data'!O69) -> 0.000247985 | D64: =IF('DF raw data'!P69="","",'DF raw data'!P69) -> -1.33161e-05 | F64: =(1-$G$1*($B$49-$G$2))*B64 -> -1.6152557e-05 | G64: 0.000249026537 | H64: -1.337202762e-05 | J64: =F64*$G$3+J63 -> -1.199864383e-05 | K64: =J64*$G$3+K63 -> -8.601525751e-06 | L64: =G64*$G$3+L63 -> 0.0003754342288 | M64: =L64*$G$3+M63 -> 0.0003756443576 | N64: =(J64^2+L64^2)*$G$3+N63 -> 1.098407852e-07
A65: =IF('DF raw data'!M70="","",'DF raw data'!M70) -> -298.5 | B65: =IF('DF raw data'!N70="","",'DF raw data'!N70) -> 1.25482e-05 | C65: =IF('DF raw data'!O70="","",'DF raw data'!O70) -> 0.000249078 | D65: =IF('DF raw data'!P70="","",'DF raw data'!P70) -> -1.37262e-05 | F65: 1.260090244e-05 | G65: 0.0002501241276 | H65: -1.378385004e-05 | J65: -5.698192606e-06 | K65: -1.145062205e-05 | L65: 0.0005004962926 | M65: 0.0006258925039 | N65: 2.351052894e-07
A66: =IF('DF raw data'!M71="","",'DF raw data'!M71) -> -298 | B66: =IF('DF raw data'!N71="","",'DF raw data'!N71) -> -9.74241e-06 | C66: =IF('DF raw data'!O71="","",'DF raw data'!O71) -> 0.000243876 | D66: =IF('DF raw data'!P71="","",'DF raw data'!P71) -> -1.46781e-05 | F66: -9.783328122e-06 | G66: 0.0002449002792 | H66: -1.473974802e-05 | J66: -1.058985667e-05 | K66: -1.674555039e-05 | L66: 0.0006229464322 | M66: 0.00093736572 | N66: 4.291924906e-07
A67: =IF('DF raw data'!M72="","",'DF raw data'!M72) -> -297.5 | B67: =IF('DF raw data'!N72="","",'DF raw data'!N72) -> -3.72072e-06 | C67: =IF('DF raw data'!O72="","",'DF raw data'!O72) -> 0.000250426 | D67: =IF('DF raw data'!P72="","",'DF raw data'!P72) -> -1.46679e-05 | F67: -3.736347024e-06 | G67: 0.0002514777892 | H67: -1.472950518e-05 | J67: -1.245803018e-05 | K67: -2.297456548e-05 | L67: 0.0007486853268 | M67: 0.001311708383 | N67: 7.095349512e-07
A68: =IF('DF raw data'!M73="","",'DF raw data'!M73) -> -297 | B68: =IF('DF raw data'!N73="","",'DF raw data'!N73) -> -1.61488e-05 | C68: =IF('DF raw data'!O73="","",'DF raw data'!O73) -> 0.000252246 | D68: =IF('DF raw data'!P73="","",'DF raw data'!P73) -> -1.37186e-05 | F68: -1.621662496e-05 | G68: 0.0002533054332 | H68: -1.377621812e-05 | J68: -2.056634266e-05 | K68: -3.325773681e-05 | L68: 0.0008753380434 | M68: 0.001749377405 | N68: 1.092854783e-06
A69: =IF('DF raw data'!M74="","",'DF raw data'!M74) -> -296.5 | B69: =IF('DF raw data'!N74="","",'DF raw data'!N74) -> -9.67234e-07 | C69: =IF('DF raw data'!O74="","",'DF raw data'!O74) -> 0.000253361 | D69: =IF('DF raw data'!P74="","",'DF raw data'!P74) -> -1.34192e-05 | F69: -9.712963828e-07 | G69: 0.0002544251162 | H69: -1.347556064e-05 | J69: -2.105199085e-05 | K69: -4.378373223e-05 | L69: 0.001002550602 | M69: 0.002250652706 | N69: 1.595630231e-06
A70: =IF('DF raw data'!M75="","",'DF raw data'!M75) -> -296 | B70: =IF('DF raw data'!N75="","",'DF raw data'!N75) -> -4.42596e-06 | C70: =IF('DF raw data'!O75="","",'DF raw data'!O75) -> 0.000246468 | D70: =IF('DF raw data'!P75="","",'DF raw data'!P75) -> -1.38183e-05 | F70: -4.444549032e-06 | G70: 0.0002475031656 | H70: -1.387633686e-05 | J70: -2.327426537e-05 | K70: -5.542086491e-05 | L70: 0.001126302184 | M70: 0.002813803798 | N70: 2.230179382e-06
A71: =IF('DF raw data'!M76="","",'DF raw data'!M76) -> -295.5 | B71: =IF('DF raw data'!N76="","",'DF raw data'!N76) -> -6.41129e-06 | C71: =IF('DF raw data'!O76="","",'DF raw data'!O76) -> 0.000246081 | D71: =IF('DF raw data'!P76="","",'DF raw data'!P76) -> -1.40306e-05 | F71: -6.438217418e-06 | G71: 0.0002471145402 | H71: -1.408952852e-05 | J71: -2.649337408e-05 | K71: -6.866755195e-05 | L71: 0.001249859454 | M71: 0.003438733525 | N71: 3.011604659e-06
A72: =IF('DF raw data'!M77="","",'DF raw data'!M77) -> -295 | B72: =IF('DF raw data'!N77="","",'DF raw data'!N77) -> -7.05233e-06 | C72: =IF('DF raw data'!O77="","",'DF raw data'!O77) -> 0.000257433 | D72: =IF('DF raw data'!P77="","",'DF raw data'!P77) -> -1.38353e-05 | F72: -7.081949786e-06 | G72: 0.0002585142186 | H72: -1.389340826e-05 | J72: -3.003434897e-05 | K72: -8.368472644e-05 | L72: 0.001379116564 | M72: 0.004128291807 | N72: 3.963036938e-06
A73: =IF('DF raw data'!M78="","",'DF raw data'!M78) -> -294.5 | B73: =IF('DF raw data'!N78="","",'DF raw data'!N78) -> -3.08062e-06 | C73: =IF('DF raw data'!O78="","",'DF raw data'!O78) -> 0.000258409 | D73: =IF('DF raw data'!P78="","",'DF raw data'!P78) -> -1.36878e-05 | F73: -3.093558604e-06 | G73: 0.0002594943178 | H73: -1.374528876e-05 | J73: -3.158112827e-05 | K73: -9.947529057e-05 | L73: 0.001508863723 | M73: 0.004882723668 | N73: 5.101870489e-06
A74: =IF('DF raw data'!M79="","",'DF raw data'!M79) -> -294 | B74: =IF('DF raw data'!N79="","",'DF raw data'!N79) -> -6.4761e-06 | C74: =IF('DF raw data'!O79="","",'DF raw data'!O79) -> 0.000251808 | D74: =IF('DF raw data'!P79="","",'DF raw data'!P79) -> -1.36134e-05 | F74: -6.50329962e-06 | G74: 0.0002528655936 | H74: -1.367057628e-05 | J74: -3.483277808e-05 | K74: -0.0001168916796 | L74: 0.001635296519 | M74: 0.005700371928 | N74: 6.439574503e-06
A75: =IF('DF raw data'!M80="","",'DF raw data'!M80) -> -293.5 | B75: =IF('DF raw data'!N80="","",'DF raw data'!N80) -> -2.11987e-06 | C75: =IF('DF raw data'!O80="","",'DF raw data'!O80) -> 0.000249715 | D75: =IF('DF raw data'!P80="","",'DF raw data'!P80) -> -1.38603e-05 | F75: -2.128773454e-06 | G75: 0.000250763803 | H75: -1.391851326e-05 | J75: -3.589716481e-05 | K75: -0.000134840262 | L75: 0.001760678421 | M75: 0.006580711139 | N75: 7.990213057e-06
A76: =IF('DF raw data'!M81="","",'DF raw data'!M81) -> -293 | B76: =IF('DF raw data'!N81="","",'DF raw data'!N81) -> -1.28666e-06 | C76: =IF('DF raw data'!O81="","",'DF raw data'!O81) -> 0.00024888 | D76: =IF('DF raw data'!P81="","",'DF raw data'!P81) -> -1.45898e-05 | F76: -1.292063972e-06 | G76: 0.000249925296 | H76: -1.465107716e-05 | J76: -3.654319679e-05 | K76: -0.0001531118604 | L76: 0.001885641069 | M76: 0.007523531673 | N76: 9.76870188e-06
A77: =IF('DF raw data'!M82="","",'DF raw data'!M82) -> -292.5 | B77: =IF('DF raw data'!N82="","",'DF raw data'!N82) -> -4.74549e-06 | C77: =IF('DF raw data'!O82="","",'DF raw data'!O82) -> 0.000252917 | D77: =IF('DF raw data'!P82="","",'DF raw data'!P82) -> -1.4842e-05 | F77: -4.765421058e-06 | G77: 0.0002539792514 | H77: -1.49043364e-05 | J77: -3.892590732e-05 | K77: -0.0001725748141 | L77: 0.002012630695 | M77: 0.00852984702 | N77: 1.179480065e-05
A78: =IF('DF raw data'!M83="","",'DF raw data'!M83) -> -292 | B78: =IF('DF raw data'!N83="","",'DF raw data'!N83) -> -1.99917e-05 | C78: =IF('DF raw data'!O83="","",'DF raw data'!O83) -> 0.00025433 | D78: =IF('DF raw data'!P83="","",'DF raw data'!P83) -> -1.39064e-05 | F78: -2.007566514e-05 | G78: 0.000255398186 | H78: -1.396480688e-05 | J78: -4.896373989e-05 | K78: -0.000197056684 | L78: 0.002140329788 | M78: 0.009600011914 | N78: 1.408650517e-05
A79: =IF('DF raw data'!M84="","",'DF raw data'!M84) -> -291.5 | B79: =IF('DF raw data'!N84="","",'DF raw data'!N84) -> -1.79881e-06 | C79: =IF('DF raw data'!O84="","",'DF raw data'!O84) -> 0.000244072 | D79: =IF('DF raw data'!P84="","",'DF raw data'!P84) -> -1.49193e-05 | F79: -1.806365002e-06 | G79: 0.0002450971024 | H79: -1.498196106e-05 | J79: -4.986692239e-05 | K79: -0.0002219901452 | L79: 0.002262878339 | M79: 0.01073145108 | N79: 1.664805772e-05
A80: =IF('DF raw data'!M85="","",'DF raw data'!M85) -> -291 | B80: =IF('DF raw data'!N85="","",'DF raw data'!N85) -> -6.28494e-06 | C80: =IF('DF raw data'!O85="","",'DF raw data'!O85) -> 0.000248456 | D80: =IF('DF raw data'!P85="","",'DF raw data'!P85) -> -1.17479e-05 | F80: -6.311336748e-06 | G80: 0.0002494995152 | H80: -1.179724118e-05 | J80: -5.302259077e-05 | K80: -0.0002485014406 | L80: 0.002387628096 | M80: 0.01192526513 | N80: 1.949984738e-05
A81: =IF('DF raw data'!M86="","",'DF raw data'!M86) -> -290.5 | B81: =IF('DF raw data'!N86="","",'DF raw data'!N86) -> -6.45609e-07 | C81: =IF('DF raw data'!O86="","",'DF raw data'!O86) -> 0.000250477 | D81: =IF('DF raw data'!P86="","",'DF raw data'!P86) -> -1.53456e-05 | F81: -6.483205578e-07 | G81: 0.0002515290034 | H81: -1.541005152e-05 | J81: -5.334675105e-05 | K81: -0.0002751748161 | L81: 0.002513392598 | M81: 0.01318196143 | N81: 2.265984149e-05
A82: =IF('DF raw data'!M87="","",'DF raw data'!M87) -> -290 | B82: =IF('DF raw data'!N87="","",'DF raw data'!N87) -> -5.07302e-06 | C82: =IF('DF raw data'!O87="","",'DF raw data'!O87) -> 0.000239621 | D82: =IF('DF raw data'!P87="","",'DF raw data'!P87) -> -3.71041e-06 | F82: -5.094326684e-06 | G82: 0.0002406274082 | H82: -3.725993722e-06 | J82: -5.589391439e-05 | K82: -0.0003031217733 | L82: 0.002633706302 | M82: 0.01449881458 | N82: 2.6129608e-05
A83: =IF('DF raw data'!M88="","",'DF raw data'!M88) -> -289.5 | B83: =IF('DF raw data'!N88="","",'DF raw data'!N88) -> 5.04753e-07 | C83: =IF('DF raw data'!O88="","",'DF raw data'!O88) -> 0.000245829 | D83: =IF('DF raw data'!P88="","",'DF raw data'!P88) -> -1.13809e-05 | F83: 5.068729626e-07 | G83: 0.0002468614818 | H83: -1.142869978e-05 | J83: -5.564047791e-05 | K83: -0.0003309420123 | L83: 0.002757137043 | M83: 0.0158773831 | N83: 2.993205827e-05
A84: =IF('DF raw data'!M89="","",'DF raw data'!M89) -> -289 | B84: =IF('DF raw data'!N89="","",'DF raw data'!N89) -> -6.98847e-06 | C84: =IF('DF raw data'!O89="","",'DF raw data'!O89) -> 0.000254973 | D84: =IF('DF raw data'!P89="","",'DF raw data'!P89) -> -1.35473e-05 | F84: -7.017821574e-06 | G84: 0.0002560438866 | H84: -1.360419866e-05 | J84: -5.914938869e-05 | K84: -0.0003605167066 | L84: 0.002885158986 | M84: 0.0173199626 | N84: 3.409587878e-05
A85: =IF('DF raw data'!M90="","",'DF raw data'!M90) -> -288.5 | B85: =IF('DF raw data'!N90="","",'DF raw data'!N90) -> 6.26714e-06 | C85: =IF('DF raw data'!O90="","",'DF raw data'!O90) -> 0.000257442 | D85: =IF('DF raw data'!P90="","",'DF raw data'!P90) -> -7.40109e-06 | F85: 6.293461988e-06 | G85: 0.0002585232564 | H85: -7.432174578e-06 | J85: -5.60026577e-05 | K85: -0.0003885180355 | L85: 0.003014420615 | M85: 0.0188271729 | N85: 3.864081275e-05
A86: =IF('DF raw data'!M91="","",'DF raw data'!M91) -> -288 | B86: =IF('DF raw data'!N91="","",'DF raw data'!N91) -> -1.42921e-05 | C86: =IF('DF raw data'!O91="","",'DF raw data'!O91) -> 0.000257494 | D86: =IF('DF raw data'!P91="","",'DF raw data'!P91) -> -1.15787e-05 | F86: -1.435212682e-05 | G86: 0.0002585754748 | H86: -1.162733054e-05 | J86: -6.317872111e-05 | K86: -0.000420107396 | L86: 0.003143708352 | M86: 0.02039902708 | N86: 4.358425963e-05
A87: =IF('DF raw data'!M92="","",'DF raw data'!M92) -> -287.5 | B87: =IF('DF raw data'!N92="","",'DF raw data'!N92) -> -9.10514e-06 | C87: =IF('DF raw data'!O92="","",'DF raw data'!O92) -> 0.000243327 | D87: =IF('DF raw data'!P92="","",'DF raw data'!P92) -> -8.71605e-06 | F87: -9.143381588e-06 | G87: 0.0002443489734 | H87: -8.75265741e-06 | J87: -6.77504119e-05 | K87: -0.000453982602 | L87: 0.003265882839 | M87: 0.0220319685 | N87: 4.891955005e-05
A88: =IF('DF raw data'!M93="","",'DF raw data'!M93) -> -287 | B88: =IF('DF raw data'!N93="","",'DF raw data'!N93) -> -7.37165e-06 | C88: =IF('DF raw data'!O93="","",'DF raw data'!O93) -> 0.000237056 | D88: =IF('DF raw data'!P93="","",'DF raw data'!P93) -> -1.52042e-05 | F88: -7.40261093e-06 | G88: 0.0002380516352 | H88: -1.526805764e-05 | J88: -7.145171737e-05 | K88: -0.0004897084607 | L88: 0.003384908656 | M88: 0.02372442283 | N88: 5.465090602e-05
A89: =IF('DF raw data'!M94="","",'DF raw data'!M94) -> -286.5 | B89: =IF('DF raw data'!N94="","",'DF raw data'!N94) -> -8.26503e-06 | C89: =IF('DF raw data'!O94="","",'DF raw data'!O94) -> 0.000240865 | D89: =IF('DF raw data'!P94="","",'DF raw data'!P94) -> -2.0364e-05 | F89: -8.299743126e-06 | G89: 0.000241876633 | H89: -2.04495288e-05 | J89: -7.560158893e-05 | K89: -0.0005275092551 | L89: 0.003505846973 | M89: 0.02547734631 | N89: 6.079924532e-05
A90: =IF('DF raw data'!M95="","",'DF raw data'!M95) -> -286 | B90: =IF('DF raw data'!N95="","",'DF raw data'!N95) -> -1.42897e-05 | C90: =IF('DF raw data'!O95="","",'DF raw data'!O95) -> 0.000242799 | D90: =IF('DF raw data'!P95="","",'DF raw data'!P95) -> -1.51385e-05 | F90: -1.434971674e-05 | G90: 0.0002438187558 | H90: -1.52020817e-05 | J90: -8.27764473e-05 | K90: -0.0005688974788 | L90: 0.003627756351 | M90: 0.02729122449 | N90: 6.738297936e-05
A91: =IF('DF raw data'!M96="","",'DF raw data'!M96) -> -285.5 | B91: =IF('DF raw data'!N96="","",'DF raw data'!N96) -> -1.19159e-05 | C91: =IF('DF raw data'!O96="","",'DF raw data'!O96) -> 0.000254122 | D91: =IF('DF raw data'!P96="","",'DF raw data'!P96) -> -2.08566e-05 | F91: -1.196594678e-05 | G91: 0.0002551893124 | H91: -2.094419772e-05 | J91: -8.875942069e-05 | K91: -0.0006132771891 | L91: 0.003755351007 | M91: 0.02916889999 | N91: 7.443824907e-05
A92: =IF('DF raw data'!M97="","",'DF raw data'!M97) -> -285 | B92: =IF('DF raw data'!N97="","",'DF raw data'!N97) -> 9.22683e-06 | C92: =IF('DF raw data'!O97="","",'DF raw data'!O97) -> 0.000252722 | D92: =IF('DF raw data'!P97="","",'DF raw data'!P97) -> -2.73609e-05 | F92: 9.265582686e-06 | G92: 0.0002537834324 | H92: -2.747581578e-05 | J92: -8.412662935e-05 | K92: -0.0006553405038 | L92: 0.003882242723 | M92: 0.03111002135 | N92: 8.1977692e-05
A93: =IF('DF raw data'!M98="","",'DF raw data'!M98) -> -284.5 | B93: =IF('DF raw data'!N98="","",'DF raw data'!N98) -> 5.12311e-06 | C93: =IF('DF raw data'!O98="","",'DF raw data'!O98) -> 0.00025712 | D93: =IF('DF raw data'!P98="","",'DF raw data'!P98) -> -2.10779e-05 | F93: 5.144627062e-06 | G93: 0.000258199904 | H93: -2.116642718e-05 | J93: -8.155431582e-05 | K93: -0.0006961176617 | L93: 0.004011342675 | M93: 0.03311569269 | N93: 9.002645258e-05
A94: =IF('DF raw data'!M99="","",'DF raw data'!M99) -> -284 | B94: =IF('DF raw data'!N99="","",'DF raw data'!N99) -> 4.02922e-06 | C94: =IF('DF raw data'!O99="","",'DF raw data'!O99) -> 0.000255068 | D94: =IF('DF raw data'!P99="","",'DF raw data'!P99) -> -1.35711e-05 | F94: 4.046142724e-06 | G94: 0.0002561392856 | H94: -1.362809862e-05 | J94: -7.953124446e-05 | K94: -0.0007358832839 | L94: 0.004139412318 | M94: 0.03518539885 | N94: 9.859698236e-05
A95: =IF('DF raw data'!M100="","",'DF raw data'!M100) -> -283.5 | B95: =IF('DF raw data'!N100="","",'DF raw data'!N100) -> -3.30008e-07 | C95: =IF('DF raw data'!O100="","",'DF raw data'!O100) -> 0.000258517 | D95: =IF('DF raw data'!P100="","",'DF raw data'!P100) -> -8.37379e-06 | F95: -3.313940336e-07 | G95: 0.0002596027714 | H95: -8.408959918e-06 | J95: -7.969694147e-05 | K95: -0.0007757317547 | L95: 0.004269213704 | M95: 0.0373200057 | N95: 0.000107713251
A96: =IF('DF raw data'!M101="","",'DF raw data'!M101) -> -283 | B96: =IF('DF raw data'!N101="","",'DF raw data'!N101) -> -9.74818e-07 | C96: =IF('DF raw data'!O101="","",'DF raw data'!O101) -> 0.000262239 | D96: =IF('DF raw data'!P101="","",'DF raw data'!P101) -> -1.77063e-06 | F96: -9.789122356e-07 | G96: 0.0002633404038 | H96: -1.778066646e-06 | J96: -8.018639759e-05 | K96: -0.0008158249535 | L96: 0.004400883905 | M96: 0.03952044766 | N96: 0.0001174003555
A97: =IF('DF raw data'!M102="","",'DF raw data'!M102) -> -282.5 | B97: =IF('DF raw data'!N102="","",'DF raw data'!N102) -> -7.95461e-06 | C97: =IF('DF raw data'!O102="","",'DF raw data'!O102) -> 0.000266496 | D97: =IF('DF raw data'!P102="","",'DF raw data'!P102) -> -4.98696e-06 | F97: -7.988019362e-06 | G97: 0.0002676152832 | H97: -5.007905232e-06 | J97: -8.418040727e-05 | K97: -0.0008579151571 | L97: 0.004534691547 | M97: 0.04178779343 | N97: 0.0001276856124
A98: =IF('DF raw data'!M103="","",'DF raw data'!M103) -> -282 | B98: =IF('DF raw data'!N103="","",'DF raw data'!N103) -> -9.61439e-06 | C98: =IF('DF raw data'!O103="","",'DF raw data'!O103) -> 0.000258107 | D98: =IF('DF raw data'!P103="","",'DF raw data'!P103) -> -1.40409e-05 | F98: -9.654770438e-06 | G98: 0.0002591910494 | H98: -1.409987178e-05 | J98: -8.900779249e-05 | K98: -0.0009024190533 | L98: 0.004664287072 | M98: 0.04411993696 | N98: 0.0001385673605
A99: =IF('DF raw data'!M104="","",'DF raw data'!M104) -> -281.5 | B99: =IF('DF raw data'!N104="","",'DF raw data'!N104) -> 3.2062e-06 | C99: =IF('DF raw data'!O104="","",'DF raw data'!O104) -> 0.000261355 | D99: =IF('DF raw data'!P104="","",'DF raw data'!P104) -> -2.82881e-05 | F99: 3.21966604e-06 | G99: 0.000262452691 | H99: -2.840691002e-05 | J99: -8.739795947e-05 | K99: -0.0009461180331 | L99: 0.004795513417 | M99: 0.04651769367 | N99: 0.0001500696542
A100: =IF('DF raw data'!M105="","",'DF raw data'!M105) -> -281 | B100: =IF('DF raw data'!N105="","",'DF raw data'!N105) -> 3.70825e-06 | C100: =IF('DF raw data'!O105="","",'DF raw data'!O105) -> 0.000263339 | D100: =IF('DF raw data'!P105="","",'DF raw data'!P105) -> -1.22777e-05 | F100: 3.72382465e-06 | G100: 0.0002644450238 | H100: -1.232926634e-05 | J100: -8.553604715e-05 | K100: -0.0009888860567 | L100: 0.004927735929 | M100: 0.04898156164 | N100: 0.0001622146031
A101: =IF('DF raw data'!M106="","",'DF raw data'!M106) -> -280.5 | B101: =IF('DF raw data'!N106="","",'DF raw data'!N106) -> 5.51036e-06 | C101: =IF('DF raw data'!O106="","",'DF raw data'!O106) -> 0.000276313 | D101: =IF('DF raw data'!P106="","",'DF raw data'!P106) -> -2.56072e-05 | F101: 5.533503512e-06 | G101: 0.0002774735146 | H101: -2.571475024e-05 | J101: -8.276929539e-05 | K101: -0.001030270704 | L101: 0.005066472686 | M101: 0.05151479798 | N101: 0.0001750526012
A102: =IF('DF raw data'!M107="","",'DF raw data'!M107) -> -280 | B102: =IF('DF raw data'!N107="","",'DF raw data'!N107) -> -1.66625e-05 | C102: =IF('DF raw data'!O107="","",'DF raw data'!O107) -> 0.000270672 | D102: =IF('DF raw data'!P107="","",'DF raw data'!P107) -> -1.09074e-05 | F102: -1.67324825e-05 | G102: 0.0002718088224 | H102: -1.095321108e-05 | J102: -9.113553664e-05 | K102: -0.001075838473 | L102: 0.005202377098 | M102: 0.05411598653 | N102: 0.0001885891178
A103: =IF('DF raw data'!M108="","",'DF raw data'!M108) -> -279.5 | B103: =IF('DF raw data'!N108="","",'DF raw data'!N108) -> -6.2175e-06 | C103: =IF('DF raw data'!O108="","",'DF raw data'!O108) -> 0.000264381 | D103: =IF('DF raw data'!P108="","",'DF raw data'!P108) -> -1.70522e-05 | F103: -6.2436135e-06 | G103: 0.0002654914002 | H103: -1.712381924e-05 | J103: -9.425734339e-05 | K103: -0.001122967144 | L103: 0.005335122798 | M103: 0.05678354793 | N103: 0.0002028253276
A104: =IF('DF raw data'!M109="","",'DF raw data'!M109) -> -279 | B104: =IF('DF raw data'!N109="","",'DF raw data'!N109) -> -9.61177e-06 | C104: =IF('DF raw data'!O109="","",'DF raw data'!O109) -> 0.000267828 | D104: =IF('DF raw data'!P109="","",'DF raw data'!P109) -> -1.80852e-05 | F104: -9.652139434e-06 | G104: 0.0002689528776 | H104: -1.816115784e-05 | J104: -9.908341311e-05 | K104: -0.001172508851 | L104: 0.005469599237 | M104: 0.05951834755 | N104: 0.0002177884943
A105: =IF('DF raw data'!M110="","",'DF raw data'!M110) -> -278.5 | B105: =IF('DF raw data'!N110="","",'DF raw data'!N110) -> -1.97914e-07 | C105: =IF('DF raw data'!O110="","",'DF raw data'!O110) -> 0.000267081 | D105: =IF('DF raw data'!P110="","",'DF raw data'!P110) -> -1.41167e-05 | F105: -1.987452388e-07 | G105: 0.0002682027402 | H105: -1.417599014e-05 | J105: -9.918278573e-05 | K105: -0.001222100244 | L105: 0.005603700607 | M105: 0.06232019785 | N105: 0.0002334941432
A106: =IF('DF raw data'!M111="","",'DF raw data'!M111) -> -278 | B106: =IF('DF raw data'!N111="","",'DF raw data'!N111) -> 1.82858e-07 | C106: =IF('DF raw data'!O111="","",'DF raw data'!O111) -> 0.000265471 | D106: =IF('DF raw data'!P111="","",'DF raw data'!P111) -> -8.65143e-06 | F106: 1.836260036e-07 | G106: 0.0002665859782 | H106: -8.687766006e-06 | J106: -9.909097272e-05 | K106: -0.00127164573 | L106: 0.005736993596 | M106: 0.06518869465 | N106: 0.0002499556004
A107: =IF('DF raw data'!M112="","",'DF raw data'!M112) -> -277.5 | B107: =IF('DF raw data'!N112="","",'DF raw data'!N112) -> -7.82074e-06 | C107: =IF('DF raw data'!O112="","",'DF raw data'!O112) -> 0.000266288 | D107: =IF('DF raw data'!P112="","",'DF raw data'!P112) -> -1.3889e-05 | F107: -7.853587108e-06 | G107: 0.0002674064096 | H107: -1.39473338e-05 | J107: -0.0001030177663 | K107: -0.001323154613 | L107: 0.005870696801 | M107: 0.06812404305 | N107: 0.0002671934472
A108: =IF('DF raw data'!M113="","",'DF raw data'!M113) -> -277 | B108: =IF('DF raw data'!N113="","",'DF raw data'!N113) -> -1.04416e-05 | C108: =IF('DF raw data'!O113="","",'DF raw data'!O113) -> 0.000261393 | D108: =IF('DF raw data'!P113="","",'DF raw data'!P113) -> -2.22754e-05 | F108: -1.048545472e-05 | G108: 0.0002624908506 | H108: -2.236895668e-05 | J108: -0.0001082604936 | K108: -0.00137728486 | L108: 0.006001942226 | M108: 0.07112501416 | N108: 0.0002852109626
A109: =IF('DF raw data'!M114="","",'DF raw data'!M114) -> -276.5 | B109: =IF('DF raw data'!N114="","",'DF raw data'!N114) -> -1.21085e-05 | C109: =IF('DF raw data'!O114="","",'DF raw data'!O114) -> 0.000268411 | D109: =IF('DF raw data'!P114="","",'DF raw data'!P114) -> -2.03093e-05 | F109: -1.21593557e-05 | G109: 0.0002695383262 | H109: -2.039459906e-05 | J109: -0.0001143401715 | K109: -0.001434454946 | L109: 0.006136711389 | M109: 0.07419336986 | N109: 0.0003040471128
A110: =IF('DF raw data'!M115="","",'DF raw data'!M115) -> -276 | B110: =IF('DF raw data'!N115="","",'DF raw data'!N115) -> -2.17891e-05 | C110: =IF('DF raw data'!O115="","",'DF raw data'!O115) -> 0.000265146 | D110: =IF('DF raw data'!P115="","",'DF raw data'!P115) -> -7.68665e-06 | F110: -2.188061422e-05 | G110: 0.0002662596132 | H110: -7.71893393e-06 | J110: -0.0001252804786 | K110: -0.001497095185 | L110: 0.006269841196 | M110: 0.07732829045 | N110: 0.0003237104147
A111: =IF('DF raw data'!M116="","",'DF raw data'!M116) -> -275.5 | B111: =IF('DF raw data'!N116="","",'DF raw data'!N116) -> -3.21381e-06 | C111: =IF('DF raw data'!O116="","",'DF raw data'!O116) -> 0.00024805 | D111: =IF('DF raw data'!P116="","",'DF raw data'!P116) -> -6.37667e-06 | F111: -3.227308002e-06 | G111: 0.00024909181 | H111: -6.403452014e-06 | J111: -0.0001268941326 | K111: -0.001560542251 | L111: 0.006394387101 | M111: 0.080525484 | N111: 0.000344162559
A112: =IF('DF raw data'!M117="","",'DF raw data'!M117) -> -275 | B112: =IF('DF raw data'!N117="","",'DF raw data'!N117) -> -4.17351e-06 | C112: =IF('DF raw data'!O117="","",'DF raw data'!O117) -> 0.000240245 | D112: =IF('DF raw data'!P117="","",'DF raw data'!P117) -> -7.87402e-06 | F112: -4.191038742e-06 | G112: 0.000241254029 | H112: -7.907090884e-06 | J112: -0.000128989652 | K112: -0.001625037077 | L112: 0.006515014115 | M112: 0.08378299106 | N112: 0.0003653935826
A113: =IF('DF raw data'!M118="","",'DF raw data'!M118) -> -274.5 | B113: =IF('DF raw data'!N118="","",'DF raw data'!N118) -> -7.74601e-07 | C113: =IF('DF raw data'!O118="","",'DF raw data'!O118) -> 0.000253379 | D113: =IF('DF raw data'!P118="","",'DF raw data'!P118) -> -1.3994e-05 | F113: -7.778543242e-07 | G113: 0.0002544431918 | H113: -1.40527748e-05 | J113: -0.0001293785791 | K113: -0.001689726367 | L113: 0.006642235711 | M113: 0.08710410892 | N113: 0.0003874615996
A114: =IF('DF raw data'!M119="","",'DF raw data'!M119) -> -274 | B114: =IF('DF raw data'!N119="","",'DF raw data'!N119) -> -7.82432e-06 | C114: =IF('DF raw data'!O119="","",'DF raw data'!O119) -> 0.0002479 | D114: =IF('DF raw data'!P119="","",'DF raw data'!P119) -> -8.38139e-06 | F114: -7.857182144e-06 | G114: 0.00024894118 | H114: -8.416591838e-06 | J114: -0.0001333071702 | K114: -0.001756379952 | L114: 0.006766706301 | M114: 0.09048746207 | N114: 0.0004103646421
A115: =IF('DF raw data'!M120="","",'DF raw data'!M120) -> -273.5 | B115: =IF('DF raw data'!N120="","",'DF raw data'!N120) -> -1.19873e-05 | C115: =IF('DF raw data'!O120="","",'DF raw data'!O120) -> 0.000243303 | D115: =IF('DF raw data'!P120="","",'DF raw data'!P120) -> -9.31476e-06 | F115: -1.203764666e-05 | G115: 0.0002443248726 | H115: -9.353881992e-06 | J115: -0.0001393259935 | K115: -0.001826042949 | L115: 0.006888868737 | M115: 0.09393189644 | N115: 0.0004341026042
A116: =IF('DF raw data'!M121="","",'DF raw data'!M121) -> -273 | B116: =IF('DF raw data'!N121="","",'DF raw data'!N121) -> -2.89011e-06 | C116: =IF('DF raw data'!O121="","",'DF raw data'!O121) -> 0.000255749 | D116: =IF('DF raw data'!P121="","",'DF raw data'!P121) -> -1.14839e-05 | F116: -2.902248462e-06 | G116: 0.0002568231458 | H116: -1.153213238e-05 | J116: -0.0001407771178 | K116: -0.001896431508 | L116: 0.00701728031 | M116: 0.09744053659 | N116: 0.0004587336248
A117: =IF('DF raw data'!M122="","",'DF raw data'!M122) -> -272.5 | B117: =IF('DF raw data'!N122="","",'DF raw data'!N122) -> -4.53023e-07 | C117: =IF('DF raw data'!O122="","",'DF raw data'!O122) -> 0.00025244 | D117: =IF('DF raw data'!P122="","",'DF raw data'!P122) -> -1.6225e-05 | F117: -4.549256966e-07 | G117: 0.000253500248 | H117: -1.6293145e-05 | J117: -0.0001410045806 | K117: -0.001966933798 | L117: 0.007144030434 | M117: 0.1010125518 | N117: 0.0004842621514
A118: =IF('DF raw data'!M123="","",'DF raw data'!M123) -> -272 | B118: =IF('DF raw data'!N123="","",'DF raw data'!N123) -> -4.67842e-06 | C118: =IF('DF raw data'!O123="","",'DF raw data'!O123) -> 0.000238954 | D118: =IF('DF raw data'!P123="","",'DF raw data'!P123) -> -1.94592e-05 | F118: -4.698069364e-06 | G118: 0.0002399576068 | H118: -1.954092864e-05 | J118: -0.0001433536153 | K118: -0.002038610606 | L118: 0.007264009238 | M118: 0.1046445564 | N118: 0.0005106553416
A119: =IF('DF raw data'!M124="","",'DF raw data'!M124) -> -271.5 | B119: =IF('DF raw data'!N124="","",'DF raw data'!N124) -> 5.51034e-06 | C119: =IF('DF raw data'!O124="","",'DF raw data'!O124) -> 0.000240244 | D119: =IF('DF raw data'!P124="","",'DF raw data'!P124) -> -2.55632e-05 | F119: 5.533483428e-06 | G119: 0.0002412530248 | H119: -2.567056544e-05 | J119: -0.0001405868736 | K119: -0.002108904042 | L119: 0.00738463575 | M119: 0.1083368743 | N119: 0.0005379316465
A120: =IF('DF raw data'!M125="","",'DF raw data'!M125) -> -271 | B120: =IF('DF raw data'!N125="","",'DF raw data'!N125) -> 6.91314e-06 | C120: =IF('DF raw data'!O125="","",'DF raw data'!O125) -> 0.000246932 | D120: =IF('DF raw data'!P125="","",'DF raw data'!P125) -> -1.57478e-05 | F120: 6.942175188e-06 | G120: 0.0002479691144 | H120: -1.581394076e-05 | J120: -0.000137115786 | K120: -0.002177461935 | L120: 0.007508620307 | M120: 0.1120911845 | N120: 0.0005661307363
A121: =IF('DF raw data'!M126="","",'DF raw data'!M126) -> -270.5 | B121: =IF('DF raw data'!N126="","",'DF raw data'!N126) -> -6.92715e-06 | C121: =IF('DF raw data'!O126="","",'DF raw data'!O126) -> 0.000251402 | D121: =IF('DF raw data'!P126="","",'DF raw data'!P126) -> -9.04292e-06 | F121: -6.95624403e-06 | G121: 0.0002524578884 | H121: -9.080900264e-06 | J121: -0.000140593908 | K121: -0.002247758889 | L121: 0.007634849251 | M121: 0.1159086091 | N121: 0.0005952860812
A122: =IF('DF raw data'!M127="","",'DF raw data'!M127) -> -270 | B122: =IF('DF raw data'!N127="","",'DF raw data'!N127) -> 6.65677e-06 | C122: =IF('DF raw data'!O127="","",'DF raw data'!O127) -> 0.000257155 | D122: =IF('DF raw data'!P127="","",'DF raw data'!P127) -> -1.55051e-05 | F122: 6.684728434e-06 | G122: 0.000258235051 | H122: -1.557022142e-05 | J122: -0.0001372515438 | K122: -0.002316384661 | L122: 0.007763966777 | M122: 0.1197905925 | N122: 0.0006254350902
A123: =IF('DF raw data'!M128="","",'DF raw data'!M128) -> -269.5 | B123: =IF('DF raw data'!N128="","",'DF raw data'!N128) -> -7.69589e-06 | C123: =IF('DF raw data'!O128="","",'DF raw data'!O128) -> 0.000253929 | D123: =IF('DF raw data'!P128="","",'DF raw data'!P128) -> -8.88363e-06 | F123: -7.728212738e-06 | G123: 0.0002549955018 | H123: -8.920941246e-06 | J123: -0.0001411156502 | K123: -0.002386942486 | L123: 0.007891464528 | M123: 0.1237363247 | N123: 0.0006565826533
A124: =IF('DF raw data'!M129="","",'DF raw data'!M129) -> -269 | B124: =IF('DF raw data'!N129="","",'DF raw data'!N129) -> -1.47518e-06 | C124: =IF('DF raw data'!O129="","",'DF raw data'!O129) -> 0.000257042 | D124: =IF('DF raw data'!P129="","",'DF raw data'!P129) -> -2.03615e-05 | F124: -1.481375756e-06 | G124: 0.0002581215764 | H124: -2.04470183e-05 | J124: -0.000141856338 | K124: -0.002457870655 | L124: 0.008020525316 | M124: 0.1277465874 | N124: 0.000688757128
A125: =IF('DF raw data'!M130="","",'DF raw data'!M130) -> -268.5 | B125: =IF('DF raw data'!N130="","",'DF raw data'!N130) -> 2.48639e-06 | C125: =IF('DF raw data'!O130="","",'DF raw data'!O130) -> 0.000263467 | D125: =IF('DF raw data'!P130="","",'DF raw data'!P130) -> -4.99213e-06 | F125: 2.496832838e-06 | G125: 0.0002645735614 | H125: -5.013096946e-06 | J125: -0.0001406079216 | K125: -0.002528174616 | L125: 0.008152812097 | M125: 0.1318229934 | N125: 0.0007220011859
A126: =IF('DF raw data'!M131="","",'DF raw data'!M131) -> -268 | B126: =IF('DF raw data'!N131="","",'DF raw data'!N131) -> -2.01863e-05 | C126: =IF('DF raw data'!O131="","",'DF raw data'!O131) -> 0.000249554 | D126: =IF('DF raw data'!P131="","",'DF raw data'!P131) -> -9.77412e-06 | F126: -2.027108246e-05 | G126: 0.0002506021268 | H126: -9.815171304e-06 | J126: -0.0001507434628 | K126: -0.002603546348 | L126: 0.00827811316 | M126: 0.13596205 | N126: 0.0007562761264
A127: =IF('DF raw data'!M132="","",'DF raw data'!M132) -> -267.5 | B127: =IF('DF raw data'!N132="","",'DF raw data'!N132) -> -2.65425e-07 | C127: =IF('DF raw data'!O132="","",'DF raw data'!O132) -> 0.000244217 | D127: =IF('DF raw data'!P132="","",'DF raw data'!P132) -> -8.98928e-06 | F127: -2.66539785e-07 | G127: 0.0002452427114 | H127: -9.027034976e-06 | J127: -0.0001508767327 | K127: -0.002678984714 | L127: 0.008400734516 | M127: 0.1401624173 | N127: 0.0007915736785
A128: =IF('DF raw data'!M133="","",'DF raw data'!M133) -> -267 | B128: =IF('DF raw data'!N133="","",'DF raw data'!N133) -> -1.88426e-05 | C128: =IF('DF raw data'!O133="","",'DF raw data'!O133) -> 0.000250187 | D128: =IF('DF raw data'!P133="","",'DF raw data'!P133) -> -7.31195e-06 | F128: =(1-$G$1*($B$49-$G$2))*B128 -> -1.892173892e-05 | G128: 0.0002512377854 | H128: -7.34266019e-06 | J128: =F128*$G$3+J127 -> -0.0001603376022 | K128: =J128*$G$3+K127 -> -0.002759153515 | L128: =G128*$G$3+L127 -> 0.008526353409 | M128: =L128*$G$3+M127 -> 0.144425594 | N128: =(J128^2+L128^2)*$G$3+N127 -> 0.0008279358838
A129: =IF('DF raw data'!M134="","",'DF raw data'!M134) -> -266.5 | B129: =IF('DF raw data'!N134="","",'DF raw data'!N134) -> -1.10879e-05 | C129: =IF('DF raw data'!O134="","",'DF raw data'!O134) -> 0.00025286 | D129: =IF('DF raw data'!P134="","",'DF raw data'!P134) -> -1.33623e-05 | F129: -1.113446918e-05 | G129: 0.000253922012 | H129: -1.341842166e-05 | J129: -0.0001659048368 | K129: -0.002842105934 | L129: 0.008653314415 | M129: 0.1487522512 | N129: 0.0008653895712
A130: =IF('DF raw data'!M135="","",'DF raw data'!M135) -> -266 | B130: =IF('DF raw data'!N135="","",'DF raw data'!N135) -> -8.26842e-06 | C130: =IF('DF raw data'!O135="","",'DF raw data'!O135) -> 0.000244761 | D130: =IF('DF raw data'!P135="","",'DF raw data'!P135) -> -1.51541e-05 | F130: -8.303147364e-06 | G130: 0.0002457889962 | H130: -1.521774722e-05 | J130: -0.0001700564105 | K130: -0.002927134139 | L130: 0.008776208913 | M130: 0.1531403556 | N130: 0.0009039149522
A131: =IF('DF raw data'!M136="","",'DF raw data'!M136) -> -265.5 | B131: =IF('DF raw data'!N136="","",'DF raw data'!N136) -> -1.09946e-06 | C131: =IF('DF raw data'!O136="","",'DF raw data'!O136) -> 0.000245399 | D131: =IF('DF raw data'!P136="","",'DF raw data'!P136) -> -7.12301e-06 | F131: -1.104077732e-06 | G131: 0.0002464296758 | H131: -7.152926642e-06 | J131: -0.0001706084493 | K131: -0.003012438363 | L131: 0.008899423751 | M131: 0.1575900675 | N131: 0.0009435293774
A132: =IF('DF raw data'!M137="","",'DF raw data'!M137) -> -265 | B132: =IF('DF raw data'!N137="","",'DF raw data'!N137) -> -1.40948e-06 | C132: =IF('DF raw data'!O137="","",'DF raw data'!O137) -> 0.000251433 | D132: =IF('DF raw data'!P137="","",'DF raw data'!P137) -> -2.27057e-05 | F132: -1.415399816e-06 | G132: 0.0002524890186 | H132: -2.280106394e-05 | J132: -0.0001713161492 | K132: -0.003098096438 | L132: 0.00902566826 | M132: 0.1621029017 | N132: 0.0009842753958
A133: =IF('DF raw data'!M138="","",'DF raw data'!M138) -> -264.5 | B133: =IF('DF raw data'!N138="","",'DF raw data'!N138) -> 3.64953e-06 | C133: =IF('DF raw data'!O138="","",'DF raw data'!O138) -> 0.00025466 | D133: =IF('DF raw data'!P138="","",'DF raw data'!P138) -> -2.06973e-05 | F133: 3.664858026e-06 | G133: 0.000255729572 | H133: -2.078422866e-05 | J133: -0.0001694837202 | K133: -0.003182838298 | L133: 0.009153533046 | M133: 0.1666796682 | N133: 0.001026183342
A134: =IF('DF raw data'!M139="","",'DF raw data'!M139) -> -264 | B134: =IF('DF raw data'!N139="","",'DF raw data'!N139) -> 6.35519e-07 | C134: =IF('DF raw data'!O139="","",'DF raw data'!O139) -> 0.000258076 | D134: =IF('DF raw data'!P139="","",'DF raw data'!P139) -> -1.5472e-05 | F134: 6.381881798e-07 | G134: 0.0002591599192 | H134: -1.55369824e-05 | J134: -0.0001691646261 | K134: -0.003267420611 | L134: 0.009283113005 | M134: 0.1713212247 | N134: 0.001069285744
A135: =IF('DF raw data'!M140="","",'DF raw data'!M140) -> -263.5 | B135: =IF('DF raw data'!N140="","",'DF raw data'!N140) -> 3.89946e-06 | C135: =IF('DF raw data'!O140="","",'DF raw data'!O140) -> 0.000255035 | D135: =IF('DF raw data'!P140="","",'DF raw data'!P140) -> -1.1009e-05 | F135: 3.915837732e-06 | G135: 0.000256106147 | H135: -1.10552378e-05 | J135: -0.0001672067073 | K135: -0.003351023965 | L135: 0.009411166079 | M135: 0.1760268077 | N135: 0.001113584746
A136: =IF('DF raw data'!M141="","",'DF raw data'!M141) -> -263 | B136: =IF('DF raw data'!N141="","",'DF raw data'!N141) -> -1.56937e-05 | C136: =IF('DF raw data'!O141="","",'DF raw data'!O141) -> 0.000253497 | D136: =IF('DF raw data'!P141="","",'DF raw data'!P141) -> -2.30425e-05 | F136: -1.575961354e-05 | G136: 0.0002545616874 | H136: -2.31392785e-05 | J136: -0.000175086514 | K136: -0.003438567222 | L136: 0.009538446923 | M136: 0.1807960312 | N136: 0.001159091059
A137: =IF('DF raw data'!M142="","",'DF raw data'!M142) -> -262.5 | B137: =IF('DF raw data'!N142="","",'DF raw data'!N142) -> -8.91349e-06 | C137: =IF('DF raw data'!O142="","",'DF raw data'!O142) -> 0.000252941 | D137: =IF('DF raw data'!P142="","",'DF raw data'!P142) -> -8.21422e-06 | F137: -8.950926658e-06 | G137: 0.0002540033522 | H137: -8.248719724e-06 | J137: -0.0001795619774 | K137: -0.003528348211 | L137: 0.009665448599 | M137: 0.1856287555 | N137: 0.001205817628
A138: =IF('DF raw data'!M143="","",'DF raw data'!M143) -> -262 | B138: =IF('DF raw data'!N143="","",'DF raw data'!N143) -> -1.00029e-05 | C138: =IF('DF raw data'!O143="","",'DF raw data'!O143) -> 0.000252879 | D138: =IF('DF raw data'!P143="","",'DF raw data'!P143) -> -7.59327e-06 | F138: -1.004491218e-05 | G138: 0.0002539410918 | H138: -7.625161734e-06 | J138: -0.0001845844335 | K138: -0.003620640427 | L138: 0.009792419145 | M138: 0.190524965 | N138: 0.0012537804
A139: =IF('DF raw data'!M144="","",'DF raw data'!M144) -> -261.5 | B139: =IF('DF raw data'!N144="","",'DF raw data'!N144) -> -5.97049e-06 | C139: =IF('DF raw data'!O144="","",'DF raw data'!O144) -> 0.000246997 | D139: =IF('DF raw data'!P144="","",'DF raw data'!P144) -> -2.49064e-06 | F139: -5.995566058e-06 | G139: 0.0002480343874 | H139: -2.501100688e-06 | J139: -0.0001875822165 | K139: -0.003714431536 | L139: 0.009916436338 | M139: 0.1954831832 | N139: 0.001302965849
A140: =IF('DF raw data'!M145="","",'DF raw data'!M145) -> -261 | B140: =IF('DF raw data'!N145="","",'DF raw data'!N145) -> 6.58687e-06 | C140: =IF('DF raw data'!O145="","",'DF raw data'!O145) -> 0.000247451 | D140: =IF('DF raw data'!P145="","",'DF raw data'!P145) -> -6.32642e-06 | F140: 6.614534854e-06 | G140: 0.0002484902942 | H140: -6.352990964e-06 | J140: -0.0001842749491 | K140: -0.00380656901 | L140: 0.01004068149 | M140: 0.200503524 | N140: 0.00135339047
A141: =IF('DF raw data'!M146="","",'DF raw data'!M146) -> -260.5 | B141: =IF('DF raw data'!N146="","",'DF raw data'!N146) -> 1.38848e-05 | C141: =IF('DF raw data'!O146="","",'DF raw data'!O146) -> 0.000250921 | D141: =IF('DF raw data'!P146="","",'DF raw data'!P146) -> 5.51999e-07 | F141: 1.394311616e-05 | G141: 0.0002519748682 | H141: 5.543173958e-07 | J141: -0.000177303391 | K141: -0.003895220706 | L141: 0.01016666892 | M141: 0.2055868584 | N141: 0.001405086766
A142: =IF('DF raw data'!M147="","",'DF raw data'!M147) -> -260 | B142: =IF('DF raw data'!N147="","",'DF raw data'!N147) -> 2.10545e-06 | C142: =IF('DF raw data'!O147="","",'DF raw data'!O147) -> 0.000254338 | D142: =IF('DF raw data'!P147="","",'DF raw data'!P147) -> -1.02097e-05 | F142: 2.11429289e-06 | G142: 0.0002554062196 | H142: -1.025258074e-05 | J142: -0.0001762462445 | K142: -0.003983343828 | L142: 0.01029437203 | M142: 0.2107340444 | N142: 0.001458089345
A143: =IF('DF raw data'!M148="","",'DF raw data'!M148) -> -259.5 | B143: =IF('DF raw data'!N148="","",'DF raw data'!N148) -> -6.54691e-06 | C143: =IF('DF raw data'!O148="","",'DF raw data'!O148) -> 0.000243282 | D143: =IF('DF raw data'!P148="","",'DF raw data'!P148) -> -2.81502e-06 | F143: -6.574407022e-06 | G143: 0.0002443037844 | H143: -2.826843084e-06 | J143: -0.0001795334481 | K143: -0.004073110552 | L143: 0.01041652392 | M143: 0.2159423064 | N143: 0.001512357447
